{"text_format":"1","workbook":"xlsx","n_sheets":154,"sheets":["PRESENTACIÓN","RESUMEN DE ESTADÍSTICAS EDUCATI","Organigrama 1.1","Organigrama 1.2","Organigrama 2.1","Cuadro 2.1","ESTADÍSTICAS POR NIVEL ","2. PRIMERA INFANCIA E INICIAL","Gráfico 2.2.1","Gráfico 2.2.2","Gráfico 2.2.3","Gráfico 2.2.4","Gráfico 2.2.5","3. EDUCACIÓN PRIMARIA","Gráfico 2.3.1","Gráfico 2.3.2","Gráfico 2.3.3","4. EDUCACIÓN MEDIA BÁSICA","Gráfico 2.4.1","Infografía 2.4.1","Gráfico 2.4.2","Gráfico 2.4.3","5. EDUCACIÓN MEDIA SUPERIOR","Gráfico 2.5.1","Infografìa 2.5.1","Gráfico 2.5.2","Gráfico 2.5.3","Gráfico 2.5.4","Gráfico 2.5.5","6. TÉCNICO PROFESIONAL","Gráfico2.6.1","7. TERCIARIA NO UNIVERSITARIA","Gráfico 2.7.1","Gráfico 2.7.2","Gráfico 2.7.3","Gráfico 2.7.4","8. FORMACIÓN EN EDUCACIÓN","Gráfico 2.8.1","Gráfico 2.8.2","9. EDUCACIÓN UNIVERSITARIA ","Cuadro 2.9.1","Cuadro 2.9.2","Cuadro 2.9.3","Cuadro 2.9.4","Cuadro 2.9.5","Cuadro 2.9.6","Cuadro 2.9.7","Gráfico 2.9.1","Gráfico 2.9.2","Gráfico 2.9.3 ","Gráfico 2.9.4","Gráfico 2.9.5","Gráfico 2.9.6","Gráfico 2.9.7","Gráfico 2.9.8","Gráfico 2.9.9","Gráfico 2.9.10","Gráfico 2.9.11","Gráfico 2.9.12","Gráfico 2.9.13","Gráfico 2.9.14","10. EDUCACIÓN JÓVENES Y ADULTOS","Cuadro 2.10.1 ","Cuadro 2.10.2 ","Cuadro 2.10.3 ","Cuadro 2.10.4","Gráfico 2.10.1","Cuadro 2.10.5","Cuadro 2.10.6","Cuadro 2.10.7","Cuadro 2.10.8","Cuadro 2.10.9","CONTEXTO NACIONAL ","3.1"," gRÁFICO 3.1.7 b","gRÁFICO 3.2.5b","gRÁFICO 3.2.6b","3.3","NO FOR","docnetes d","Cuadro 3.1.1","Cuadro 3.1.2","Cuadro 3.1.3","Cuadro 3.1.4","Cuadro 3.1.5","Cuadro 3.1.6","Cuadro 3.1.7","Cuadro 3.1.8","Cuadro 3.1.9","Cuadro 3.1.10","Cuadro 3.1.11","Cuadro 3.1.12","Cuadro 3.1.13","Cuadro 3.1.14","Cuadro 3.1.15","Cuadro 3.1.16","Cuadro 3.1.17","Cuadro 3.1.18","Cuadro 3.1.19","Cuadro 3.1.20","Cuadro 3.1.21","Cuadro 3.1.22","Cuadro 3.1.23","Cuadro 3.1.24.","Cuadro 3.1.25 ","Cuadro 3.1.26","Cuadro 3.1.27 ","Cuadro 3.1.28","Cuadro 3.1.29","Cuadro 3.1.30","Cuadro 3.1.31","Cuadro 3.1.32","Cuadro 3.1.33","Cuadro 3.1.34","Cuadro 3.1.35","Cuadro 3.1.36","Cuadro 3.1.37","Cuadro 3.1.38","Cuadro 3.1.39","Cuadro  3.1.40.","Cuadro 3.1.41","Cuadro 3.1.42","Gráfico 3.1.1","Gráfico 3.1.2","Gráfico 3.1.3","Gráfico 3.1.4","Gráfico 3.1.5","Gráfico 3.1.6","Gráfico 3.1.7","Gráfico 3.1.8","Gráfico 3.1.9","Gráfico 3.110","Gráfico 3.1.11","Gráfico 3.1.12","Gráfico 3.1.13","Gráfico 3.1.14","Gráfico 3.1.15","Gráfico 3.1.16","Gráfico 3.1.17","Gráfico 3.1.18","Gráfico 3.1.19","Gráfico 3.1.20","G 3.4.10","UdelaR","Gráfico 3.1.21","ORGANIGRAMA 3.1","CONTEXTO INTERNACIONAL","Gráfico 4.1.1 ","Gráfico 4.1.2","Gráfico 4.1.3","CONTROL","CONTROL ","CONTROL Media Básica","CONTROL Media Superior"],"not_rendered":{"charts":8,"images":79,"macros":1,"external_links":2,"defined_names":698,"comments":0,"pivot_tables":0},"unopened":[{"sheet":"gRÁFICO 3.2.5b","index":75,"reason":"not_a_worksheet"},{"sheet":"gRÁFICO 3.2.6b","index":76,"reason":"not_a_worksheet"},{"sheet":"G 3.4.10","index":142,"reason":"not_a_worksheet"}],"bounds":{"document_bytes":16777216,"sheet_cells":100000,"rows_first":2000,"rows_last":500,"rows_between":2000,"halvings":0,"cell_chars":16384,"cell_head_chars":4096},"cells_cut":0,"cells_raw":0,"read":"whole","date_system":"1900"}

{"sheet":"PRESENTACIÓN","index":0,"n_rows":29,"n_cols":7,"rows_kept":29,"cut":false,"hidden":false,"merged":[[6,2,7,4],[6,6,9,11],[19,0,19,2],[19,4,20,6],[21,4,21,6]]}
[]
[]
[]
[]
[]
[]
[null,null,"Autoridades:\n",null,null,null,"Esta publicación ha sido elaborada por los Integrantes del Departamento de Estadística Educativa y de las Secciones de Reportes Internacionales e Investigación Educativa de la División de  Investigación y Estadística de la Dirección de Educación:"]
[]
[]
[]
[]
[]
[]
[]
[]
[]
[]
[]
[]
[]
[]
[]
[]
[]
[null,null,null,null,null,null," "]
[]
[null,null,null,null,null," "]
[]
[null,null,null,null,"        "]

{"sheet":"RESUMEN DE ESTADÍSTICAS EDUCATI","index":1,"n_rows":14,"n_cols":2,"rows_kept":14,"cut":false,"hidden":false,"merged":[[2,1,4,7]]}
[]
[]
[null,"RESUMEN DE ESTADISTICAS EDUCATIVAS"]
[]
[]
[]
[]
[]
[]
["Organigrama 1.1","SISTEMA NACIONAL DE EDUCACIÓN"]
["Organigrama 1.2","ESTRUCTURA ORGANIZACIONAL DEL SISTEMA NACIONAL DE EDUCACIÓN "]
["Organigrama 2.1","ESTRUCTURA ORGANIZACIONAL DEL SISTEMA NACIONAL DE EDUCACIÓN EN LA PRIMERA INFANCIA"]
[]
["Cuadro 2.1","MATRÍCULA DEL SISTEMA EDUCATIVO POR AÑO LECTIVO SEGÚN NIVEL, FORMA DE ADMINISTRACIÓN Y MODALIDAD"]

{"sheet":"Organigrama 1.1","index":2,"n_rows":47,"n_cols":67,"rows_kept":47,"cut":false,"hidden":false,"merged":[[1,1,1,63],[3,66,43,66],[5,10,7,39],[6,60,42,62],[9,21,9,42],[10,10,11,11],[10,15,11,20],[10,24,11,39],[10,49,11,56],[13,33,16,39],[13,49,18,56],[14,2,32,5],[14,10,32,11],[14,15,32,16],[14,17,32,20],[16,24,32,24],[16,25,22,28],[19,33,32,36],[19,37,23,39],[21,49,24,54],[37,2,39,41],[26,25,32,28],[27,49,32,54],[28,37,32,39],[34,2,34,4],[34,10,34,11],[34,15,34,20],[34,24,34,28],[34,33,34,39],[34,49,34,56]]}
[]
[null,"Organigrama 1.1\nSISTEMA NACIONAL DE EDUCACIÓN - 2016"]
[]
[null,null,null,null,null,null,null,null,null,null,null,null,null,null,null,null,null,null,null,null,null,null,null,null,null,null,null,null,null,null,null,null,null,null,null,null,null,null,null,null,null,null,null,null,null,null,null,null,null,null,null,null,null,null,null,null,null,null,null,null,null,null,null,null,null,null,"SISTEMA NACIONAL DE EDUCACIÓN - 2012"]
[]
[null,null,null,null,null,null,null,null,null,null,"ESCOLARIDAD OBLIGATORIA"]
[null,null,null,null,null,null,null,null,null,null,null,null,null,null,null,null,null,null,null,null,null,null,null,null,null,null,null,null,null,null,null,null,null,null,null,null,null,null,null,null,null,null,null,null,null,null,null,null,null,null,null,null,null,null,null,null,null,null,null,null,"CAMPO   LABORAL"]
[]
[]
[]
[null,null,null,null,null,null,null,null,null,null,"EDUC. INICIAL",null,null,null,null,"EDUCACIÓN PRIMARIA",null,null,null,null,null,null,null,null,"EDUCACIÓN MEDIA",null,null,null,null,null,null,null,null,null,null,null,null,null,null,null,null,null,null,null,null,null,null,null,null,"EDUCACIÓN TERCIARIA"]
[]
[]
[null,null,0,1,2,3,null,null,null,null,4,5,null,null,null,"1º","2º","3º","4º","5º","6º",null,null,null,null,null,null,null,null,null,null,null,null,"Formación\nprofesional técnica y tecnológica",null,null,null,null,null,null,null,null,null,null,null,null,null,null,null,"EDUCACIÓN UNIVERSITARIA"]
[null,null,"EDUCACIÓN\nEN LA PRIMERA INFANCIA",null,null,null,null,null,null,null,"EDUCACIÓN INICIAL",null,null,null,null,"EDUCACIÓN PRIMARIA",null,"Incluye:\n - Urbana común\n - Rural común\n - T.C.\n - Especial\n - Escuelas Aprender\n - Práctica"]
[null,null,null,null,null,null,null,null,null,null,null,null,null,null,null,null,null,null,null,null,null,null,null,null,null,null,"1º","2º","3º"]
[null,null,null,null,null,null,null,null,null,null,null,null,null,null,null,null,null,null,null,null,null,null,null,null,"EDUCACIÓN MEDIA BÁSICA","Educación media básica general (incluye 7º, 8º y 9º rural)"]
[]
[null,null,null,null,null,null,null,null,null,null,null,null,null,null,null,null,null,null,null,null,null,null,null,null,null,null,null,null,null,null,null,null,null,null,null,null,null,"1º","2º","3º"]
[null,null,null,null,null,null,null,null,null,null,null,null,null,null,null,null,null,null,null,null,null,null,null,null,null,null,null,null,null,null,null,null,null,"EDUCACIÓN MEDIA SUPERIOR",null,null,null,"Educación media tecnológica superior"]
[null,null,null,null,null,null,null,null,null,null,null,null,null,null,null,null,null,null,null,null,null,null,null,null,null,null,null,null,null,null,null,null,null,null,null,null,null,null,null,null,null,null,null,null,null,null,null,null,null,null,null,"1º","2º","3º","4º"]
[null,null,null,null,null,null,null,null,null,null,null,null,null,null,null,null,null,null,null,null,null,null,null,null,null,null,null,null,null,null,null,null,null,null,null,null,null,null,null,null,null,null,null,null,null,null,null,null,null,"FORMACIÓN EN EDUCACIÓN"]
[]
[]
[]
[null,null,null,null,null,null,null,null,null,null,null,null,null,null,null,null,null,null,null,null,null,null,null,null,null,null,"1º","2º","3º"]
[null,null,null,null,null,null,null,null,null,null,null,null,null,null,null,null,null,null,null,null,null,null,null,null,null,"Educación media básica tecnológica ",null,null,null,null,null,null,null,null,null,null,null,null,null,null,null,null,null,null,null,null,null,null,null,null,null,"1º","2º","3º","4º"]
[null,null,null,null,null,null,null,null,null,null,null,null,null,null,null,null,null,null,null,null,null,null,null,null,null,null,null,null,null,null,null,null,null,null,null,null,null,"4º","5º","6º",null,null,null,null,null,null,null,null,null,"EDUCACIÓN TERCIARIA NO UNIVERSITARIA\n(técnicas, policial, militar, artística, etc.)"]
[null,null,null,null,null,null,null,null,null,null,null,null,null,null,null,null,null,null,null,null,null,null,null,null,null,null,null,null,null,null,null,null,null,null,null,null,null,"Educación media general superior"]
[]
[]
[]
[]
[]
[null,null,"0-3 años",null,null,null,null,null,null,null,"4-5 años",null,null,null,null,"6 años",null,null,null,null,null,null,null,null,"12 años",null,null,null,null,null,null,null,null,"15 años",null,null,null,null,null,null,null,null,null,null,null,null,null,null,null,"18 años"]
[]
[]
[null,null,"EDUCACIÓN NO FORMAL"]
[]
[]
[]
[]
[]
[]
[]
[]
[null,"Fuente:","Elaboración propia. División de Investigación y Estadística, Dirección de Educación, MEC."]

{"sheet":"Organigrama 1.2","index":3,"n_rows":79,"n_cols":1,"rows_kept":79,"cut":false,"hidden":false,"merged":[[78,0,78,32]]}
[]
[]
[]
[]
[]
[]
[]
[]
[]
[]
[]
[]
[]
[]
[]
[]
[]
[]
[]
[]
[]
[]
[]
[]
[]
[]
[]
[]
[]
[]
[]
[]
[]
[]
[]
[]
[]
[]
[]
[]
[]
[]
[]
[]
[]
[]
[]
[]
[]
[]
[]
[]
[]
[]
[]
[]
[]
[]
[]
[]
[]
[]
[]
[]
[]
[]
[]
[]
[]
[]
[]
[]
[]
[]
[]
[]
[]
[]
["Fuente: Elaboración propia. División de Investigación y Estadística, Dirección de Educación, MEC."]

{"sheet":"Organigrama 2.1","index":4,"n_rows":58,"n_cols":34,"rows_kept":58,"cut":false,"hidden":false,"merged":[[11,25,12,26],[11,28,12,29],[11,33,12,33],[0,0,1,35],[4,0,4,35],[5,0,5,35],[9,25,9,29],[14,20,15,21],[14,25,15,26],[15,11,16,12],[17,6,20,8],[17,20,18,21],[17,25,18,29],[19,1,57,3],[20,25,21,29],[21,11,24,12],[22,20,23,21],[23,33,26,33],[27,25,28,29],[28,11,31,12],[28,15,31,21],[30,33,33,33],[34,15,35,21],[56,6,59,8],[56,11,59,17],[56,25,57,29],[57,33,60,33],[34,25,35,29],[37,20,38,21],[39,6,42,8],[40,20,41,21],[41,15,44,16],[43,11,48,12],[43,20,44,21],[44,33,47,33],[47,15,50,16],[47,20,48,21],[50,20,51,21],[53,20,54,21]]}
["Ministerio de Educación y Cultura\nDirección de Educación"]
[]
[]
[]
["Organigrama 2.1"]
["ESTRUCTURA ORGANIZACIONAL DEL SISTEMA NACIONAL DE EDUCACIÓN EN LA PRIMERA INFANCIA\nY EN EDUCACIÓN INICIAL - 2012"]
[]
[]
[]
[null,null,null,null,null,null,null,null,null,null,null,null,null,null,null,null,null,null,null,null,null,null,null,null,null,"EDUCACIÓN EN LA\nPRIMERA INFANCIA",null,null,null,null,null,null,null,"EDUCACIÓN INICIAL"]
[]
[null,null,null,null,null,null,null,null,null,null,null,null,null,null,null,null,null,null,null,null,null,null,null,null,null,"0 a 24 meses",null,null,"2 años",null,null,null,null,"3 a 5 años"]
[]
[]
[null,null,null,null,null,null,null,null,null,null,null,null,null,null,null,null,null,null,null,null,"Experiencias Oportunas",null,null,null,null,"Talleres"]
[null,null,null,null,null,null,null,null,null,null,null,"CAIF"]
[]
[null,null,null,null,null,null,"INAU",null,null,null,null,null,null,null,null,null,null,null,null,null,"Modalidad Diaria",null,null,null,null,"Diseño Básico Curricular\n(0 a 36 meses)"]
[]
[null,"EDUCACIÓN EN LA PRIMERA INFANCIA E INICIAL"]
[null,null,null,null,null,null,null,null,null,null,null,null,null,null,null,null,null,null,null,null,null,null,null,null,null,"Diseño Básico Curricular\n(0 a 36 meses)"]
[null,null,null,null,null,null,null,null,null,null,null,"Centros Diurnos"]
[null,null,null,null,null,null,null,null,null,null,null,null,null,null,null,null,null,null,null,null,"Modalidad Diaria"]
[null,null,null,null,null,null,null,null,null,null,null,null,null,null,null,null,null,null,null,null,null,null,null,null,null,null,null,null,null,null,null,null,null,"Programa de Educación Inicial y Primaria"]
[]
[]
[]
[null,null,null,null,null,null,null,null,null,null,null,null,null,null,null,null,null,null,null,null,null,null,null,null,null,"Diseño Básico Curricular\n(0 a 36 meses)"]
[null,null,null,null,null,null,null,null,null,null,null,"Centros Educativos Privados",null,null,null,"Colegios y Jardines de Infantes\nHabilitados o Autorizados"]
[]
[null,null,null,null,null,null,null,null,null,null,null,null,null,null,null,null,null,null,null,null,null,null,null,null,null,null,null,null,null,null,null,null,null,"Programa de Educación Inicial y Primaria"]
[]
[]
[]
[null,null,null,null,null,null,null,null,null,null,null,null,null,null,null,"Centros Educativos Primera Infancia\n(CEPI)",null,null,null,null,null,null,null,null,null,"Diseño Básico Curricular\n(0 a 36 meses)"]
[]
[]
[null,null,null,null,null,null,null,null,null,null,null,null,null,null,null,null,null,null,null,null,"Común"]
[]
[null,null,null,null,null,null,"ANEP\nCEIP"]
[null,null,null,null,null,null,null,null,null,null,null,null,null,null,null,null,null,null,null,null,"Tiempo extendido"]
[null,null,null,null,null,null,null,null,null,null,null,null,null,null,null,"Grupos de Educación Inicial en Escuelas\n(urbanas y rurales)"]
[]
[null,null,null,null,null,null,null,null,null,null,null,"Centros Educativos Públicos",null,null,null,null,null,null,null,null,"Tiempo completo"]
[null,null,null,null,null,null,null,null,null,null,null,null,null,null,null,null,null,null,null,null,null,null,null,null,null,null,null,null,null,null,null,null,null,"Programa de Educación Inicial y Primaria"]
[]
[]
[null,null,null,null,null,null,null,null,null,null,null,null,null,null,null,"Grupos de Educación Inicial en Jardines de Infantes",null,null,null,null,"APRENDER"]
[]
[]
[null,null,null,null,null,null,null,null,null,null,null,null,null,null,null,null,null,null,null,null,"JICI"]
[]
[]
[null,null,null,null,null,null,null,null,null,null,null,null,null,null,null,null,null,null,null,null,"Práctica o Hab. de Prác."]
[]
[]
[null,null,null,null,null,null,"Primera Infancia MEC",null,null,null,null,"Centros de Educación Infantil\nPrivados (incluye Programa Nuestros Niños - IM y otros)",null,null,null,null,null,null,null,null,null,null,null,null,null,"Diseño Básico Curricular\n(0 a 36 meses)"]
[null,null,null,null,null,null,null,null,null,null,null,null,null,null,null,null,null,null,null,null,null,null,null,null,null,null,null,null,null,null,null,null,null,"Programa de Educación Inicial y Primaria"]

{"sheet":"Cuadro 2.1","index":5,"n_rows":68,"n_cols":18,"rows_kept":68,"cut":false,"hidden":false,"merged":[[0,16,3,16],[0,0,3,15],[10,0,10,2],[7,0,8,2],[7,3,7,12],[9,0,9,2],[6,0,6,15],[5,0,5,15],[22,1,22,2],[25,1,25,2],[11,0,11,2],[12,0,12,2],[13,0,13,2],[14,1,14,2],[19,1,19,2],[17,0,17,2],[14,3,15,3],[14,11,15,11],[14,12,15,12],[15,1,15,2],[16,0,16,2],[14,9,15,9],[14,10,15,10],[14,5,15,5],[14,6,15,6],[14,7,15,7],[14,8,15,8],[14,4,15,4],[44,0,44,2],[45,0,45,2],[46,0,46,2],[47,1,47,2],[31,1,31,2],[73,0,73,12],[68,0,68,12],[50,0,50,2],[51,0,51,2],[53,0,53,2],[54,1,54,2],[56,0,56,2],[57,0,57,2],[59,0,59,2],[60,1,60,2],[65,1,65,2],[66,1,66,14],[67,0,67,12],[0,17,3,17],[69,0,69,12],[70,0,70,12],[71,0,71,12],[72,0,72,12],[26,2,26,4],[28,0,28,2],[29,0,29,2],[49,0,49,2],[34,0,34,2],[35,0,35,2],[37,1,37,2],[39,0,39,2],[40,0,40,2],[42,0,42,2],[43,0,43,2]]}
["Ministerio de Educación y Cultura\nDirección de Educación\n"]
[]
[]
[]
[]
["Cuadro 2.1"]
["MATRÍCULA DEL SISTEMA EDUCATIVO POR AÑO LECTIVO SEGÚN NIVEL, FORMA DE ADMINISTRACIÓN Y MODALIDAD"]
["NIVEL/FORMA DE ADMINISTRACIÓN/MODALIDAD",null,null,"AÑO LECTIVO"]
[null,null,null,2002,2003,2004,2005,2006,2007,2008,2009,2010,2011,2012,2013,2014,2015,2016]
[]
["TOTAL SISTEMA  ",null,null,{"$f":"D13+D18+D30+D44+D46","v":942084},948314,953588,937694,947477,949746,973172,986125,{"$f":"K13+L18+L30+L44+L46","v":983258},{"$f":"M13+M18+M30+M44+M46","v":966785},992485,993510,996591,990998,1000372]
[]
["Total Edu. en la Primera Infancia e Inicial  1",null,null,144319,133964,140628,133640,141065,141307,160934,173003,160504,156089,{"$f":"N15+N16","v":176477},{"$f":"O15+O16","v":177733},{"$f":"P15+P16","v":181517},{"$f":"Q15+Q16","v":185497},{"$f":"R15+R16","v":188134}]
[]
[null,"Inicial de 0a 2 años",null,"S/D","S/D","S/D","S/D","S/D","S/D","S/D","S/D","S/D","S/D",47500,48530,52269,54231,56701]
[null,"Primera Infancia de 3 a  5 años ",null,null,null,null,null,null,null,null,null,null,null,128977,129203,129248,131266,131433]
[]
["Total Educación Primaria",null,null,{"$f":"D20+D23+D26","v":365004},365495,367428,365840,365879,360653,354852,349271,347207,341607,334130,329000,323695,{"$f":"Q20+Q23+Q26","v":318338},{"$f":"R20+R23+R26","v":314236}]
[]
[null,"Primaria Común",null,{"$f":"D21+D22","v":353826},354843,355568,354777,353528,348579,342498,336865,330548,{"$f":"M21+M22","v":325509},319238,314760,309409,304060,299908]
[null,null,"Común pública 2",307756,311141,311350,309286,306030,300143,292542,286092,279445,273440,266349,261188,255451,250483,246382]
[null,null,"Común privada ",46070,43702,44218,45491,47498,48436,49956,50773,51103,52069,52889.000000000015,53572,53958,53577,53525.999999999985]
[null,"Primaria Especial  ",null,{"$f":"D24+D25","v":11178},10652,11860,11063,12351,12074,12354,12406,11808,{"$f":"M24+M25","v":11253},10504,9953,9999,9991,10041]
[null,null,"Especial pública ",9076,8884,8553,8379,8221,7913,7778,7535,7416,7286,6910,6813,6638,6586,6437]
[null,null,"Especial privada  ",2102,1768,3307,2684,4130,4161,4576,4871,4392,3967,3594,3140,3361,3405,3604]
[null,"Programa Jóvenes y Adultos ANEP8",null,null,null,null,null,null,null,null,null,{"$f":"L27+L28","v":4851},4845,4388,4287,4287,4287,{"$f":"R27+R28","v":4287}]
[null,null,"Educación Primaria (Niveles I y II y Programa de Alfabetización) ",null,null,null,null,null,null,null,null,3827,3804,3234,3136,3136,3136,3136]
[null,null,"Pruebas de Acreditación ",null,null,null,null,null,null,null,null,1024,1041,1154,1151,1151,1151,1151]
[]
["Total Educación Media  ",null,null,{"$f":"D32+D38","v":295399},306417,306778,302311,300681,298925,310128,320420,322977,331659,335126,337634,339271,{"$f":"Q32+Q38","v":340853},{"$f":"R32+R38","v":348024}]
[]
[null,"Total Educación Media Básica ",null,{"$f":"D33+D34+D37","v":162664},164180,161736,158131,160028,160367,171502,177015,177619,{"$f":"M33+M34+M37","v":182175},181444,182087,182236,180582,182319]
[null,null,"Ciclo Básico Rural (7º, 8º y 9º) ",1498,1771,1869,1797,1818,1784,2028,1991,1934,1966,1916,1812,1798,1730,1583]
[null,null,"Total Media Básica General  ",146588,147146,144374,140743,142350,142420,151798,155409,155444,{"$f":"M35+M36","v":156418},153287,151201,149622,147165,148486]
["Pública  ",null,null,125367,127162,123869,120487,121195,120960,127681,130013,130073,130978,127593,124749,122896,120749,122764]
["Privada3",null,null,21221,19984,20505,20256,21155,21460,24117,25396,25371,25440,25694,26452,26726,26416,25722]
[null,null,"Media Básica  Tecnológica ",14578,15263,15493,15591,15860,16163,17676,19615,20241,23791,26241,29074,30816,31687,32250]
[null,"Total Educación Media Superior  ",null,{"$f":"D39+D42","v":132735},142237,145042,144180,140653,138558,138626,143405,145358,149484,153682,155547,157035,{"$f":"Q39+Q42","v":160271},{"$f":"R39+R42","v":165705}]
[null,null,"Total Media Superior General  ",122617,129454,127356,124512,119418,112877,110507,112664,113327,{"$f":"M40+M41","v":116117},117497,116552,115619,116793,120525]
["Pública  ",null,null,108589,115157,112669,108459,103938,97136,94506,96319,96902,99175,100265,99510,98241,99617,103751]
["Privada3",null,null,14028,14297,14687,16053,15480,15741,16001,16345,16425,16942,17232,17042,17378,17176,16774]
[null,null,"Total Media Superior Tecnológica  ",10118,12783,17686,19668,21235,25681,28119,30741,32031,33367,36185,38995,41416,43478,45180]
[]
["Total Edu. Técnica (s/cont. educativa) ",null,null,36416,37219,32372,27146,28840,24419,19957,16769,11912,7546,9859,8632,9092,7302,5249]
[null,null,null,null,null,null,null,null,null,null,null,". "]
["Total Educación Terciaria ",null,null,{"$f":"D48+D55+D61","v":100946},105219,106382,108757,111012,124442,127301,126662,128159,129884,136893,140511,143016,{"$f":"Q48+Q55+Q61","v":139008},144729]
[]
[null,"Terciaria No Universitaria  ",null,{"$f":"D49+D53","v":5496},{"$f":"E49+E53","v":7238},{"$f":"F49+F53","v":6437},{"$f":"G49+G53","v":5454},{"$f":"H49","v":5726},{"$f":"I49","v":5786},6718,7179,7560,7339,8308,9253,10384,11470,{"$f":"+R50+R51+R52","v":11547}]
[null,null,"Terciaria No Universitaria Pública  ",{"$f":"D50+D51+D52","v":5148},6107,6129,5297,5726,5786,6718,7179,7560,{"$f":"M50+M51+M52","v":7339},{"$f":"N50+N51+N52","v":8308},{"$f":"O50+O51+O52","v":9253},{"$f":"P50+P51+P52","v":10384},{"$f":"Q50+Q51+Q52","v":11470},11547]
["CETP ",null,null,2564,3514,3671,4024,3961,3896,4650,4964,6158,6780,7610,8511,9489,10555,10580]
["Terciaria Policial o Militar ",null,null,620,623,653,679,724,652,557,649,603,470,572,626,777,766,865]
["Otras terciaria pública4",null,null,1964,1970,1805,594,1041,1238,1511,1566,799,89,126,116,118,149,102]
[null,null,"Terciaria No Universitaria Privada7",348,1131,308,157,"n/c","n/c","n/c","n/c","n/c","n/c","n/c","n/c","n/c","n/c","n/c"]
[]
[null,"Formación en Educación ",null,{"$f":"D56+D59","v":16735},{"$f":"E56+E59","v":19411},21397,20779,21537,22609,22747,20951,20703,21242,22754,24239,24966,{"$f":"Q56+Q59","v":19956},{"$f":"R56+R59","v":24566}]
[null,null,"Publica",{"$f":"D57","v":16610},{"$f":"E57","v":19298},{"$f":"F57+F58","v":21260},{"$f":"G57+G58","v":20631},21406,22456,22572,20855,20655,21149,22649,24120,24886,{"$f":"Q57+Q58","v":19884},{"$f":"R57+R58","v":24524}]
["Consejo de Formación en Educación (CFE)",null,null,16610,19298,20968,20435,21175,21992,22108,20391,20191,20919,22331,24067,24729,19716,24369]
["CENFORES - INAU",null,null,"n/c","n/c",292,196,231,464,464,464,464,230,318,53,157,168,155]
[null,null,"Privada",{"$f":"D60","v":125},{"$f":"E60","v":113},137,148,131,153,175,96,48,93,105,119,80,72,{"$f":"R60","v":42}]
["Centro de Inv. y Experim. Pedagógica (CIEP)",null,null,125,113,137,148,131,153,175,96,48,93,105,119,80,72,42]
[null,"Total Educación Universitaria6",null,{"$f":"D62+D64","v":78715},78570,78548,82524,83749,96047,97836,98532,99896,101303,{"$f":"N62+N64+N65","v":105831},{"$f":"O62+O64+O65","v":107019},{"$f":"P62+P63+P64+P65","v":107666},{"$f":"Q62+Q63+Q64","v":107582},{"$f":"R62+R63+R64","v":108616}]
[null,null,"Universitaria Pública (UdelaR)7",70156,70156,70156,70156,70156,81774,81774,81774,81774,81774,85905,85905,85905,85905,85905]
[null,null,"Universidad Tecnológica (UTEC)","n/c","n/c","n/c","n/c","n/c","n/c","n/c","n/c","n/c","n/c","n/c","n/c",55,169,358]
[null,null,"Universitaria Privada  ",8559,8414,8392,12368,13593,14273,16062,16758,18122,19529,19824,21062,21679,21508,22353]
[null,null,"Seguridad y Defensa","n/c","n/c","n/c","n/c","n/c","n/c","n/c","n/c","n/c","s/d",102,52,27,"n/c *","n/c*"]
[]
[null,"Fuentes: Departamentos de Estadística (u oficinas productoras de información) del CEIP, CES y CETP y de la Universidad de la República, Dirección de\nFormación y Perfeccionamiento Docente, e instituciones privadas de educación terciaria\nNotas: \n1-A partir de 2012, Primera Infancia incluye niños de 0 y 1 año de CAIF. \n2-El dato de Educación Primaria Común Pública para 2011 incluyen 1.041 acreditados por el Programa Nacional de Jóvenes y Adultos de ANEP(Acreditación de Primaria). \n3-Los datos de secundaria privada corresponden a la educación secundaria habilitada, que se componen en su gran mayoría por liceos privados a los que se suma el Liceo Militar y el bachillerato de la Escuela Naval. \n4-La baja significativa de matriculados en la categoría “Otras terciaria pública” en 2005, responde a que el ISEF no reportó información para dicho año sí lo había hecho en 2004 (1181 matriculados). En 2006 y 2007 reportó en UdelaR, institución a la pasó a formar parte. \n5-Algunas instituciones de educación terciaria no universitaria privada fueron reportadas en distintos niveles a lo largo de la serie o bien no reportaron en algunos de los años, lo que explica la irregularidad de la evolución de la matrícula en este nivel. \n6-Los datos de enseñanza terciaria universitaria pública y privada corresponden a carreras cortas y de grado (excluyen carreras de postgrado). \n7-Los datos de UdelaR del 2000 a 2006 corresponden a una proyección realizada del Censo 1999 de carreras de grado. El dato de 2007 corresponde al Censo 2007 y los datos 2008 a 2011 responden a la proyección del Censo 2007. El dato de 2012 corresponde al VII Censo de Estudiantes Universitarios de Grado 2012 (no incluyen carreras de postgrado).                                                                                                                                                      8- Los datos de 2014 corresponden a 2013 dado que son los últimos disponibles"]
["* Nota:  En la Escuela Nacional de Policía la Licenciatura en Seguridad Pública no fue dictada en el año 2015.\n"]

{"sheet":"ESTADÍSTICAS POR NIVEL ","index":6,"n_rows":17,"n_cols":5,"rows_kept":17,"cut":false,"hidden":false,"merged":[[16,4,16,5],[2,1,4,7],[8,4,8,5],[10,4,10,5],[12,4,12,5],[14,4,14,5],[8,1,8,2],[10,1,10,2],[12,1,12,2],[14,1,14,2]]}
[]
[]
[null,"ESTADÍSTICAS POR NIVEL "]
[]
[]
[]
[]
[]
[null,"2. PRIMERA INFANCIA E INICIAL",null,null,"6. TÉCNICO PROFESIONAL"]
[]
[null,"3. EDUCACIÓN PRIMARIA",null,null,"7. TERCIARIA NO UNIVERSITARIA"]
[]
[null,"4. EDUCACIÓN MEDIA BÁSICA",null,null,"8. FORMACIÓN EN EDUCACIÓN"]
[]
[null,"5. EDUCACIÓN MEDIA SUPERIOR",null,null,"9. EDUCACIÓN UNIVERSITARIA "]
[]
[null,null,null,null,"10. EDUCACIÓN JÓVENES Y ADULTOS"]

{"sheet":"2. PRIMERA INFANCIA E INICIAL","index":7,"n_rows":13,"n_cols":2,"rows_kept":13,"cut":false,"hidden":false,"merged":[[1,1,2,7]]}
[]
[null,"PRIMERA INFANCIA E INICIAL"]
[]
[]
[]
[]
[]
[]
["Gráfico 2.2.1","EVOLUCIÓN DE LA MATRÍCULA EN PRIMERA INFANCIA Y EDUCACIÓN INICIAL (2005- 2016)"]
["Gráfico 2.2.2","TASA DE ASISTENCIA Y MATRÍCULA EN EDUCACIÓN EN PRIMERA INFANCIA Y EDUCACIÓN INICIAL (2009-2016)"]
["Gráfico 2.2.3","MATRÍCULA DE LA EDUCACIÓN EN LA PRIMERA INFANCIA E INICIAL POR MODALIDAD SEGÚN AÑO LECTIVO (2008-2016)"]
["Gráfico 2.2.4","MATRÍCULA DE EDUCACIÓN EN LA PRIMERA INFANCIA E INICIAL POR MODALIDAD SEGÚN EDAD   (2016)"]
["Gráfico 2.2.5","MATRÍCULA DE NIÑOS DE 0 A 5 AÑOS DE EDAD POR MODALIDAD SEGÚN GRANDES ÁREAS (AÑO 2015)"]

{"sheet":"Gráfico 2.2.1","index":8,"n_rows":29,"n_cols":1,"rows_kept":29,"cut":false,"hidden":false,"merged":[[0,0,0,8],[27,0,27,5],[2,0,2,8],[28,0,28,5]]}
["Ministerio de Educación y Cultura\nDirección de Educación\n"]
[]
["Gráfico 2.2.1"]
[]
[]
[]
[]
[]
[]
[]
[]
[]
[]
[]
[]
[]
[]
[]
[]
[]
[]
[]
[]
[]
[]
[]
[]
["Fuente: Elaboración propia en base en datos del Departamento de Estadística del CEIP, Sistema de Información para la Infancia de INAU y Área de Primera Infancia del MEC."]
["Nota:  A partir del año 2007 se incluye la matrícula de CAIF y de Diurnos del INAU."]

{"sheet":"Gráfico 2.2.2","index":9,"n_rows":35,"n_cols":1,"rows_kept":35,"cut":false,"hidden":false,"merged":[[0,0,0,8],[34,0,34,5],[2,0,2,8]]}
["Ministerio de Educación y Cultura\nDirección de Educación\n"]
[]
["Gráfico 2.2.2"]
[]
[]
[]
[]
[]
[]
[]
[]
[]
[]
[]
[]
[]
[]
[]
[]
[]
[]
[]
[]
[]
[]
[]
[]
[]
[]
[]
[]
[]
[]
[]
["Fuente: Elaboración propia en base en datos del Departamento de Estadística del CEIP, Sistema de Información para la Infancia de INAU y Área de Primera Infancia del MEC y ECH 2015"]

{"sheet":"Gráfico 2.2.3","index":10,"n_rows":30,"n_cols":1,"rows_kept":30,"cut":false,"hidden":false,"merged":[[0,0,0,3],[29,0,29,6],[30,0,30,6]]}
["Ministerio de Educación y Cultura\nDirección de Educación"]
[]
[]
[]
["Gráfico 2.2.3"]
[]
[]
[]
[]
[]
[]
[]
[]
[]
[]
[]
[]
[]
[]
[]
[]
[]
[]
[]
[]
[]
[]
[]
[]
["Fuente: Elaboración propia en base a datos del Departamento de Estadística del CEIP, Sistema de Información para la Infancia de INAU y Área de Primera Infancia del MEC."]

{"sheet":"Gráfico 2.2.4","index":11,"n_rows":33,"n_cols":1,"rows_kept":33,"cut":false,"hidden":false,"merged":[[0,0,0,3],[28,0,28,5],[36,0,36,6],[37,0,37,6],[30,0,30,5]]}
["Ministerio de Educación y Cultura\nDirección de Educación"]
[]
[]
[]
["Gráfico 2.2.4"]
[]
[]
[]
[]
[]
[]
[]
[]
[]
[]
[]
[]
[]
[]
[]
[]
[]
[]
[]
[]
[]
[]
[]
[]
[]
["Fuente: Elaboración propia en base en datos del Departamento de Estadística del CEIP, Sistema de Información para la Infancia de INAU y Área de Primera Infancia del MEC."]
[]
["DATOS REVISADOS AL 31 DE MAYO "]

{"sheet":"Gráfico 2.2.5","index":12,"n_rows":34,"n_cols":1,"rows_kept":34,"cut":false,"hidden":false,"merged":[[27,0,27,5],[0,0,0,3],[33,0,33,6],[34,0,34,6]]}
["Ministerio de Educación y Cultura\nDirección de Educación"]
[]
[]
[]
["Gráfico 2.2.5"]
[]
[]
[]
[]
[]
[]
[]
[]
[]
[]
[]
[]
[]
[]
[]
[]
[]
[]
[]
[]
[]
[]
[]
[]
[]
[]
[]
[]
["Fuente: Elaboración propia en base a datos del Departamento de Estadística del CEIP, Sistema de Información para la Infancia de INAU y Área de Primera Infancia del MEC."]

{"sheet":"3. EDUCACIÓN PRIMARIA","index":13,"n_rows":16,"n_cols":2,"rows_kept":16,"cut":false,"hidden":false,"merged":[[7,1,8,7]]}
[]
[]
[]
[]
[]
[]
[]
[null,"PRIMARIA"]
[]
[]
[]
[]
[]
["Gráfico 2.3.1","TASA DE ASISTENCIA, TASA NETA DE ASISTENCIA AJUSTADA Y MATRÍCULA EN EDUCACIÓN PRIMARIA (2006-2016)"]
["Gráfico 2.3.2","RAZÓN PÚBLICO – PRIVADO Y MATRÍCULA DE EDUCACIÓN PRIMARIA COMÚN POR FORMA DE ADMINISTRACIÓN (2000-2016)"]
["Gráfico 2.3.3","PORCENTAJE DE NO PROMOVIDOS EN PRIMER AÑO Y DE PRIMERO A SEXTO (Escuelas públicas, 2000- 2016)"]

{"sheet":"Gráfico 2.3.1","index":14,"n_rows":33,"n_cols":1,"rows_kept":33,"cut":false,"hidden":false,"merged":[[0,0,0,3]]}
["Ministerio de Educación y Cultura\nDirección de Educación"]
[]
[]
[]
["Gráfico 2.3.1"]
[]
[]
[]
[]
[]
[]
[]
[]
[]
[]
[]
[]
[]
[]
[]
[]
[]
[]
[]
[]
[]
[]
[]
[]
[]
[]
["Fuente: Elaboración propia en base a datos del Departamento de Estadística del CEIP y ECH."]
["Nota: Incluye establecimientos públicos y privados. Educación Primaria común pública incluye la matrícula de educación en Jardines de Infantes con Ciclo Inicial (JICI)."]

{"sheet":"Gráfico 2.3.2","index":15,"n_rows":41,"n_cols":2,"rows_kept":41,"cut":false,"hidden":false,"merged":[[0,0,0,3],[39,1,39,9],[40,1,40,9],[2,0,2,9],[0,4,0,7],[0,8,0,9]]}
["Ministerio de Educación y Cultura\nDirección de Educación"]
[]
["Gráfico  2.3.2"]
[]
[]
[]
[]
[]
[]
[]
[]
[]
[]
[]
[]
[]
[]
[]
[]
[]
[]
[]
[]
[]
[]
[]
[]
[]
[]
[]
[]
[]
[]
[]
[]
[]
[]
[]
[]
["Fuente:","Elaboración propia con base a datos del Departamento de Estadística del CEIP."]
["Nota:","Educación Primaria Común incluye la matrícula de educación en Jardines de Infantes con Ciclo Inicial (JICI)."]

{"sheet":"Gráfico 2.3.3","index":16,"n_rows":29,"n_cols":1,"rows_kept":29,"cut":false,"hidden":false,"merged":[[0,0,0,2],[28,0,28,4]]}
["Ministerio de Educación y Cultura\nDirección de Educación"]
[]
[]
[]
["Gráfico 2.3.3"]
[]
[]
[]
[]
[]
[]
[]
[]
[]
[]
[]
[]
[]
[]
[]
[]
[]
[]
[]
[]
[]
[]
[]
["Fuente: Monitor Educativo de Enseñanza Primaria,ANEP."]

{"sheet":"4. EDUCACIÓN MEDIA BÁSICA","index":17,"n_rows":10,"n_cols":3,"rows_kept":10,"cut":false,"hidden":false,"merged":[[1,2,2,8]]}
[]
[null,null,"EDUCACIÓN MEDIA BÁSICA"]
[]
[]
[]
["Gráfico 2.4.1","TASA DE ASISTENCIA Y TASA NETA AJUSTADA, ENTRE JÓVENES DE 12 A 14 AÑOS Y MATRÍCULA EN EDUCACIÓN MEDIA BÁSICA (2006-2016)"]
[]
["Gráfico 2.4.2","PORCENTAJE DE ALUMNOS CON EXTRAEDAD DE EDUCACIÓN MEDIA BÁSICA GENERAL PÚBLICA (años 2015 y 2016)"]
[]
["Gráfico 2.4.3","EXTRAEDAD DE EDUCACIÓN MEDIA BÁSICA CETP (Años 2011 a 2016)"]

{"sheet":"Gráfico 2.4.1","index":18,"n_rows":30,"n_cols":1,"rows_kept":30,"cut":false,"hidden":false,"merged":[[0,0,0,3]]}
["Ministerio de Educación y Cultura\nDirección de Educación"]
[]
[]
[]
["Gráfico 2.4.1"]
[]
[]
[]
[]
[]
[]
[]
[]
[]
[]
[]
[]
[]
[]
[]
[]
[]
[]
[]
[]
[]
[]
[]
["Fuente: Departamentos de Estadística del CEIP, CES y del CETP y ECH del INE."]
["Nota: Media Básica General incluye matrícula pública, privada y Ciclo Básico Rural"]

{"sheet":"Infografía 2.4.1","index":19,"n_rows":50,"n_cols":1,"rows_kept":50,"cut":false,"hidden":false,"merged":[[0,0,0,3]]}
["Ministerio de Educación y Cultura\nDirección de Educación"]
[]
[]
[]
["Infografía 2.4.1"]
[]
[]
[]
[]
[]
[]
[]
[]
[]
[]
[]
[]
[]
[]
[]
[]
[]
[]
[]
[]
[]
[]
[]
[]
[]
[]
[]
[]
[]
[]
[]
[]
[]
[]
[]
[]
[]
[]
[]
["Fuente: Elaboración propia con base en información de los departamentos de Estadística del CES y del CETP."]
["Notas:"]
["Matrícula no incluye liceos privados del CES ni Ciclo Básico Rural del CEIP"]
["No promoción no incluye liceos nocturnos, liceos privados del CES ni Ciclo Básico Rural del CEIP. No incluye exámenes libres"]
["Extraedad no incluye liceos nocturnos, liceos privados del CES ni Ciclo Básico Rural del CEIP. Para el caso del CES, cambios en los sistemas de información no permiten la comparación entre todos los años de la serie."]
["Desafiliación se calcula solo para CETP dado que CES no dispone de información para la desafiliación interanual"]

{"sheet":"Gráfico 2.4.2","index":20,"n_rows":22,"n_cols":1,"rows_kept":22,"cut":false,"hidden":false,"merged":[[0,0,0,3]]}
["Ministerio de Educación y Cultura\nDirección de Educación"]
[]
["Gráfico 2.4.2"]
[]
[]
[]
[]
[]
[]
[]
[]
[]
[]
[]
[]
[]
[]
[]
[]
[]
["Fuente: Departamento de Estadística del CES."]
["Nota: La extraedad se calcula como el porcentaje de estudiantes que poseen al menos dos años más que la edad teórica estipulada en determinado grado."]

{"sheet":"Gráfico 2.4.3","index":21,"n_rows":33,"n_cols":1,"rows_kept":33,"cut":false,"hidden":false,"merged":[[0,0,1,3]]}
["Ministerio de Educación y Cultura\nDirección de Educación"]
[]
[]
[]
["Gráfico 2.4.3"]
[]
[]
[]
[]
[]
[]
[]
[]
[]
[]
[]
[]
[]
[]
[]
[]
[]
[]
[]
[]
[]
[]
[]
[]
[]
[]
["Fuente: Departamento de Estadística del CETP."]
["Nota: La extraedad se calcula como el porcentaje de estudiantes que poseen al menos dos años más que la edad teórica estipulada en determinado grado."]

{"sheet":"5. EDUCACIÓN MEDIA SUPERIOR","index":22,"n_rows":10,"n_cols":1,"rows_kept":10,"cut":false,"hidden":false,"merged":[[1,0,2,6],[6,0,6,10],[7,0,7,9],[8,0,8,9],[9,0,9,9]]}
[]
["EDUCACIÓN MEDIA SUPERIOR"]
[]
[]
[]
["Gráfico 2.5.1 TASA DE ASISTENCIA Y TASA NETA AJUSTADA, ENTRE JÓVENES DE 15 A 17 AÑOS Y MATRÍCULA EN EDUCACIÓN MEDIA SUPERIOR (2006-2016)"]
["Gráfico 2.5.2 PORCENTAJE DE NO PROMOVIDOS SOBRE EL TOTAL DE MATRICULADOS EN SEGUNDO DE BACHILLERATO SEGÚN ORIENTACIÓN POR AÑO LECTIVO. LICEOS OFICIALES DIURNOS (Todo el país, años 2011 a 2016)"]
["Gráfico 2.5.3 PORCENTAJE DE APROBACIÓN DE ASIGNATURAS EN SEGUNDO DE BACHILLERATO, SEGÚN ORIENTACIONES. LICEOS OFICIALES DIURNOS (Todo el país, años 2014 a 2016"]
["Gráfico 2.5.4 CANTIDAD DE EGRESADOS DE  BACHILLERATO POR AÑO LECTIVO EN LICEOS OFICIALES DIURNOS (Total del país, años 2011 a 2016)"]
["Gráfico 2.5.5 PORCENTAJE DE APROBACIÓN DE ASIGNATURAS EN TERCERO DE BACHILLERATO, SEGÚN ORIENTACIONES. LICEOS OFICIALES DIURNOS (Todo el país, años 2014 a 2016)"]

{"sheet":"Gráfico 2.5.1","index":23,"n_rows":33,"n_cols":1,"rows_kept":33,"cut":false,"hidden":false,"merged":[[0,0,0,3]]}
["Ministerio de Educación y Cultura\nDirección de Educación"]
[]
[]
[]
["Gráfico 2.5.1"]
[]
[]
[]
[]
[]
[]
[]
[]
[]
[]
[]
[]
[]
[]
[]
[]
[]
[]
[]
[]
[]
[]
[]
[]
[]
[]
["Fuente: Departamentos de Estadística del CES y del CETP y ECH del INE."]
["Nota: Media Superior incluye matrícula pública y privada."]

{"sheet":"Infografìa 2.5.1","index":24,"n_rows":42,"n_cols":1,"rows_kept":42,"cut":false,"hidden":false,"merged":[[0,0,0,3]]}
["Ministerio de Educación y Cultura\nDirección de Educación"]
[]
[]
[]
["Infografía 2.5.1"]
[]
[]
[]
[]
[]
[]
[]
[]
[]
[]
[]
[]
[]
[]
[]
[]
[]
[]
[]
[]
[]
[]
[]
[]
[]
[]
[]
[]
[]
[]
[]
["Fuente: Elaboración propia con base en información de los departamentos de Estadística del CES y del CETP."]
["Notas:"]
["Matrícula no incluye liceos privados del CES."]
["No promoción no incluye liceos nocturnos ni liceos privados del CES."]
["Extraedad no incluye liceos nocturnos ni liceos privados del CES. Para el caso del CES, cambios en los sistemas de información no permiten la comparación entre todos los años de la serie."]
["Desafiliación se calcula solo para CETP dado que CES no dispone de información para la desafiliación interanual"]

{"sheet":"Gráfico 2.5.2","index":25,"n_rows":36,"n_cols":1,"rows_kept":36,"cut":false,"hidden":false,"merged":[[36,0,36,6],[0,0,0,3],[34,0,34,9],[32,0,33,6]]}
["Ministerio de Educación y Cultura\nDirección de Educación"]
[]
[]
[]
["Gráfico 2.5.2"]
[]
[]
[]
[]
[]
[]
[]
[]
[]
[]
[]
[]
[]
[]
[]
[]
[]
[]
[]
[]
[]
[]
["Fuente: Departamento de Estadística del CES."]
[]
[]
[]
[]
["Fuentes: Elaboración propia con base en información del Departamento de Estadística del CES (año 2016), Dirección de Desarrollo y Gestión Informática (años 2014 y 2015) y del Monitor Educativo del CES (años 2011 a 2013)."]
[]
["Notas: Por No Promoción se entiende a alumnos con más de tres materias pendientes de aprobación."]
["La matrícula refiere a liceos diurnos de educación pública"]

{"sheet":"Gráfico 2.5.3","index":26,"n_rows":36,"n_cols":1,"rows_kept":36,"cut":false,"hidden":false,"merged":[[0,0,0,3],[33,0,34,6]]}
["Ministerio de Educación y Cultura\nDirección de Educación"]
[]
[]
[]
["Gráfico 2.5.3"]
[]
[]
[]
[]
[]
[]
[]
[]
[]
[]
[]
[]
[]
[]
[]
[]
[]
[]
[]
["Fuente: Departamento de Estadística del CES."]
[]
[]
[]
[]
[]
[]
[]
[]
["Fuente: Elaboración propia con base en información del Departamento de Estadística del CES (año 2016) y  Dirección de Desarrollo y Gestión Informática (años 2014 y 2015)."]
[]
["Nota: La matrícula refiere a liceos diurnos de educación pública"]

{"sheet":"Gráfico 2.5.4","index":27,"n_rows":36,"n_cols":1,"rows_kept":36,"cut":false,"hidden":false,"merged":[[35,0,35,6],[0,0,0,3],[33,0,33,6],[34,0,34,6],[31,0,31,7],[32,0,32,6]]}
["Ministerio de Educación y Cultura\nDirección de Educación"]
[]
[]
[]
["Gráfico2.5.4"]
[]
[]
[]
[]
[]
[]
[]
[]
[]
[]
[]
[]
[]
[]
[]
[]
[]
[]
[]
[]
[]
["Fuente: Departamento de Estadística del CES."]
[]
[]
[]
[]
["Fuentes: Elaboración propia con base en información del Departamento de Estadística del CES (año 2016), Dirección de Desarrollo y Gestión Informática (años 2014 y 2015) y del Monitor Educativo del CES (años 2011 a 2013)."]
["Nota: La matrícula refiere a liceos diurnos de educación pública"]
["Egresados: alumnos que culminaron Bachillerato a Mayo del año t+1"]
["Egresados Matriculados: Alumnos que registraron inscripción reglamentaria en el curso del año t."]
["Egresados No Matriculados: Alumnos que rindieron los exámenes pendientes sin haber registrado inscripción al curso en t."]

{"sheet":"Gráfico 2.5.5","index":28,"n_rows":34,"n_cols":1,"rows_kept":34,"cut":false,"hidden":false,"merged":[[0,0,0,3],[31,0,32,6]]}
["Ministerio de Educación y Cultura\nDirección de Educación"]
[]
[]
[]
["Gráfico 2.5.5"]
[]
[]
[]
[]
[]
[]
[]
[]
[]
[]
[]
[]
[]
[]
[]
[]
[]
[]
[]
[]
["Fuente: Departamento de Estadística del CES."]
[]
[]
[]
[]
[]
["Fuente: Elaboración propia con base en información del Departamento de Estadística del CES (año 2016) y  Dirección de Desarrollo y Gestión Informática (años 2014 y 2015)."]
[]
["Nota: La matrícula refiere a liceos diurnos de educación pública"]

{"sheet":"6. TÉCNICO PROFESIONAL","index":29,"n_rows":28,"n_cols":2,"rows_kept":28,"cut":false,"hidden":false,"merged":[[20,1,21,7]]}
[]
[]
[]
[]
[]
[]
[]
[]
[]
[]
[]
[]
[]
[]
[]
[]
[]
[]
[]
[]
[null,"EDUCACIÓN TÉCNICO - PROFESIONAL"]
[]
[]
[]
[]
[]
[]
["Gráfico 2.6.1","MATRÍCULA DE CONSEJO DE EDUCACIÓN TÉCNICO PROFESIONAL POR NIVEL EDUCATIVO (2000 – 2016)."]

{"sheet":"Gráfico2.6.1","index":30,"n_rows":40,"n_cols":1,"rows_kept":40,"cut":false,"hidden":false,"merged":[[0,0,0,3]]}
["Ministerio de Educación y Cultura\nDirección de Educación"]
[]
[]
[]
["Gráfico 2.6.1"]
[]
[]
[]
[]
[]
[]
[]
[]
[]
[]
[]
[]
[]
[]
[]
[]
[]
[]
[]
[]
[]
[]
[]
[]
[]
[]
[]
[]
[]
[]
[]
[]
[]
[]
["Fuente: Elaboración propia en base a información del Departamento de Estadística del CETP. "]

{"sheet":"7. TERCIARIA NO UNIVERSITARIA","index":31,"n_rows":16,"n_cols":3,"rows_kept":16,"cut":false,"hidden":false,"merged":[[14,1,15,9],[2,2,4,8],[10,1,11,9],[12,1,13,9],[8,1,9,9]]}
[]
[]
[null,null,"TERCIARIA NO UNIVERSITARIA"]
[]
[]
[]
[]
[]
["Gráfico 2.7.1","ALUMNOS MATRICULADOS EN EDUCACIÓN TERCIARIA NO UNIVERSITARIA DEL CETP SEGÚN AÑO LECTIVO                                                                                   (Todo el país 2000-2016)"]
[]
[null,"ALUMNOS MATRICULADOS EN EDUCACIÓN TERCIARIA NO UNIVERSITARIA DE OTRAS PÚBLICAS Y PRIVADAS SEGÚN AÑO LECTIVO (Todo el país 2000-2016)"]
["Gráfico2.7.2"]
[null,"MATRÍCULA DE NIVEL TERCIARIO NO UNIVERSITARIO DEL ÁREA DE SEGURIDAD Y DEFENSA POR MINISTERIOS SEGÚN AÑO (2000-2016)."]
["Gráfico 2.7.3"]
[null," MATRÍCULA DE NIVEL TERCIARIO NO UNIVERSITARIO DEL ÁREA DE SEGURIDAD Y DEFENSA POR INSTITUCIÓN SEGÚN AÑO (2000-2016)."]
["Gráfico2.7.4"]

{"sheet":"Gráfico 2.7.1","index":32,"n_rows":34,"n_cols":1,"rows_kept":34,"cut":false,"hidden":false,"merged":[[0,0,0,3],[30,1,30,6]]}
["Ministerio de Educación y Cultura\nDirección de Educación"]
[]
[]
[]
["Gráfico 2.7.1"]
[]
[]
[]
[]
[]
[]
[]
[]
[]
[]
[]
[]
[]
[]
[]
[]
[]
[]
[]
[]
[]
[]
[]
[]
[]
[]
[]
[]
["Fuente:  Elaboración propia con base en información proporcionada por el Departamento de Estadística del CETP."]

{"sheet":"Gráfico 2.7.2","index":33,"n_rows":36,"n_cols":1,"rows_kept":36,"cut":false,"hidden":false,"merged":[[30,1,30,6],[0,0,0,3]]}
["Ministerio de Educación y Cultura\nDirección de Educación"]
[]
[]
[]
["Gráfico 2.7.2"]
[]
[]
[]
[]
[]
[]
[]
[]
[]
[]
[]
[]
[]
[]
[]
[]
[]
[]
[]
[]
[]
[]
[]
[]
[]
[]
["Fuente:  Elaboración propia en base a información proporcionada por las oficinas productoras de estadísticas de cada una de las instituciones."]
["Notas: No incluye las ofertas del Consejo de Formación en Educación (CFE) de ANEP ni Seguridad y Defensa, que se presentan aparte más adelante."]
["A partir del 2010 el CDI integra la matrícula de la UdelaR, por lo cual disminuye por esta vía la categoría “Otras públicas”."]
["En 2001 la EMAD no proporcionó información, razón por la cual el dato de dicho año se corresponde con la matrícula del CDI."]
["Privada sólo incluye CIEP."]

{"sheet":"Gráfico 2.7.3","index":34,"n_rows":23,"n_cols":1,"rows_kept":23,"cut":false,"hidden":false,"merged":[[0,0,2,7]]}
["Ministerio de Educación y Cultura\nDirección de Educación"]
[]
[]
[]
["Gráfico 2.7.3"]
[]
[]
[]
[]
[]
[]
[]
[]
[]
[]
[]
[]
[]
[]
[]
[]
[]
["Fuente: Elaboración propia en base a información proporcionada por las oficinas productoras de estadísticas de cada una de las instituciones"]

{"sheet":"Gráfico 2.7.4","index":35,"n_rows":24,"n_cols":1,"rows_kept":24,"cut":false,"hidden":false,"merged":[[0,0,2,7]]}
["Ministerio de Educación y Cultura\nDirección de Educación"]
[]
[]
[]
["Gráfico 2.7.4"]
[]
[]
[]
[]
[]
[]
[]
[]
[]
[]
[]
[]
[]
[]
[]
[]
[]
[]
["Fuente: Elaboración propia en base a información proporcionada por las oficinas productoras de estadísticas de cada una de las instituciones."]

{"sheet":"8. FORMACIÓN EN EDUCACIÓN","index":36,"n_rows":13,"n_cols":5,"rows_kept":13,"cut":false,"hidden":false,"merged":[[3,4,4,10]]}
[]
[]
[]
[null,null,null,null,"FORMACIÓN EN EDUCACIÓN"]
[]
[]
[]
[]
["Gráfico 2.8.1",null," ALUMNOS MATRICULADOS EN FORMACIÓN EN EDUCACIÓN POR AÑO LECTIVO SEGÚN TIPO DE OFERTA (TODO EL PAÍS, AÑOS 2000-2014)."]
[]
[]
[]
["Gráfico 2.8.2",null," EGRESOS DE FORMACIÓN EN EDUCACIÓN POR AÑO LECTIVO SEGÚN TIPO DE CURSO (TODO EL PAÍS AÑOS 2000-2015)"]

{"sheet":"Gráfico 2.8.1","index":37,"n_rows":37,"n_cols":1,"rows_kept":37,"cut":false,"hidden":false,"merged":[[35,0,35,3],[36,0,42,5]]}
["Ministerio de Educación y Cultura "]
["Dirección de Educación"]
[]
[]
["Gráfico 2.8.1"]
[]
[]
[]
[]
[]
[]
[]
[]
[]
[]
[]
[]
[]
[]
[]
[]
[]
[]
[]
[]
[]
[]
[]
[]
[]
[]
[]
[]
[]
[]
["Fuente: Consejo de Formación en Educación de ANEP"]
["Nota: \"A partir del año 2015 se registran dos cambios importantes en el sistema de reportes de matrículas que modifican la serie histórica presentada hasta el año 2014. Estos cambios son: 1) se pasa del sistema anterior de reporte administrativo a nivel de bedelía de cada centro por un nuevo sistema único de inscripción WEB y 2) En 2015 para las estadísticas se consideran únicamente las inscripciones del año en curso (independiente si cada inscripto es o no un estudiante activo); hasta el año 2014 eran reportadas las nuevas incripciones y además todas las personas con actividad estudiantil en los últimos 24 meses.\" Tomado del Observatorio de la Educación de la División de Investigación, Evaluación y Estadística de CODICEN"]

{"sheet":"Gráfico 2.8.2","index":38,"n_rows":30,"n_cols":1,"rows_kept":30,"cut":false,"hidden":false,"merged":[]}
["Ministerio de Educación y Cultura "]
["Dirección de Educación"]
[]
[]
["Gráfico 2.8.2"]
[]
[]
[]
[]
[]
[]
[]
[]
[]
[]
[]
[]
[]
[]
[]
[]
[]
[]
[]
[]
[]
[]
[]
[]
["Fuente: Consejo de Formación en Educación de ANEP"]

{"sheet":"9. EDUCACIÓN UNIVERSITARIA ","index":39,"n_rows":26,"n_cols":2,"rows_kept":26,"cut":false,"hidden":false,"merged":[[1,1,2,8],[9,1,9,5]]}
[]
[null,"EDUCACIÓN UNIVERSITARIA"]
[]
[]
["Cuadro 2.9.1","INGRESOS A INSTITUCIONES UNIVERSITARIAS POR AÑO LECTIVO SEGÚN ÁREA DE CONOCIMIENTO. AÑOS 2000 A 2016"]
["Cuadro 2.9.2","EGRESOS DE INSTITUCIONES UNIVERSITARIAS POR AÑO LECTIVO SEGÚN ÁREA DE CONOCIMIENTO. AÑOS 2000 A 2016"]
["Cuadro 2.9.3","INGRESOS A INSTITUCIONES UNIVERSITARIAS POR NIVEL ACADÉMICO Y SEXO SEGÚN ÁREA DE CONOCIMIENTO (AÑO 2016)."]
["Cuadro 2.9.4","EGRESOS A INSTITUCIONES UNIVERSITARIAS POR NIVEL ACADÉMICO Y SEXO SEGÚN ÁREA DE CONOCIMIENTO (AÑO 2016). "]
["Cuadro 2.9.5","INGRESOS, MATRÍCULA Y EGRESOS SEGÚN FORMA DE ADMINISTRACIÓN EN CANTIDADES ABSOLUTAS Y PORCENTAJES (AÑO 2016). "]
["Cuadro 2.9.6","\nPORCENTAJE DE EGRESADOS DE GRADO POR NIVEL Y SEXO SEGÚN TRAMOS DE EDAD .AÑO 2016. "]
["Cuadro 2.9.7","PORCENTAJE DE EGRESADOS DE POSGRADO POR NIVEL Y SEXO SEGÚN TRAMOS DE EDAD .AÑO 2016."]
[]
["Gráfico  2.9.1","EVOLUCIÓN COMPARADA DE LA MATRICULA DE GRADO Y POSTGRADO POR UNIVERSIDADES E INSTITUTOS UNIVERSITARIOS PRIVADOS SEGÚN AÑO LECTIVO ( 2000-2016)"]
["Gráfico  2.9.2","PORCENTAJE DE MATRICULADOS EN LAS UNIVERSIDADES E INSTITUTOS  UNIVERSITARIOS PRIVADOS SEGÚN INSTITUCIÓN (AÑO 2016)"]
["Gráfico  2.9.3","EVOLUCIÓN COMPARADA DEL INGRESO  Y DEL EGRESO EN CARRERAS DE GRADO EN LA UDELAR (2000-2016)."]
["Gráfico  2.9.4","EVOLUCIÓN COMPARADA DEL INGRESO DE GRADO EN UDELAR Y UNIVERSIDADES E INSTITUTOS UNIVERSITARIOS PRIVADOS (2000-2016)."]
["Gráfico  2.9.5","EVOLUCIÓN COMPARADA DEL INGRESO Y DEL EGRESO EN CARRERAS DE GRADO EN UNIVERSIDADES E INSTITUTOS UNIVERSITARIOS PRIVADOS (2000-2016)."]
["Gráfico  2.9.6","EVOLUCIÓN COMPARADA DEL EGRESO EN CARRERAS DE GRADO EN LA UDELAR Y EN UNIVERSIDADES  E INSTITUTOS UNIVERSITARIOS PRIVADOS (2000 -2016)"]
["Gráfico  2.9.7","PORCENTAJES DE INGRESOS Y EGRESOS A CURSOS DE GRADO EN UNIVERSIDADES E INSTITUTOS UNIVERSITARIOS SEGÚN ÁREA GEOGRÁFICA (2010-2016)."]
["Gráfico  2.9.8","PORCENTAJE DE EGRESADOS DE CARRERAS DE GRADO SEGÚN TRAMOS DE EDAD (AÑO 2016)."]
["Gráfico  2.9.9","PORCENTAJE DE EGRESADOS DE GRADO SEGÚN TRAMOS DE EDAD Y SEXO (AÑO 2016)."]
["Gráfico  2.9.10","EVOLUCIÓN COMPARADA DEL INGRESO Y DEL EGRESO DE POSTGRADO –INSTITUCIONES PÚBLICAS Y PRIVADAS- (2000-2016)"]
["Gráfico  2.9.11","EVOLUCIÓN COMPARADA DEL INGRESO Y DEL EGRESO DE POSTGRADO EN INSTITUCIONES UNIVERSITARIAS PÚBLICAS (2000-2016)"]
["Gráfico  2.9.12","EVOLUCIÓN COMPARADA DEL INGRESO Y DEL EGRESO DE POSTGRADO EN UNIVERSIDADES E INSTITUTOS UNIVERSITARIOS PRIVADOS (2000-2016)"]
["Gráfico  2.9.13","PORCENTAJE DE EGRESADOS DE CARRERAS DE POSGRADO SEGÚN TRAMOS DE EDAD (AÑO 2016)"]
["Gráfico  2.9.14","PORCENTAJE DE EGRESADOS DE POSGRADO SEGÚN TRAMOS DE EDAD Y SEXO (AÑO 2016)."]

{"sheet":"Cuadro 2.9.1","index":40,"n_rows":32,"n_cols":18,"rows_kept":32,"cut":false,"hidden":false,"merged":[[0,0,0,16],[31,0,31,12],[2,0,2,16],[3,0,3,16],[4,0,5,0],[4,1,4,12],[30,0,30,12]]}
["Ministerio de Educación y Cultura\nDirección de Educación \n"]
[]
["Cuadro 2.9.1"]
["INGRESOS A INSTITUCIONES UNIVERSITARIAS PÚBLICAS Y PRIVADAS DE GRADO POSTGRADO, POR AÑO LECTIVO SEGÚN ÁREA DE CONOCIMIENTO.  AÑOS 2000 A 2016."]
["ÁREA DE CONOCIMIENTO","AÑO LECTIVO"]
[null,2000,2001,2002,2003,2004,2005,2006,2007,2008,2009,2010,2011,2012,2013,2014,2015,2016]
["TOTAL ",{"$f":"SUM(B8:B29)","v":18131},19265,20090,21169,21558,21964,22798,23014,23566,24981,{"$f":"SUM(L8:L30)","v":26357},26283,26854,{"$f":"SUM(O8:O30)","v":32178},{"$f":"SUM(P8:P30)","v":33321},{"$f":"SUM(Q8:Q30)","v":33952},{"$f":"SUM(R8:R30)","v":36396}]
["Agricultura, silvicultura y pesca  ",210,225,176,252,283,398,362,414,436,638,806,864,608,724,779,635,695]
["Arquitectura y construcción  ",788,704,756,645,602,628,648,665,646,832,770,754,688,932,876,904,935]
["Artes  ",488,539,574,642,710,809,744,752,746,839,1219,997,895,1205,1167,1353,1227]
["Ciencias de la vida  ",474,492,515,633,815,785,955,939,818,581,650,649,473,489,625,593,662]
["Ciencias físicas  ",505,374,545,540,653,624,771,653,687,760,636,667,711,877,777,708,680]
["Ciencias sociales y del comportamiento  ",2965,2466,3152,2933,3126,3353,2987,3057,4830,5692,5936,5399,3774,5044,3638,3727,4235]
["Derecho  ",2378,2033,2047,2087,1828,2000,1837,1754,1850,1855,2031,2005,2911,3104,3296,3245,3078]
["Enseñanza comercial y administración  ",2546,4252,3903,4132,3942,3828,4292,4885,3127,3253,4176,3661,5462,5657,5517,6998,7401]
["Formación de personal docente y ciencias de la educación",315,505,542,588,515,766,911,901,941,709,800,785,957,769,712,1140,870]
["Humanidades  ",568,663,709,803,899,967,1038,889,909,791,541,707,806,1100,1487,1021,1247]
["Industria y producción  ",43,151,172,214,247,114,141,104,111,115,116,219,383,441,444,468,431]
["Informática  ",792,701,749,790,813,843,917,962,1186,1248,1319,1280,1128,1366,1319,1312,1404]
["Ingeniería y profesiones afines  ",720,676,672,752,767,570,701,633,671,686,856,828,891,1494,1518,1567,1645]
["Matemáticas y estadística  ",107,142,113,131,324,244,328,329,238,218,155,176,132,171,135,196,219]
["Medicina  ",3673,3817,3573,3960,4135,3633,3572,3562,3888,4823,4361,4656,4785,6307,6563,6229,6629]
["Periodismo e información  ",945,838,1118,1174,972,1170,1219,1036,1038,1049,816,1218,1027,1026,1036,1049,1092]
["Protección del medio ambiente  ","n/c","n/c","n/c","n/c","n/c","n/c","n/c","n/c","n/c","n/c","n/c",6,43,151,127,159,170]
["Servicios de seguridad","n/c","n/c","n/c","n/c","n/c","n/c","n/c","n/c","n/c","n/c","n/c","s/d",102,639,185,59,169]
["Servicios de transporte","n/c","n/c","n/c","n/c","n/c","n/c","n/c","n/c","n/c","n/c","n/c","n/c","n/c","n/c","n/c","n/c",240]
["Servicios personales  ",8,0,0,14,8,0,318,328,331,272,411,327,491,128,763,993,1390]
["Servicios sociales  ",311,367,457,498,508,724,573,626,594,87,146,82,0,19,39,0,15]
["Veterinaria  ",295,320,317,381,411,508,484,525,519,533,508,578,555,535,611,654,673]
["Otros *","n/c","n/c","n/c","n/c","n/c","n/c","n/c","n/c","n/c","n/c",104,327,32,0,1707,942,1289]
["Fuente:Elaboración propia en base información de las oficinas productoras de las instituciones.\nNota:Las áreas corresponden a la clasificación CINE 1997 de UNESCO."]
["* En Otros se incluyen los cursos CIO (Ciclo Inicial Optativo) y estudios iniciales en Ciencias Sociales, dictados por la UDELAR "]

{"sheet":"Cuadro 2.9.2","index":41,"n_rows":29,"n_cols":18,"rows_kept":29,"cut":false,"hidden":false,"merged":[[29,0,29,9],[0,0,0,3],[3,0,4,0],[3,1,3,12],[28,0,28,9],[2,0,2,16]]}
["Ministerio de Educación  y Cultura\nDirección de Educación\n"]
[]
["Cuadro 2.9.2\nEGRESOS DE INSTITUCIONES UNIVERSITARIAS PÚBLICAS Y PRIVADAS DE GRADO Y POSTGRADO, POR AÑO LECTIVO SEGÚN ÁREA DE CONOCIMIENTO. AÑOS 2000 A 2016."]
["INSTITUCIONES\nUNIVERSITARIAS","AÑO LECTIVO"]
[null,2000,2001,2002,2003,2004,2005,2006,2007,2008,2009,2010,2011,2012,2013,2014,2015,2016]
["TOTAL ",{"$f":"SUM(B7:B28)","v":4646},4402,5902,5697,6177,5514,6151,6381,7018,7185,7223,{"$f":"SUM(M7:M28)","v":7808},9101,{"$f":"SUM(O7:O28)","v":9766},{"$f":"SUM(P7:P28)","v":8882},{"$f":"SUM(Q7:Q28)","v":10129},{"$f":"SUM(R7:R28)","v":10817}]
["Agricultura, silvicultura y pesca ",226,145,164,161,213,123,126,111,164,301,279,294,216,219,239,251,214]
["Arquitectura y construcción ",233,136,294,208,308,437,324,303,280,275,341,349,362,401,356,424,434]
["Artes ",40,33,39,60,46,42,104,120,181,184,211,162,184,177,126,123,124]
["Ciencias de la vida ",97,62,72,73,107,108,141,137,183,169,166,240,242,177,221,234,177]
["Ciencias físicas ",110,94,153,118,162,140,105,125,143,154,158,158,141,145,136,160,183]
["Ciencias sociales y del comportamiento ",381,534,739,671,655,634,689,641,923,720,746,930,1262,1043,1094,1186,1268]
["Derecho ",500,613,686,676,816,781,838,777,886,806,786,910,1013,1041,910,1051,1087]
["Enseñanza comercial y administración ",914,865,1328,1509,1205,918,1032,1071,1135,1289,1280,1239,1999,1869,1587,2235,2212]
["Formación de personal docente y ciencias de la educación ",66,61,81,120,113,136,291,372,399,275,235,246,241,397,182,328,291]
["Humanidades ",80,33,74,33,73,64,76,75,92,90,66,75,68,115,138,131,130]
["Industria y producción ",0,12,8,16,10,26,16,31,33,24,27,25,45,117,71,119,49]
["Informática ",285,234,257,194,237,277,235,215,242,260,250,277,288,381,354,403,414]
["Ingeniería y profesiones afines ",133,124,187,201,224,214,200,204,194,257,222,232,275,345,348,368,394]
["Matemáticas y estadística ",9,4,6,9,10,12,5,13,27,19,14,11,21,19,11,14,14]
["Medicina ",1323,1311,1476,1276,1578,1243,1537,1726,1532,1874,1962,1953,2027,2462,2147,2060,2433]
["Periodismo e información ",120,78,208,249,289,174,191,213,234,242,201,241,280,260,325,378,350]
["Protección del medio ambiente","s/d","s/d","s/d","s/d","s/d","s/d","s/d","s/d","s/d","s/d","s/d",5,12,10,10,9,8]
["Servicios de Seguridad","n/c","n/c","n/c","n/c","n/c","n/c","n/c","n/c","n/c","n/c","n/c","s/d",41,81,111,114,80]
["Serviciosde transporte","n/c","n/c","n/c","n/c","n/c","n/c","n/c","n/c","n/c","n/c","n/c","n/c","n/c","n/c","n/c","n/c",240]
["Servicios personales ",0,0,0,16,7,19,96,145,194,67,51,181,125,210,255,247,361]
["Servicios sociales ",17,14,23,18,33,48,51,47,106,88,123,148,139,151,154,148,176]
["Veterinaria ",112,49,107,89,91,118,94,55,70,91,105,132,120,146,107,146,178]
["Fuente: Elaboración propia en base a información brindada por las oficinas productoras de las instituciones.\nNota: Las áreas corresponden a la clasificación CINE 1997 de UNESCO."]

{"sheet":"Cuadro 2.9.3","index":42,"n_rows":32,"n_cols":13,"rows_kept":32,"cut":false,"hidden":false,"merged":[[29,0,29,12],[30,0,30,12],[0,0,0,1],[2,0,2,11],[3,0,5,0],[3,1,3,12],[4,1,5,2],[4,3,4,4],[4,5,4,6],[4,7,4,8],[4,9,4,10],[4,11,4,12]]}
["Ministerio de Educación y Cultura \nDirección de Educación\n"]
[]
["Cuadro 2.9.3\nINGRESOS A INSTITUCIONES UNIVERSITARIAS PÚBLICAS Y PRIVADAS DE GRADO POSTGRADO, POR NIVEL ACADÉMICO SEGÚN ÁREA DE CONOCIMIENTO. AÑO 2016."]
["INSTITUCIONES UNIVERSITARIAS","NIVEL ACADÉMICO"]
[null,"TOTAL",null,"Carrera corta o tecnicatura",null,"Carrera de grado o Licenciatura",null,"Posgrado de especialización",null,"Maestría",null,"Doctorado"]
[null,null,null,"Masculino","Femenino","Masculino","Femenino","Masculino","Femenino","Masculino","Femenino","Masculino","Femenino"]
["TOTAL *",{"$f":"SUM(D7:M7)","v":35107},{"$f":"SUM(C8:C29)","v":100},{"$f":"SUM(D8:D29)","v":1761},{"$f":"SUM(E8:E29)","v":3115},10346,15368,852,1457,895,1112,87,114]
["Agricultura, silvicultura y pesca",695,{"$f":"(B8*100)/$B$7","v":1.9796621756344888},7,6,393,216,4,4,27,32,2,4]
["Arquitectura y construcción",935,2.6632865240550316,17,13,310,488,7,19,25,29,13,14]
["Artes",1227,3.4950294813000258,16,47,426,738,0,0,0,0,0,0]
["Ciencias de la vida",662,1.8856638277266642,0,0,183,277,0,0,37,99,27,39]
["Ciencias físicas",680,1.936935653858205,40,61,233,269,0,0,21,20,14,22]
["Ciencias sociales y del comportamiento",4235,12.063121314837497,11,30,1108,2332,102,298,148,166,20,20]
["Derecho",3078,8.7674822684934632,0,0,955,1949,10,9,62,93,0,0]
["Enseñanza comercial y administración",7401,21.081265844418493,884,1989,1798,2044,101,187,211,187,0,0]
["Formación de personal docente y ciencias de la educación",870,2.4781382630244679,6,4,96,273,52,182,79,178,0,0]
["Humanidades",1247,3.5519981770017375,46,291,300,374,2,20,106,108,0,0]
["Industria y producción",431,1.2276753923718917,5,4,97,325,0,0,0,0,0,0]
["Informática",1404,3.9992024382601761,229,61,875,180,15,9,23,9,3,0]
["Ingeniería y profesiones afines",1645,4.6856752214658046,146,16,941,438,28,8,40,21,3,4]
["Matemáticas y estadística",219,0.62380721793374538,0,0,91,98,0,0,21,7,1,1]
["Medicina",6629,18.882274190332414,100,470,1266,3807,212,651,44,71,2,6]
["Periodismo e información",1092,3.1104907853134702,10,28,404,583,3,16,8,40,0,0]
["Protección del medio ambiente",170,0.48423391346455125,10,12,52,68,4,16,3,5,0,0]
["Servicios de seguridad",169,0.48138547867946563,0,0,0,0,99,11,34,25,0,0]
["Servicios de transporte",240,0.68362434842054287,0,0,0,0,213,27,0,0,0,0]
["Servicios personales",1390,3.9593243512689775,234,83,590,483,0,0,0,0,0,0]
["Servicios sociales",15,4.2726521776283929E-2,0,0,0,0,0,0,2,13,0,0]
["Veterinaria",673,1.9169966103626057,0,0,228,426,0,0,4,9,2,4]
["Fuente: Elaboración propia en base información de las oficinas productoras de las instituciones"]
["Nota: Las áreas corresponden a la clasificación CINE 1997 de UNESCO."]
["* En el total de Ingreso no se tiene en cuenta a 1.289 estudiantes que ingresaron a los CIOs (Ciclo Inicial Optativos)  "]

{"sheet":"Cuadro 2.9.4","index":43,"n_rows":31,"n_cols":13,"rows_kept":31,"cut":false,"hidden":false,"merged":[[31,0,31,14],[30,0,30,12],[2,0,3,12],[4,0,6,0],[4,1,6,1],[4,2,6,2],[4,3,4,12],[5,3,5,4],[5,5,5,6],[5,7,5,8],[5,9,5,10],[5,11,5,12]]}
["Ministerio de Educación y Cultura Dirección de Educación \n"]
[]
["Cuadro 2.9.4\nEGRESOS DE INSTITUCIONES UNIVERSITARIAS PÚBLICAS Y PRIVADAS DE GRADO POSTGRADO, POR NIVEL ACADÉMICO SEGÚN ÁREA DE CONOCIMIENTO. AÑO 2016."]
[]
["INSTITUCIONES UNIVERSITARIAS","TOTAL","%","NIVEL ACADÉMICO"]
[null,null,null,"Carrera corta o tecnicatura",null,"Carrera de grado, licenciatura",null,"Postgrado de especialización",null,"Maestría",null,"Doctorado"]
[null,null,null,"Masculino","Femenino","Masculino","Femenino","Masculino","Femenino","Masculino","Femenino","Masculino","Femenino"]
["TOTAL ",{"$f":"SUM(D8:M8)","v":10817},{"$f":"SUM(C9:C30)","v":100.00000000000001},{"$f":"SUM(D9:D30)","v":201},{"$f":"SUM(E9:E30)","v":393},2916,5193,597,817,289,348,35,28]
["Agricultura, silvicultura y pesca",214,{"$f":"(B9*100)/$B$8","v":1.9783673846722751},0,0,141,45,0,2,11,13,1,1]
["Arquitectura y construcción",434,4.0122030137746139,1,0,152,247,11,18,2,3,0,0]
["Artes",124,1.1463437182213183,0,0,42,82,0,0,0,0,0,0]
["Ciencias de la vida",177,1.6363132106868818,4,3,32,61,0,0,24,31,11,11]
["Ciencias físicas",183,1.6917814551169454,12,37,28,78,0,0,5,8,7,8]
["Ciencias sociales y del comportamiento",1268,11.72228898955348,1,3,282,775,21,83,32,66,3,2]
["Derecho",1087,10.048996949246556,2,7,275,756,3,13,12,19,0,0]
["Enseñanza comercial y administración",2212,20.449292779883518,37,102,669,956,84,161,115,88,0,0]
["Formación de personal docente y ciencias de la educación",291,2.6902098548580939,3,4,18,93,19,99,16,37,1,1]
["Humanidades",130,1.2018119626513821,6,23,25,49,3,0,10,14,0,0]
["Industria y producción",49,0.45299066284552092,0,0,9,40,0,0,0,0,0,0]
["Informática",414,3.8273088656744014,36,6,268,67,9,5,16,4,3,0]
["Ingeniería y profesiones afines",394,3.642414717574189,27,1,226,98,18,3,8,8,3,2]
["Matemáticas y estadística",14,0.12942590367014883,0,0,8,2,0,0,1,1,2,0]
["Medicina",2433,22.492373116390866,19,179,366,1268,158,383,21,33,3,3]
["Periodismo e información",350,3.2356475917537209,5,10,99,227,1,3,0,5,0,0]
["Protección del medio ambiente",8,7.3957659240085058E-2,0,1,2,0,0,0,2,3,0,0]
["Servicios de seguridad",80,0.7395765924008505,0,0,0,0,57,6,10,7,0,0]
["Servicios de transporte",240,2.2187297772025514,0,0,0,0,213,27,0,0,0,0]
["Servicios personales",361,3.3373393732088381,48,17,184,112,0,0,0,0,0,0]
["Servicios sociales",176,1.627068503281871,0,0,16,146,0,14,0,0,0,0]
["Veterinaria",178,1.6455579180918924,0,0,74,91,0,0,4,8,1,0]
["Fuente: Elaboración propia en base información de las oficinas productoras de las instituciones \nNota: Las áreas corresponden a la clasificación CINE 1997 de UNESCO."]

{"sheet":"Cuadro 2.9.5","index":44,"n_rows":19,"n_cols":4,"rows_kept":19,"cut":false,"hidden":false,"merged":[[0,0,0,3],[2,0,2,3],[14,0,14,3],[15,0,15,3],[16,0,16,3]]}
["Ministerio de Educación y Cultura\nDirección de Educación"]
[]
["Cuadro 2.9.5\nINGRESOS, MATRÍCULA Y EGRESOS DE OFERTAS DE GRADO SEGÚN FORMA DE ADMINISTRACIÓN EN CANTIDADES ABSOLUTAS Y PORCENTAJES. AÑO 2016."]
["FORMA DE ADMINISTRACIÓN","INGRESOS","MATRÍCULA","EGRESOS"]
["TOTAL VALORES ABSOLUTOS",{"$f":"SUM(B6:B9)","v":28725},{"$f":"SUM(C6:C9)","v":153652},{"$f":"SUM(D6:D9)","v":8703}]
["Universidad de la República *",24876,130941,6630]
["UTEC",224,358,0]
["Instituciones Universitarias Privadas ",3625,22353,2073]
["Área seguridad y defensa (oferta pública universitaria) **","-","-","-"]
["TOTAL PORCENTAJES",1,1,1]
["Universidad de la República ",{"$f":"B6/B5*100%","v":0.86600522193211493},{"$f":"C6/C5*100%","v":0.85219196626142191},{"$f":"D6/D5*100%","v":0.76180627369872456}]
["UTEC",{"$f":"B7/B5*100%","v":7.7980852915578765E-3},{"$f":"C7/C5*100%","v":2.329940384765574E-3},{"$f":"D7/D5*100%","v":0}]
["Instituciones Universitarias Privadas ",{"$f":"B8/B5*100%","v":0.12619669277632725},{"$f":"C8/C5*100%","v":0.14547809335381251},{"$f":"D8/D5*100%","v":0.23819372630127542}]
["Área seguridad y defensa (oferta pública universitaria)","-","-","-"]
["Fuentes: Elaboración propia en base a información brindada por las oficinas productoras de las instituciones."]
["La matrícula de UdelaR corresponde al dato del VII Censo de estudiantes de grado 2012.  "]
["La  Proyección de Matrícula de Estudiantes de Grado de la UdelaR publicada por la División General de Planeamiento para el año 2015, estima 142.211 estudiantes. "]
["Los datos de egreso de UdelaR en el 2016 son preliminares"]
["** En 2016 la Licenciatura en Seguridad Pública  de la Escuela Nacional de Policía no fue dictada."]

{"sheet":"Cuadro 2.9.6","index":45,"n_rows":13,"n_cols":7,"rows_kept":13,"cut":false,"hidden":false,"merged":[[12,0,12,6],[0,0,0,6],[3,0,4,0],[3,1,3,3],[3,4,3,6],[2,0,2,6]]}
["Ministerio de Educación y Cultura\nDirección de Educación"]
[]
["Cuadro 2.9.6\nPORCENTAJE DE EGRESADOS DE GRADO POR NIVEL Y SEXO SEGÚN TRAMOS DE EDAD. AÑO 2016."]
["Tramos de edad","Carrera corta o tecnicatura",null,null,"Carrera de Grado o Licenciatura"]
[null,"TOTAL","Masculino","Femenino","TOTAL","Masculino","Femenino"]
["Total",{"$f":"C6+D6","v":99.999999999999986},{"$f":"SUM(C7:C12)","v":33.799999999999997},{"$f":"SUM(D7:D12)","v":66.199999999999989},{"$f":"F6+G6","v":99.9},{"$f":"SUM(F7:F12)","v":35.9},{"$f":"SUM(G7:G12)","v":64}]
["Hasta 24 años",{"$f":"C7+D7","v":31.5},10.1,21.4,{"$f":"F7+G7","v":27},9.3000000000000007,17.7]
["25 a 29 años",33.1,10.4,22.7,44.6,16.5,28.1]
["30 a 34 años",16,4.4000000000000004,11.6,14.5,5.0999999999999996,9.4]
["35 a 39 años",6.6,3.2,3.4,5.9,2.2000000000000002,3.7]
["más de 39 años",8.3000000000000007,3.2,5.0999999999999996,5.3,1.8,3.5]
["S/D",4.5,2.5,2,2.6,1,1.6]
["Fuente: Elaboración propia en base a información proporcionada por las oficinas productoras de estadísticas de cada una de las instituciones."]

{"sheet":"Cuadro 2.9.7","index":46,"n_rows":12,"n_cols":10,"rows_kept":12,"cut":false,"hidden":false,"merged":[[11,0,11,9],[0,0,0,9],[2,0,2,9],[3,0,4,0],[3,1,3,3],[3,4,3,6],[3,7,3,9]]}
["Ministerio de Educación y Cultura\nDirección de Educación"]
[]
["Cuadro 2.9.7 PORCENTAJE DE EGRESADOS DE POSGRADO POR NIVEL Y SEXO SEGÚN TRAMOS DE EDAD. AÑO 2016. "]
["Tramos de edad","Postgrado o especialización",null,null,"Maestría",null,null,"Doctorado"]
[null,"TOTAL","Masculino","Femenino","TOTAL","Masculino","Femenino","TOTAL","Masculino","Femenino"]
["Total",{"$f":"C6+D6","v":100},{"$f":"SUM(C7:C11)","v":32.653061224489797},{"$f":"SUM(D7:D11)","v":67.34693877551021},{"$f":"F6+G6","v":100},{"$f":"SUM(F7:F11)","v":45.368916797488225},{"$f":"SUM(G7:G11)","v":54.631083202511768},{"$f":"I6+J6","v":99.999999999999986},{"$f":"SUM(I7:I11)","v":55.55555555555555},{"$f":"SUM(J7:J11)","v":44.444444444444436}]
["Hasta 29 años",15.561224489795919,4.8469387755102042,10.714285714285714,17.26844583987441,7.0643642072213506,10.204081632653061,4.7619047619047619,3.1746031746031744,1.5873015873015872]
["30 a 34 años",37.329931972789112,11.989795918367346,25.34013605442177,29.827315541601259,14.442700156985872,15.384615384615385,34.920634920634917,19.047619047619047,15.873015873015872]
["35 a 39 años",21.088435374149661,7.9931972789115653,13.095238095238097,19.623233908948194,10.518053375196232,9.1051805337519625,26.984126984126981,12.698412698412698,14.285714285714285]
["más de 39 años",23.639455782312922,7.2278911564625847,16.411564625850339,29.827315541601255,12.087912087912088,17.739403453689167,22.222222222222221,14.285714285714285,7.9365079365079358]
["S/D",2.3809523809523809,0.59523809523809523,1.7857142857142856,3.4536891679748827,1.2558869701726845,2.197802197802198,11.111111111111111,6.3492063492063489,4.7619047619047619]
["Fuente: Elaboración propia en base a información proporcionada por las oficinas productoras de estadísticas de cada una de las instituciones."]

{"sheet":"Gráfico 2.9.1","index":47,"n_rows":36,"n_cols":1,"rows_kept":36,"cut":false,"hidden":false,"merged":[[0,0,0,3]]}
["Ministerio de Educación y Cultura\nDirección de Educación"]
[]
[]
[]
["Gráfico 2.9.1"]
[]
[]
[]
[]
[]
[]
[]
[]
[]
[]
[]
[]
[]
[]
[]
[]
[]
[]
[]
[]
[]
[]
[]
[]
[]
[]
[]
[]
[]
[]
["Fuente: Elaboración propia en base a información proporcionada por las oficinas productoras de estadísticas de cada una de las instituciones."]

{"sheet":"Gráfico 2.9.2","index":48,"n_rows":36,"n_cols":1,"rows_kept":36,"cut":false,"hidden":false,"merged":[[0,0,0,3]]}
["Ministerio de Educación y Cultura\nDirección de Educación"]
[]
[]
[]
["Gráfico 2.9.2"]
[]
[]
[]
[]
[]
[]
[]
[]
[]
[]
[]
[]
[]
[]
[]
[]
[]
[]
[]
[]
[]
[]
[]
[]
[]
[]
[]
[]
[]
[]
["Fuente: Elaboración propia en base a información proporcionada por las oficinas productoras de estadísticas de cada una de las instituciones."]

{"sheet":"Gráfico 2.9.3 ","index":49,"n_rows":24,"n_cols":1,"rows_kept":24,"cut":false,"hidden":false,"merged":[[0,0,2,3],[23,0,26,5]]}
["Ministerio de Educación y Cultura\nDirección de Educación"]
[]
[]
[]
["Gráfico 2.9.3"]
[]
[]
[]
[]
[]
[]
[]
[]
[]
[]
[]
[]
[]
[]
[]
[]
[]
["Fuente: Elaboración propia en base a información proporcionada por UdelaR."]
["Nota: (*) “Según Res. N°15 del CDC de fecha 23/10/12, se entiende por  Generación de Ingreso a Servicio a todos los estudiantes que ingresan por primera vez al Servicio, en un año dado, a alguna carrera terciaria y/o de grado. Se considera cada carrera compartida y C.I.O. como un servicio aparte.” Los datos de egresos de UdelaR son preliminares."]

{"sheet":"Gráfico 2.9.4","index":50,"n_rows":24,"n_cols":1,"rows_kept":24,"cut":false,"hidden":false,"merged":[[0,0,2,3],[23,0,24,5]]}
["Ministerio de Educación y Cultura\nDirección de Educación"]
[]
[]
[]
["Gráfico 2.9.4"]
[]
[]
[]
[]
[]
[]
[]
[]
[]
[]
[]
[]
[]
[]
[]
[]
[]
[]
["Fuente: Elaboración propia en base a información proporcionada por las oficinas productoras de estadísticas de cada una de las instituciones."]

{"sheet":"Gráfico 2.9.5","index":51,"n_rows":23,"n_cols":1,"rows_kept":23,"cut":false,"hidden":false,"merged":[[0,0,2,3],[22,0,23,5]]}
["Ministerio de Educación y Cultura\nDirección de Educación"]
[]
[]
[]
["Gráfico 2.9.5"]
[]
[]
[]
[]
[]
[]
[]
[]
[]
[]
[]
[]
[]
[]
[]
[]
[]
["Fuente: Elaboración propia en base a información proporcionada las oficinas productoras de estadísticas educativas de los Institutos Universitarios y de las Universidades Privadas."]

{"sheet":"Gráfico 2.9.6","index":52,"n_rows":25,"n_cols":1,"rows_kept":25,"cut":false,"hidden":false,"merged":[[0,0,2,3],[22,0,23,5],[24,0,24,5]]}
["Ministerio de Educación y Cultura\nDirección de Educación"]
[]
[]
[]
["Gráfico 2.9.6"]
[]
[]
[]
[]
[]
[]
[]
[]
[]
[]
[]
[]
[]
[]
[]
[]
[]
["Fuente: Elaboración propia en base a información proporcionada por la UdelaR y las oficinas productoras de estadísticas educativas de los Institutos Universitarios y de las Universidades Privadas"]
[]
["Notas: Los datos de egresos de UdelaR son preliminares."]

{"sheet":"Gráfico 2.9.7","index":53,"n_rows":25,"n_cols":1,"rows_kept":25,"cut":false,"hidden":false,"merged":[[0,0,2,3],[22,0,23,5],[24,0,24,5]]}
["Ministerio de Educación y Cultura\nDirección de Educación"]
[]
[]
[]
["Gráfico 2.9.7"]
[]
[]
[]
[]
[]
[]
[]
[]
[]
[]
[]
[]
[]
[]
[]
[]
[]
["Fuente: Elaboración propia en base a información proporcionada por las Universidades e Institutos Universitarios "]
[]
["Notas: Los datos de egresos de UdelaR son preliminares."]

{"sheet":"Gráfico 2.9.8","index":54,"n_rows":28,"n_cols":1,"rows_kept":28,"cut":false,"hidden":false,"merged":[[0,0,2,3],[22,0,23,5],[24,0,24,5],[25,0,26,5],[27,0,27,5]]}
["Ministerio de Educación y Cultura\nDirección de Educación"]
[]
[]
[]
["Gráfico 2.9.8"]
[]
[]
[]
[]
[]
[]
[]
[]
[]
[]
[]
[]
[]
[]
[]
[]
[]
[]
[]
[]
["Fuente: Elaboración propia en base a información proporcionada por las Universidaes e Institutos Universitarios "]
[]
["Notas: Los datos de egresos de UdelaR son preliminares."]

{"sheet":"Gráfico 2.9.9","index":55,"n_rows":27,"n_cols":1,"rows_kept":27,"cut":false,"hidden":false,"merged":[[0,0,2,3],[24,0,25,5],[26,0,26,5]]}
["Ministerio de Educación y Cultura\nDirección de Educación"]
[]
[]
[]
["Gráfico 2.9.9"]
[]
[]
[]
[]
[]
[]
[]
[]
[]
[]
[]
[]
[]
[]
[]
[]
[]
[]
[]
["Fuente: Elaboración propia en base a información proporcionada por las Universidades e Institutos Universitarios "]
[]
["Notas: Los datos de egresos de UdelaR son preliminares."]

{"sheet":"Gráfico 2.9.10","index":56,"n_rows":25,"n_cols":1,"rows_kept":25,"cut":false,"hidden":false,"merged":[[0,0,2,3],[24,0,24,5]]}
["Ministerio de Educación y Cultura\nDirección de Educación"]
[]
[]
[]
["Gráfico 2.9.10"]
[]
[]
[]
[]
[]
[]
[]
[]
[]
[]
[]
[]
[]
[]
[]
[]
[]
[]
[]
["Fuente: Elaboración propia en base a información reportada por las oficinas productoras de estadísticas de las instituciones"]

{"sheet":"Gráfico 2.9.11","index":57,"n_rows":24,"n_cols":1,"rows_kept":24,"cut":false,"hidden":false,"merged":[[0,0,2,3],[23,0,23,5]]}
["Ministerio de Educación y Cultura\nDirección de Educación"]
[]
[]
[]
["Gráfico 2.9.11"]
[]
[]
[]
[]
[]
[]
[]
[]
[]
[]
[]
[]
[]
[]
[]
[]
[]
[]
["Fuente: Elaboración propia en base a información reportada por las oficinas productoras de estadísticas de las instituciones."]

{"sheet":"Gráfico 2.9.12","index":58,"n_rows":24,"n_cols":1,"rows_kept":24,"cut":false,"hidden":false,"merged":[[0,0,2,3],[23,0,23,5]]}
["Ministerio de Educación y Cultura\nDirección de Educación"]
[]
[]
[]
["Gráfico 2.9.12"]
[]
[]
[]
[]
[]
[]
[]
[]
[]
[]
[]
[]
[]
[]
[]
[]
[]
[]
["Fuente: Elaboración propia en base a información reportada por las oficinas productoras de estadísticas de las instituciones."]

{"sheet":"Gráfico 2.9.13","index":59,"n_rows":27,"n_cols":1,"rows_kept":27,"cut":false,"hidden":false,"merged":[[0,0,2,3],[26,0,26,5]]}
["Ministerio de Educación y Cultura\nDirección de Educación"]
[]
[]
[]
["Gráfico 2.9.13"]
[]
[]
[]
[]
[]
[]
[]
[]
[]
[]
[]
[]
[]
[]
[]
[]
[]
[]
[]
[]
[]
["Fuente: Elaboración propia en base a información reportada por las oficinas productoras de estadísticas de las instituciones."]

{"sheet":"Gráfico 2.9.14","index":60,"n_rows":26,"n_cols":1,"rows_kept":26,"cut":false,"hidden":false,"merged":[[0,0,2,3],[25,0,25,5]]}
["Ministerio de Educación y Cultura\nDirección de Educación"]
[]
[]
[]
["Gráfico 2.9.14"]
[]
[]
[]
[]
[]
[]
[]
[]
[]
[]
[]
[]
[]
[]
[]
[]
[]
[]
[]
[]
["Fuente: Elaboración propia en base a información reportada por las oficinas productoras de estadísticas de las instituciones."]

{"sheet":"10. EDUCACIÓN JÓVENES Y ADULTOS","index":61,"n_rows":18,"n_cols":3,"rows_kept":18,"cut":false,"hidden":false,"merged":[[1,2,2,8]]}
[]
[null,null,"EDUCACIÓN DE JÓVENES Y ADULTOS"]
[]
[]
[]
[]
["Cuadro 2.10.1","TOTAL DE INSTITUCIONES Y CURSOS DEL RELEVAMIENTO TÉCNICO-PROFESIONAL POR FORMA DE ADMINISTRACIÓN, GRANDES ÁREAS SEGÚN ÁREA DE CONOCIMIENTO. AÑO 2015"]
["Cuadro 2.10.2","ALUMNOS MATRICULADOS EN CUROS DEL RELEVAMIENTO TÉCNICO PROFESIONAL POR ÁREAS DE CONOCIMIENTO, SEGÚN FORMAS DE ADMINISTRACIÓN Y GRANDES ÁREAS. 2015"]
["Cuadro 2.10.3","CANTIDAD DE CURSOS POR TRAMOS DE DURACIÓN EN HORAS SEGÚN ÁREA DE CONOCIMIENTO. AÑO 2015."]
["Cuadro 2.10.4","ALUMNOS MATRICULADOS EN CURSOS DE EDUCACIÓN TÉCNICA PARA JÓVENES Y ADULTOS POR GRANDES ÁREAS Y SEXO SEGÚN TIPO DE CURSO. AÑO 2015"]
["Cuadro 2.10.5","ALUMNOS INGRESADOS Y MATRICULADOS EN CECAP POR SEXO SEGÚN GRANDES ÁREAS. AÑO 2015."]
["Cuadro 2.10.6","ALUMNOS MATRICULADOS DEL COCAP SEGÚN TIPO DE CURSO Y ÁREA DE FORMACIÓN. AÑO 2015."]
["Cuadro 2.10.7","ALUMNOS MATRICULADOS DEL COCAP SEGÚN SEGÚN SEXO Y ÁREA DE CONOCIMIENTO (PORCENTAJES) AÑO 2015."]
["Cuadro 2.10.8","FUNCIONARIOS PARTICIPANTES EN LOS CURSOS DE LA ENAP DR. AQUILES LANZA, CANTIDAD DE CURSOS Y HORAS TIPO DE CURSO. AÑO 2014."]
["Cuadro 2.10.9","ALUMNOS INGRESADOS Y MATRICULADOS EN CARRERAS NO TERCIARIAS EN UNIVERSIDADES E INSTITUTOS UNIVERSITARIOS. AÑO 2015."]
[]
[]
["Gráfico 2.10.1","EVOLUCIÓN DE LA MATRÍCULA DE CECAP SEGÚN AÑO LECTIVO (2000 - 2015)"]

{"sheet":"Cuadro 2.10.1 ","index":62,"n_rows":38,"n_cols":6,"rows_kept":38,"cut":false,"hidden":false,"merged":[[5,0,5,5],[6,0,7,0],[6,1,7,1],[6,2,6,3],[6,4,6,5]]}
["Ministerio de Educación y Cultura"]
["Dirección de Educación"]
[]
[]
["Cuadro 2.10.1"]
["TOTAL DE INSTITUCIONES Y CURSOS DEL RELEVAMIENTO TÉCNICO-PROFESIONAL POR FORMA DE ADMINISTRACIÓN, GRANDES ÁREAS SEGÚN ÁREA DE CONOCIMIENTO. AÑO 2016"]
["AREA DE CONOCIMIENTO","TOTAL","FORMA DE ADMINISTRACIÓN",null,"ÁREA GEOGRÁFICA "]
[null,null,"PRIVADO","PÚBLICA","MONTEVIDEO","RESTO DEL PAÍS"]
["TOTAL INSTITUCIONES",231,221,10,139,92]
[]
["TOTAL CURSOS",2417,2256,161,1578,839]
["ADMINISTRACIÓN -COMERCIALIZACIÓN",336,336,0,268,68]
["AERONÁUTICA",34,11,23,14,20]
["AGRARIA",19,19,0,9,10]
["ARTES-ARTESANÍAS",147,147,0,104,43]
["COMUNICACIONES",28,28,0,25,3]
["CONSTRUCCIÓN -ARQUITECTURA",36,36,0,34,2]
["DEPORTES Y AFINES",48,48,0,38,10]
["DISEÑOS",34,34,0,28,6]
["ELECTROTECNIA Y ELECTRÓNICA",16,16,0,13,3]
["GASTRONOMÍA",94,94,0,83,11]
["GRÁFICOS",3,3,0,2,1]
["HOTELERÍA Y TURISMO",39,39,0,30,9]
["IDIOMAS",822,822,0,419,403]
["INFORMÁTICA",185,184,1,86,99]
["MARÍTIMA",53,2,51,53,0]
["METAL-MECÁNICA",18,18,0,14,4]
["LÚDICA",3,3,0,3,0]
["SALUD SEGURIDAD E HIGIENE",162,144,18,85,77]
["SEGURIDAD Y DEFENSA",87,19,68,82,5]
["SERVICIOS PERSONALES -ESTÉTICA",45,45,0,42,3]
["TECNOLÓGICA",13,13,0,12,1]
["EDUCACIÓN",53,53,0,26,27]
["VESTIMENTA",38,38,0,38,0]
["OTROS",104,104,0,70,34]
["Fuente: Elaboración propia en base a la información del Relevamiento de Instituciones de Formación Técnico-Profesional. Realizado por el División de Investigación y Estadística."]
["Nota: Debe sumarse datos obtenidos del Ministerio de Defensa sin desagregar por área de conocimiento. 18 Institutos públicos, 14 en Montevideo y 4 resto del país.  "]
["133 cursos públicos, 85 en Montevideo y 48 resto del país"]

{"sheet":"Cuadro 2.10.2 ","index":63,"n_rows":36,"n_cols":8,"rows_kept":36,"cut":false,"hidden":false,"merged":[[7,7,7,8],[8,7,8,8],[5,0,6,5],[7,0,8,0],[7,1,8,1],[7,2,7,3],[7,4,7,5]]}
["Ministerio de Educación y Cultura"]
["Dirección de Educación"]
[]
[]
["Cuadro 2.10.2"]
["ALUMNOS MATRICULADOS EN CUROS DEL RELEVAMIENTO TÉCNICO PROFESIONAL POR ÁREAS DE CONOCIMIENTO, SEGÚN FORMAS DE ADMINISTRACIÓN Y GRANDES ÁREAS. 2016"]
[]
["ÁREAS DE CONOCIMIENTO","TOTAL","FORMA DE ADMINISTRACIÓN",null,"ÁREA GEOGRÁFICA "]
[null,null,"PRIVADA","PÚBLICA","MONTEVIDEO","INTERIOR"]
["TOTAL",93423,89099.000000000291,4323.9999999999991,64885.999999999942,28537.000000000025]
["ADMINISTRACIÓN -COMERCIALIZACIÓN",10362.999999999995,10362.999999999995,0,9225,1137.9999999999998]
["AERONÁUTICA",505,56.000000000000007,449.00000000000006,291,214]
["AGRARIA",620,619.99999999999989,0,425,195]
["ARTES-ARTESANÍAS",5196.9999999999982,5196.9999999999982,0,4168.9999999999991,1028]
["COMUNICACIONES",1168,1168,0,1061,107]
["CONSTRUCCIÓN -ARQUITECTURA",1166,1166,0,1161,5]
["DEPORTES Y AFINES",1156,1156,0,692,464]
["DISEÑOS",1547.9999999999998,1547.9999999999998,0,1355,193]
["ELECTROTECNIA Y ELECTRÓNICA",438.99999999999994,438.99999999999994,0,408.99999999999994,30]
["GASTRONOMÍA",2986.0000000000005,2986.0000000000005,0,2593.9999999999995,392.00000000000011]
["GRÁFICOS",13,13,0,10,3]
["HOTELERÍA Y TURISMO",966,966,0,733.00000000000011,233]
["IDIOMAS",24249.000000000004,24249.000000000004,0,12494.999999999995,11753.999999999998]
["INFORMÁTICA",6809,6753.0000000000009,56,5108.9999999999991,1700.0000000000002]
["MARÍTIMA",1769,31,1738,1769,0]
["METAL-MECÁNICA",863.00000000000011,863.00000000000011,0,840,23]
["SALUD SEGURIDAD E HIGIENE",14953,14382.000000000011,571,9914.0000000000036,5039.0000000000009,null," "]
["SEGURIDAD Y DEFENSA",2339,829.00000000000011,1509.9999999999998,2230.0000000000009,109,null," "]
["SERVICIOS PERSONALES -ESTÉTICA",1783.0000000000002,1783.0000000000002,0,1780,3]
["TECNOLÓGICA",344,344,0,344,0]
["LÚDICA",88,88,0,88,0]
["EDUCACIÓN",2627.0000000000005,2627.0000000000005,0,1700,927.00000000000023]
["VESTIMENTA",287.99999999999994,287.99999999999994,0,287.99999999999994,0]
["OTROS",11184,11184,0,6203.9999999999991,4980]
["Fuente: Elaboración propia en base a la información del Relevamiento de Instituciones de Formación Técnico-Profesional. Realizado por el Área de Investigación y Estadística."]
["Nota:  Debe sumarse datos obtenidos del Ministerio de Defensa sin desagregar por área de conocimiento. 2457 alumnos matrículados público, 1419 en Montevideo, 1038 resto del país. ",null,null,null,null," "]

{"sheet":"Cuadro 2.10.3 ","index":64,"n_rows":42,"n_cols":7,"rows_kept":42,"cut":false,"hidden":false,"merged":[[7,6,8,6],[7,1,8,1],[7,2,8,2],[7,3,8,3],[7,4,8,4],[7,5,8,5]]}
["Ministerio de Educación y Cultura"]
["Dirección de Educación"]
[]
[]
[]
["Cuadro 2.10.3"]
["CANTIDAD DE CURSOS POR TRAMOS DE DURACIÓN EN HORAS SEGÚN ÁREA DE CONOCIMIENTO. AÑO 2016"]
["ÁREA DE","TOTAL","0 a 40","41 a 140","141 a 320","321 a 440","441 y más "]
["CONOCIMIENTO"]
["TOTAL",2417,790,1022,414,75,116]
["ADMINISTRACIÓN -COMERCIALIZACIÓN",336,144,105,76,5,6]
["AERONÁUTICA",34,16,4,2,0,12]
["AGRARIA",19,6,9,4,0,0]
["ARTES-ARTESANIAS",147,82,38,14,0,13]
["COMUNICACIONES",28,10,3,10,4,1]
["CONSTRUCCIÓN -ARQUITECTURA",36,13,19,3,1,0]
["DEPORTES Y AFINES",48,21,21,0,3,3]
["DISEÑOS",34,4,14,12,0,4]
["ELECTROTECNIA Y ELECTRÓNICA",16,3,7,6,0,0]
["GASTRONOMÍA",94,23,39,13,10,9]
["GRÁFICOS",3,2,1,0,0,0]
["HOTELERÍA Y TURISMO",39,5,15,13,2,4]
["IDIOMAS",822,138,518,154,9,3]
["INFORMÁTICA",185,58,108,13,4,2]
["MARÍTIMA",53,36,17,0,0,0]
["METAL-MECÁNICA",18,1,14,2,1,0]
["LÚDICA",3,2,1,0,0,0]
["SALUD SEGURIDAD E HIGIENE",162,54,8,27,33,40]
["SEGURIDAD Y DEFENSA",87,78,1,7,0,1]
["SERVICIOS PERSONALES -ESTÉTICA",45,16,17,12,0,0]
["TECNOLÓGICA",13,2,5,6,0,0]
["EDUCACIÓN",53,20,13,16,0,4]
["VESTIMENTA",38,9,23,5,0,1]
["OTROS",104,47,22,19,3,13]
["Fuente: Elaboración propia en base a la información del Primer Censo Nacional de Instituciones de Formación Técnica Profesional."]
["Nota: Las áreas de conocimiento corresponden a la clasificación CINE 1997 de UNESCO"]
["Debe sumarse datos obtenidos del Ministerio de Defensa sin desagregación por área de conocimiento"]
["0 a 40:31"]
["41 a 140:42"]
["141 a 320:46"]
["321 a 440:1"]
["441 y más: 13"]

{"sheet":"Cuadro 2.10.4","index":65,"n_rows":30,"n_cols":11,"rows_kept":30,"cut":false,"hidden":false,"merged":[[0,0,0,3],[6,0,6,9],[8,0,9,9],[18,0,18,1],[11,1,15,1],[11,0,15,0],[11,2,13,4],[11,5,12,10],[13,6,13,7],[13,9,13,10],[14,2,15,2],[14,3,14,4],[14,6,14,7],[14,9,14,10]]}
["Ministerio de Educación y Cultura"]
["Dirección de Educación"]
[]
[]
["Cuadro 2.10.4"]
["CONSEJO DE EDUCACIÓN TÉCNICO PROFESIONAL (U.T.U.)"]
[]
[]
["ALUMNOS MATRICULADOS EN CURSOS DE EDUCACIÓN TÉCNICA PARA JÓVENES Y ADULTOS POR GRANDES ÁREAS Y SEXO SEGÚN TIPO DE CURSO. AÑO 2016."]
[]
[]
["TIPO DE CURSO","TOTAL ","TOTAL",null,null,"GRANDES ÁREAS"]
[]
[null,null,null,null,null,null,"MONTEVIDEO ",null,null,"RESTO DEL PAÍS"]
[null,null,"Total","SEXO",null,null,"SEXO",null,null,"SEXO"]
[null,null,null,"Masculino","Femenino","Total ","Masculino ","Femenino ","Total","Masculino ","Femenino"]
["TOTAL",null,{"$f":"SUM(C20:C29)","v":5249},2511,2738,3171,1529,1642,2078,982,1096]
[]
["Nivel Formación profesional "]
["CAP. PROFUNDIZACIÓN PROFESIONAL",null,{"$f":"+D20+E20","v":366},{"$f":"G20+J20","v":199},{"$f":"H20+K20","v":167},{"$f":"+G20+H20","v":103},66,37,{"$f":"+J20+K20","v":263},133,130]
["CAPACITACIÓN PROFESIONAL",null,{"$f":"+D21+E21","v":52},{"$f":"G21+J21","v":35},17,{"$f":"+G21+H21","v":47},34,13,{"$f":"+J21+K21","v":5},1,4]
["CAPACITACIÓN PROFESIONAL INICIAL",null,2831,1358,1473,1294,643,651,1537,715,822]
["CAPACITACIÓN TÉCNICA",null,37,32,5,37,32,5,0,0,0]
["CURSO BÁSICO",null,428,169,259,359,122,237,69,47,22]
["CURSO BÁSICO ESPECIALIZACIÓN",null,286,110,176,215,79,136,71,31,40]
["FORM. PROFES. EN ARTES Y ARTESANÍAS",null,554,188,366,552,187,365,2,1,1]
["FORMACIÓN PROFESIONAL BÁSICA",null,553,316,237,440,275,165,113,41,72]
["FORMACIÓN PROFESIONAL ESPECIALIZADA",null,119,88,31,119,88,31,0,0,0]
["PROYECTOS DE EXTENSIÓN",null,23,16,7,5,3,2,18,13,5]
["Fuente: CETP-UTU"]

{"sheet":"Gráfico 2.10.1","index":66,"n_rows":32,"n_cols":1,"rows_kept":32,"cut":false,"hidden":false,"merged":[[0,0,0,5],[2,0,2,5]]}
["Ministerio de Educación y Cultura \nDirección de Educación\n"]
[]
["Gráfico 2.10.1"]
[]
[]
[]
[]
[]
[]
[]
[]
[]
[]
[]
[]
[]
[]
[]
[]
[]
[]
[]
[]
[]
[]
[]
[]
[]
[]
[]
[]
["Fuente: Área de Educación No Formal de la Dirección de Educación - MEC"]

{"sheet":"Cuadro 2.10.5","index":67,"n_rows":9,"n_cols":7,"rows_kept":9,"cut":false,"hidden":false,"merged":[[8,0,8,6],[0,0,0,3],[3,0,4,0],[3,1,4,1],[3,2,3,3],[3,5,3,6],[2,0,2,6]]}
["Ministerio de Educación y Cultura\nDirección de Educación\n"]
[]
["Cuadro 2.10.5\nALUMNOS INGRESADOS Y MATRICULADOS EN CECAP POR SEXO SEGÚN GRANDES ÁREAS. AÑO 2016."]
["ÁREA GEOGRÁFICA","TOTAL","INGRESADOS",null,null,"MATRICULADOS"]
[null,null,"Masculino","Femenino","TOTAL","Masculino","Femenino"]
["TOTAL ",{"$f":"B7+B8","v":1491},830,661,2360,1357,1003]
["Montevideo",{"$f":"C7+D7","v":363},192,171,{"$f":"F7+G7","v":549},294,255]
["Resto del país",{"$f":"C8+D8","v":1128},638,490,{"$f":"F8+G8","v":1811},1063,748]
["Fuente: Área de Educación No Formal de la Dirección de Educación - MEC"]

{"sheet":"Cuadro 2.10.6","index":68,"n_rows":10,"n_cols":5,"rows_kept":10,"cut":false,"hidden":false,"merged":[[10,0,10,1],[0,0,0,4],[2,0,2,4],[3,0,3,4],[4,0,5,1],[4,2,5,2],[4,3,4,4],[4,5,4,6],[6,0,6,1],[7,0,7,1],[8,0,8,1],[9,0,9,7]]}
["Ministerio de Educación y Cultura \nDirección de Educación\n"]
[]
["Cuadro 2.10.6"]
["ALUMNOS MATRICULADOS DEL COCAP SEGÚN TIPO DE CURSO Y ÁREA DE FORMACIÓN. AÑO 2016."]
["TIPO DE CURSO ",null,"TOTAL","SEXO"]
[null,null,null,"Masculino","Femenino"]
["TOTAL ",null,{"$f":"C8+C9","v":1617},{"$f":"D8+D9","v":1391},{"$f":"E8+E9","v":226}]
["Cursos Abiertos ",null,{"$f":"D8+E8","v":1510},1294,216]
["Cursos Cerrados ",null,{"$f":"D9+E9","v":107},97,10]
["Fuente: COCAP"]

{"sheet":"Cuadro 2.10.7","index":69,"n_rows":17,"n_cols":6,"rows_kept":17,"cut":false,"hidden":false,"merged":[[3,0,4,5],[15,0,15,7],[2,0,2,5],[5,0,6,2],[0,0,0,5],[13,0,13,2],[5,4,5,5],[7,0,7,2],[8,0,8,2],[9,0,9,2],[10,0,10,2],[11,0,11,2],[12,0,12,2]]}
["Ministerio de Educación y Cultura \nDirección de Educación\n"]
[]
["Cuadro 2.10.7"]
["ALUMNOS MATRICULADOS EN COCAP SEGÚN SEXO Y ÁREA DE CONOCIMIENTO (PORCENTAJES).  AÑO 2016."]
[]
["ÁREA DE CONOCIMIENTO",null,null,null,"SEXO"]
[null,null,null,"Total","Masculino","Femenino"]
["TOTAL",null,null,100,100,100]
["Administración y Comercialización",null,null,23.5,13.6,81.3]
["Agraria",null,null,2.8,2.6,4.0999999999999996]
["Construcción - Arquitectura",null,null,0.9,0.9,0.4]
["Electrotecnia - Electrónica",null,null,29.8,34.4,2.9]
["Informática",null,null,4.3,4.5999999999999996,2.9]
["Metal-Mecánica",null,null,38.799999999999997,44,8.3000000000000007]
[]
["Fuente: COCAP"]
["Nota: Los datos son de los cursos Abiertos y Cerrados."]

{"sheet":"Cuadro 2.10.8","index":70,"n_rows":11,"n_cols":5,"rows_kept":11,"cut":false,"hidden":false,"merged":[[8,0,8,1],[9,0,9,4],[10,0,10,4],[0,0,0,4],[3,0,3,4],[4,0,4,1],[5,0,5,1],[6,0,6,1],[7,0,7,1]]}
["Ministerio de Educación y Cultura\nDirección de Educación\n"]
[]
[]
["Cuadro 2.10.8\nFUNCIONARIOS PARTICIPANTES EN LOS CURSOS DE LA ENAP DR. AQUILES LANZA, CANTIDAD DE CURSOS Y HORAS TIPO DE CURSO. AÑO 2014. (último dato disponible)"]
["GRANDES ÁREAS",null,"FUNCIONARIOS PARTICIPANTES","CANTIDAD DE CURSOS","HORAS"]
["TOTAL ",null,{"$f":"SUM(C7:C9)","v":11297},{"$f":"SUM(D7:D9)","v":382},{"$f":"SUM(E7:E9)","v":14388}]
["Programas de Formación: Programa de Dirección Media, Diploma en Gestión Humana y Programa de Desarrollo Administrativo ",null,178,7,2271]
["Cursos y Seminarios ",null,5943,215,6900]
["Cursos e-learning",null,5176,160,5217]
["Fuentes: Oficina Nacional del Servicio Civil - Escuela Nacional de Administración Pública \"Dr. Aquiles Lanza\""]
["Nota: Por no contar con información, no se incluye la \"Maestría en Políticas y Gestión Pública\"."]

{"sheet":"Cuadro 2.10.9","index":71,"n_rows":16,"n_cols":8,"rows_kept":16,"cut":false,"hidden":false,"merged":[[3,6,3,7],[4,2,5,2],[4,3,4,4],[4,5,5,5],[4,6,4,7],[7,0,7,1],[8,0,8,1],[14,0,14,1],[17,0,17,1],[0,0,0,2],[2,0,2,5],[3,0,4,1],[3,3,3,4],[5,0,5,1],[9,0,9,1],[10,0,10,1],[11,0,11,1],[12,0,12,1],[13,0,13,1]]}
["Ministerio de Educación y Cultura\nDirección de Educación\n"]
[]
["Cuadro 2.10.9\nALUMNOS MATRICULADOS E INGRESADOS EN CARRERAS NO TERCIARIAS EN UNIVERSIDADES E INSTITUTOS UNIVERSITARIOS. AÑO 2016."]
["UNIVERSIDADES E INSTITUTOS UNIVERSITARIOS",null,null,"MATRICULADOS",null,null,"INGRESADOS"]
[null,null,"TOTAL","SEXO",null,"TOTAL","SEXO"]
[null,null,null,"Masculino","Femenino",null,"Masculino","Femenino"]
["TOTAL ",null,{"$f":"D7+E7","v":7013},{"$f":"SUM(D8:D15)","v":3721},{"$f":"SUM(E8:E15)","v":3292},{"$f":"G7+H7","v":4970},{"$f":"SUM(G8:G15)","v":2395},{"$f":"SUM(H8:H15)","v":2575}]
["Universidad ORT Uruguay ",null,2551,1761,790,868,616,252]
["Universidad de la Empresa",null,703,367,336,481,225,256]
["UCUDAL",null,2235,836,1399,2166,817,1349]
["UDELAR",null,638,157,481,638,157,481]
["IPES",null,1845,"s/d","s/d",1845,"s/d","s/d"]
["Instituto Metodista Universitario Crandon",null,51,1,50,23,1,22]
["Instituto Universitario Asociación Cristiana de Jóvenes",null,399,344,55,358,324,34]
["CALEN",null,436,255,181,436,255,181]
["Fuente: Oficinas productoras de las instituciones."]

{"sheet":"CONTEXTO NACIONAL ","index":72,"n_rows":82,"n_cols":11,"rows_kept":82,"cut":false,"hidden":false,"merged":[[43,0,44,9],[49,0,49,9],[58,0,58,16383],[42,0,42,8],[2,1,5,7],[45,0,46,9],[47,0,48,9]]}
[]
[]
[null,"CONTEXTO NACIONAL"]
[]
[]
[]
[]
[" Cuadro 3.1.1 ESCUELAS, MAESTROS Y ALUMNOS ATENDIDOS POR EL PROGRAMA MAESTROS COMUNITARIOS SEGÚN AÑO LECTIVO. AÑO 2015"]
["Cuadro 3.1.2ESCUELAS, PROFESORES Y ALUMNOS ATENDIDOS POR EL PROGRAMA DE EDUCACIÓN FÍSICA ESCOLAR  SEGÚN AÑO LECTIVO 2015"]
["Cuadro 3.1.3 CANTIDAD DE BECAS MEC OTROGADAS  POR NIVEL Y SEXO SEGÚN DEPARTAMENTO. (Todo el país-año 2016)"]
["Cuadro 3.1.4 CANTIDAD DE BECAS OTORGADAS POR EL PROGRAMA COMPROMISO EDUCATIVO SEGÚN SEXO Y DEPARTAMENTO \n                                                                       (Todo el país, año 2016) "]
["Cuadro 3.1.5 EVOLUCIÓN DE LA CANTIDAD DE BECAS OTORGADAS POR EL FONDO DE SOLIDARIDAD\n(Todo el país, años 2002-2016)"]
["Cuadro 3.1.6 CANTIDAD DE BECAS OTORGADAS POR EL CONSEJO DE FORMACIÓN DOCENTE.\nAÑO 2016"]
["Cuadro 3.1.7 BECAS DEL PROGRAMA URUGUAY ESTUDIA POR MODALIDAD SEGÚN AÑO LECTIVO.\nAÑO 2015"]
["Cuadro 3.1.8 CANTIDAD DE BENEFICIARIOS  POR EL PROGRAMA RUMBO \n(Todo el país -año 2016)"]
["Cuadro 3.1.9 Cantidad de Alfabetizados digitalmente (Todo el país -año 2016)"]
["Cuadro 3.1.10  PORCENTAJE DE BENEFICIARIOS DEL PROGRAMA YO ESTUDIO YO TRABAJO POR SEXO, ÁREA GEOGRÁFICA, EDAD Y NIVEL EDUCATIVO (Todo el país, año 2016) "]
[]
["Cuadro 3.1.11  CANTIDAD DE BENEFICIARIOS DEL PROGRAMA JÓVENES EN RED, SEGÚN SEXO, EDAD Y ÁREA GEOGRÁFICA \n(Todo el país datos historicos a 2016)"]
["Cuadro 3.1.12 CANTIDAD DE BENEFICIARIOS POR EL PROGRAMA FORTALECIMIENTO  EDUCATIVO SEGÚN SEXO Y EDAD PARA EL PERÍODO 2014.2015"]
["Cuadro 3.1.13 CANTIDAD DE BENEFICIARIOS DEL PROGRAMA INTER - IN (Todo el país -año 2015)"]
["Cuadro 3.1.14 CANTIDAD DE DOCENTES Y ESTUDIANTES DEL PLAN CEIBAL POR TIPO DE INSTITUCIÓN (Todo el país año, 2016)"]
["Cuadro 3.1.15 CANTIDAD DE EQUIPOS OTORGADOS POR PLAN CEIBAL SEGÚN TIPO DE INSTITUCIÓN (Todo el país, año 2016)"]
["Cuadro 3.1.16 CANTIDAD DE CENTROS QUE PARTICIPARON EN EL PROGRAMA APRENDER TODOS  (Todo el país, año 2016) "]
["Cuadro 3.1.17 CANTIDAD DE EQUIPOS Y LABORATORIOS TECNOLOGICOS POR SUBISTEMA (Todo el país, año 2016) "]
["Cuadro 3.1.18 PLATAFORMAS EN CEIBAL PARA MATEMÁTICAS E INGLÉS SEGÚN SUBSISTEMA  (Todo el país, año 2016)"]
["Cuadro 3.1.19 CANTIDAD DE ALUMNOS CON ATENCIÓN EN ESCUELA ESPECIAL CON DOBLE ESCOLARIDAD POR TIPO DE DISCAPACIDAD Y MODALIDAD (Todo el país, año 2015)"]
["Cuadro 3.1.20 CANTIDAD DE ALUMNOS CON APOYO EN LAS ESCUELAS ESPECIALES  Y ESCOLARIZACIÓN COMPARTIDA POR NIVEL Y MODADLIDAD (Todo el País, año 2015)"]
["Cuadro 3.1.21 CANTIDAD DE ESTUDIANTES  DE  DIVERSAS SUB-ÁREAS APOYADOS EN ESCUELAS CENTROS DE ZONA (Todo el País, año 2015)"]
["Cuadro 3.1.22 ESTUDIANTES ITINERADOS EN ESCUELAS DONDE SE ENCUENTRAN INSCRIPTOS POR TIPO DE DISCAPACIDAD Y NIVEL. (Todo el país, año 2015)"]
["Cuadro 3.1.23 CANTIDAD DE NIÑOS ATENDIDOS POR MAESTROS DE APOYO POR CICLO Y TIPO DE ESCUELA. (Todo el país, año 2015)"]
["Cuadro 3.1.24 TOTAL DE ESTUDIANTES ATENDIDOS EN EDUCACIÓN ESPECIAL POR TIPO DE MODALIDAD (Todo el país, año 2015)"]
["Cuadro 3.1.25 CANTIDAD DE JÓVENES ATENDIDOS EN INISA POR SEXO Y EDAD (Todo el país año 2016) "]
["Cuadro 3.1.26 Programa Aprender Siempre (PAS) por tipo de actividad y cantidad de propuestas. Año 2016 "]
["Cuadro 3.1.27 Programa ESQUINAS DEL MAÑANA  2016"]
["Cuadro 3.1.28 CANTIDAD DE BENEFICIARIOS DEL PROGRAMA AULAS COMUNITARIAS, SEGÚN SEXO, EDAD Y ÁREA GEOGRÁFICA \n(Todo el país datos historicos a 2016)"]
["Cuadro 3.1.29 PORCENTAJE DE INSCRIPTOS SEGÚN SEXO, CANTIDAD DE EGRESADOS POR NIVEL DE SECUNDARIA, Y EDAD PROMEDIO DE EDAD SEGÚN ORGANISMO AL PROGRAMA DE CULMINACIÓN DE EDUCACIÓN MEDIA (PROCES). TODO EL PAÍS (AÑO 2016) "]
[]
["Cuadro 3.1.30 CANTIDAD DE JUGADORES DE LAS SUBDIVISIONES FORMATIVAS SEGÚN CONDICIÓN DE ESTUDIANTE (Todo el país, año 2016) "]
["Cuadro 3.1.31 CANTIDAD DE BECAS OTORGADAS POR LA ANII POR TIPO DE BECA POR SEXO, MONTO Y REGIÓN\n  (Todo el país, año 2016) "]
[]
["Cuadro 3.1.32 CANTIDAD DE BECAS OTORGADAS POR BIENESTAR UNIVERSITARIO SEGÚN TIPO DE BECA\n   (Todo el país, año 2016) "]
["Cuadro 3.1.33  CANTIDAD DE BECAS DE INCLUSIÓN SOCIOEDUCATIVA (BIS). \n   Todo el país, año 2015"]
["Cuadro 3.1.34  CANTIDAD DE BECAS OTORGADAS POR FUNDACIÓN CHAMANGÁ  SEGÚN DEPARTAMENTO\n   (Todo el país, año 2016)  \n   ",null,null,null,null,null,null,null,null,null,"Cuadro 3.1.33  CANTIDAD DE BECAS DE INCLUSIÓN SOCIOEDUCATIVA (BIS). \n   Todo el país, año 2015"]
["Cuadro 3.1.34  CANTIDAD DE BECAS OTORGADAS POR FUNDACIÓN CHAMANGÁ  SEGÚN DEPARTAMENTO\n   (Todo el país, año 2016) "]
["Cuadro 3.1.35 CANTIDAD DE PLAZAS OFRECIDAS DE EDUCACIÓN FORMAL PARA POBLACIÓN PRIVADA DE LIBERTAD POR UNIDAD PENITENCIARIA SEGÚN NIVEL Y SEXO. AÑO 2016"]
[]
["Cuadro 3.1.36 CANTIDAD DE PLAZAS OFRECIDAS DE EDUCACIÓN FORMAL PARA POBLACIÓN PRIVADA DE LIBERTAD POR UNIDAD PENITENCIARIA SEGÚN NIVEL Y SEXO. AÑO 2016"]
[]
["Cuadro 3.1.37 CANTIDAD DE POBLACIÓN PRIVADA DE LIBERTAD ATENDIDA EN EDUCACION FORMAL POR UNIDAD PENITENCIARIA SEGÚN NIVEL Y SEXO. AÑO 2016"]
["Cuadro 3.1.38 CANTIDAD DE POBLACIÓN PRIVADA DE LIBERTAD ATENDIDA EN  EDUCACIÓN NO FORMALPOR UNIDAD PENITENCIARIA SEGÚN NIVEL Y SEXO. AÑO 2016"]
[]
["Cuadro 3.1.39 CANTIDAD DE ESTUDIANTES Y EXÁMENES RENDIDOS EN CENTROS INISA EN EL AÑO 2016"]
["Cuadro 3.1.40 GASTO PÚBLICO EN EDUCACIÓN (millones de pesos constantes de 2016)"]
["Cuadro 3.1.41 CANTIDAD DE ASPIRANTES A EDUCACIÓN NO FORMAL DE POBLACIÓN PRIVADA DE LIBERTAD POR UNIDAD PENITENCIARIA SEGÚN TIPO DE PROGRAMA Y SEXO. AÑO 2016"]
[]
["Cuadro 3.1.42 CANTIDAD DE ASPIRANTES A EDUCACIÓN FORMAL DE POBLACIÓN PRIVADA DE LIBERTAD POR UNIDAD PENITENCIARIA SEGÚN NIVEL Y SEXO. AÑO 2016"]
[]
[]
["Gráfico 3.1.1  BECAS OTORGADAS SEGÚN PROGRAMA POR AÑO LECTIVO ( Todo el país,años 2005-2016)"]
["Gráfico 3.1.2 PORCENTAJE DE BECAS OTORGADAS POR EL FONDO DE SOLIDARIDAD SEGÚN GRANDES ÁREAS POR AÑO LECTIVO 2011-2016"]
["Gráfico 3.1.3 PORCENTAJE DE BECAS OTORGADAS POR EL FONDO DE SOLIDARIDAD SEGÚN  SEXO POR AÑO LECTIVO 2011-2016"]
["Gráfico 3.1.4 BENEFICIARIOS CON EQUIPO CEIBAL POR CATEGORÍA SEGÚN AÑO LECTIVO 2007 Y 2016 "]
["Gráfico 3.1.5 CANTIDAD DE ESCUELAS ESPECIALES PÚBLICAS SEGÚN GRANDES ÁREAS (Todo el país años 1990-2016)"]
["Gráfico 3.1.6 EVOLUCIÓN DE LA CANTIDAD DE ESTABLECIMIENTOS PÚBLICOS DE EDUCACIÓN ESPECIAL POR TIPO DE DISCAPACIDAD (Todo el país años 1990-2016)"]
["Gráfico 3.1.7MATRÍCULA EN EDUCACIÓN PÚBLICA ESPECIAL SEGÚN GRANDES ÁREAS (Todo el país 1990-2016)"]
["Gráfico 3.1.8  MATRÍCULA EN EDUCACIÓN PÚBLICA ESPECIAL SEGÚN FORMAS DE ADMINISTRACÓN (Todo el país 1990-2016)"]
["Gráfico 3.1.9 ALUMNOS MATRICULADOS EN EDUCACIÓN PRIMARIA PÚBLICA POR TIPO DE DISCAPACIDAD(Todo el país años 1990-2016)"]
["Gráfico 3.1.10 MATRÍCULA DE EDUCACIÓN ESPÉCIAL PÚBLICA POR EDADES SIMPLES SEGÚN SEXO (Todo el país año 2016)"]
["Gráfico 3.1.11 EVOLUCIÓN DEL GASTO PÚBLICO EN EDUCACIÓN Y DEL PIB EN MILLONES DE PESOS CONSTANTES DEL 2016 (2004-2016)"]
["Gráfico 3.1.12 EVOLUCIÓN CONJUNTA DEL GASTO PÚBLICO EN EDUCACIÓN COMO PORCENTAJE DEL PIB Y DEL GASTO DEL GOBIERNO CENTRAL (2004-2016) "]
["Gráfico 3.1.13 DISTRIBUCIÓN DEL GASTO PÚBLICO EN EDUCACIÓN SEGÚN COMPONENTES EN 2016 (%)"]
["Gráfico 3.1.14 GASTO PÚBLICO EN EDUCACIÓN DE ANEP Y UDELAR COMO PORCENTAJE DEL PIB (2004-2016) "]
["Gráfico 3.1.15 DISTRIBUCIÓN DEL GASTO DE ANEP SEGÚN CONSEJOS DE ENSEÑANZA EN 2016 "]
["Gráfico 3.1.16  EVOLUCIÓN DEL GASTO DE ANEP SEGÚN CONSEJOS DE ENSEÑANZA EN MILLONES DE PESOS CONSTATNES EN 2016 (2004-2016)"]
["Gráfico 3.1.17 EVOLUCIÓN DEL SALARIO DOCENTE DE LOS MAESTROS 20 HORAS EFECTIVO POR GRADO A VALORES CONSTANTES DE 2016 ( 2004-2016) "]
["Gráfico 3.1.18  EVOLUCIÓN DEL SALARIO DOCENTE DE LOS PROFESORES DE PRIMER CICLO 20 HORAS EFECTIVO POR GRADO A VALORES CONSTANTES DE 2016 (2004-2016)"]
["Gráfico 3.1.19  EVOLUCIÓN DEL SALARIO DOCENTE DE LOS PROFESORES DE SEGUNDO CICLO 20 HORAS EFECTIVO POR GRADO A VALORES CONSTANTES A 2016(2004-2016)"]
["Gráfico 3.1.20 COSTO POR ALUMNO TOTAL Y POR CONSEJO DESCONCENTRADO DE LA ANEP SEGÚN AÑO LECTIVO (2004-2016) "]
["Gráfico 3.1.21 GASTO DE UDELAR SEGÚN UNIDADES EJECUTORAS EN 2016 MILLONES DE PESOS "]
[]
["Organigrama 3.1  OFERTAS EDUCATIVAS PARA EGRESADOS DE LA ESCUELA ESPECIAL."]

{"sheet":"3.1","index":73,"n_rows":1,"n_cols":1,"rows_kept":1,"cut":false,"hidden":true,"merged":[]}
["apart "]

{"sheet":" gRÁFICO 3.1.7 b","index":74,"n_rows":8,"n_cols":7,"rows_kept":8,"cut":false,"hidden":true,"merged":[]}
[]
[null,"Egresos"]
[null,null,2011,2012,2013,2014,2015]
[null,"Auxiliar de Enfermería",725,762,879,916,1098]
[null,"Auxiliar de Farmacia Hospitalaria",622,581,580,637,588]
[null,"Auxiliar de Servicio Ayudante de Cocina y Tisanería",1932,1516,1507,1772,2081]
[null,"Auxiliar de Estadística Salud y Registros Médicos",1170,1438,1392,1251,890]
[null,"Auxiliar de Laboratorio Clínico ",22,22,14,27,20]

{"sheet":"3.3","index":77,"n_rows":0,"n_cols":0,"rows_kept":0,"cut":false,"hidden":true,"merged":[]}

{"sheet":"NO FOR","index":78,"n_rows":21,"n_cols":14,"rows_kept":21,"cut":false,"hidden":true,"merged":[]}
[null,"ABRIL","MAYO","JUNIO","JULIO","AGOSTO","SEPTIEMBRE","OCTUBRE","NOVIEMBRE","PROMEDIO"]
["DSEA",155,261,256,245,256,375,206,167,240]
["MEC-PAS",206,226,233,229,221,223,236,146,215]
["MEC-CIUDAD",36,70,78,null,77,85,94,71,73,null,null,null,105]
["EDUACIOÓN NO FORMAL OTROS ",null,449,522,560,594,null,617,492,538]
["EVENTOS EDUCATIVOS",15,283,496,51,287,202,312,null,235]
["PROYECTOS CULTURALES ",43,45,81,23,9,7,44,null,36]
[null,9599,9580,9536,9644,9982,10003,9996,10024,9796]
[]
[]
[null,"ABRIL","MAYO","JUNIO","JULIO","AGOSTO","SEPTIEMBRE","OCTUBRE","NOVIEMBRE","PROMEDIO"]
[]
["DSEJA",{"$f":"B2*100/B8","v":1.6147515366183978},2.7244258872651357,2.6845637583892619,2.5404396515968477,2.5646163093568424,3.7488753373987804,2.0608243297318927,1.6660015961691939,{"$f":"J2*100/J8","v":2.4499795835034708}]
["MEC-PAS",{"$f":"B3*100/B8","v":2.1460568809250962},2.3590814196242169,2.4433724832214767,2.3745333886354212,2.2139851733119613,2.2293312006398081,2.3609443777511006,1.4565043894652834,{"$f":"J3*100/J8","v":2.1947733768885258}]
["MEC-CIUDAD",{"$f":"B4*100/B8","v":0.37503906656943431},{"$f":"C4*100/C8","v":0.7306889352818372},{"$f":"D4*100/D8","v":0.81795302013422821},null,{"$f":"F4*100/F8","v":0.77138849929873776},{"$f":"G4*100/G8","v":0.84974507647705688},{"$f":"H4*100/H8","v":0.94037615046018408},{"$f":"I4*100/I8","v":0.70830007980845966},{"$f":"J4*100/J8","v":0.74520212331563906}]
["EDUACIÓN NO FORMAL OTROS ",6,8.1,11.5,6.6,8.9,2,9.6999999999999993,{"$f":"I5*100/I8","v":4.908220271348763},8.3000000000000007,13.7]
[null,{"$f":"B13+B14+B15+B16","v":10.135847484112929},{"$f":"C13+C14+C15+C16","v":13.91419624217119},17.445889261744966,11.514973040232269,14.449989981967541,8.8279516145156443,15.062144857943178,8.7390263367916994,13.689955083707638]
["POBLACIÓN SIN COBERTURA EN EDUCACIÓN NO FORMAL",{"$f":"B19-B17","v":89.864152515887071},{"$f":"C19-C17","v":86.085803757828813},82.554110738255034,88.485026959767737,85.550010018032452,91.172048385484359,84.937855142056819,91.260973663208304,86.310044916292355]
[null,100,100,100,100,100,100,100,100,100]
[]
["* eduacion no formal otros icluye proyectos y evento sculturales ."]

{"sheet":"docnetes d","index":79,"n_rows":15,"n_cols":9,"rows_kept":15,"cut":false,"hidden":true,"merged":[]}
[null,"Primaria ","Secundaria ","CETP_UTU ","DSEJA","Programa Aprender Siempre","MEC -ciudad y no formal ","OTROS"]
["abril",23,215,11,13,22,8,45]
["mayo",28,284,22,15,36,12,54]
["junio",28,277,27,15,40,13,47]
["julio",29,291,31,16,32,16,57]
["agosto",29,291,30,15,34,13,56]
["setiembre",28,301,30,16,34,15,62]
["octubre",29,300,36,15,34,15,72]
["noviembre","sd","sd","sd","sd","sd","sd","sd"]
["Promedio de docentes",{"$f":"AVERAGE(B2:B8)","v":27.714285714285715},279.85714285714283,26.714285714285715,15,33.142857142857146,13.142857142857142,56]
["Promedio de población atendida ",349,1085,272,240,225,78,810]
["Razón docente /alumno",{"$f":"B11/B10","v":12.592783505154639},3.8769780500255235,10.181818181818182,16,6.7887931034482749,5.9347826086956523,14.464285714285714]
[]
[]
[null,{"$f":"B10*100/I15","v":6.1314791403286986},{"$f":"C10*100/I15","v":61.915297092288235},{"$f":"D10*100/I15","v":5.9102402022756007},{"$f":"E10*100/I15","v":3.3185840707964602},{"$f":"F10*100/I15","v":7.3324905183312268},{"$f":"G10*100/I15","v":2.9077117572692792},{"$f":"H10*100/I15","v":12.389380530973451},452]

{"sheet":"Cuadro 3.1.1","index":80,"n_rows":19,"n_cols":7,"rows_kept":19,"cut":false,"hidden":false,"merged":[[0,0,0,3],[2,0,2,6],[3,0,4,0],[3,1,3,3],[3,5,4,5]]}
["Ministerio de Educación y Cultura\nDirección de Educación\n"]
[]
["ESCUELAS, MAESTROS Y ALUMNOS ATENDIDOS POR EL PROGRAMA MAESTROS COMUNITARIOS SEGÚN AÑO LECTIVO. AÑO 2015"]
["AÑO LECTIVO","Escuelas",null,null,null,"Maestros comunitarios","Alumnos"]
[null,"Total","Montevideo","Resto del país","Sin dato ",null,"atendidos"]
[2005,255,97,158,0,437,9292]
[2006,252,95,157,0,433,14884]
[2007,334,101,233,0,553,18163]
[2008,334,100,234,0,533,16802]
[2009,337,101,236,0,553,16166]
[2010,337,101,236,5,553,16749]
[2011,342,104,238,3,554,15680]
[2012,327,101,226,5,539,15608]
[2013,326,101,225,0,539,16709]
[2014,318,96,208,14,539,16758]
[2015,318,"sd","sd","sd",541,14875]
[]
["Fuente: MIDES"]
["Nota: Último dato disponible"]

{"sheet":"Cuadro 3.1.2","index":81,"n_rows":21,"n_cols":6,"rows_kept":21,"cut":false,"hidden":false,"merged":[[0,0,0,3],[6,0,6,5]]}
["Ministerio de Educación y Cultura\nDirección de Educación\n"]
[]
[]
[]
[]
[]
["ESCUELAS, PROFESORES Y ALUMNOS ATENDIDOS POR EL PROGRAMA DE EDUCACIÓN FÍSICA ESCOLAR  SEGÚN AÑO LECTIVO 2015"]
["AÑO LECTIVO","Escuelas","Profesores","Inspectores","Directores","Alumnos atendidos"]
[2005,160,157,"s/d","s/d",67462]
[2006,248,238,"s/d","s/d",86473]
[2007,245,248,"s/d","s/d",88023]
[2008,605,605,"s/d","s/d",213858]
[2009,1004,973,"s/d","s/d",325164]
[2010,1016,977,"s/d","s/d",308260]
[2011,1016,977,"s/d","s/d",306318]
[2012,1016,989,"s/d","s/d",306532]
[2013,1097,1097,"s/d","s/d",306542]
[2014,1084,1087,"s/d","s/d",298404]
[2015,1090,1096,7,37,293513]
["Fuente: Asesoría técnica educación física CIEP."]
["Nota: Último dato disponible"]

{"sheet":"Cuadro 3.1.3","index":82,"n_rows":39,"n_cols":10,"rows_kept":39,"cut":false,"hidden":false,"merged":[[13,9,15,9],[14,2,14,3],[0,0,0,3],[11,0,11,8],[12,0,15,0],[12,1,15,1],[12,2,12,3],[12,6,12,8],[13,8,15,8]]}
["Ministerio de Educación y Cultura\nDirección de Educación\n"]
[]
[]
[]
[]
[]
[]
[]
[]
[]
[]
["CANTIDAD DE BECAS MEC OTROGADAS  POR NIVEL Y SEXO SEGÚN DEPARTAMENTO. (Todo el país-año 2016)"]
["DEPARTAMENTO","TOTAL","SEXO",null,null,null,"NIVEL"]
[null,null,null,null,null,null,null,null,"PRIMARIA C/B","S/d"]
[null,null,"SEXO"]
[null,null,"FEMENINO","MASCULINO","TRANS","AFRO","EMB","EMS"]
["TOTAL",{"$f":"B18+B19","v":4296},1855,2438,3,735,3720,536,40,{"$f":"J18+J19","v":21}]
["MONTEVIDEO ",{"$f":"C18+D18+E18","v":977},421,556,0,188,882,95,0,3]
["RESTO DEL PAÍS",{"$f":"SUM(B20:B37)","v":3319},1434,1882,3,547,2838,441,40,18]
["ARTIGAS",{"$f":"+C20+D20+E20+E20","v":291},131,160,0,85,236,43,12,0]
["CANELONES",{"$f":"C21+D21+E21","v":619},249,368,2,92,566,53,0,4]
["CERRO LARGO",{"$f":"C22+D22","v":163},66,97,0,33,128,33,2,0]
["COLONIA",62,33,29,0,8,56,6,0,0]
["DURAZNO",63,24,39,0,5,47,16,0,0]
["FLORES",30,13,17,0,1,24,6,0,0]
["FLORIDA",47,18,29,0,1,37,10,0,0]
["LAVALLEJA",90,34,56,0,12,72,18,0,1]
["MALDONADO",56,20,36,0,7,32,24,0,1]
["PAYSANDU",{"$f":"C29+D29+E29","v":332},156,175,1,35,287,30,15,4]
["RIO NEGRO",{"$f":"C30+D30","v":65},29,36,0,3,60,5,0,2]
["RIVERA",390,191,199,0,107,360,27,3,1]
["ROCHA",61,22,39,0,6,48,12,1,0]
["SALTO",515,226,289,0,67,436,79,0,1]
["SAN JOSE",84,43,41,0,13,75,9,0,0]
["SORIANO",119,47,72,0,9,97,22,0,0]
["TACUAREMBO",242,98,144,0,37,207,34,1,0]
["TREINTA Y TRES",90,34,56,0,26,70,14,6,4]
[]
["Fuente: MEC"]

{"sheet":"Cuadro 3.1.4","index":83,"n_rows":43,"n_cols":8,"rows_kept":43,"cut":false,"hidden":false,"merged":[[0,0,0,7],[15,0,16,7],[17,0,19,0],[18,1,19,1],[17,2,18,4],[17,5,18,7]]}
["Ministerio de Educación y Cultura\nDirección de Educación\n"]
[]
[]
[]
[]
[]
[]
[]
[]
[]
[]
[]
[]
[]
[]
["CANTIDAD DE BECAS OTORGADAS POR EL PROGRAMA COMPROMISO EDUCATIVO SEGÚN SEXO Y DEPARTAMENTO \n(Todo el país, año 2016) "]
[]
["DEPARTAMENTO",null,"SEXO",null,null,"EDUACIÓN MEDIA SUPERIOR "]
[null,"TOTAL"]
[null,null,"MUJERES","VARONES","TRANS","1º E.M.S.","2º E.M.S.","3º E.M.S."]
["TOTAL",{"$f":"B22+B23","v":7000},4459,2533,8,2964,2357,1679]
["MONTEVIDEO",{"$f":"+C22+D22+E22","v":1324},894,429,1,608,452,264]
["RESTO DEL PAÍS ",{"$f":"C23+D23+E23","v":5676},{"$f":"SUM(C24:C41)","v":3565},2104,7,2356,1905,1415]
["ARTIGAS",675,427,248,0,251,242,182]
["CANELONES",1088,705,381,2,471,365,252]
["CERRO LARGO",181,132,48,1,73,61,47]
["COLONIA",70,45,25,0,33,20,17]
["DURAZNO",60,41,19,0,23,20,17]
["FLORES",55,36,19,0,25,14,16]
["FLORIDA",132,82,50,0,66,40,26]
["LAVALLEJA",41,25,16,0,18,17,6]
["MALDONADO",83,46,36,1,30,36,17]
["PAYSANDÚ",704,425,279,0,295,219,190]
["RÍO NEGRO",154,88,66,0,64,56,34]
["RIVERA",698,471,226,1,264,242,192]
["ROCHA",161,108,52,1,84,50,27]
["SALTO",759,434,325,0,279,259,221]
["SAN JOSÉ",205,113,92,0,103,72,30]
["SORIANO",84,48,36,0,53,19,12]
["TACUAREMBÓ",419,279,139,1,167,142,110]
["TREINTA Y TRES ",107,60,47,0,57,31,19]
[]
["Fuente: Oficinas de Becas MEC"]

{"sheet":"Cuadro 3.1.5","index":84,"n_rows":30,"n_cols":4,"rows_kept":30,"cut":false,"hidden":false,"merged":[[0,0,1,3],[11,0,12,3]]}
["Ministerio de Educación y Cultura\nDirección de Educación\n"]
[]
[]
[]
[]
[]
[]
[]
[]
[]
[]
["EVOLUCIÓN DE LA CANTIDAD DE BECAS OTORGADAS POR EL FONDO DE SOLIDARIDAD\n(Todo el país, años 2002-2016)"]
[]
["AÑO ","BECAS OTORGADAS","SOLICITUDES","RELACIÓN"]
[2002,3933,7036,56]
[2003,3895,6375,61]
[2004,3694,5620,66]
[2005,3777,5511,69]
[2006,4099,5688,72]
[2007,4728,6372,74]
[2008,5728,7233,80]
[2009,6498,9943,65]
[2010,5860,8492,69]
[2011,6067,7944,76]
[2012,6677,8711,77]
[2013,6890,9199,75]
[2014,7455,10114,74]
[2015,7895,10596,75]
[2016,7942,11154,58]
["Fuente: Fondo de solidaridad "]

{"sheet":"Cuadro 3.1.6","index":85,"n_rows":39,"n_cols":9,"rows_kept":39,"cut":false,"hidden":false,"merged":[[0,0,0,3],[2,0,2,8],[3,3,3,7],[3,8,4,8],[3,2,4,2],[3,1,4,1],[3,0,4,0]]}
["Ministerio de Educación y Cultura\nDirección de Educación\n"]
[]
["CANTIDAD DE BECAS OTORGADAS POR EL CONSEJO DE FORMACIÓN DOCENTE.\nAÑO 2016"]
["TIPO DE CENTRO","BECA - Asistencia Economica. CFE","BECAS - JULIO CASTRO","BECAS CERP",null,null,null,null,"TOTAL GENERAL"]
[null,null,null,"Alimentación","Completa","Residencia","Transporte","Transporte y Alimentación"]
["TOTAL",{"$f":"SUM(B7:B38)","v":441},948,44,494,2,45,169,2143]
["Cerp Centro",null,null,3,92,0,5,31,{"$f":"SUM(B7:H7)","v":131}]
["Cerp Este",null,null,11,48,0,0,7,{"$f":"SUM(B8:H8)","v":66}]
["Cerp Litoral",null,null,3,94,0,6,20,{"$f":"SUM(B9:H9)","v":123}]
["Cerp Norte",null,null,16,108,1,5,13,143]
["Cerp Sur",null,null,6,77,1,6,75,165]
["Cerp Suroeste",null,null,5,75,0,23,23,126]
["IFD Artigas",5,54,null,null,null,null,null,59]
["IFD Canelones",14,48,null,null,null,null,null,62]
["IFD Carmelo",11,22,null,null,null,null,null,33]
["IFD de la Costa",7,10,null,null,null,null,null,17]
["IFD Durazno",1,30,null,null,null,null,null,31]
["IFD Florida",5,34,null,null,null,null,null,39]
["IFD Fray Bentos",1,13,null,null,null,null,null,14]
["IFD Maldonado",0,38,null,null,null,null,null,38]
["IFD Melo",61,115,null,null,null,null,null,176]
["IFD Mercedes",27,37,null,null,null,null,null,64]
["IFD Minas",11,33,null,null,null,null,null,44]
["IFD Pando",4,28,null,null,null,null,null,32]
["IFD Paysandú",47,80,null,null,null,null,null,127]
["IFD Rivera",12,92,null,null,null,null,null,104]
["IFD Rocha",4,11,null,null,null,null,null,15]
["IFD Rosario",0,12,null,null,null,null,null,12]
["IFD Salto",0,65,null,null,null,null,null,65]
["IFD San José",3,15,null,null,null,null,null,18]
["IFD San Ramón",8,38,null,null,null,null,null,46]
["IFD Tacuarembó",37,50,null,null,null,null,null,87]
["IFD Treinta y Tres",42,56,null,null,null,null,null,98]
["IFD Trinidad",6,9,null,null,null,null,null,15]
["IINN",15,58,null,null,null,null,null,73]
["INET",17,0,null,null,null,null,null,17]
["IPA",84,0,null,null,null,null,null,84]
["IFES",19,0,null,null,null,null,null,19]
["Fuente: Consejo de Formación Docente"]

{"sheet":"Cuadro 3.1.7","index":86,"n_rows":16,"n_cols":9,"rows_kept":16,"cut":false,"hidden":false,"merged":[[0,0,0,3],[4,0,4,8],[5,0,6,0],[5,1,6,1],[5,2,6,2],[5,3,5,4],[5,6,6,6],[5,7,6,7]]}
["Ministerio de Educación y Cultura\nDirección de Educación\n"]
[]
[]
[]
["BECAS DEL PROGRAMA URUGUAY ESTUDIA POR MODALIDAD SEGÚN AÑO LECTIVO.\nAÑO 2015"]
["AÑO","TOTAL","EP","EMB",null,"Cursos","Magisterio y Profesorado","Tutorias culminación EMS","Cantidad de grupos"]
[null,null,null,"CES","CETP (UTU)","PUE-COCAP",null,null,"CES Tutoreado"]
[2009,533,"              s/d","s/d",80,"n/c",139,314,"n/c"]
[2010,2074,937,"s/d",963,"n/c","s/d",154,20]
[2011,2701,1026,"s/d",1406,"n/c","s/d",248,21]
[2012,3450,1000,654,1000,29,600,124,43]
[2013,4966,899,370,3000,63,373,261,"s/d"]
[2014,5025,907,552,3235,31,50,250,"sd"]
[2015,5097,907,1500,2500,0,38,220,62]
["Fuente  Educación No Formal MEC"]
["Nota: Último dato disponible"]

{"sheet":"Cuadro 3.1.8","index":87,"n_rows":27,"n_cols":3,"rows_kept":27,"cut":false,"hidden":false,"merged":[[0,0,0,2],[7,0,8,1],[26,0,26,1]]}
["Ministerio de Educación y Cultura\nDirección de Educación\n"]
[]
[]
[]
[]
[]
[]
["CANTIDAD DE BENEFICIARIOS  POR EL PROGRAMA RUMBO \n(Todo el país -año 2016)"]
[]
["Departamento","GRUPOS","MATRÍCULA"]
["Total ",{"$f":"SUM(B12:B26)","v":47},{"$f":"SUM(C12:C26)","v":1232}]
["MONTEVIDEO ",13,377]
["ARTIGAS ",2,66]
["CANELONES",11,297]
["CERRO LARGO ",3,71]
["COLONIA ",{"$f":"B17+B18","v":2},57]
["Florida",1,34]
["Lavalleja",1,25]
["Maldonado",1,20]
[]
["Paysandú",1,21]
["Rocha",1,29]
["SALTO ",5,99]
["SAN JOSE",{"$f":"B25+B26","v":3},52]
["SORIANO",2,57]
["Tacuarembó",1,27]
["Funte: CETP -UTU"]

{"sheet":"Cuadro 3.1.9","index":88,"n_rows":28,"n_cols":4,"rows_kept":28,"cut":false,"hidden":false,"merged":[[0,0,0,3],[3,0,3,3],[4,2,4,3]]}
["Ministerio de Educación y Cultura\nDirección de Educación\n"]
[]
[]
["Cantidad de Alfabetizados digitalmente (Todo el país -año 2016)"]
[null,null,"SEXO"]
[null,"ALFABETIZADOS ","MUJERES ","HOMBRES "]
["Total ",{"$f":"SUM(B8:B9)","v":8817},{"$f":"SUM(C8:C9)","v":6190},{"$f":"SUM(D8:D9)","v":2627}]
["Montevideo ",565,407,158]
["Resto del País ",{"$f":"SUM( B10:B27)","v":8252},{"$f":"SUM( C10:C27)","v":5783},{"$f":"SUM( D10:D27)","v":2469}]
["Artigas",{"$f":"+C10+D10","v":603},437,166]
["Canelones",746,568,178]
["Cerro Largo",604,417,187]
["Colonia",411,302,109]
["Durazno",477,319,158]
["Flores",362,267,95]
["Florida",1040,649,391]
["Lavalleja",324,239,85]
["Maldonado",554,368,186]
["Paysandú",249,171,78]
["Río Negro",168,132,36]
["Rivera",333,167,166]
["Rocha",736,634,102]
["Salto",280,186,94]
["San José",607,411,196]
["Soriano",302,194,108]
["Tacuarembó",108,84,24]
["Treinta y Tres",348,238,110]
["Fuente: Centros MEC"]

{"sheet":"Cuadro 3.1.10","index":89,"n_rows":50,"n_cols":3,"rows_kept":50,"cut":false,"hidden":false,"merged":[[0,0,0,2],[7,0,8,2]]}
["Ministerio de Educación y Cultura\nDirección de Educación\n"]
[]
[]
[]
[]
[]
[]
["PORCENTAJE DE BENEFICIARIOS DEL PROGRAMA YO ESTUDIO YO TRABAJO POR SEXO, ÁREA GEOGRÁFICA, EDAD Y NIVEL EDUCATIVO (Todo el país, año 2016) "]
[]
["SEXO","TOTAL ","PORCENTAJE"]
["Varón",260,40]
["Mujer",389,59.85]
["Trans",1,0.15]
["TOTAL",650,100]
["EDAD",null,"PORCENTAJE"]
["16 años",163,25.08]
["17 años",198,30.46]
["18 años",143,22]
["19 años",90,13.85]
["20 años",52,8]
["21 años",4,0.62]
["TOTAL ",650,100]
["ÁREAS GEOGRÁFICAS",null,"PORCENTAJE"]
["Montevideo",307,47.2]
["Resto del País",343,52.8]
["TOTAL",650,100]
["NIVEL EDUCATIVO",null,"PORCENTAJE"]
["Bachillerato Liceo",304,46.77]
["Bachillerato UTU",133,20.46]
["Ciclo básico Liceo",52,8]
["Ciclo básico UTU",34,5.23]
["Educación no formal",13,2]
["Magisterio o Profesorado",7,1.08]
["Terciario no universitario",21,3.23]
["Universitario",86,13.23]
["TOTAL",650,100]
["AFRODESCENDENCIA",null,"PORCENTAJE"]
["No",609,93.69]
["Si",41,6.31]
["TOTAL",650,100]
["DISCAPACIDAD",null,"PORCENTAJE"]
["No",632,97.23]
["Si",18,2.77]
["TOTAL",650,100]
["Con hijos",null,"PORCENTAJE"]
["No",641,1.3846153846153846]
["Si",9,98.615384615384613]
["TOTAL",650,100]
[]
["Fuente: MTSS"]

{"sheet":"Cuadro 3.1.11","index":90,"n_rows":22,"n_cols":2,"rows_kept":22,"cut":false,"hidden":false,"merged":[[0,0,0,1],[2,0,3,1],[4,0,4,1],[8,0,8,1],[16,0,16,1]]}
["Ministerio de Educación y Cultura\nDirección de Educación\n"]
[]
["CANTIDAD DE BENEFICIARIOS DEL PROGRAMA JÓVENES EN RED, SEGÚN SEXO, EDAD Y ÁREA GEOGRÁFICA \n(Todo el país datos historicos a 2016)"]
[]
["SEXO"]
["Varón",3189]
["Mujer",3771]
["TOTAL",6960]
["EDAD"]
["Menos de 14 años",88]
["De 14 a 16 años",2944]
["De 17 a 19 años",2434]
["De 20 a 22 años",1074]
["De 23 a 24 años",397]
["Más de 24 años",23]
["TOTAL",6960]
["ÁREAS GEOGRÁFICAS "]
["Montevideo",2847]
["Resto del país ",4113]
["TOTAL",6960]
["Fuente: Monitoreo-MIDES"]
["Nota: Se trata de la cantidad de participantes a nivel histórico a diciembre 2016"]

{"sheet":"Cuadro 3.1.12","index":91,"n_rows":22,"n_cols":3,"rows_kept":22,"cut":false,"hidden":false,"merged":[[0,0,0,3],[5,0,8,2]]}
["Ministerio de Educación y Cultura\nDirección de Educación\n"]
[]
[]
[]
[]
["CANTIDAD DE BENEFICIARIOS POR EL PROGRAMA FORTALECIMIENTO  EDUCATIVO SEGÚN SEXO Y EDAD PARA EL PERÍODO 2014.2015"]
[]
[]
[]
["SEXO",2014,2015]
["Varones ",239,219]
["Mujeres",325,301]
["TOTAL",564,520]
["EDAD",2014,2015]
["Menores de 14",29,29]
["De 14 a 29",309,287]
["De 30 a 44",103,92]
["De 45 a 59",73,66]
["60 y más",40,38]
["TOTAL","*554","*512"]
["Fuente:  Monitoreo-MIDES"]
["Nota: Para ambos años se registraron personas sin datos sobre edad. Último dato disponible"]

{"sheet":"Cuadro 3.1.13","index":92,"n_rows":34,"n_cols":2,"rows_kept":34,"cut":false,"hidden":false,"merged":[[17,0,17,1],[0,0,0,3],[8,0,8,1],[9,0,10,0],[9,1,10,1],[11,0,11,1],[14,0,14,1]]}
["Ministerio de Educación y Cultura\nDirección de Educación\n"]
[]
[]
[]
[]
[]
[]
[]
["CANTIDAD DE BENEFICIARIOS DEL PROGRAMA INTER - IN (Todo el país -año 2015)"]
["TOTAL",482]
[]
["ÁREAS"]
["Montevideo",264]
["Canelones",218]
["SEXO"]
["Hombre ",292]
["Mujer ",190]
["EDAD"]
[2,1]
[3,1]
[4,44]
[5,91]
[6,117]
[7,95]
[8,73]
[9,29]
[10,17]
[11,7]
[12,4]
[13,1]
[14,1]
[]
["Fuente: DINEM- División Monitoreo MIDES."]
["Nota: Último dato disponible"]

{"sheet":"Cuadro 3.1.14","index":93,"n_rows":23,"n_cols":4,"rows_kept":23,"cut":false,"hidden":false,"merged":[[0,0,0,3],[4,0,5,3]]}
["Ministerio de Educación y Cultura\nDirección de Educación\n"]
[]
[]
[]
["CANTIDAD DE DOCENTES Y ESTUDIANTES DEL PLAN CEIBAL POR TIPO DE INSTITUCIÓN (Todo el país año, 2016)"]
[]
["Tipo de  Institucion","Docentes","Estudiantes","Total "]
["Aulas Comunitarias",0,1562,{"$f":"B8+C8","v":1562}]
["CECAPS (MEC)",123,2009,2132]
["Centro de Formación Docente Publico",1200,13350,14550]
["Escuela Privada",33,6214,6247]
["Escuela Pública",24764,276596,301360]
["Escuela Pública Especial",1078,9083,10161]
["Inspección",40,96,136]
["Jardín Público",1537,224,1761]
["Liceo Privado",66,1192,1258]
["Liceo Público",12149,252347,264496]
["Liceos Privados Gratuitos",97,1133,1230]
["Utu",8117,105692,113809]
["Total ",{"$f":"SUM(B8:B19)","v":49204},{"$f":"SUM(C8:C19)","v":669498},{"$f":"SUM(D8:D19)","v":718702}]
[]
["Fuente: Plan Ceibal"]
["Nota: A partir del 2016 se incorporan las Escuals Públicas Especiales y los Liceos Privados Gratuitos"]

{"sheet":"Cuadro 3.1.15","index":94,"n_rows":43,"n_cols":3,"rows_kept":43,"cut":false,"hidden":false,"merged":[[0,0,0,2],[2,0,3,2]]}
["      Ministerio de Educación y Cultura\nDirección de Educación                 "]
[]
["CANTIDAD DE EQUIPOS OTORGADOS POR PLAN CEIBAL SEGÚN TIPO DE INSTITUCIÓN (Todo el país, año 2016)"]
[]
["TIPO DE INSTITUCIÓN","CANTIDAD DE EQUIPOS","CANTIDAD DE CENTROS"]
["Area Centro Ceibal",829,128]
["Aulas Comunitarias",447,44]
["Barrios De Atención Prioritaria",142,13]
["CECAPS (MEC)",429,19]
["Centro cultural",294,73]
["Centro De Enseñanza",6,3]
["Centro de Formación Docente Privado",45,2]
["Centro de Formación Docente Publico",1462,63]
["Centro de reparación",100,33]
["Centro Discapacitados",558,36]
["Centro privado",36,4]
["Centro público",1470,20]
["Centros CASI",96,36]
["Centros MEC",267,101]
["Club",110,19]
["Complejo Habitacional",106,28]
["Dependencia administrativa",1608,28]
["Empresa",715,112]
["Escuela Privada",3203,161]
["Escuela Pública",24375,2643]
["Escuela Pública Especial",968,140]
["Espacio Ceibal",141,39]
["INAU",413,35]
["Inspección",381,36]
["Jardín Privado",40,1]
["Jardín Público",7690,251]
["Liceo Privado",451,15]
["Liceo Público",3550,344]
["Liceos Privados Gratuitos",66,4]
["Otros",13,5]
["Plaza",6,4]
["Programas educativos",593,38]
["Punto Alto",43,19]
["Redes Prioritarias (INAU-CEIBAL)",52,12]
["Teaching Point",60,14]
["Utu",8431,246]
["TOTAL ",{"$f":"SUM(B6:B41)","v":59196},{"$f":"SUM(C6:C41)","v":4769}]
["Fuente: Plan Ceibal"]

{"sheet":"Cuadro 3.1.16","index":95,"n_rows":12,"n_cols":2,"rows_kept":12,"cut":false,"hidden":false,"merged":[[0,0,0,1],[2,0,3,1],[4,0,5,0],[4,1,5,1]]}
["Ministerio de Educación y Cultura\nDirección de Educación\n"]
[]
["CANTIDAD DE CENTROS QUE PARTICIPARON EN EL PROGRAMA APRENDER TODOS  (Todo el país, año 2016) "]
[]
["Subsitema","Cantidad de centros"]
[]
["CEIP ",482]
["UTU",43]
["CES",9]
["CFE",23]
["TOTAL",{"$f":"B7+B8+B9+B10","v":557}]
["Fuente: Plan Ceibal"]

{"sheet":"Cuadro 3.1.17","index":96,"n_rows":36,"n_cols":2,"rows_kept":36,"cut":false,"hidden":false,"merged":[[15,0,16,0],[15,1,16,1],[21,0,22,0],[21,1,22,1],[27,0,28,0],[27,1,28,1],[0,0,0,1],[2,0,3,1],[4,0,5,0],[4,1,5,1],[9,0,10,0],[9,1,10,1]]}
["Ministerio de Educación y Cultura\nDirección de Educación\n"]
[]
["CANTIDAD DE EQUIPOS Y LABORATORIOS TECNOLOGICOS POR SUBISTEMA (Todo el país, año 2016) "]
[]
["SUBSISTEMA","Cantidad de centros LabTeD por subsistema "]
[]
["CES ",270]
["CETP  ",82]
["TOTAL",{"$f":"B7+B8","v":352}]
["SUBSISTEMA","Cantidad de kits de robótica por subsistema entregados a 2016"]
[]
["CES ",2055]
["CETP ",484]
["CEIP ",1675]
["TOTAL",{"$f":"B12+B13+B14","v":4214}]
["SUBSISTEMA","Cantidad de Impresoras 3D por subsistema entregados a 2016"]
[]
["CES  ",53]
["CETP ",25]
["CFE ",4]
["TOTAL",{"$f":"B18+B19+B20","v":82}]
["SUBSISTEMA","Cantidad de equipos de videoconferencia instaladas por susbsistema educativo al 2016"]
[]
["CETP-UTU",110]
["CEIP",875]
["CES",272]
["TOTAL",{"$f":"B24+B25+B26","v":1257}]
["SUBSISTEMA","Cantidad de sensores físico-químicos por  subsistema entregados a 2016"]
[]
["CES ",364]
["CETP ",200]
["CEIP ",232]
["CFE ",76]
["TOTAL",{"$f":"B30+B31+B32+B33","v":872}]
["TOTAL",{"$f":"B9+B15+B21+B34+B27","v":6777}]
["Fuente: Plan Ceibal"]

{"sheet":"Cuadro 3.1.18","index":97,"n_rows":21,"n_cols":3,"rows_kept":21,"cut":false,"hidden":false,"merged":[[11,0,11,2],[12,0,13,0],[12,1,13,1],[12,2,13,2],[0,0,0,2],[3,0,4,2],[5,0,5,2],[6,0,7,0],[6,1,7,1],[6,2,7,2]]}
["Ministerio de Educación y Cultura\nDirección de Educación\n"]
[]
[]
["PLATAFORMAS EN CEIBAL PARA MATEMÁTICAS E INGLÉS SEGÚN SUBSISTEMA  (Todo el país, año 2016)"]
[]
["Ceibal en Ingles"]
["SUBSISTEMA","Estudiantes","Grupos"]
[]
["CEIP",80000,3506]
["CES/CETP-UTU",16500,700]
["TOTAL",{"$f":"B9+B10","v":96500},{"$f":"C9+C10","v":4206}]
["Plataforma adaptativa de matemáticas"]
["SUBSISTEMA","Usuarios únicos*","Ejercicios**"]
[]
["CEIP",80741,23719161]
["CES",34463,8974919]
["CETP",4068,1730628]
["TOTAL",{"$f":"B15+B16+B17","v":119272},{"$f":"SUM(C15:C17)","v":34424708}]
["Fuente: Plan Ceibal"]
["* Cantidad de usuarios registrados en 2016 por subsistema"]
["** Cantidad de ejercicios realizados por subsistema"]

{"sheet":"Cuadro 3.1.19","index":98,"n_rows":16,"n_cols":5,"rows_kept":16,"cut":false,"hidden":false,"merged":[[0,0,0,3],[3,0,3,4],[4,0,5,0],[4,1,4,3],[4,4,5,4]]}
["Ministerio de Educación y Cultura\nDirección de Educación\n"]
[]
[]
["CANTIDAD DE ALUMNOS CON ATENCIÓN EN ESCUELA ESPECIAL CON DOBLE ESCOLARIDAD POR TIPO DE DISCAPACIDAD Y MODALIDAD (Todo el país, año 2015)"]
["TIPO DE ESCUELA","MODALIDAD",null,null,"TOTAL"]
[null,"Primer Ciclo","Talleres","Talleres y otros grupos"]
["Discapacidad Intelectual",275,129,187,591]
["Trastorno Grave de Conducta",31,26,1,58]
["TEA-TGD",22,5,2,29]
["Discapacidad Auditiva",3,null,null,3]
["Discapacidad Visual",15,12,1,28]
["Discapacidad Motriz",31,null,3,34]
["RURALES",null,null,4,4]
["TOTAL",null,null,null,747]
["Fuente: CEIP. Inspección Educación Especial "]
["Nota: Último dato disponible"]

{"sheet":"Cuadro 3.1.20","index":99,"n_rows":17,"n_cols":11,"rows_kept":17,"cut":false,"hidden":false,"merged":[[0,5,0,8],[3,5,4,10],[5,6,5,9],[6,0,6,4],[7,0,7,4]]}
[null,null,null,null,null,"Ministerio de Educación y Cultura\nDirección de Educación\n"]
[]
[]
[null,null,null,null,null,"CANTIDAD DE ALUMNOS CON APOYO EN LAS ESCUELAS ESPECIALES  Y ESCOLARIZACIÓN COMPARTIDA POR NIVEL Y MODADLIDAD (Todo el País, año 2015)"]
[]
[null,null,null,null,null,null,"NIVEL"]
[null,null,null,null,null,"MODALIDAD DE ESCUELA","Jardín de Infantes","Primer Ciclo","Segundo Ciclo","Tercer Ciclo","TOTAL"]
[null,null,null,null,null,"APRENDER",null,145,142,40,327]
[null,null,null,null,null,"Comunes",null,200,129,46,375]
[null,null,null,null,null,"Práctica",null,98,61,11,170]
[null,null,null,null,null,"Tiempo Completo",null,77,26,9,112]
[null,null,null,null,null,"Tiempo Extendido",null,11,23,5,39]
[null,null,null,null,null,"Rurales",null,3,null,1,4]
[null,null,null,null,null,"Jardín de Infantes",61,null,null,null,61]
[null,null,null,null,null,"TOTAL",61,534,381,112,1088]
[null,null,null,null,null,"Fuente: CEIP. Inspección de Educación Especial"]
[null,null,null,null,null,"Nota: último dato disponible"]

{"sheet":"Cuadro 3.1.21","index":100,"n_rows":16,"n_cols":6,"rows_kept":16,"cut":false,"hidden":false,"merged":[[0,0,0,3],[4,0,4,5],[5,0,6,0],[5,1,5,4],[5,5,6,5]]}
["Ministerio de Educación y Cultura\nDirección de Educación\n"]
[]
[]
[]
["CANTIDAD DE ESTUDIANTES  DE  DIVERSAS SUB-ÁREAS APOYADOS EN ESCUELAS CENTROS DE ZONA (Todo el País, año 2015)"]
["Por  escuelas ","NIVEL",null,null,null,"TOTAL"]
[null,"Inicial","Primer Ciclo","Segundo Ciclo","Tercer Ciclo"]
["Discapacidad Intelectual",null,131,39,42,212]
["Discapacidad Visual",4,10,3,2,19]
["Discapacidad Motriz",7,12,2,"-",21]
["Trastorno Grave de Conducta",null,137,18,22,177]
["TEA-TGD",13,30,20,8,71]
["Discapacidad Auditiva",39,115,18,10,182]
["TOTAL",63,435,100,84,682]
["Fuente: CEIP. Inspección de Educación Especial"]
["Nota: último dato disponible"]

{"sheet":"Cuadro 3.1.22","index":101,"n_rows":47,"n_cols":7,"rows_kept":47,"cut":false,"hidden":false,"merged":[[40,0,40,6],[41,1,41,2],[42,1,42,2],[43,1,43,2],[33,0,33,6],[34,1,34,2],[35,1,35,2],[36,1,36,2],[37,1,37,2],[38,1,38,2],[32,1,32,2],[14,0,14,1],[15,0,15,6],[19,0,19,6],[24,0,24,6],[25,1,25,2],[26,1,26,2],[27,1,27,2],[28,1,28,2],[29,1,29,2],[30,1,30,2],[31,1,31,2],[13,0,13,1],[0,0,0,3],[4,0,4,6],[5,0,6,1],[5,2,5,5],[5,6,6,6],[7,0,7,6],[8,0,8,1],[9,0,9,1],[10,0,10,1],[11,0,11,1],[12,0,12,1]]}
["Ministerio de Educación y Cultura\nDirección de Educación\n"]
[]
[]
[]
["ESTUDIANTES ITINERADOS EN ESCUELAS DONDE SE ENCUENTRAN INSCRIPTOS POR TIPO DE DISCAPACIDAD Y NIVEL. (Todo el país, año 2015)"]
["TIPO DE ESCUELA",null,"NIVEL",null,null,null,"TOTAL"]
[null,null,"Inicial","Primer ciclo","Segundo ciclo","Tercer ciclo"]
["ESTUDIANTES CON DISCAPACIDAD INTELECTUAL"]
["APRENDER",null,27,409,129,31,{"$f":"SUM(C9:F9)","v":596}]
["Comunes",null,7,538,273,"-",818]
["Práctica",null,null,139,67,39,245]
["Tiempo Completo",null,20,139,107,12,278]
["Tiempo extendido",null,null,34,32,8,74]
["Jardín de Infantes",null,169,null,null,null,169]
["TOTAL",null,{"$f":"SUM(C9:C14)","v":223},{"$f":"SUM(D9:D13)","v":1259},{"$f":"SUM(E9:E13)","v":608},{"$f":"SUM(F9:F13)","v":90},{"$f":"SUM(G9:G14)","v":2180}]
["              ESTUDIANTES SORDOS ITINERADOS (*) Implantado"]
["Práctica",null,null,1,"1(*)","1(*)",3]
["Común ",null,null,3,2,3,8]
["TOTAL",null,null,{"$f":"D17+D18","v":4},3,4,11]
["    ITINERADOS CON TRASTORNOS AFECTIVOS-SOCIALES"]
["APRENDER",null,null,41,49,12,102]
["Comunes",null,null,87,79,23,189]
["Práctica",null,null,4,null,null,4]
["TOTAL",null,null,{"$f":"SUM(D21:D23)","v":132},{"$f":"SUM(E21:E23)","v":128},{"$f":"SUM(F21:F23)","v":35},295]
[" ITINERADOS CON TGD –TEA "]
["APRENDER",null,null,79,23,7,109]
["Comunes",null,null,21,10,11,42]
["Práctica",null,null,12,"-","-",12]
["Tiempo Completo",null,null,8,5,3,16]
["Tiempo Extendido",null,null,12,4,3,19]
["Educación Especial",null,null,14,5,2,21]
["Jardín de Infantes",23,null,null,null,null,23]
["TOTAL",23,null,146,47,26,242]
["NIÑOS  ITINERADOS  CON DISCAPACIDAD VISUAL"]
["APRENDER",3,null,9,5,4,21]
["Comunes",6,null,12,11,8,37]
["Práctica",1,null,9,3,7,20]
["Tiempo Completo",null,null,3,null,null,3]
["Jardín de Infantes",1,null,null,null,null,1]
["TOTAL",null,{"$f":"B35+B36+B37+B38+B39","v":11},{"$f":"SUM(D35:D39)","v":33},{"$f":"SUM(E35:E39)","v":19},{"$f":"SUM(F35:F39)","v":19},82]
[" NIÑOS ITINERADOS CON DISCAPACIDAD MOTRIZ "]
["Comunes",7,null,37,24,5,73]
["APRENDER",3,null,null,null,null,3]
["TOTAL",10,null,37,24,5,76]
["TOTAL GENERAL",null,{"$f":"B44+C40+B33+C15","v":267},{"$f":"D15+D19+D24+D33+D40+D44","v":1611},{"$f":"E15+E19+E24+E33+E40+E44","v":829},{"$f":"F15+F19+F24+F33+F40+F44","v":179},{"$f":"G44+G40+G33+G24+G19+G15","v":2886}]
["Fuente: CEIP.  Inspeccion de Educación Especial"]
["Nota: Último dato disponible"]

{"sheet":"Cuadro 3.1.23","index":102,"n_rows":15,"n_cols":5,"rows_kept":15,"cut":false,"hidden":false,"merged":[[13,0,13,4],[0,0,0,3],[2,0,2,4],[3,0,4,0],[3,1,3,3],[3,4,4,4]]}
["Ministerio de Educación y Cultura\nDirección de Educación\n"]
[]
["CANTIDAD DE NIÑOS ATENDIDOS POR MAESTROS DE APOYO POR CICLO Y TIPO DE ESCUELA. (Todo el país, año 2015)"]
["TIPO DE ESCUELA","CICLO",null,null,"Total"]
[null,"En primer ciclo","En segundo ciclo","En tercer ciclo"]
["APRENDER",2439,931,324,3694]
["Comunes",1488,505,122,2115]
["Práctica",291,64,23,378]
["Tiempo Completo",139,39,25,203]
["Tiempo Extendido",30,17,12,59]
["Rurales",5,"-","-",5]
["Jardín de Infantes",122,"-","-",122]
["TOTAL",4514,1556,506,6576]
["Fuente: CEIP. Inspeccion de Educación Especial"]
["Nota: Último dato disponible"]

{"sheet":"Cuadro 3.1.24.","index":103,"n_rows":18,"n_cols":2,"rows_kept":18,"cut":false,"hidden":false,"merged":[[0,0,0,1],[3,0,4,1],[14,0,14,1],[15,0,16,1]]}
["Ministerio de Educación y Cultura\nDirección de Educación\n"]
[]
[]
["TOTAL DE ESTUDIANTES ATENDIDOS EN EDUCACIÓN ESPECIAL POR TIPO DE MODALIDAD (Todo el país, año 2015)"]
[]
["MODALIDAD","CANTIDAD DE ESTUDIANTES"]
["Aulas Hospitalarias",197]
["Doble Escolaridad –Escolaridad Compartida",1835]
["Apoyo en escuelas de centros de zona (*)",682]
["Itinerado",2886]
["Apoyo en escuela común – inicial -práctica, etc",6576]
["TOTAL ",12176]
["Estudiantes matriculados en escuelas especiales  * ",6437]
["TOTAL DE NIÑO/AS ATENDIDOS POR EDUCIÓN ESPECIAL ",{"$f":"B12+B13","v":18613}]
["Fuente: CEIP Inspeccion de Educación Especial"]
["Nota: CEIP Inspección de Educación Especial 12.176 último dato disponible 2015. "]
[]
["*Procesamiento propio en base a los datos 2016 del CEIP."]

{"sheet":"Cuadro 3.1.25 ","index":104,"n_rows":18,"n_cols":4,"rows_kept":18,"cut":false,"hidden":false,"merged":[[17,0,19,3],[0,0,0,3],[2,0,2,3],[3,0,4,0],[3,1,3,2],[3,3,4,3]]}
["Ministerio de Educación y Cultura\nDirección de Educación\n"]
[]
["CANTIDAD DE JÓVENES ATENDIDOS EN INISA POR SEXO Y EDAD (Todo el país año 2016) "]
["EDAD","SEXO",null,"TOTAL"]
[null,"Femenino","Masculino"]
["13 años",1,8,9]
["14 años",3,42,45]
["15 años",14,124,138]
["16 años",20,207,227]
["17 años",25,348,373]
["18 años",19,323,342]
["19 años",7,165,172]
["20 años",0,28,28]
["21 años",0,15,15]
["22 años",0,9,9]
["Total",89,1269,1358]
["Fuente: Instituto Nacional de Inclusión Adolescente"]
["Nota: Se incluye la totalidad de la población atendida con medida socio-educativa privativa de libertad, semi-libertad y no privativa de libertad (PROMESEM y ONG en convenio), que fueron atendidos en el año 2016."]

{"sheet":"Cuadro 3.1.26","index":105,"n_rows":18,"n_cols":3,"rows_kept":18,"cut":false,"hidden":false,"merged":[[14,0,14,2],[0,0,0,3],[2,0,3,2],[5,0,5,2],[6,0,6,2],[10,0,10,2]]}
["Ministerio de Educación y Cultura\nDirección de Educación\n"]
[]
["Programa Aprender Siempre (PAS) por tipo de actividad y cantidad de propuestas. Año 2016 "]
[]
[null,"Cantidad de propuestas","Cantidad de Participantes"]
["CURSOS EN CENTROS DE PRIVACIÓN DE LIBERTAD"]
["INR"]
["Primer semestre",13,195]
["Segundo semestre",14,204]
["TOTAL",{"$f":"B8+B9","v":27},{"$f":"C8+C9","v":399}]
["INISA"]
["Primer semestre",2,21]
["Segundo semestre",6,57]
["TOTAL",{"$f":"B12+B13","v":8},{"$f":"C12+C13","v":78}]
["CURSOS EN COMUNIDAD"]
["Primer semestre",9,124]
["Segundo semestre",16,213]
["TOTAL",{"$f":"B16+B17","v":25},{"$f":"C16+C17","v":337}]

{"sheet":"Cuadro 3.1.27 ","index":106,"n_rows":26,"n_cols":2,"rows_kept":26,"cut":false,"hidden":false,"merged":[[19,0,19,1],[0,0,0,1],[3,0,4,1],[5,0,5,1],[11,0,11,1],[15,0,15,1]]}
["Ministerio de Educación y Cultura\nDirección de Educación\n"]
[]
[]
["Programa ESQUINAS DEL MAÑANA  2016 "]
[]
["CANTIDAD DE ESTUDIANTES"]
["FEMENINO",23]
["MASCULINO",41]
["TOTAL",64]
[]
[]
["DOCENTES"]
["FEMNINO ",2]
["MASCULINO",3]
["TOTAL",5]
["CANTIDAD DE TALLERES "]
["MONTEVIDEO",4]
["CANELONES",1]
["TOTAL",5]
["EGRESADOS"]
["FEMENINO",10]
["MASCULINO",16]
[]
["TOTAL",26]
[]
["Fuente  Ministerio de Industria, Energia y Minería . Unidad de Comunicación Institucional "]

{"sheet":"Cuadro 3.1.28","index":107,"n_rows":24,"n_cols":2,"rows_kept":24,"cut":false,"hidden":false,"merged":[[23,0,23,1],[0,0,0,1],[2,0,3,1],[4,0,4,1],[8,0,8,1],[14,0,14,1],[18,0,18,1]]}
["Ministerio de Educación y Cultura\nDirección de Educación\n"]
[]
["CANTIDAD DE BENEFICIARIOS DEL PROGRAMA AULAS COMUNITARIAS, SEGÚN SEXO, EDAD Y ÁREA GEOGRÁFICA \n(Todo el país datos historicos a 2016)"]
[]
["SEXO"]
["Varón",648]
["Mujer",951]
["TOTAL",1599]
["EDAD"]
["12 a 13 años",320]
["14 a 15 años",912]
["16 a 17 años",357]
["18 y más años",10]
["TOTAL",1599]
["ÁREAS GEOGRÁFICAS "]
["Montevideo",1022]
["Resto del país ",577]
["TOTAL",1599]
["MODALIDAD"]
["Modalidad A",607]
["Modalidad B",308]
["Modalidad C",684]
["TOTAL",1599]
["Fuente: Monitorio-DINEM. MIDES"]

{"sheet":"Cuadro 3.1.29","index":108,"n_rows":32,"n_cols":6,"rows_kept":32,"cut":false,"hidden":false,"merged":[[0,0,0,5],[3,0,4,5],[5,0,7,0],[5,1,5,2],[5,3,7,3],[5,4,5,5],[6,1,7,1],[6,2,7,2],[6,4,7,4],[6,5,7,5]]}
["Ministerio de Educación y Cultura\nDirección de Educación\n"]
[]
[]
["PORCENTAJE DE INSCRIPTOS SEGÚN SEXO, CANTIDAD DE EGRESADOS POR NIVEL DE SECUNDARIA, Y EDAD PROMEDIO DE EDAD SEGÚN ORGANISMO AL PROGRAMA DE CULMINACIÓN DE EDUCACIÓN MEDIA (PROCES). TODO EL PAÍS (AÑO 2016) "]
[]
["ORGANISMO","SEXO",null,"EDAD PROMEDIO","NIVEL DE SECUNDARIA"]
[null,"PORCENTAJE DE MUJERES","PORCENTAJE DE VARONES",null,"EGRESADOS DE CICLO BÁSICO","EGRESADOS DE BACHILLERATO"]
[]
["Administración Nacional de Correos (ANC)",0.73,0.27,37,17,24]
["Administración Nacional de Puertos (ANP) ",0.44,0.56000000000000005,35,4,0]
["Administración Nacional de Telecomunicaciones (ANTEL)",0.46,0.54,33,19,332]
["Administración Nacionl de Educación Pública (ANEP)",0.66,0.34,36,73,263]
["Banco de Previsión Social (BPS)",0.72,0.28000000000000003,48,0,12]
["Banco de Seguros del Estado (BSE)",0.64,0.36,42,0,38]
["Dirección General Impositiva (DGI)",0,1,42,0,1]
["Empresa BIMBO",0.15,0.85,36,19,8]
["Hospital Maciel",0.98,0.02,39,0,7]
["INIA","s/d","s/d","s/d",51,0]
["Instituto del Niño y el Adolscente (INAU)",0.42,0.57999999999999996,36,127,0]
["Intendencia de Montevideo (IM)",0.35,0.65,34,72,259]
["Intendencia de Rocha",0.56999999999999995,0.43,45,78,100]
["Intendencia y Junta Departamental de Canelones",0.49,0.51,37,3,0]
["Ministerio de Defensa Nacional (MDN)",0.83,0.17,31,1,57]
["Ministerio de Desarrollo Social (MIDES)",0.7,0.3,39,22,0]
["Ministerio de Educación y Cultura (MEC)",0.74,0.26,41,0,39]
["Ministerio de Transporte y Obras Públicas (MTOP)",0.56999999999999995,0.43,43,1,17]
["SAME 105",0,1,42,0,1]
["Sede Paysandú (ANTEL, COMEPA, MTOP, ANEP, UdelaR, IdeP)",0.67,0.33,38,0,92]
["Semipresencial",0.59,0.41,42,10,89]
["Universidad de la República (UdelaR)",0.57999999999999996,0.42,41,37,124]
["Fuente: PROCES. ANEP"]
["Nota: INIA no presenta dato por que se desarrolló en los años 2009 -2011"]

{"sheet":"Cuadro 3.1.30","index":109,"n_rows":11,"n_cols":2,"rows_kept":11,"cut":false,"hidden":false,"merged":[[0,0,0,5],[2,0,3,1],[4,0,5,0],[4,1,5,1]]}
["Ministerio de Educación y Cultura\nDirección de Educación\n"]
[]
["CANTIDAD DE JUGADORES DE LAS SUBDIVISIONES FORMATIVAS SEGÚN CONDICIÓN DE ESTUDIANTE (Todo el país, año 2016) "]
[]
["CONDICIÓN DE ESTUDIANTE","Cantidad de centros"]
[]
["Estudian",2761]
["No estudian",441]
["Sin Relevar",23]
["TOTAL",{"$f":"B7+B8+B9","v":3225}]
["Fuente: Gol al futuro"]

{"sheet":"Cuadro 3.1.31","index":110,"n_rows":10,"n_cols":7,"rows_kept":10,"cut":false,"hidden":false,"merged":[[0,0,0,6],[2,0,3,6],[4,1,5,1],[4,2,5,2],[4,3,4,4],[4,5,4,6]]}
["Ministerio de Educación y Cultura\nDirección de Educación\n"]
[]
["CANTIDAD DE BECAS OTORGADAS POR LA ANII POR TIPO DE BECA POR SEXO, MONTO Y REGIÓN\n  (Todo el país, año 2016) "]
[]
[null,"TOTAL ","Monto comprometido (U$S)","SEXO",null,"DEPARTAMENTO"]
["TIPO DE BECA",null,null,"Masculino","Femenino","Montevideo","Sin Dato"]
["Movilidad Cooperación",17,83011,12,5,15,2]
["Movilidad Capacitación ",26,177782,7,19,20,6]
["Totales",43,260793,19,24,35,8]
["Fuente: ANII."]

{"sheet":"Cuadro 3.1.32","index":111,"n_rows":13,"n_cols":2,"rows_kept":13,"cut":false,"hidden":false,"merged":[[2,0,3,1],[4,1,5,1],[0,0,0,1]]}
["Ministerio de Educación y Cultura\nDirección de Educación\n"]
[]
["CANTIDAD DE BECAS OTORGADAS POR BIENESTAR UNIVERSITARIO SEGÚN TIPO DE BECA\n   (Todo el país, año 2016) "]
[]
[null,"TOTAL "]
["TIPO DE BECA"]
["Apoyo Económico",303]
["Alojamiento",68]
["MVOTMA",144]
["Servicio de comedor",1995]
["Bonificación de Pasajes del Interior",1471]
["TOTAL",3981]
["Fuente: Bienestar Universitario."]

{"sheet":"Cuadro 3.1.33","index":112,"n_rows":8,"n_cols":2,"rows_kept":8,"cut":false,"hidden":false,"merged":[[0,0,0,1],[2,0,3,1],[4,1,5,1]]}
["Ministerio de Educación y Cultura\nDirección de Educación\n"]
[]
["CANTIDAD DE BECAS DE INCLUSIÓN SOCIOEDUCATIVA (BIS). \n   Todo el país, año 2015"]
[]
[null,"TOTAL "]
[]
["Cantidad",370]
["Fuente: Sistema de Cuidados, MIDES."]

{"sheet":"Cuadro 3.1.34","index":113,"n_rows":22,"n_cols":2,"rows_kept":22,"cut":false,"hidden":false,"merged":[[0,0,0,1],[3,0,4,1],[5,1,6,1]]}
["Ministerio de Educación y Cultura\nDirección de Educación\n"]
[]
[]
["CANTIDAD DE BECAS OTORGADAS POR FUNDACIÓN CHAMANGÁ  SEGÚN DEPARTAMENTO\n   (Todo el país, año 2016) "]
[]
[null,"TOTAL "]
["TIPO DE BECA"]
["Artigas",2]
["Canelones",2]
["Cerro Largo",1]
["Colonia",1]
["Florida",1]
["Lavalleja",2]
["Montevideo",3]
["Paysandú",2]
["Río Negro",1]
["Rivera ",1]
["Salto",1]
["Soriano",3]
["San José",1]
["Tacuarembó",1]
["TOTAL",{"$f":"SUM(B8:B21)","v":22}]

{"sheet":"Cuadro 3.1.35","index":114,"n_rows":30,"n_cols":16,"rows_kept":30,"cut":false,"hidden":false,"merged":[[3,13,3,14],[3,15,4,15],[2,0,2,15],[3,0,4,0],[3,1,4,1],[3,2,3,3],[3,4,3,5],[3,6,4,6],[3,7,3,8],[3,9,4,9],[3,10,3,11],[3,12,4,12]]}
["Ministerio de Educación y Cultura\nDirección de Educación\n"]
[]
["CANTIDAD DE PLAZAS OFRECIDAS DE EDUCACIÓN FORMAL PARA POBLACIÓN PRIVADA DE LIBERTAD POR UNIDAD PENITENCIARIA SEGÚN NIVEL Y SEXO. AÑO 2016"]
["UNIDADES PENITENCIARIAS","TOTAL","SEXO",null,"PRIMARIA",null,"TOTAL PRIMARIA","SECUNDARIA",null,"TOTAL SECUNDARIA","TERCIARIA",null,"TOTAL TERCIARIA","UTU",null,"TOTAL UTU"]
[null,null,"MASCULINO","FEMENINO","MASCULINO","FEMENINO",null,"MASCULINO","FEMENINO",null,"MASCULINO","FEMENINO",null,"MASCULINO","FEMENINO"]
["TOTAL ",{"$f":"SUM(B7:B29)","v":2718},{"$f":"SUM(C7:C29)","v":2458},{"$f":"SUM(D7:D29)","v":260},{"$f":"SUM(E7:E13,E15:E16,E18:E29)","v":454},{"$f":"SUM(F7:F13,F15:F16,F18:F29)","v":48},{"$f":"SUM(G7:G29)","v":502},{"$f":"SUM(H7:H29)","v":1828},{"$f":"SUM(I7:I29)","v":179},{"$f":"SUM(J7:J29)","v":2007},{"$f":"SUM(K7:K16,K19:K29)","v":8},{"$f":"SUM(L7:L16,L19:L29)","v":4},{"$f":"K6+L6","v":12},{"$f":"SUM(N7:N29)","v":168},{"$f":"SUM(O7:O29)","v":29},{"$f":"N6+O6","v":197}]
["UNID. N°3 LIBERTAD",{"$f":"C7+D7","v":452},{"$f":"E7+H7+K7+N7","v":452},{"$f":"F7+I7+L7+O7","v":0},62,0,{"$f":"E7+F7","v":62},389,0,{"$f":"H7+I7","v":389},1,0,{"$f":"K7+L7","v":1},0,0,{"$f":"N7+O7","v":0}]
["UNID. N°4 SANTIAGO VÁZQUEZ",{"$f":"C8+D8","v":469},{"$f":"E8+H8+K8+N8","v":469},{"$f":"F8+I8+L8+O8","v":0},141,0,{"$f":"E8+F8","v":141},325,0,{"$f":"H8+I8","v":325},3,0,{"$f":"K8+L8","v":3},0,0,{"$f":"N8+O8","v":0}]
["UNID. N°5 FEMENINO",160,0,160,0,29,29,0,110,110,0,2,2,0,19,{"$f":"N9+O9","v":19}]
["UNID. N°6 PUNTA DE RIELES",220,218,2,16,0,16,202,0,202,0,2,2,0,0,0]
["UNID. N°7 CANELONES",288,288,0,67,0,67,181,0,181,0,0,0,40,0,40]
["UNID. N°9 EL MOLINO",1,0,1,0,1,1,0,0,0,0,0,0,0,0,0]
["UNID. N°10 JUAN SOLER",62,62,0,8,0,8,54,0,54,0,0,0,0,0,0]
["UNIDAD N°11 TACUABÉ-SALTO",3,{"$f":"H14+K14+N14","v":2},{"$f":"I14+L14+O14","v":1},"S/D","S/D",0,2,1,3,0,0,0,0,0,0]
["UNIDAD N°12 CERRO CARANCHO",107,{"$f":"E15+H15+K15+N15","v":97},{"$f":"F15+I15+L15+O15","v":10},33,3,36,64,7,71,0,0,0,0,0,0]
["UNIDAD N°13 LAS ROSAS-MALDONADO",293,{"$f":"E16+H16+K16+N16","v":271},{"$f":"F16+I16+L16+O16","v":22},14,1,15,140,11,151,4,0,4,113,10,123]
["UNIDAD N°14 PIEDRA DE LOS INDIOS",0,0,{"$f":"0","v":0},"S/D","S/D",0,"S/D","S/D",0,"S/D","S/D",0,"S/D","S/D",0]
["UNIDAD N°15 CONVENTOS-CERRO LARGO",33,{"$f":"E18+H18","v":30},{"$f":"F18+I18","v":3},7,0,7,23,3,26,"S/D","S/D",0,"S/D","S/D",0]
["UNIDAD N°16 PAYSANDÚ",63,{"$f":"E19+H19+K19+N19","v":51},12,19,6,25,32,6,38,0,0,0,0,0,0]
["UNIDAD N°17 CAMPANERO-LAVALLEJA",78,75,3,0,0,0,60,3,63,0,0,0,15,0,15]
["UNIDAD N°18 DURAZNO",43,43,0,11,0,11,32,0,32,0,0,0,0,0,0]
["UNIDAD N°19 LAS CAÑITAS RIO NEGRO",48,44,4,9,0,9,35,4,39,0,0,0,0,0,0]
["UNIDAD N°20 SALTO",79,73,6,33,1,34,40,5,45,0,0,0,0,0,0]
["UNIDAD N° 21 ARTIGAS",15,14,1,0,0,0,14,1,15,0,0,0,0,0,0]
["UNIDAD N° 22 ROCHA",25,25,0,6,0,6,19,0,19,0,0,0,0,0,0]
["UNIDAD N° 23 TREINTA Y TRES",36,33,3,3,0,3,30,3,33,0,0,0,0,0,0]
["UNIDAD N° 24 \"PENSE\" MERCEDES/ SORIANO",148,129,19,9,4,13,120,15,135,0,0,0,0,0,0]
["UNIDAD N° 26 TACUAREMBÓ",52,41,11,9,3,12,32,8,40,0,0,0,0,0,0]
["UNIDAD N.º  29 FLORIDA",43,41,2,7,0,7,34,2,36,0,0,0,0,0,0]
["Fuente: INR"]

{"sheet":"Cuadro 3.1.36","index":115,"n_rows":30,"n_cols":25,"rows_kept":30,"cut":false,"hidden":false,"merged":[[3,4,3,5],[3,6,4,6],[3,7,3,8],[3,9,4,9],[3,10,3,11],[3,12,4,12],[3,22,3,23],[0,0,0,24],[3,24,4,24],[3,13,3,14],[3,15,4,15],[3,16,3,17],[3,18,4,18],[3,19,3,20],[3,21,4,21],[2,0,2,23],[3,0,4,0],[3,1,4,1],[3,2,3,3]]}
["Ministerio de Educación y Cultura\nDirección de Educación\n"]
[]
["CANTIDAD DE PLAZAS OFRECIDAS DE EDUCACIÓN FORMAL PARA POBLACIÓN PRIVADA DE LIBERTAD POR UNIDAD PENITENCIARIA SEGÚN NIVEL Y SEXO. AÑO 2016"]
["UNIDADES PENITENCIARIAS","TOTAL","SEXO",null,"PROGRAMA URUGUAY ESTUDIA",null,"TOTAL PROGRAMA URUGUAY ESTUDIA","DSEA NO FORMAL",null,"TOTAL DSEA NO FORMAL","MEC PAS",null,"TOTAL MEC PAS","MEC CIUDADANIA CULTURAL",null,"TOTAL MEC CIUDADANIA CULTURAL","CENTRO MEC",null," TOTAL CENTRO MEC","NO FORMAL OTROS",null,"TOTAL NO FORMAL OTROS","PROYECTOS EDUCATIVOS",null,"TOTAL PROYECTOS EDUCATIVOS"]
[null,null,"MASCULINO","FEMENINO","MASCULINO","FEMENINO",null,"MASCULINO","FEMENINO",null,"MASCULINO","FEMENINO",null,"MASCULINO","FEMENINO",null,"MASCULINO","FEMENINO",null,"MASCULINO","FEMENINO",null,"MASCULINO","FEMENINO"]
["TOTAL",{"$f":"SUM(B7:B29)","v":1526},{"$f":"SUM(C7:C29)","v":1079},{"$f":"SUM(D7:D29)","v":447},0,0,0,171,130,301,170,24,194,30,0,30,55,110,165,550,150,700,103,33,{"$f":"SUM(Y7:Y29)","v":136}]
["UNID. N°3 LIBERTAD",{"$f":"C7+D7","v":0},{"$f":"E7+H7+K7+N7+Q7+T7+W7","v":0},{"$f":"F7+I7+L7+O7+R7+U7+X7","v":0},0,0,{"$f":"E7+F7","v":0},0,0,0,0,0,0,0,0,{"$f":"0","v":0},0,0,0,0,0,0,0,0,0]
["UNID. N°4 SANTIAGO VÁZQUEZ",{"$f":"C8+D8","v":111},{"$f":"E8+H8+K8+N8+Q8+T8+W8","v":111},{"$f":"F8+I8+O8+U8","v":0},0,0,{"$f":"E8+F8","v":0},45,0,{"$f":"H8+I8","v":45},0,0,0,30,0,{"$f":"N8+O8","v":30},0,0,0,36,0,{"$f":"T8+U8","v":36},0,0,0]
["UNID. N°5 FEMENINO",319,0,{"$f":"F9+I9+L9+O9+R9+U9+X9","v":319},0,0,0,0,99,{"$f":"H9+I9","v":99},0,0,0,0,0,0,0,106,{"$f":"Q9+R9","v":106},0,114,{"$f":"T9+U9","v":114},0,0,{"$f":"W9+X9","v":0}]
["UNID. N°6 PUNTA DE RIELES",311,311,0,0,0,0,16,0,16,20,0,{"$f":"K10+L10","v":20},0,0,{"$f":"N10+O10","v":0},0,0,{"$f":"Q10+R10","v":0},225,0,225,50,0,{"$f":"W10+X10","v":50}]
["UNID. N°7 CANELONES",119,119,0,0,0,0,23,0,23,47,0,{"$f":"K11+L11","v":47},0,0,{"$f":"N11+O11","v":0},0,0,0,44,0,44,5,0,{"$f":"W11+X11","v":5}]
["UNID. N°9 EL MOLINO",0,0,0,0,0,0,0,0,0,0,0,0,0,0,0,0,0,0,0,0,0,0,0,0]
["UNID. N°10 JUAN SOLER",23,23,0,0,0,0,8,0,8,0,0,0,0,0,0,0,0,0,0,0,0,15,0,15]
["UNIDAD N°11 TACUABÉ-SALTO",0,0,0,0,0,0,0,0,0,0,0,0,0,0,0,0,0,0,0,0,0,0,0,0]
["UNIDAD N°12 CERRO CARANCHO",225,203,22,0,0,0,13,3,16,0,5,5,0,0,0,0,0,0,190,9,199,0,5,5]
["UNIDAD N°13 LAS ROSAS-MALDONADO",{"$f":"C16+D16","v":153},113,40,0,0,0,24,6,30,12,5,17,0,0,0,0,0,0,50,4,54,27,25,52]
["UNIDAD N°14 PIEDRA DE LOS INDIOS",0,0,0,0,0,0,0,0,0,0,0,0,0,0,0,0,0,0,0,0,0,0,0,0]
["UNIDAD N°15 CONVENTOS-CERRO LARGO",0,0,0,0,0,0,0,0,0,0,0,0,0,0,0,0,0,0,0,0,0,0,0,0]
["UNIDAD N°16 PAYSANDÚ",34,26,8,0,0,0,13,8,21,0,0,0,0,0,0,13,0,13,0,0,0,0,0,0]
["UNIDAD N°17 CAMPANERO-LAVALLEJA",5,0,5,0,0,0,0,5,5,0,0,0,0,0,0,0,0,0,0,0,0,0,0,0]
["UNIDAD N°18 DURAZNO",39,39,0,0,0,0,0,0,0,18,0,18,0,0,0,16,0,16,5,0,5,0,0,0]
["UNIDAD N°19 LAS CAÑITAS RIO NEGRO",0,0,0,0,0,0,0,0,0,0,0,0,0,0,0,0,0,0,0,0,0,0,0,0]
["UNIDAD N°20 SALTO",127,78,49,0,0,0,29,9,38,43,14,57,0,0,0,0,0,0,0,23,23,6,3,9]
["UNIDAD N° 21 ARTIGAS",0,0,0,0,0,0,0,0,0,0,0,0,0,0,0,0,0,0,0,0,0,0,0,0]
["UNIDAD N° 22 ROCHA",15,15,0,0,0,0,0,0,0,15,0,15,0,0,0,0,0,0,0,0,0,0,0,0]
["UNIDAD N° 23 TREINTA Y TRES",30,26,4,0,0,0,0,0,0,0,0,0,0,0,0,26,4,30,0,0,0,0,0,0]
["UNIDAD N° 24 \"PENSE\" MERCEDES/ SORIANO",0,0,0,0,0,0,0,0,0,0,0,0,0,0,0,0,0,0,0,0,0,0,0,0]
["UNIDAD N° 26 TACUAREMBÓ",0,0,0,0,0,0,0,0,0,0,0,0,0,0,0,0,0,0,0,0,0,0,0,0]
["UNIDAD N.º  29 FLORIDA",15,15,0,0,0,0,0,0,0,15,0,15,0,0,0,0,0,0,0,0,0,null,null,0]
["Fuente: INR"]

{"sheet":"Cuadro 3.1.37","index":116,"n_rows":30,"n_cols":16,"rows_kept":30,"cut":false,"hidden":false,"merged":[[0,0,0,24],[3,13,3,14],[3,15,4,15],[2,0,2,15],[3,0,4,0],[3,1,4,1],[3,2,3,3],[3,4,3,5],[3,6,4,6],[3,7,3,8],[3,9,4,9],[3,10,3,11],[3,12,4,12]]}
["Ministerio de Educación y Cultura\nDirección de Educación\n"]
[]
["CANTIDAD DE POBLACIÓN PRIVADA DE LIBERTAD ATENDIDA EN EDUCACION FORMAL POR UNIDAD PENITENCIARIA SEGÚN NIVEL Y SEXO. AÑO 2016"]
["UNIDADES PENITENCIARIAS","TOTAL","SEXO",null,"PRIMARIA",null,"TOTAL PRIMARIA","SECUNDARIA",null,"TOTAL SECUNDARIA","TERCIARIA",null,"TOTAL TERCIARIA","UTU",null,"TOTAL UTU"]
[null,null,"MASCULINO","FEMENINO","MASCULINO","FEMENINO",null,"MASCULINO","FEMENINO",null,"MASCULINO","FEMENINO",null,"MASCULINO","FEMENINO"]
["TOTAL",{"$f":"SUM(B7:B29)","v":2278},{"$f":"SUM(C7:C29)","v":1999},279,336,52,388,1487,194,1681,8,4,{"$f":"SUM(M7:M29)","v":12},168,29,197]
["UNID. N°3 LIBERTAD",{"$f":"C7+D7","v":410},{"$f":"E7+H7+K7++N7","v":410},{"$f":"F7+I7+L7++O7","v":0},39,0,{"$f":"E7+F7","v":39},370,0,{"$f":"H7+I7","v":370},1,0,1,0,0,{"$f":"N7+O7","v":0}]
["UNID. N°4 SANTIAGO VÁZQUEZ",{"$f":"C8+D8","v":198},{"$f":"E8+H8+K8++N8","v":198},{"$f":"F8+I8+L8+O8","v":0},91,0,{"$f":"E8+F8","v":91},104,0,{"$f":"H8+I8","v":104},3,0,{"$f":"K8+L8","v":3},0,0,{"$f":"N8+O8","v":0}]
["UNID. N°5 FEMENINO",180,0,180,0,33,33,0,126,126,0,2,2,0,19,19]
["UNID. N°6 PUNTA DE RIELES",215,213,2,16,0,16,197,0,197,0,2,2,0,0,0]
["UNID. N°7 CANELONES",265,265,0,44,0,44,181,0,181,0,0,0,40,0,40]
["UNID. N°9 EL MOLINO",1,0,1,0,1,1,0,0,0,0,0,0,0,0,0]
["UNID. N°10 JUAN SOLER",54,54,0,8,0,8,46,0,46,0,0,0,0,0,0]
["UNIDAD N°11 TACUABÉ-SALTO",3,2,1,0,0,0,2,1,3,0,0,0,0,0,0]
["UNIDAD N°12 CERRO CARANCHO",107,97,10,33,3,36,64,7,71,0,0,0,0,0,0]
["UNIDAD N°13 LAS ROSAS-MALDONADO",293,271,22,14,1,15,140,11,151,4,0,4,113,10,123]
["UNIDAD N°14 PIEDRA DE LOS INDIOS",0,0,0,0,0,0,0,0,0,0,0,0,0,0,{"$f":"0","v":0}]
["UNIDAD N°15 CONVENTOS-CERRO LARGO",28,25,3,7,0,7,18,3,21,0,0,0,0,0,{"$f":"0","v":0}]
["UNIDAD N°16 PAYSANDÚ",58,47,11,15,6,21,32,5,37,0,0,0,0,0,0]
["UNIDAD N°17 CAMPANERO-LAVALLEJA",74,67,7,7,0,7,45,7,52,0,0,0,15,0,15]
["UNIDAD N°18 DURAZNO",43,43,0,11,0,11,32,0,32,0,0,0,0,0,0]
["UNIDAD N°19 LAS CAÑITAS RIO NEGRO",44,40,4,9,0,9,31,4,35,0,0,0,0,0,0]
["UNIDAD N°20 SALTO",37,32,5,12,1,13,20,4,24,0,0,0,0,0,0]
["UNIDAD N° 21 ARTIGAS",31,30,1,0,0,0,30,1,31,0,0,0,0,0,0]
["UNIDAD N° 22 ROCHA",22,22,0,5,0,5,17,0,17,0,0,0,0,0,0]
["UNIDAD N° 23 TREINTA Y TRES",22,20,2,3,0,3,17,2,19,0,0,0,0,0,0]
["UNIDAD N° 24 \"PENSE\" MERCEDES/ SORIANO",103,86,17,7,4,11,79,13,92,0,0,0,0,0,0]
["UNIDAD N° 26 TACUAREMBÓ",47,36,11,8,3,11,28,8,36,0,0,0,0,0,0]
["UNIDAD N.º  29 FLORIDA",43,41,2,7,0,7,34,2,36,0,0,0,0,0,0]
["Fuente: INR"]

{"sheet":"Cuadro 3.1.38","index":117,"n_rows":30,"n_cols":25,"rows_kept":30,"cut":false,"hidden":false,"merged":[[3,19,3,20],[3,21,4,21],[2,0,2,24],[3,0,4,0],[3,1,4,1],[3,2,3,3],[3,4,3,5],[3,6,4,6],[3,7,3,8],[3,9,4,9],[3,10,3,11],[3,12,4,12],[3,22,3,23],[3,24,4,24],[3,13,3,14],[3,15,4,15],[3,16,3,17],[3,18,4,18]]}
["Ministerio de Educación y Cultura\nDirección de Educación\n"]
[]
["CANTIDAD DE POBLACIÓN PRIVADA DE LIBERTAD ATENDIDA EN  EDUCACIÓN NO FORMALPOR UNIDAD PENITENCIARIA SEGÚN NIVEL Y SEXO. AÑO 2016"]
["UNIDAD PENITENCIARIA","TOTAL","SEXO",null,"PROGRAMA URUGUAY ESTUDIA",null,"TOTAL PROGRAMA URUGUAY ESTUDIA","DSEA NO FORMAL",null,"TOTAL DSEA NO FORMAL","MEC PAS",null,"TOTAL MEC PAS","MEC CIUDADANIA CULTURAL",null,"TOTAL MEC CIUDADANIA CULTURAL","CENTRO MEC",null,"TOTAL CENTRO MEC","NO FORMAL OTROS",null,"TOTAL NO FORMAL OTROS ","PROYECTOS EDUCATIVOS",null,"TOTAL PROYECTOS EDUCATIVOS"]
[null,null,"MASCULINO","FEMENINO","MASCULINO","FEMENINO",null,"MASCULINO","FEMENINO",null,"MASCULINO","FEMENINO",null,"MASCULINO","FEMENINO",null,"MASCULINO","FEMENINO",null,"MASCULINO","FEMENINO",null,"MASCULINO","FEMENINO"]
["TOTAL",{"$f":"SUM(B7:B29)","v":1321},{"$f":"SUM(C7:C29)","v":918},{"$f":"SUM(D7:D29)","v":403},{"$f":"SUM(E7:E15,E18:E29)","v":0},{"$f":"SUM(F7:F15,F18:F29)","v":0},0,{"$f":"SUM(H7:H16,H19:H25,H27:H29)","v":133},{"$f":"SUM(I7:I16,I19:I25,I27:I29)","v":145},{"$f":"SUM(J7:J29)","v":278},{"$f":"SUM(K10:K16,K19:K25,K27:K29)","v":145},{"$f":"SUM(L10:L16,L19:L25,L27:L29)","v":28},{"$f":"SUM(M7:M29)","v":173},{"$f":"SUM(N8,N10:N15,N19:N22,N24:N29)","v":18},{"$f":"SUM(O8,O10:O15,O19:O22,O24:O29)","v":0},{"$f":"SUM(P7:P29)","v":18},{"$f":"SUM(Q9:Q15,Q19,Q21,Q22:Q29)","v":44},{"$f":"SUM(R9:R15,R19,R21,R22:R29)","v":83},{"$f":"Q6+R6","v":127},{"$f":"SUM(T7:T16,T19:T29)","v":484},{"$f":"SUM(U7:U16,U19:U29)","v":117},{"$f":"SUM(V7:V29)","v":601},{"$f":"SUM(W9:W16,W20,W19,W21:W28,W29)","v":94},{"$f":"SUM(X9:X16,X20,X19,X21:X28,X29)","v":30},{"$f":"SUM(Y7:Y29)","v":124}]
["UNID. N°3 LIBERTAD",{"$f":"SUM(C7+D7)","v":0},{"$f":"E7+H7+K7+N7+Q7+T7+W7","v":0},{"$f":"F7+I7+L7+O7+R7+U7+X7","v":0},0,0,{"$f":"E7+F7","v":0},0,0,0,0,0,0,0,0,0,0,0,0,0,0,0,0,0,0]
["UNID. N°4 SANTIAGO VÁZQUEZ",52,{"$f":"E8+H8+K8+N8+Q8+T8+W8","v":52},0,0,0,{"$f":"E8+F8","v":0},16,0,{"$f":"H8+I8","v":16},0,0,0,18,0,{"$f":"N8+O8","v":18},0,0,0,18,0,{"$f":"T8+U8","v":18},0,0,0]
["UNID. N°5 FEMENINO",294,0,294,0,0,0,0,118,{"$f":"H9+I9","v":118},0,0,0,0,0,0,0,79,{"$f":"Q9+R9","v":79},0,97,{"$f":"T9+U9","v":97},0,0,{"$f":"W9+X9","v":0}]
["UNID. N°6 PUNTA DE RIELES",257,{"$f":"E10+H10+K10+N10+Q10+T10+W10","v":257},0,0,0,0,16,0,16,17,0,{"$f":"K10+L10","v":17},0,0,{"$f":"N10+O10","v":0},0,0,{"$f":"Q10+R10","v":0},177,0,177,47,0,{"$f":"W10+X10","v":47}]
["UNID. N°7 CANELONES",119,119,0,0,0,0,23,0,23,47,0,{"$f":"K11+L11","v":47},0,0,{"$f":"N11+O11","v":0},0,0,0,44,0,44,5,0,5]
["UNID. N°9 EL MOLINO",0,0,0,0,0,0,0,0,0,0,0,0,0,0,0,0,0,0,0,0,0,0,0,0]
["UNID. N°10 JUAN SOLER",23,23,0,0,0,0,8,0,8,0,0,0,0,0,0,0,0,0,0,0,0,15,0,15]
["UNIDAD N°11 TACUABÉ-SALTO",0,0,0,0,0,0,0,0,0,0,0,0,0,0,0,0,0,0,0,0,0,0,0,0]
["UNIDAD N°12 CERRO CARANCHO",225,203,22,0,0,0,13,3,16,0,5,5,0,0,0,0,0,0,190,9,199,0,5,5]
["UNIDAD N°13 LAS ROSAS-MALDONADO",153,113,40,0,0,0,24,6,30,12,5,17,0,0,0,0,0,0,50,4,54,27,25,52]
["UNIDAD N°14 PIEDRA DE LOS INDIOS",0,0,0,0,0,0,0,0,0,0,0,0,0,0,0,0,0,0,0,0,0,0,0,0]
["UNIDAD N°15 CONVENTOS-CERRO LARGO",0,0,0,0,0,{"$f":"E18+F18","v":0},0,0,0,0,0,0,0,0,0,0,0,0,0,0,0,0,0,0]
["UNIDAD N°16 PAYSANDÚ",34,26,8,0,0,{"$f":"E19+F19","v":0},13,8,21,0,0,{"$f":"K19+L19","v":0},0,0,{"$f":"N19+O19","v":0},13,0,{"$f":"Q19+R19","v":13},0,0,{"$f":"T19+U19","v":0},0,0,{"$f":"W19+X19","v":0}]
["UNIDAD N°17 CAMPANERO-LAVALLEJA",27,20,7,0,0,0,10,4,14,10,3,{"$f":"K20+L20","v":13},0,0,{"$f":"N20+O20","v":0},0,0,0,0,0,{"$f":"T20+U20","v":0},0,0,{"$f":"W20+X20","v":0}]
["UNIDAD N°18 DURAZNO",39,39,0,0,0,0,0,0,0,18,0,18,0,0,0,16,0,{"$f":"Q21+R21","v":16},5,0,5,0,0,0]
["UNIDAD N°19 LAS CAÑITAS RIO NEGRO",0,0,0,0,0,0,0,0,0,0,0,0,0,0,0,0,0,{"$f":"Q22+R22","v":0},0,0,0,0,0,0]
["UNIDAD N°20 SALTO",54,26,28,0,0,0,10,6,16,16,15,31,0,0,0,0,0,0,0,7,7,0,0,0]
["UNIDAD N° 21 ARTIGAS",0,0,0,0,0,0,0,0,0,0,0,0,0,0,{"$f":"N24+O24","v":0},0,0,0,0,0,0,0,0,0]
["UNIDAD N° 22 ROCHA",13,13,0,0,0,0,0,0,0,13,0,13,0,0,{"$f":"N25+O25","v":0},0,0,0,0,0,0,0,0,0]
["UNIDAD N° 23 TREINTA Y TRES",19,15,4,0,0,0,0,0,0,0,0,0,0,0,0,15,4,19,0,0,0,0,0,0]
["UNIDAD N° 24 \"PENSE\" MERCEDES/ SORIANO",0,0,0,0,0,0,0,0,0,0,0,{"$f":"K27+L27","v":0},0,0,0,0,0,0,0,0,0,0,0,0]
["UNIDAD N° 26 TACUAREMBÓ",0,0,0,0,0,0,0,0,0,0,0,{"$f":"K28+L28","v":0},0,0,0,0,0,0,0,0,0,0,0,0]
["UNIDAD N.º  29 FLORIDA",12,{"$f":"E29+H29+K29+N29+Q29+T29+W29","v":12},{"$f":"F29+I29+L29+O29+R29+U29+X29","v":0},0,0,0,0,0,0,12,0,12,0,0,0,0,0,0,0,0,0,null,null,0]
["Fuente: INR"]

{"sheet":"Cuadro 3.1.39","index":118,"n_rows":21,"n_cols":7,"rows_kept":21,"cut":false,"hidden":false,"merged":[[17,3,17,4],[18,3,18,4],[19,3,19,4],[19,1,19,2],[13,0,13,6],[14,1,14,2],[15,1,15,2],[16,1,16,2],[17,1,17,2],[18,1,18,2],[14,5,14,6],[15,5,15,6],[16,5,16,6],[17,5,17,6],[18,5,18,6],[19,5,19,6],[0,0,0,6],[4,1,4,6],[5,0,5,6],[15,3,15,4],[16,3,16,4],[3,0,3,6],[2,0,2,6],[14,3,14,4]]}
["Ministerio de Educación y Cultura\nDirección de Educación\n"]
[]
["CANTIDAD DE ESTUDIANTES Y EXAMENES RENDIDOS EN CENTROS INISA EN EL AÑO 2016"]
["ACREDITACIÓN PRIMARIA"]
["TOTAL",27]
["SECUNDARIA"]
["CENTROS ","Cantidad de Estudiantes de Secundaria","Primer Año","Segundo Año","Tercer Año","Cuarto Año","Quinto Año"]
["SIN DATO"]
["Belloni",77,63,10,4,"-"]
["Berro",277,129,85,49,11,3]
["CIAF",40,25,11,4]
["Desafio",52,37,8,4,2,1]
["TOTAL",446,254,114,61,13,4]
["EXAMENES RENDIDOS, APROBADOS Y DESERCIONES EN SECUNDARIA "]
["CENTROS ","Examenes rendidos",null,"Examenes Aprobados",null,"Deserciones "]
["Belloni",185,null,185,null,28]
["Berro",1993,null,1993,null,65]
["CIAF",207,null,207,null,0]
["Desafio",430,null,430,null,0]
["TOTAL",2815,null,2815,null,93]
["Fuente: INISA "]

{"sheet":"Cuadro  3.1.40.","index":119,"n_rows":29,"n_cols":14,"rows_kept":29,"cut":false,"hidden":false,"merged":[[28,0,28,12],[0,0,0,3],[4,0,4,13],[25,0,25,12],[26,0,26,12],[27,0,27,12]]}
["Ministerio de Educación y Cultura\nDirección de Educación\n"]
[]
["Cuadro 3.1.40"]
[]
["GASTO PÚBLICO EN EDUCACIÓN (millones de pesos constantes de 2016)"]
[null,2004,2005,2006,2007,2008,2009,2010,2011,2012,2013,2014,2015,2016]
["TOTAL",30271.74156359864,31586.47640303419,34786.817331464248,40311.877230895472,49095.816953266069,54864.588362885108,56147.098183626396,61589.373920786216,66356.670002029612,69404.586307026286,72716.766377464635,73254.048020289119,75568.783601193616]
["Instituciones básicas del sistema educación formal",28247.064003792129,29192.78336851007,31452.092970588863,35423.767437802278,41681.098510406853,48279.054745865687,48715.562220287153,53412.073811351132,56394.865692155043,59064.29696919088,62228.327814551754,62173.208665158301,64452.278756]
["ANEP",22665.174646133972,23465.219310148575,25114.870941408048,28240.953024193408,33377.184646329733,38725.31544177387,38965.47326221018,42585.519549528603,45097.487187173399,47482.897677969137,49682.558868792417,49277.91095219885,51436.701398999998]
["UDELAR",5581.8893576581595,5727.564058361495,6337.2220291808162,7182.8144136088667,8303.913864077118,9553.7393040918214,9750.0889580769708,10826.554261822534,11297.378504981642,11568.427527834161,12104.010602545108,12473.377592264005,12607.432595]
["UTEC",0,0,0,0,0,0,0,0,0,12.971763387583453,441.75834321423264,421.92012069544143,408.14476200000001]
["Administración Central e Inciso 21",1439.5431282599966,1606.9605559207785,2365.4494291722785,2523.8529404322926,2910.3602737174033,2837.4181260171731,3339.42391999143,3802.127931791526,5385.6680210361292,5516.4719032351186,5377.4447102049644,5782.3070756720072,4925.5525154061197]
["Educación policial y militar",857.66095906675116,956.64964312509176,1057.5977514011909,1246.9429016743566,1334.0689928721963,1376.6656021728477,1522.1542283810556,1553.9453039507914,2075.4232802568299,2149.2970519815726,2006.6432765245822,2168.3900718632722,803.80633340611996]
["Otros Administración Central (1)",152.25900036970916,198.72364983895568,404.99182265691962,348.12442057687673,564.26237429555249,359.69766443147728,576.998750486831,855.43327686826149,1953.3909328695065,1986.403896679019,1926.5927879457829,1962.4250125569226,2550.2161919999999]
["Partidas del inciso 21 con destino a educación (2)",429.62316882353622,451.58726295673108,902.85985511416811,928.78561818105925,1012.0289065496547,1101.0548594128429,1240.270941123543,1392.7493509724727,1356.8538079097925,1380.770954574527,1444.2086457345995,1651.4919912518119,1571.52999]
["Educación no formal inicial (Centros CAIF) y CENFORES",309.00688517922521,417.77047617770484,525.39027344662452,616.28196800469277,1036.6443544426477,1183.8009068105537,1174.3830538963675,1461.6955746859239,1826.4859550567191,2051.8728473507567,1980.3517198626225,2110.4446037567536,2485.8039010000002]
["Ciencia y Tecnología",276.1275463672909,368.96200242563657,443.88465825647802,657.31766786926744,646.95565191967489,452.10112597998693,504.22758078283204,609.82713260738558,697.88084773805917,692.96236764464516,788.16257702690757,749.12483085194287,879.1584812000001]
["MEC (3)",239.49867804063587,274.72297329084989,323.10130644060871,527.14312850993178,353.55217748066468,172.71043094410305,185.58570939535011,161.58125057526544,205.20054906270846,186.81718558960722,202.07138263382564,179.64454627303593,190.72971200000001]
["PEDECIBA, Instituto Pasteur, ANII (4)",36.628868326655009,94.239029134786662,120.78335181586935,130.17453935933557,293.40347443901021,279.39069503588388,318.64187138748184,448.24588203212011,492.68029867535074,506.14518205503788,586.09119439308188,569.480284578907,688.42876920000003]
["Plan Ceibal",0,0,0,1090.6572167869433,2636.6613786490511,1755.9400942782538,1992.9249419586909,1850.3037576909367,1598.5464399105474,1629.2534568341312,1614.3613756416937,1728.8065228031612,2138.453309]
["Incentivo a la demanda educativa en secundaria",0,0,0,0,184.09678413043684,356.27336393345684,420.57646670991198,453.34571265939081,453.22304613311769,449.72876277074658,439.47547408710011,404.42675966484029,517.69227315000001]
["Donaciones especiales",0,0,0,0,0,0,0,0,0,0,288.64270608959998,305.72956238211947,169.84436543749999]
[]
["Fuente: Elaboración propia en base a datos del MEF e INE."]
["Notas:"]
["(1) Se incluyen gastos en Dirección de Educación del MEC, ISEF, capacitación laboral, Centro de Diseño Industrial, escuelas de formación artística y otros componentes considerados en MIDES-DINEM (2006): \"Identificación y análisis del gasto público social en Uruguay 2002-2005\". Además, se incluye el subsidio al boleto estudiantil que realiza el MTOP."]
["(2) Incluye subsidios a escuelas para niños con capacidades especiales, rentas afectadas al Fondo de Solidaridad y al Fondo de Reconversión Laboral.\n"]
["(3) Se considera la Dirección Nacional de Ciencia y Tecnología (DINACYT) y el Clemente Estable. La baja de recursos se explica por la finalización del Programa de Desarrollo Tecnológico (PDT) y el traspaso de algunos programas a la ANII."]
["(4) Del presupuesto de la ANII se toma en cuenta solo el componente 2, de fortalecimiento y orientación de la investigación.\n"]

{"sheet":"Cuadro 3.1.41","index":120,"n_rows":30,"n_cols":16369,"rows_kept":30,"cut":false,"hidden":false,"merged":[[0,32,0,35],[0,48,0,51],[0,64,0,67],[3,19,3,20],[3,22,3,23],[2,0,2,24],[3,0,4,0],[3,1,4,1],[3,2,3,3],[3,4,3,5],[3,7,3,8],[3,10,3,11],[3,13,3,14],[3,15,4,15],[3,16,3,17],[0,320,0,323],[0,336,0,339],[0,352,0,355],[0,368,0,371],[0,384,0,387],[0,240,0,243],[0,256,0,259],[0,272,0,275],[0,288,0,291],[0,304,0,307],[0,160,0,163],[0,176,0,179],[0,192,0,195],[0,208,0,211],[0,224,0,227],[0,80,0,83],[0,96,0,99],[0,112,0,115],[0,128,0,131],[0,144,0,147],[0,640,0,643],[0,656,0,659],[0,672,0,675],[0,688,0,691],[0,704,0,707],[0,560,0,563],[0,576,0,579],[0,592,0,595],[0,608,0,611],[0,624,0,627],[0,480,0,483],[0,496,0,499],[0,512,0,515],[0,528,0,531],[0,544,0,547],[0,400,0,403],[0,416,0,419],[0,432,0,435],[0,448,0,451],[0,464,0,467],[0,960,0,963],[0,976,0,979],[0,992,0,995],[0,1008,0,1011],[0,1024,0,1027],[0,880,0,883],[0,896,0,899],[0,912,0,915],[0,928,0,931],[0,944,0,947],[0,800,0,803],[0,816,0,819],[0,832,0,835],[0,848,0,851],[0,864,0,867],[0,720,0,723],[0,736,0,739],[0,752,0,755],[0,768,0,771],[0,784,0,787],[0,1280,0,1283],[0,1296,0,1299],[0,1312,0,1315],[0,1328,0,1331],[0,1344,0,1347],[0,1200,0,1203],[0,1216,0,1219],[0,1232,0,1235],[0,1248,0,1251],[0,1264,0,1267],[0,1120,0,1123],[0,1136,0,1139],[0,1152,0,1155],[0,1168,0,1171],[0,1184,0,1187],[0,1040,0,1043],[0,1056,0,1059],[0,1072,0,1075],[0,1088,0,1091],[0,1104,0,1107],[0,1600,0,1603],[0,1616,0,1619],[0,1632,0,1635],[0,1648,0,1651],[0,1664,0,1667],[0,1520,0,1523],[0,1536,0,1539],[0,1552,0,1555],[0,1568,0,1571],[0,1584,0,1587],[0,1440,0,1443],[0,1456,0,1459],[0,1472,0,1475],[0,1488,0,1491],[0,1504,0,1507],[0,1360,0,1363],[0,1376,0,1379],[0,1392,0,1395],[0,1408,0,1411],[0,1424,0,1427],[0,1920,0,1923],[0,1936,0,1939],[0,1952,0,1955],[0,1968,0,1971],[0,1984,0,1987],[0,1840,0,1843],[0,1856,0,1859],[0,1872,0,1875],[0,1888,0,1891],[0,1904,0,1907],[0,1760,0,1763],[0,1776,0,1779],[0,1792,0,1795],[0,1808,0,1811],[0,1824,0,1827],[0,1680,0,1683],[0,1696,0,1699],[0,1712,0,1715],[0,1728,0,1731],[0,1744,0,1747],[0,2240,0,2243],[0,2256,0,2259],[0,2272,0,2275],[0,2288,0,2291],[0,2304,0,2307],[0,2160,0,2163],[0,2176,0,2179],[0,2192,0,2195],[0,2208,0,2211],[0,2224,0,2227],[0,2080,0,2083],[0,2096,0,2099],[0,2112,0,2115],[0,2128,0,2131],[0,2144,0,2147],[0,2000,0,2003],[0,2016,0,2019],[0,2032,0,2035],[0,2048,0,2051],[0,2064,0,2067],[0,2560,0,2563],[0,2576,0,2579],[0,2592,0,2595],[0,2608,0,2611],[0,2624,0,2627],[0,2480,0,2483],[0,2496,0,2499],[0,2512,0,2515],[0,2528,0,2531],[0,2544,0,2547],[0,2400,0,2403],[0,2416,0,2419],[0,2432,0,2435],[0,2448,0,2451],[0,2464,0,2467],[0,2320,0,2323],[0,2336,0,2339],[0,2352,0,2355],[0,2368,0,2371],[0,2384,0,2387],[0,2880,0,2883],[0,2896,0,2899],[0,2912,0,2915],[0,2928,0,2931],[0,2944,0,2947],[0,2800,0,2803],[0,2816,0,2819],[0,2832,0,2835],[0,2848,0,2851],[0,2864,0,2867],[0,2720,0,2723],[0,2736,0,2739],[0,2752,0,2755],[0,2768,0,2771],[0,2784,0,2787],[0,2640,0,2643],[0,2656,0,2659],[0,2672,0,2675],[0,2688,0,2691],[0,2704,0,2707],[0,3200,0,3203],[0,3216,0,3219],[0,3232,0,3235],[0,3248,0,3251],[0,3264,0,3267],[0,3120,0,3123],[0,3136,0,3139],[0,3152,0,3155],[0,3168,0,3171],[0,3184,0,3187],[0,3040,0,3043],[0,3056,0,3059],[0,3072,0,3075],[0,3088,0,3091],[0,3104,0,3107],[0,2960,0,2963],[0,2976,0,2979],[0,2992,0,2995],[0,3008,0,3011],[0,3024,0,3027],[0,3520,0,3523],[0,3536,0,3539],[0,3552,0,3555],[0,3568,0,3571],[0,3584,0,3587],[0,3440,0,3443],[0,3456,0,3459],[0,3472,0,3475],[0,3488,0,3491],[0,3504,0,3507],[0,3360,0,3363],[0,3376,0,3379],[0,3392,0,3395],[0,3408,0,3411],[0,3424,0,3427],[0,3280,0,3283],[0,3296,0,3299],[0,3312,0,3315],[0,3328,0,3331],[0,3344,0,3347],[0,3840,0,3843],[0,3856,0,3859],[0,3872,0,3875],[0,3888,0,3891],[0,3904,0,3907],[0,3760,0,3763],[0,3776,0,3779],[0,3792,0,3795],[0,3808,0,3811],[0,3824,0,3827],[0,3680,0,3683],[0,3696,0,3699],[0,3712,0,3715],[0,3728,0,3731],[0,3744,0,3747],[0,3600,0,3603],[0,3616,0,3619],[0,3632,0,3635],[0,3648,0,3651],[0,3664,0,3667],[0,4160,0,4163],[0,4176,0,4179],[0,4192,0,4195],[0,4208,0,4211],[0,4224,0,4227],[0,4080,0,4083],[0,4096,0,4099],[0,4112,0,4115],[0,4128,0,4131],[0,4144,0,4147],[0,4000,0,4003],[0,4016,0,4019],[0,4032,0,4035],[0,4048,0,4051],[0,4064,0,4067],[0,3920,0,3923],[0,3936,0,3939],[0,3952,0,3955],[0,3968,0,3971],[0,3984,0,3987],[0,4480,0,4483],[0,4496,0,4499],[0,4512,0,4515],[0,4528,0,4531],[0,4544,0,4547],[0,4400,0,4403],[0,4416,0,4419],[0,4432,0,4435],[0,4448,0,4451],[0,4464,0,4467],[0,4320,0,4323],[0,4336,0,4339],[0,4352,0,4355],[0,4368,0,4371],[0,4384,0,4387],[0,4240,0,4243],[0,4256,0,4259],[0,4272,0,4275],[0,4288,0,4291],[0,4304,0,4307],[0,4800,0,4803],[0,4816,0,4819],[0,4832,0,4835],[0,4848,0,4851],[0,4864,0,4867],[0,4720,0,4723],[0,4736,0,4739],[0,4752,0,4755],[0,4768,0,4771],[0,4784,0,4787],[0,4640,0,4643],[0,4656,0,4659],[0,4672,0,4675],[0,4688,0,4691],[0,4704,0,4707],[0,4560,0,4563],[0,4576,0,4579],[0,4592,0,4595],[0,4608,0,4611],[0,4624,0,4627],[0,5120,0,5123],[0,5136,0,5139],[0,5152,0,5155],[0,5168,0,5171],[0,5184,0,5187],[0,5040,0,5043],[0,5056,0,5059],[0,5072,0,5075],[0,5088,0,5091],[0,5104,0,5107],[0,4960,0,4963],[0,4976,0,4979],[0,4992,0,4995],[0,5008,0,5011],[0,5024,0,5027],[0,4880,0,4883],[0,4896,0,4899],[0,4912,0,4915],[0,4928,0,4931],[0,4944,0,4947],[0,5440,0,5443],[0,5456,0,5459],[0,5472,0,5475],[0,5488,0,5491],[0,5504,0,5507],[0,5360,0,5363],[0,5376,0,5379],[0,5392,0,5395],[0,5408,0,5411],[0,5424,0,5427],[0,5280,0,5283],[0,5296,0,5299],[0,5312,0,5315],[0,5328,0,5331],[0,5344,0,5347],[0,5200,0,5203],[0,5216,0,5219],[0,5232,0,5235],[0,5248,0,5251],[0,5264,0,5267],[0,5760,0,5763],[0,5776,0,5779],[0,5792,0,5795],[0,5808,0,5811],[0,5824,0,5827],[0,5680,0,5683],[0,5696,0,5699],[0,5712,0,5715],[0,5728,0,5731],[0,5744,0,5747],[0,5600,0,5603],[0,5616,0,5619],[0,5632,0,5635],[0,5648,0,5651],[0,5664,0,5667],[0,5520,0,5523],[0,5536,0,5539],[0,5552,0,5555],[0,5568,0,5571],[0,5584,0,5587],[0,6080,0,6083],[0,6096,0,6099],[0,6112,0,6115],[0,6128,0,6131],[0,6144,0,6147],[0,6000,0,6003],[0,6016,0,6019],[0,6032,0,6035],[0,6048,0,6051],[0,6064,0,6067],[0,5920,0,5923],[0,5936,0,5939],[0,5952,0,5955],[0,5968,0,5971],[0,5984,0,5987],[0,5840,0,5843],[0,5856,0,5859],[0,5872,0,5875],[0,5888,0,5891],[0,5904,0,5907],[0,6400,0,6403],[0,6416,0,6419],[0,6432,0,6435],[0,6448,0,6451],[0,6464,0,6467],[0,6320,0,6323],[0,6336,0,6339],[0,6352,0,6355],[0,6368,0,6371],[0,6384,0,6387],[0,6240,0,6243],[0,6256,0,6259],[0,6272,0,6275],[0,6288,0,6291],[0,6304,0,6307],[0,6160,0,6163],[0,6176,0,6179],[0,6192,0,6195],[0,6208,0,6211],[0,6224,0,6227],[0,6720,0,6723],[0,6736,0,6739],[0,6752,0,6755],[0,6768,0,6771],[0,6784,0,6787],[0,6640,0,6643],[0,6656,0,6659],[0,6672,0,6675],[0,6688,0,6691],[0,6704,0,6707],[0,6560,0,6563],[0,6576,0,6579],[0,6592,0,6595],[0,6608,0,6611],[0,6624,0,6627],[0,6480,0,6483],[0,6496,0,6499],[0,6512,0,6515],[0,6528,0,6531],[0,6544,0,6547],[0,7040,0,7043],[0,7056,0,7059],[0,7072,0,7075],[0,7088,0,7091],[0,7104,0,7107],[0,6960,0,6963],[0,6976,0,6979],[0,6992,0,6995],[0,7008,0,7011],[0,7024,0,7027],[0,6880,0,6883],[0,6896,0,6899],[0,6912,0,6915],[0,6928,0,6931],[0,6944,0,6947],[0,6800,0,6803],[0,6816,0,6819],[0,6832,0,6835],[0,6848,0,6851],[0,6864,0,6867],[0,7360,0,7363],[0,7376,0,7379],[0,7392,0,7395],[0,7408,0,7411],[0,7424,0,7427],[0,7280,0,7283],[0,7296,0,7299],[0,7312,0,7315],[0,7328,0,7331],[0,7344,0,7347],[0,7200,0,7203],[0,7216,0,7219],[0,7232,0,7235],[0,7248,0,7251],[0,7264,0,7267],[0,7120,0,7123],[0,7136,0,7139],[0,7152,0,7155],[0,7168,0,7171],[0,7184,0,7187],[0,7680,0,7683],[0,7696,0,7699],[0,7712,0,7715],[0,7728,0,7731],[0,7744,0,7747],[0,7600,0,7603],[0,7616,0,7619],[0,7632,0,7635],[0,7648,0,7651],[0,7664,0,7667],[0,7520,0,7523],[0,7536,0,7539],[0,7552,0,7555],[0,7568,0,7571],[0,7584,0,7587],[0,7440,0,7443],[0,7456,0,7459],[0,7472,0,7475],[0,7488,0,7491],[0,7504,0,7507],[0,8000,0,8003],[0,8016,0,8019],[0,8032,0,8035],[0,8048,0,8051],[0,8064,0,8067],[0,7920,0,7923],[0,7936,0,7939],[0,7952,0,7955],[0,7968,0,7971],[0,7984,0,7987],[0,7840,0,7843],[0,7856,0,7859],[0,7872,0,7875],[0,7888,0,7891],[0,7904,0,7907],[0,7760,0,7763],[0,7776,0,7779],[0,7792,0,7795],[0,7808,0,7811],[0,7824,0,7827],[0,8320,0,8323],[0,8336,0,8339],[0,8352,0,8355],[0,8368,0,8371],[0,8384,0,8387],[0,8240,0,8243],[0,8256,0,8259],[0,8272,0,8275],[0,8288,0,8291],[0,8304,0,8307],[0,8160,0,8163],[0,8176,0,8179],[0,8192,0,8195],[0,8208,0,8211],[0,8224,0,8227],[0,8080,0,8083],[0,8096,0,8099],[0,8112,0,8115],[0,8128,0,8131],[0,8144,0,8147],[0,8640,0,8643],[0,8656,0,8659],[0,8672,0,8675],[0,8688,0,8691],[0,8704,0,8707],[0,8560,0,8563],[0,8576,0,8579],[0,8592,0,8595],[0,8608,0,8611],[0,8624,0,8627],[0,8480,0,8483],[0,8496,0,8499],[0,8512,0,8515],[0,8528,0,8531],[0,8544,0,8547],[0,8400,0,8403],[0,8416,0,8419],[0,8432,0,8435],[0,8448,0,8451],[0,8464,0,8467],[0,8960,0,8963],[0,8976,0,8979],[0,8992,0,8995],[0,9008,0,9011],[0,9024,0,9027],[0,8880,0,8883],[0,8896,0,8899],[0,8912,0,8915],[0,8928,0,8931],[0,8944,0,8947],[0,8800,0,8803],[0,8816,0,8819],[0,8832,0,8835],[0,8848,0,8851],[0,8864,0,8867],[0,8720,0,8723],[0,8736,0,8739],[0,8752,0,8755],[0,8768,0,8771],[0,8784,0,8787],[0,9280,0,9283],[0,9296,0,9299],[0,9312,0,9315],[0,9328,0,9331],[0,9344,0,9347],[0,9200,0,9203],[0,9216,0,9219],[0,9232,0,9235],[0,9248,0,9251],[0,9264,0,9267],[0,9120,0,9123],[0,9136,0,9139],[0,9152,0,9155],[0,9168,0,9171],[0,9184,0,9187],[0,9040,0,9043],[0,9056,0,9059],[0,9072,0,9075],[0,9088,0,9091],[0,9104,0,9107],[0,9600,0,9603],[0,9616,0,9619],[0,9632,0,9635],[0,9648,0,9651],[0,9664,0,9667],[0,9520,0,9523],[0,9536,0,9539],[0,9552,0,9555],[0,9568,0,9571],[0,9584,0,9587],[0,9440,0,9443],[0,9456,0,9459],[0,9472,0,9475],[0,9488,0,9491],[0,9504,0,9507],[0,9360,0,9363],[0,9376,0,9379],[0,9392,0,9395],[0,9408,0,9411],[0,9424,0,9427],[0,9920,0,9923],[0,9936,0,9939],[0,9952,0,9955],[0,9968,0,9971],[0,9984,0,9987],[0,9840,0,9843],[0,9856,0,9859],[0,9872,0,9875],[0,9888,0,9891],[0,9904,0,9907],[0,9760,0,9763],[0,9776,0,9779],[0,9792,0,9795],[0,9808,0,9811],[0,9824,0,9827],[0,9680,0,9683],[0,9696,0,9699],[0,9712,0,9715],[0,9728,0,9731],[0,9744,0,9747],[0,10240,0,10243],[0,10256,0,10259],[0,10272,0,10275],[0,10288,0,10291],[0,10304,0,10307],[0,10160,0,10163],[0,10176,0,10179],[0,10192,0,10195],[0,10208,0,10211],[0,10224,0,10227],[0,10080,0,10083],[0,10096,0,10099],[0,10112,0,10115],[0,10128,0,10131],[0,10144,0,10147],[0,10000,0,10003],[0,10016,0,10019],[0,10032,0,10035],[0,10048,0,10051],[0,10064,0,10067],[0,10560,0,10563],[0,10576,0,10579],[0,10592,0,10595],[0,10608,0,10611],[0,10624,0,10627],[0,10480,0,10483],[0,10496,0,10499],[0,10512,0,10515],[0,10528,0,10531],[0,10544,0,10547],[0,10400,0,10403],[0,10416,0,10419],[0,10432,0,10435],[0,10448,0,10451],[0,10464,0,10467],[0,10320,0,10323],[0,10336,0,10339],[0,10352,0,10355],[0,10368,0,10371],[0,10384,0,10387],[0,10880,0,10883],[0,10896,0,10899],[0,10912,0,10915],[0,10928,0,10931],[0,10944,0,10947],[0,10800,0,10803],[0,10816,0,10819],[0,10832,0,10835],[0,10848,0,10851],[0,10864,0,10867],[0,10720,0,10723],[0,10736,0,10739],[0,10752,0,10755],[0,10768,0,10771],[0,10784,0,10787],[0,10640,0,10643],[0,10656,0,10659],[0,10672,0,10675],[0,10688,0,10691],[0,10704,0,10707],[0,11200,0,11203],[0,11216,0,11219],[0,11232,0,11235],[0,11248,0,11251],[0,11264,0,11267],[0,11120,0,11123],[0,11136,0,11139],[0,11152,0,11155],[0,11168,0,11171],[0,11184,0,11187],[0,11040,0,11043],[0,11056,0,11059],[0,11072,0,11075],[0,11088,0,11091],[0,11104,0,11107],[0,10960,0,10963],[0,10976,0,10979],[0,10992,0,10995],[0,11008,0,11011],[0,11024,0,11027],[0,11520,0,11523],[0,11536,0,11539],[0,11552,0,11555],[0,11568,0,11571],[0,11584,0,11587],[0,11440,0,11443],[0,11456,0,11459],[0,11472,0,11475],[0,11488,0,11491],[0,11504,0,11507],[0,11360,0,11363],[0,11376,0,11379],[0,11392,0,11395],[0,11408,0,11411],[0,11424,0,11427],[0,11280,0,11283],[0,11296,0,11299],[0,11312,0,11315],[0,11328,0,11331],[0,11344,0,11347],[0,11840,0,11843],[0,11856,0,11859],[0,11872,0,11875],[0,11888,0,11891],[0,11904,0,11907],[0,11760,0,11763],[0,11776,0,11779],[0,11792,0,11795],[0,11808,0,11811],[0,11824,0,11827],[0,11680,0,11683],[0,11696,0,11699],[0,11712,0,11715],[0,11728,0,11731],[0,11744,0,11747],[0,11600,0,11603],[0,11616,0,11619],[0,11632,0,11635],[0,11648,0,11651],[0,11664,0,11667],[0,12160,0,12163],[0,12176,0,12179],[0,12192,0,12195],[0,12208,0,12211],[0,12224,0,12227],[0,12080,0,12083],[0,12096,0,12099],[0,12112,0,12115],[0,12128,0,12131],[0,12144,0,12147],[0,12000,0,12003],[0,12016,0,12019],[0,12032,0,12035],[0,12048,0,12051],[0,12064,0,12067],[0,11920,0,11923],[0,11936,0,11939],[0,11952,0,11955],[0,11968,0,11971],[0,11984,0,11987],[0,12480,0,12483],[0,12496,0,12499],[0,12512,0,12515],[0,12528,0,12531],[0,12544,0,12547],[0,12400,0,12403],[0,12416,0,12419],[0,12432,0,12435],[0,12448,0,12451],[0,12464,0,12467],[0,12320,0,12323],[0,12336,0,12339],[0,12352,0,12355],[0,12368,0,12371],[0,12384,0,12387],[0,12240,0,12243],[0,12256,0,12259],[0,12272,0,12275],[0,12288,0,12291],[0,12304,0,12307],[0,12800,0,12803],[0,12816,0,12819],[0,12832,0,12835],[0,12848,0,12851],[0,12864,0,12867],[0,12720,0,12723],[0,12736,0,12739],[0,12752,0,12755],[0,12768,0,12771],[0,12784,0,12787],[0,12640,0,12643],[0,12656,0,12659],[0,12672,0,12675],[0,12688,0,12691],[0,12704,0,12707],[0,12560,0,12563],[0,12576,0,12579],[0,12592,0,12595],[0,12608,0,12611],[0,12624,0,12627],[0,13120,0,13123],[0,13136,0,13139],[0,13152,0,13155],[0,13168,0,13171],[0,13184,0,13187],[0,13040,0,13043],[0,13056,0,13059],[0,13072,0,13075],[0,13088,0,13091],[0,13104,0,13107],[0,12960,0,12963],[0,12976,0,12979],[0,12992,0,12995],[0,13008,0,13011],[0,13024,0,13027],[0,12880,0,12883],[0,12896,0,12899],[0,12912,0,12915],[0,12928,0,12931],[0,12944,0,12947],[0,13440,0,13443],[0,13456,0,13459],[0,13472,0,13475],[0,13488,0,13491],[0,13504,0,13507],[0,13360,0,13363],[0,13376,0,13379],[0,13392,0,13395],[0,13408,0,13411],[0,13424,0,13427],[0,13280,0,13283],[0,13296,0,13299],[0,13312,0,13315],[0,13328,0,13331],[0,13344,0,13347],[0,13200,0,13203],[0,13216,0,13219],[0,13232,0,13235],[0,13248,0,13251],[0,13264,0,13267],[0,13760,0,13763],[0,13776,0,13779],[0,13792,0,13795],[0,13808,0,13811],[0,13824,0,13827],[0,13680,0,13683],[0,13696,0,13699],[0,13712,0,13715],[0,13728,0,13731],[0,13744,0,13747],[0,13600,0,13603],[0,13616,0,13619],[0,13632,0,13635],[0,13648,0,13651],[0,13664,0,13667],[0,13520,0,13523],[0,13536,0,13539],[0,13552,0,13555],[0,13568,0,13571],[0,13584,0,13587],[0,14080,0,14083],[0,14096,0,14099],[0,14112,0,14115],[0,14128,0,14131],[0,14144,0,14147],[0,14000,0,14003],[0,14016,0,14019],[0,14032,0,14035],[0,14048,0,14051],[0,14064,0,14067],[0,13920,0,13923],[0,13936,0,13939],[0,13952,0,13955],[0,13968,0,13971],[0,13984,0,13987],[0,13840,0,13843],[0,13856,0,13859],[0,13872,0,13875],[0,13888,0,13891],[0,13904,0,13907],[0,14400,0,14403],[0,14416,0,14419],[0,14432,0,14435],[0,14448,0,14451],[0,14464,0,14467],[0,14320,0,14323],[0,14336,0,14339],[0,14352,0,14355],[0,14368,0,14371],[0,14384,0,14387],[0,14240,0,14243],[0,14256,0,14259],[0,14272,0,14275],[0,14288,0,14291],[0,14304,0,14307],[0,14160,0,14163],[0,14176,0,14179],[0,14192,0,14195],[0,14208,0,14211],[0,14224,0,14227],[0,14720,0,14723],[0,14736,0,14739],[0,14752,0,14755],[0,14768,0,14771],[0,14784,0,14787],[0,14640,0,14643],[0,14656,0,14659],[0,14672,0,14675],[0,14688,0,14691],[0,14704,0,14707],[0,14560,0,14563],[0,14576,0,14579],[0,14592,0,14595],[0,14608,0,14611],[0,14624,0,14627],[0,14480,0,14483],[0,14496,0,14499],[0,14512,0,14515],[0,14528,0,14531],[0,14544,0,14547],[0,15040,0,15043],[0,15056,0,15059],[0,15072,0,15075],[0,15088,0,15091],[0,15104,0,15107],[0,14960,0,14963],[0,14976,0,14979],[0,14992,0,14995],[0,15008,0,15011],[0,15024,0,15027],[0,14880,0,14883],[0,14896,0,14899],[0,14912,0,14915],[0,14928,0,14931],[0,14944,0,14947],[0,14800,0,14803],[0,14816,0,14819],[0,14832,0,14835],[0,14848,0,14851],[0,14864,0,14867],[0,15360,0,15363],[0,15376,0,15379],[0,15392,0,15395],[0,15408,0,15411],[0,15424,0,15427],[0,15280,0,15283],[0,15296,0,15299],[0,15312,0,15315],[0,15328,0,15331],[0,15344,0,15347],[0,15200,0,15203],[0,15216,0,15219],[0,15232,0,15235],[0,15248,0,15251],[0,15264,0,15267],[0,15120,0,15123],[0,15136,0,15139],[0,15152,0,15155],[0,15168,0,15171],[0,15184,0,15187],[0,15680,0,15683],[0,15696,0,15699],[0,15712,0,15715],[0,15728,0,15731],[0,15744,0,15747],[0,15600,0,15603],[0,15616,0,15619],[0,15632,0,15635],[0,15648,0,15651],[0,15664,0,15667],[0,15520,0,15523],[0,15536,0,15539],[0,15552,0,15555],[0,15568,0,15571],[0,15584,0,15587],[0,15440,0,15443],[0,15456,0,15459],[0,15472,0,15475],[0,15488,0,15491],[0,15504,0,15507],[0,16000,0,16003],[0,16016,0,16019],[0,16032,0,16035],[0,16048,0,16051],[0,16064,0,16067]],"merged_total":1034,"flags":["merged_cut"]}
["Ministerio de Educación y Cultura\nDirección de Educación\n",null,null,null,null,null,null,null,null,null,null,null,null,null,null,null,null,null,null,null,null,null,null,null,null,null,null,null,null,null,null,null,null,null,null,null,null,null,null,null,null,null,null,null,null,null,null,null,"Ministerio de Educación y Cultura\nDirección de Educación\n",null,null,null,null,null,null,null,null,null,null,null,null,null,null,null,"Ministerio de Educación y Cultura\nDirección de Educación\n",null,null,null,null,null,null,null,null,null,null,null,null,null,null,null,"Ministerio de Educación y Cultura\nDirección de Educación\n",null,null,null,null,null,null,null,null,null,null,null,null,null,null,null,"Ministerio de Educación y Cultura\nDirección de Educación\n",null,null,null,null,null,null,null,null,null,null,null,null,null,null,null,"Ministerio de Educación y Cultura\nDirección de Educación\n",null,null,null,null,null,null,null,null,null,null,null,null,null,null,null,"Ministerio de Educación y Cultura\nDirección de Educación\n",null,null,null,null,null,null,null,null,null,null,null,null,null,null,null,"Ministerio de Educación y Cultura\nDirección de Educación\n",null,null,null,null,null,null,null,null,null,null,null,null,null,null,null,"Ministerio de Educación y Cultura\nDirección de Educación\n",null,null,null,null,null,null,null,null,null,null,null,null,null,null,null,"Ministerio de Educación y Cultura\nDirección de Educación\n",null,null,null,null,null,null,null,null,null,null,null,null,null,null,null,"Ministerio de Educación y Cultura\nDirección de Educación\n",null,null,null,null,null,null,null,null,null,null,null,null,null,null,null,"Ministerio de Educación y Cultura\nDirección de Educación\n",null,null,null,null,null,null,null,null,null,null,null,null,null,null,null,"Ministerio de Educación y Cultura\nDirección de Educación\n",null,null,null,null,null,null,null,null,null,null,null,null,null,null,null,"Ministerio de Educación y Cultura\nDirección de Educación\n",null,null,null,null,null,null,null,null,null,null,null,null,null,null,null,"Ministerio de Educación y Cultura\nDirección de Educación\n",null,null,null,null,null,null,null,null,null,null,null,null,null,null,null,"Ministerio de Educación y Cultura\nDirección de Educación\n",null,null,null,null,null,null,null,null,null,null,null,null,null,null,null,"Ministerio de Educación y Cultura\nDirección de Educación\n",null,null,null,null,null,null,null,null,null,null,null,null,null,null,null,"Ministerio de Educación y Cultura\nDirección de Educación\n",null,null,null,null,null,null,null,null,null,null,null,null,null,null,null,"Ministerio de Educación y Cultura\nDirección de Educación\n",null,null,null,null,null,null,null,null,null,null,null,null,null,null,null,"Ministerio de Educación y Cultura\nDirección de Educación\n",null,null,null,null,null,null,null,null,null,null,null,null,null,null,null,"Ministerio de Educación y Cultura\nDirección de Educación\n",null,null,null,null,null,null,null,null,null,null,null,null,null,null,null,"Ministerio de Educación y Cultura\nDirección de Educación\n",null,null,null,null,null,null,null,null,null,null,null,null,null,null,null,"Ministerio de Educación y Cultura\nDirección de Educación\n",null,null,null,null,null,null,null,null,null,null,null,null,null,null,null,"Ministerio de Educación y Cultura\nDirección de Educación\n",null,null,null,null,null,null,null,null,null,null,null,null,null,null,null,"Ministerio de Educación y Cultura\nDirección de Educación\n",null,null,null,null,null,null,null,null,null,null,null,null,null,null,null,"Ministerio de Educación y Cultura\nDirección de Educación\n",null,null,null,null,null,null,null,null,null,null,null,null,null,null,null,"Ministerio de Educación y Cultura\nDirección de Educación\n",null,null,null,null,null,null,null,null,null,null,null,null,null,null,null,"Ministerio de Educación y Cultura\nDirección de Educación\n",null,null,null,null,null,null,null,null,null,null,null,null,null,null,null,"Ministerio de Educación y Cultura\nDirección de Educación\n",null,null,null,null,null,null,null,null,null,null,null,null,null,null,null,"Ministerio de Educación y Cultura\nDirección de Educación\n",null,null,null,null,null,null,null,null,null,null,null,null,null,null,null,"Ministerio de Educación y Cultura\nDirección de Educación\n",null,null,null,null,null,null,null,null,null,null,null,null,null,null,null,"Ministerio de Educación y Cultura\nDirección de Educación\n",null,null,null,null,null,null,null,null,null,null,null,null,null,null,null,"Ministerio de Educación y Cultura\nDirección de Educación\n",null,null,null,null,null,null,null,null,null,null,null,null,null,null,null,"Ministerio de Educación y Cultura\nDirección de Educación\n",null,null,null,null,null,null,null,null,null,null,null,null,null,null,null,"Ministerio de Educación y Cultura\nDirección de Educación\n",null,null,null,null,null,null,null,null,null,null,null,null,null,null,null,"Ministerio de Educación y Cultura\nDirección de Educación\n",null,null,null,null,null,null,null,null,null,null,null,null,null,null,null,"Ministerio de Educación y Cultura\nDirección de Educación\n",null,null,null,null,null,null,null,null,null,null,null,null,null,null,null,"Ministerio de Educación y Cultura\nDirección de Educación\n",null,null,null,null,null,null,null,null,null,null,null,null,null,null,null,"Ministerio de Educación y Cultura\nDirección de Educación\n",null,null,null,null,null,null,null,null,null,null,null,null,null,null,null,"Ministerio de Educación y Cultura\nDirección de Educación\n",null,null,null,null,null,null,null,null,null,null,null,null,null,null,null,"Ministerio de Educación y Cultura\nDirección de Educación\n",null,null,null,null,null,null,null,null,null,null,null,null,null,null,null,"Ministerio de Educación y Cultura\nDirección de Educación\n",null,null,null,null,null,null,null,null,null,null,null,null,null,null,null,"Ministerio de Educación y Cultura\nDirección de Educación\n",null,null,null,null,null,null,null,null,null,null,null,null,null,null,null,"Ministerio de Educación y Cultura\nDirección de Educación\n",null,null,null,null,null,null,null,null,null,null,null,null,null,null,null,"Ministerio de Educación y Cultura\nDirección de Educación\n",null,null,null,null,null,null,null,null,null,null,null,null,null,null,null,"Ministerio de Educación y Cultura\nDirección de Educación\n",null,null,null,null,null,null,null,null,null,null,null,null,null,null,null,"Ministerio de Educación y Cultura\nDirección de Educación\n",null,null,null,null,null,null,null,null,null,null,null,null,null,null,null,"Ministerio de Educación y Cultura\nDirección de Educación\n",null,null,null,null,null,null,null,null,null,null,null,null,null,null,null,"Ministerio de Educación y Cultura\nDirección de Educación\n",null,null,null,null,null,null,null,null,null,null,null,null,null,null,null,"Ministerio de Educación y Cultura\nDirección de Educación\n",null,null,null,null,null,null,null,null,null,null,null,null,null,null,null,"Ministerio de Educación y Cultura\nDirección de Educación\n",null,null,null,null,null,null,null,null,null,null,null,null,null,null,null,"Ministerio de Educación y Cultura\nDirección de Educación\n",null,null,null,null,null,null,null,null,null,null,null,null,null,null,null,"Ministerio de Educación y Cultura\nDirección de Educación\n",null,null,null,null,null,null,null,null,null,null,null,null,null,null,null,"Ministerio de Educación y Cultura\nDirección de Educación\n",null,null,null,null,null,null,null,null,null,null,null,null,null,null,null,"Ministerio de Educación y Cultura\nDirección de Educación\n",null,null,null,null,null,null,null,null,null,null,null,null,null,null,null,"Ministerio de Educación y Cultura\nDirección de Educación\n",null,null,null,null,null,null,null,null,null,null,null,null,null,null,null,"Ministerio de Educación y Cultura\nDirección de Educación\n",null,null,null,null,null,null,null,null,null,null,null,null,null,null,null,"Ministerio de Educación y Cultura\nDirección de Educación\n",null,null,null,null,null,null,null,null,null,null,null,null,null,null,null,"Ministerio de Educación y Cultura\nDirección de Educación\n",null,null,null,null,null,null,null,null,null,null,null,null,null,null,null,"Ministerio de Educación y Cultura\nDirección de Educación\n",null,null,null,null,null,null,null,null,null,null,null,null,null,null,null,"Ministerio de Educación y Cultura\nDirección de Educación\n",null,null,null,null,null,null,null,null,null,null,null,null,null,null,null,"Ministerio de Educación y Cultura\nDirección de Educación\n",null,null,null,null,null,null,null,null,null,null,null,null,null,null,null,"Ministerio de Educación y Cultura\nDirección de Educación\n",null,null,null,null,null,null,null,null,null,null,null,null,null,null,null,"Ministerio de Educación y Cultura\nDirección de Educación\n",null,null,null,null,null,null,null,null,null,null,null,null,null,null,null,"Ministerio de Educación y Cultura\nDirección de Educación\n",null,null,null,null,null,null,null,null,null,null,null,null,null,null,null,"Ministerio de Educación y Cultura\nDirección de Educación\n",null,null,null,null,null,null,null,null,null,null,null,null,null,null,null,"Ministerio de Educación y Cultura\nDirección de Educación\n",null,null,null,null,null,null,null,null,null,null,null,null,null,null,null,"Ministerio de Educación y Cultura\nDirección de Educación\n",null,null,null,null,null,null,null,null,null,null,null,null,null,null,null,"Ministerio de Educación y Cultura\nDirección de Educación\n",null,null,null,null,null,null,null,null,null,null,null,null,null,null,null,"Ministerio de Educación y Cultura\nDirección de Educación\n",null,null,null,null,null,null,null,null,null,null,null,null,null,null,null,"Ministerio de Educación y Cultura\nDirección de Educación\n",null,null,null,null,null,null,null,null,null,null,null,null,null,null,null,"Ministerio de Educación y Cultura\nDirección de Educación\n",null,null,null,null,null,null,null,null,null,null,null,null,null,null,null,"Ministerio de Educación y Cultura\nDirección de Educación\n",null,null,null,null,null,null,null,null,null,null,null,null,null,null,null,"Ministerio de Educación y Cultura\nDirección de Educación\n",null,null,null,null,null,null,null,null,null,null,null,null,null,null,null,"Ministerio de Educación y Cultura\nDirección de Educación\n",null,null,null,null,null,null,null,null,null,null,null,null,null,null,null,"Ministerio de Educación y Cultura\nDirección de Educación\n",null,null,null,null,null,null,null,null,null,null,null,null,null,null,null,"Ministerio de Educación y Cultura\nDirección de Educación\n",null,null,null,null,null,null,null,null,null,null,null,null,null,null,null,"Ministerio de Educación y Cultura\nDirección de Educación\n",null,null,null,null,null,null,null,null,null,null,null,null,null,null,null,"Ministerio de Educación y Cultura\nDirección de Educación\n",null,null,null,null,null,null,null,null,null,null,null,null,null,null,null,"Ministerio de Educación y Cultura\nDirección de Educación\n",null,null,null,null,null,null,null,null,null,null,null,null,null,null,null,"Ministerio de Educación y Cultura\nDirección de Educación\n",null,null,null,null,null,null,null,null,null,null,null,null,null,null,null,"Ministerio de Educación y Cultura\nDirección de Educación\n",null,null,null,null,null,null,null,null,null,null,null,null,null,null,null,"Ministerio de Educación y Cultura\nDirección de Educación\n",null,null,null,null,null,null,null,null,null,null,null,null,null,null,null,"Ministerio de Educación y Cultura\nDirección de Educación\n",null,null,null,null,null,null,null,null,null,null,null,null,null,null,null,"Ministerio de Educación y Cultura\nDirección de Educación\n",null,null,null,null,null,null,null,null,null,null,null,null,null,null,null,"Ministerio de Educación y Cultura\nDirección de Educación\n",null,null,null,null,null,null,null,null,null,null,null,null,null,null,null,"Ministerio de Educación y Cultura\nDirección de Educación\n",null,null,null,null,null,null,null,null,null,null,null,null,null,null,null,"Ministerio de Educación y Cultura\nDirección de Educación\n",null,null,null,null,null,null,null,null,null,null,null,null,null,null,null,"Ministerio de Educación y Cultura\nDirección de Educación\n",null,null,null,null,null,null,null,null,null,null,null,null,null,null,null,"Ministerio de Educación y Cultura\nDirección de Educación\n",null,null,null,null,null,null,null,null,null,null,null,null,null,null,null,"Ministerio de Educación y Cultura\nDirección de Educación\n",null,null,null,null,null,null,null,null,null,null,null,null,null,null,null,"Ministerio de Educación y Cultura\nDirección de Educación\n",null,null,null,null,null,null,null,null,null,null,null,null,null,null,null,"Ministerio de Educación y Cultura\nDirección de Educación\n",null,null,null,null,null,null,null,null,null,null,null,null,null,null,null,"Ministerio de Educación y Cultura\nDirección de Educación\n",null,null,null,null,null,null,null,null,null,null,null,null,null,null,null,"Ministerio de Educación y Cultura\nDirección de Educación\n",null,null,null,null,null,null,null,null,null,null,null,null,null,null,null,"Ministerio de Educación y Cultura\nDirección de Educación\n",null,null,null,null,null,null,null,null,null,null,null,null,null,null,null,"Ministerio de Educación y Cultura\nDirección de Educación\n",null,null,null,null,null,null,null,null,null,null,null,null,null,null,null,"Ministerio de Educación y Cultura\nDirección de Educación\n",null,null,null,null,null,null,null,null,null,null,null,null,null,null,null,"Ministerio de Educación y Cultura\nDirección de Educación\n",null,null,null,null,null,null,null,null,null,null,null,null,null,null,null,"Ministerio de Educación y Cultura\nDirección de Educación\n",null,null,null,null,null,null,null,null,null,null,null,null,null,null,null,"Ministerio de Educación y Cultura\nDirección de Educación\n",null,null,null,null,null,null,null,null,null,null,null,null,null,null,null,"Ministerio de Educación y Cultura\nDirección de Educación\n",null,null,null,null,null,null,null,null,null,null,null,null,null,null,null,"Ministerio de Educación y Cultura\nDirección de Educación\n",null,null,null,null,null,null,null,null,null,null,null,null,null,null,null,"Ministerio de Educación y Cultura\nDirección de Educación\n",null,null,null,null,null,null,null,null,null,null,null,null,null,null,null,"Ministerio de Educación y Cultura\nDirección de Educación\n",null,null,null,null,null,null,null,null,null,null,null,null,null,null,null,"Ministerio de Educación y Cultura\nDirección de Educación\n",null,null,null,null,null,null,null,null,null,null,null,null,null,null,null,"Ministerio de Educación y Cultura\nDirección de Educación\n",null,null,null,null,null,null,null,null,null,null,null,null,null,null,null,"Ministerio de Educación y Cultura\nDirección de Educación\n",null,null,null,null,null,null,null,null,null,null,null,null,null,null,null,"Ministerio de Educación y Cultura\nDirección de Educación\n",null,null,null,null,null,null,null,null,null,null,null,null,null,null,null,"Ministerio de Educación y Cultura\nDirección de Educación\n",null,null,null,null,null,null,null,null,null,null,null,null,null,null,null,"Ministerio de Educación y Cultura\nDirección de Educación\n",null,null,null,null,null,null,null,null,null,null,null,null,null,null,null,"Ministerio de Educación y Cultura\nDirección de Educación\n",null,null,null,null,null,null,null,null,null,null,null,null,null,null,null,"Ministerio de Educación y Cultura\nDirección de Educación\n",null,null,null,null,null,null,null,null,null,null,null,null,null,null,null,"Ministerio de Educación y Cultura\nDirección de Educación\n",null,null,null,null,null,null,null,null,null,null,null,null,null,null,null,"Ministerio de Educación y Cultura\nDirección de Educación\n",null,null,null,null,null,null,null,null,null,null,null,null,null,null,null,"Ministerio de Educación y Cultura\nDirección de Educación\n",null,null,null,null,null,null,null,null,null,null,null,null,null,null,null,"Ministerio de Educación y Cultura\nDirección de Educación\n",null,null,null,null,null,null,null,null,null,null,null,null,null,null,null,"Ministerio de Educación y Cultura\nDirección de Educación\n",null,null,null,null,null,null,null,null,null,null,null,null,null,null,null,"Ministerio de Educación y Cultura\nDirección de Educación\n",null,null,null,null,null,null,null,null,null,null,null,null,null,null,null,"Ministerio de Educación y Cultura\nDirección de Educación\n",null,null,null,null,null,null,null,null,null,null,null,null,null,null,null,"Ministerio de Educación y Cultura\nDirección de Educación\n",null,null,null,null,null,null,null,null,null,null,null,null,null,null,null,"Ministerio de Educación y Cultura\nDirección de Educación\n",null,null,null,null,null,null,null,null,null,null,null,null,null,null,null,"Ministerio de Educación y Cultura\nDirección de Educación\n",null,null,null,null,null,null,null,null,null,null,null,null,null,null,null,"Ministerio de Educación y Cultura\nDirección de Educación\n",null,null,null,null,null,null,null,null,null,null,null,null,null,null,null,"Ministerio de Educación y Cultura\nDirección de Educación\n",null,null,null,null,null,null,null,null,null,null,null,null,null,null,null,"Ministerio de Educación y Cultura\nDirección de Educación\n",null,null,null,null,null,null,null,null,null,null,null,null,null,null,null,"Ministerio de Educación y Cultura\nDirección de Educación\n",null,null,null,null,null,null,null,null,null,null,null,null,null,null,null,"Ministerio de Educación y Cultura\nDirección de Educación\n",null,null,null,null,null,null,null,null,null,null,null,null,null,null,null,"Ministerio de Educación y Cultura\nDirección de Educación\n",null,null,null,null,null,null,null,null,null,null,null,null,null,null,null,"Ministerio de Educación y Cultura\nDirección de Educación\n",null,null,null,null,null,null,null,null,null,null,null,null,null,null,null,"Ministerio de Educación y Cultura\nDirección de Educación\n",null,null,null,null,null,null,null,null,null,null,null,null,null,null,null,"Ministerio de Educación y Cultura\nDirección de Educación\n",null,null,null,null,null,null,null,null,null,null,null,null,null,null,null,"Ministerio de Educación y Cultura\nDirección de Educación\n",null,null,null,null,null,null,null,null,null,null,null,null,null,null,null,"Ministerio de Educación y Cultura\nDirección de Educación\n",null,null,null,null,null,null,null,null,null,null,null,null,null,null,null,"Ministerio de Educación y Cultura\nDirección de Educación\n",null,null,null,null,null,null,null,null,null,null,null,null,null,null,null,"Ministerio de Educación y Cultura\nDirección de Educación\n",null,null,null,null,null,null,null,null,null,null,null,null,null,null,null,"Ministerio de Educación y Cultura\nDirección de Educación\n",null,null,null,null,null,null,null,null,null,null,null,null,null,null,null,"Ministerio de Educación y Cultura\nDirección de Educación\n",null,null,null,null,null,null,null,null,null,null,null,null,null,null,null,"Ministerio de Educación y Cultura\nDirección de Educación\n",null,null,null,null,null,null,null,null,null,null,null,null,null,null,null,"Ministerio de Educación y Cultura\nDirección de Educación\n",null,null,null,null,null,null,null,null,null,null,null,null,null,null,null,"Ministerio de Educación y Cultura\nDirección de Educación\n",null,null,null,null,null,null,null,null,null,null,null,null,null,null,null,"Ministerio de Educación y Cultura\nDirección de Educación\n",null,null,null,null,null,null,null,null,null,null,null,null,null,null,null,"Ministerio de Educación y Cultura\nDirección de Educación\n",null,null,null,null,null,null,null,null,null,null,null,null,null,null,null,"Ministerio de Educación y Cultura\nDirección de Educación\n",null,null,null,null,null,null,null,null,null,null,null,null,null,null,null,"Ministerio de Educación y Cultura\nDirección de Educación\n",null,null,null,null,null,null,null,null,null,null,null,null,null,null,null,"Ministerio de Educación y Cultura\nDirección de Educación\n",null,null,null,null,null,null,null,null,null,null,null,null,null,null,null,"Ministerio de Educación y Cultura\nDirección de Educación\n",null,null,null,null,null,null,null,null,null,null,null,null,null,null,null,"Ministerio de Educación y Cultura\nDirección de Educación\n",null,null,null,null,null,null,null,null,null,null,null,null,null,null,null,"Ministerio de Educación y Cultura\nDirección de Educación\n",null,null,null,null,null,null,null,null,null,null,null,null,null,null,null,"Ministerio de Educación y Cultura\nDirección de Educación\n",null,null,null,null,null,null,null,null,null,null,null,null,null,null,null,"Ministerio de Educación y Cultura\nDirección de Educación\n",null,null,null,null,null,null,null,null,null,null,null,null,null,null,null,"Ministerio de Educación y Cultura\nDirección de Educación\n",null,null,null,null,null,null,null,null,null,null,null,null,null,null,null,"Ministerio de Educación y Cultura\nDirección de Educación\n",null,null,null,null,null,null,null,null,null,null,null,null,null,null,null,"Ministerio de Educación y Cultura\nDirección de Educación\n",null,null,null,null,null,null,null,null,null,null,null,null,null,null,null,"Ministerio de Educación y Cultura\nDirección de Educación\n",null,null,null,null,null,null,null,null,null,null,null,null,null,null,null,"Ministerio de Educación y Cultura\nDirección de Educación\n",null,null,null,null,null,null,null,null,null,null,null,null,null,null,null,"Ministerio de Educación y Cultura\nDirección de Educación\n",null,null,null,null,null,null,null,null,null,null,null,null,null,null,null,"Ministerio de Educación y Cultura\nDirección de Educación\n",null,null,null,null,null,null,null,null,null,null,null,null,null,null,null,"Ministerio de Educación y Cultura\nDirección de Educación\n",null,null,null,null,null,null,null,null,null,null,null,null,null,null,null,"Ministerio de Educación y Cultura\nDirección de Educación\n",null,null,null,null,null,null,null,null,null,null,null,null,null,null,null,"Ministerio de Educación y Cultura\nDirección de Educación\n",null,null,null,null,null,null,null,null,null,null,null,null,null,null,null,"Ministerio de Educación y Cultura\nDirección de Educación\n",null,null,null,null,null,null,null,null,null,null,null,null,null,null,null,"Ministerio de Educación y Cultura\nDirección de Educación\n",null,null,null,null,null,null,null,null,null,null,null,null,null,null,null,"Ministerio de Educación y Cultura\nDirección de Educación\n",null,null,null,null,null,null,null,null,null,null,null,null,null,null,null,"Ministerio de Educación y Cultura\nDirección de Educación\n",null,null,null,null,null,null,null,null,null,null,null,null,null,null,null,"Ministerio de Educación y Cultura\nDirección de Educación\n",null,null,null,null,null,null,null,null,null,null,null,null,null,null,null,"Ministerio de Educación y Cultura\nDirección de Educación\n",null,null,null,null,null,null,null,null,null,null,null,null,null,null,null,"Ministerio de Educación y Cultura\nDirección de Educación\n",null,null,null,null,null,null,null,null,null,null,null,null,null,null,null,"Ministerio de Educación y Cultura\nDirección de Educación\n",null,null,null,null,null,null,null,null,null,null,null,null,null,null,null,"Ministerio de Educación y Cultura\nDirección de Educación\n",null,null,null,null,null,null,null,null,null,null,null,null,null,null,null,"Ministerio de Educación y Cultura\nDirección de Educación\n",null,null,null,null,null,null,null,null,null,null,null,null,null,null,null,"Ministerio de Educación y Cultura\nDirección de Educación\n",null,null,null,null,null,null,null,null,null,null,null,null,null,null,null,"Ministerio de Educación y Cultura\nDirección de Educación\n",null,null,null,null,null,null,null,null,null,null,null,null,null,null,null,"Ministerio de Educación y Cultura\nDirección de Educación\n",null,null,null,null,null,null,null,null,null,null,null,null,null,null,null,"Ministerio de Educación y Cultura\nDirección de Educación\n",null,null,null,null,null,null,null,null,null,null,null,null,null,null,null,"Ministerio de Educación y Cultura\nDirección de Educación\n",null,null,null,null,null,null,null,null,null,null,null,null,null,null,null,"Ministerio de Educación y Cultura\nDirección de Educación\n",null,null,null,null,null,null,null,null,null,null,null,null,null,null,null,"Ministerio de Educación y Cultura\nDirección de Educación\n",null,null,null,null,null,null,null,null,null,null,null,null,null,null,null,"Ministerio de Educación y Cultura\nDirección de Educación\n",null,null,null,null,null,null,null,null,null,null,null,null,null,null,null,"Ministerio de Educación y Cultura\nDirección de Educación\n",null,null,null,null,null,null,null,null,null,null,null,null,null,null,null,"Ministerio de Educación y Cultura\nDirección de Educación\n",null,null,null,null,null,null,null,null,null,null,null,null,null,null,null,"Ministerio de Educación y Cultura\nDirección de Educación\n",null,null,null,null,null,null,null,null,null,null,null,null,null,null,null,"Ministerio de Educación y Cultura\nDirección de Educación\n",null,null,null,null,null,null,null,null,null,null,null,null,null,null,null,"Ministerio de Educación y Cultura\nDirección de Educación\n",null,null,null,null,null,null,null,null,null,null,null,null,null,null,null,"Ministerio de Educación y Cultura\nDirección de Educación\n",null,null,null,null,null,null,null,null,null,null,null,null,null,null,null,"Ministerio de Educación y Cultura\nDirección de Educación\n",null,null,null,null,null,null,null,null,null,null,null,null,null,null,null,"Ministerio de Educación y Cultura\nDirección de Educación\n",null,null,null,null,null,null,null,null,null,null,null,null,null,null,null,"Ministerio de Educación y Cultura\nDirección de Educación\n",null,null,null,null,null,null,null,null,null,null,null,null,null,null,null,"Ministerio de Educación y Cultura\nDirección de Educación\n",null,null,null,null,null,null,null,null,null,null,null,null,null,null,null,"Ministerio de Educación y Cultura\nDirección de Educación\n",null,null,null,null,null,null,null,null,null,null,null,null,null,null,null,"Ministerio de Educación y Cultura\nDirección de Educación\n",null,null,null,null,null,null,null,null,null,null,null,null,null,null,null,"Ministerio de Educación y Cultura\nDirección de Educación\n",null,null,null,null,null,null,null,null,null,null,null,null,null,null,null,"Ministerio de Educación y Cultura\nDirección de Educación\n",null,null,null,null,null,null,null,null,null,null,null,null,null,null,null,"Ministerio de Educación y Cultura\nDirección de Educación\n",null,null,null,null,null,null,null,null,null,null,null,null,null,null,null,"Ministerio de Educación y Cultura\nDirección de Educación\n",null,null,null,null,null,null,null,null,null,null,null,null,null,null,null,"Ministerio de Educación y Cultura\nDirección de Educación\n",null,null,null,null,null,null,null,null,null,null,null,null,null,null,null,"Ministerio de Educación y Cultura\nDirección de Educación\n",null,null,null,null,null,null,null,null,null,null,null,null,null,null,null,"Ministerio de Educación y Cultura\nDirección de Educación\n",null,null,null,null,null,null,null,null,null,null,null,null,null,null,null,"Ministerio de Educación y Cultura\nDirección de Educación\n",null,null,null,null,null,null,null,null,null,null,null,null,null,null,null,"Ministerio de Educación y Cultura\nDirección de Educación\n",null,null,null,null,null,null,null,null,null,null,null,null,null,null,null,"Ministerio de Educación y Cultura\nDirección de Educación\n",null,null,null,null,null,null,null,null,null,null,null,null,null,null,null,"Ministerio de Educación y Cultura\nDirección de Educación\n",null,null,null,null,null,null,null,null,null,null,null,null,null,null,null,"Ministerio de Educación y Cultura\nDirección de Educación\n",null,null,null,null,null,null,null,null,null,null,null,null,null,null,null,"Ministerio de Educación y Cultura\nDirección de Educación\n",null,null,null,null,null,null,null,null,null,null,null,null,null,null,null,"Ministerio de Educación y Cultura\nDirección de Educación\n",null,null,null,null,null,null,null,null,null,null,null,null,null,null,null,"Ministerio de Educación y Cultura\nDirección de Educación\n",null,null,null,null,null,null,null,null,null,null,null,null,null,null,null,"Ministerio de Educación y Cultura\nDirección de Educación\n",null,null,null,null,null,null,null,null,null,null,null,null,null,null,null,"Ministerio de Educación y Cultura\nDirección de Educación\n",null,null,null,null,null,null,null,null,null,null,null,null,null,null,null,"Ministerio de Educación y Cultura\nDirección de Educación\n",null,null,null,null,null,null,null,null,null,null,null,null,null,null,null,"Ministerio de Educación y Cultura\nDirección de Educación\n",null,null,null,null,null,null,null,null,null,null,null,null,null,null,null,"Ministerio de Educación y Cultura\nDirección de Educación\n",null,null,null,null,null,null,null,null,null,null,null,null,null,null,null,"Ministerio de Educación y Cultura\nDirección de Educación\n",null,null,null,null,null,null,null,null,null,null,null,null,null,null,null,"Ministerio de Educación y Cultura\nDirección de Educación\n",null,null,null,null,null,null,null,null,null,null,null,null,null,null,null,"Ministerio de Educación y Cultura\nDirección de Educación\n",null,null,null,null,null,null,null,null,null,null,null,null,null,null,null,"Ministerio de Educación y Cultura\nDirección de Educación\n",null,null,null,null,null,null,null,null,null,null,null,null,null,null,null,"Ministerio de Educación y Cultura\nDirección de Educación\n",null,null,null,null,null,null,null,null,null,null,null,null,null,null,null,"Ministerio de Educación y Cultura\nDirección de Educación\n",null,null,null,null,null,null,null,null,null,null,null,null,null,null,null,"Ministerio de Educación y Cultura\nDirección de Educación\n",null,null,null,null,null,null,null,null,null,null,null,null,null,null,null,"Ministerio de Educación y Cultura\nDirección de Educación\n",null,null,null,null,null,null,null,null,null,null,null,null,null,null,null,"Ministerio de Educación y Cultura\nDirección de Educación\n",null,null,null,null,null,null,null,null,null,null,null,null,null,null,null,"Ministerio de Educación y Cultura\nDirección de Educación\n",null,null,null,null,null,null,null,null,null,null,null,null,null,null,null,"Ministerio de Educación y Cultura\nDirección de Educación\n",null,null,null,null,null,null,null,null,null,null,null,null,null,null,null,"Ministerio de Educación y Cultura\nDirección de Educación\n",null,null,null,null,null,null,null,null,null,null,null,null,null,null,null,"Ministerio de Educación y Cultura\nDirección de Educación\n",null,null,null,null,null,null,null,null,null,null,null,null,null,null,null,"Ministerio de Educación y Cultura\nDirección de Educación\n",null,null,null,null,null,null,null,null,null,null,null,null,null,null,null,"Ministerio de Educación y Cultura\nDirección de Educación\n",null,null,null,null,null,null,null,null,null,null,null,null,null,null,null,"Ministerio de Educación y Cultura\nDirección de Educación\n",null,null,null,null,null,null,null,null,null,null,null,null,null,null,null,"Ministerio de Educación y Cultura\nDirección de Educación\n",null,null,null,null,null,null,null,null,null,null,null,null,null,null,null,"Ministerio de Educación y Cultura\nDirección de Educación\n",null,null,null,null,null,null,null,null,null,null,null,null,null,null,null,"Ministerio de Educación y Cultura\nDirección de Educación\n",null,null,null,null,null,null,null,null,null,null,null,null,null,null,null,"Ministerio de Educación y Cultura\nDirección de Educación\n",null,null,null,null,null,null,null,null,null,null,null,null,null,null,null,"Ministerio de Educación y Cultura\nDirección de Educación\n",null,null,null,null,null,null,null,null,null,null,null,null,null,null,null,"Ministerio de Educación y Cultura\nDirección de Educación\n",null,null,null,null,null,null,null,null,null,null,null,null,null,null,null,"Ministerio de Educación y Cultura\nDirección de Educación\n",null,null,null,null,null,null,null,null,null,null,null,null,null,null,null,"Ministerio de Educación y Cultura\nDirección de Educación\n",null,null,null,null,null,null,null,null,null,null,null,null,null,null,null,"Ministerio de Educación y Cultura\nDirección de Educación\n",null,null,null,null,null,null,null,null,null,null,null,null,null,null,null,"Ministerio de Educación y Cultura\nDirección de Educación\n",null,null,null,null,null,null,null,null,null,null,null,null,null,null,null,"Ministerio de Educación y Cultura\nDirección de Educación\n",null,null,null,null,null,null,null,null,null,null,null,null,null,null,null,"Ministerio de Educación y Cultura\nDirección de Educación\n",null,null,null,null,null,null,null,null,null,null,null,null,null,null,null,"Ministerio de Educación y Cultura\nDirección de Educación\n",null,null,null,null,null,null,null,null,null,null,null,null,null,null,null,"Ministerio de Educación y Cultura\nDirección de Educación\n",null,null,null,null,null,null,null,null,null,null,null,null,null,null,null,"Ministerio de Educación y Cultura\nDirección de Educación\n",null,null,null,null,null,null,null,null,null,null,null,null,null,null,null,"Ministerio de Educación y Cultura\nDirección de Educación\n",null,null,null,null,null,null,null,null,null,null,null,null,null,null,null,"Ministerio de Educación y Cultura\nDirección de Educación\n",null,null,null,null,null,null,null,null,null,null,null,null,null,null,null,"Ministerio de Educación y Cultura\nDirección de Educación\n",null,null,null,null,null,null,null,null,null,null,null,null,null,null,null,"Ministerio de Educación y Cultura\nDirección de Educación\n",null,null,null,null,null,null,null,null,null,null,null,null,null,null,null,"Ministerio de Educación y Cultura\nDirección de Educación\n",null,null,null,null,null,null,null,null,null,null,null,null,null,null,null,"Ministerio de Educación y Cultura\nDirección de Educación\n",null,null,null,null,null,null,null,null,null,null,null,null,null,null,null,"Ministerio de Educación y Cultura\nDirección de Educación\n",null,null,null,null,null,null,null,null,null,null,null,null,null,null,null,"Ministerio de Educación y Cultura\nDirección de Educación\n",null,null,null,null,null,null,null,null,null,null,null,null,null,null,null,"Ministerio de Educación y Cultura\nDirección de Educación\n",null,null,null,null,null,null,null,null,null,null,null,null,null,null,null,"Ministerio de Educación y Cultura\nDirección de Educación\n",null,null,null,null,null,null,null,null,null,null,null,null,null,null,null,"Ministerio de Educación y Cultura\nDirección de Educación\n",null,null,null,null,null,null,null,null,null,null,null,null,null,null,null,"Ministerio de Educación y Cultura\nDirección de Educación\n",null,null,null,null,null,null,null,null,null,null,null,null,null,null,null,"Ministerio de Educación y Cultura\nDirección de Educación\n",null,null,null,null,null,null,null,null,null,null,null,null,null,null,null,"Ministerio de Educación y Cultura\nDirección de Educación\n",null,null,null,null,null,null,null,null,null,null,null,null,null,null,null,"Ministerio de Educación y Cultura\nDirección de Educación\n",null,null,null,null,null,null,null,null,null,null,null,null,null,null,null,"Ministerio de Educación y Cultura\nDirección de Educación\n",null,null,null,null,null,null,null,null,null,null,null,null,null,null,null,"Ministerio de Educación y Cultura\nDirección de Educación\n",null,null,null,null,null,null,null,null,null,null,null,null,null,null,null,"Ministerio de Educación y Cultura\nDirección de Educación\n",null,null,null,null,null,null,null,null,null,null,null,null,null,null,null,"Ministerio de Educación y Cultura\nDirección de Educación\n",null,null,null,null,null,null,null,null,null,null,null,null,null,null,null,"Ministerio de Educación y Cultura\nDirección de Educación\n",null,null,null,null,null,null,null,null,null,null,null,null,null,null,null,"Ministerio de Educación y Cultura\nDirección de Educación\n",null,null,null,null,null,null,null,null,null,null,null,null,null,null,null,"Ministerio de Educación y Cultura\nDirección de Educación\n",null,null,null,null,null,null,null,null,null,null,null,null,null,null,null,"Ministerio de Educación y Cultura\nDirección de Educación\n",null,null,null,null,null,null,null,null,null,null,null,null,null,null,null,"Ministerio de Educación y Cultura\nDirección de Educación\n",null,null,null,null,null,null,null,null,null,null,null,null,null,null,null,"Ministerio de Educación y Cultura\nDirección de Educación\n",null,null,null,null,null,null,null,null,null,null,null,null,null,null,null,"Ministerio de Educación y Cultura\nDirección de Educación\n",null,null,null,null,null,null,null,null,null,null,null,null,null,null,null,"Ministerio de Educación y Cultura\nDirección de Educación\n",null,null,null,null,null,null,null,null,null,null,null,null,null,null,null,"Ministerio de Educación y Cultura\nDirección de Educación\n",null,null,null,null,null,null,null,null,null,null,null,null,null,null,null,"Ministerio de Educación y Cultura\nDirección de Educación\n",null,null,null,null,null,null,null,null,null,null,null,null,null,null,null,"Ministerio de Educación y Cultura\nDirección de Educación\n",null,null,null,null,null,null,null,null,null,null,null,null,null,null,null,"Ministerio de Educación y Cultura\nDirección de Educación\n",null,null,null,null,null,null,null,null,null,null,null,null,null,null,null,"Ministerio de Educación y Cultura\nDirección de Educación\n",null,null,null,null,null,null,null,null,null,null,null,null,null,null,null,"Ministerio de Educación y Cultura\nDirección de Educación\n",null,null,null,null,null,null,null,null,null,null,null,null,null,null,null,"Ministerio de Educación y Cultura\nDirección de Educación\n",null,null,null,null,null,null,null,null,null,null,null,null,null,null,null,"Ministerio de Educación y Cultura\nDirección de Educación\n",null,null,null,null,null,null,null,null,null,null,null,null,null,null,null,"Ministerio de Educación y Cultura\nDirección de Educación\n",null,null,null,null,null,null,null,null,null,null,null,null,null,null,null,"Ministerio de Educación y Cultura\nDirección de Educación\n",null,null,null,null,null,null,null,null,null,null,null,null,null,null,null,"Ministerio de Educación y Cultura\nDirección de Educación\n",null,null,null,null,null,null,null,null,null,null,null,null,null,null,null,"Ministerio de Educación y Cultura\nDirección de Educación\n",null,null,null,null,null,null,null,null,null,null,null,null,null,null,null,"Ministerio de Educación y Cultura\nDirección de Educación\n",null,null,null,null,null,null,null,null,null,null,null,null,null,null,null,"Ministerio de Educación y Cultura\nDirección de Educación\n",null,null,null,null,null,null,null,null,null,null,null,null,null,null,null,"Ministerio de Educación y Cultura\nDirección de Educación\n",null,null,null,null,null,null,null,null,null,null,null,null,null,null,null,"Ministerio de Educación y Cultura\nDirección de Educación\n",null,null,null,null,null,null,null,null,null,null,null,null,null,null,null,"Ministerio de Educación y Cultura\nDirección de Educación\n",null,null,null,null,null,null,null,null,null,null,null,null,null,null,null,"Ministerio de Educación y Cultura\nDirección de Educación\n",null,null,null,null,null,null,null,null,null,null,null,null,null,null,null,"Ministerio de Educación y Cultura\nDirección de Educación\n",null,null,null,null,null,null,null,null,null,null,null,null,null,null,null,"Ministerio de Educación y Cultura\nDirección de Educación\n",null,null,null,null,null,null,null,null,null,null,null,null,null,null,null,"Ministerio de Educación y Cultura\nDirección de Educación\n",null,null,null,null,null,null,null,null,null,null,null,null,null,null,null,"Ministerio de Educación y Cultura\nDirección de Educación\n",null,null,null,null,null,null,null,null,null,null,null,null,null,null,null,"Ministerio de Educación y Cultura\nDirección de Educación\n",null,null,null,null,null,null,null,null,null,null,null,null,null,null,null,"Ministerio de Educación y Cultura\nDirección de Educación\n",null,null,null,null,null,null,null,null,null,null,null,null,null,null,null,"Ministerio de Educación y Cultura\nDirección de Educación\n",null,null,null,null,null,null,null,null,null,null,null,null,null,null,null,"Ministerio de Educación y Cultura\nDirección de Educación\n",null,null,null,null,null,null,null,null,null,null,null,null,null,null,null,"Ministerio de Educación y Cultura\nDirección de Educación\n",null,null,null,null,null,null,null,null,null,null,null,null,null,null,null,"Ministerio de Educación y Cultura\nDirección de Educación\n",null,null,null,null,null,null,null,null,null,null,null,null,null,null,null,"Ministerio de Educación y Cultura\nDirección de Educación\n",null,null,null,null,null,null,null,null,null,null,null,null,null,null,null,"Ministerio de Educación y Cultura\nDirección de Educación\n",null,null,null,null,null,null,null,null,null,null,null,null,null,null,null,"Ministerio de Educación y Cultura\nDirección de Educación\n",null,null,null,null,null,null,null,null,null,null,null,null,null,null,null,"Ministerio de Educación y Cultura\nDirección de Educación\n",null,null,null,null,null,null,null,null,null,null,null,null,null,null,null,"Ministerio de Educación y Cultura\nDirección de Educación\n",null,null,null,null,null,null,null,null,null,null,null,null,null,null,null,"Ministerio de Educación y Cultura\nDirección de Educación\n",null,null,null,null,null,null,null,null,null,null,null,null,null,null,null,"Ministerio de Educación y Cultura\nDirección de Educación\n",null,null,null,null,null,null,null,null,null,null,null,null,null,null,null,"Ministerio de Educación y Cultura\nDirección de Educación\n",null,null,null,null,null,null,null,null,null,null,null,null,null,null,null,"Ministerio de Educación y Cultura\nDirección de Educación\n",null,null,null,null,null,null,null,null,null,null,null,null,null,null,null,"Ministerio de Educación y Cultura\nDirección de Educación\n",null,null,null,null,null,null,null,null,null,null,null,null,null,null,null,"Ministerio de Educación y Cultura\nDirección de Educación\n",null,null,null,null,null,null,null,null,null,null,null,null,null,null,null,"Ministerio de Educación y Cultura\nDirección de Educación\n",null,null,null,null,null,null,null,null,null,null,null,null,null,null,null,"Ministerio de Educación y Cultura\nDirección de Educación\n",null,null,null,null,null,null,null,null,null,null,null,null,null,null,null,"Ministerio de Educación y Cultura\nDirección de Educación\n",null,null,null,null,null,null,null,null,null,null,null,null,null,null,null,"Ministerio de Educación y Cultura\nDirección de Educación\n",null,null,null,null,null,null,null,null,null,null,null,null,null,null,null,"Ministerio de Educación y Cultura\nDirección de Educación\n",null,null,null,null,null,null,null,null,null,null,null,null,null,null,null,"Ministerio de Educación y Cultura\nDirección de Educación\n",null,null,null,null,null,null,null,null,null,null,null,null,null,null,null,"Ministerio de Educación y Cultura\nDirección de Educación\n",null,null,null,null,null,null,null,null,null,null,null,null,null,null,null,"Ministerio de Educación y Cultura\nDirección de Educación\n",null,null,null,null,null,null,null,null,null,null,null,null,null,null,null,"Ministerio de Educación y Cultura\nDirección de Educación\n",null,null,null,null,null,null,null,null,null,null,null,null,null,null,null,"Ministerio de Educación y Cultura\nDirección de Educación\n",null,null,null,null,null,null,null,null,null,null,null,null,null,null,null,"Ministerio de Educación y Cultura\nDirección de Educación\n",null,null,null,null,null,null,null,null,null,null,null,null,null,null,null,"Ministerio de Educación y Cultura\nDirección de Educación\n",null,null,null,null,null,null,null,null,null,null,null,null,null,null,null,"Ministerio de Educación y Cultura\nDirección de Educación\n",null,null,null,null,null,null,null,null,null,null,null,null,null,null,null,"Ministerio de Educación y Cultura\nDirección de Educación\n",null,null,null,null,null,null,null,null,null,null,null,null,null,null,null,"Ministerio de Educación y Cultura\nDirección de Educación\n",null,null,null,null,null,null,null,null,null,null,null,null,null,null,null,"Ministerio de Educación y Cultura\nDirección de Educación\n",null,null,null,null,null,null,null,null,null,null,null,null,null,null,null,"Ministerio de Educación y Cultura\nDirección de Educación\n",null,null,null,null,null,null,null,null,null,null,null,null,null,null,null,"Ministerio de Educación y Cultura\nDirección de Educación\n",null,null,null,null,null,null,null,null,null,null,null,null,null,null,null,"Ministerio de Educación y Cultura\nDirección de Educación\n",null,null,null,null,null,null,null,null,null,null,null,null,null,null,null,"Ministerio de Educación y Cultura\nDirección de Educación\n",null,null,null,null,null,null,null,null,null,null,null,null,null,null,null,"Ministerio de Educación y Cultura\nDirección de Educación\n",null,null,null,null,null,null,null,null,null,null,null,null,null,null,null,"Ministerio de Educación y Cultura\nDirección de Educación\n",null,null,null,null,null,null,null,null,null,null,null,null,null,null,null,"Ministerio de Educación y Cultura\nDirección de Educación\n",null,null,null,null,null,null,null,null,null,null,null,null,null,null,null,"Ministerio de Educación y Cultura\nDirección de Educación\n",null,null,null,null,null,null,null,null,null,null,null,null,null,null,null,"Ministerio de Educación y Cultura\nDirección de Educación\n",null,null,null,null,null,null,null,null,null,null,null,null,null,null,null,"Ministerio de Educación y Cultura\nDirección de Educación\n",null,null,null,null,null,null,null,null,null,null,null,null,null,null,null,"Ministerio de Educación y Cultura\nDirección de Educación\n",null,null,null,null,null,null,null,null,null,null,null,null,null,null,null,"Ministerio de Educación y Cultura\nDirección de Educación\n",null,null,null,null,null,null,null,null,null,null,null,null,null,null,null,"Ministerio de Educación y Cultura\nDirección de Educación\n",null,null,null,null,null,null,null,null,null,null,null,null,null,null,null,"Ministerio de Educación y Cultura\nDirección de Educación\n",null,null,null,null,null,null,null,null,null,null,null,null,null,null,null,"Ministerio de Educación y Cultura\nDirección de Educación\n",null,null,null,null,null,null,null,null,null,null,null,null,null,null,null,"Ministerio de Educación y Cultura\nDirección de Educación\n",null,null,null,null,null,null,null,null,null,null,null,null,null,null,null,"Ministerio de Educación y Cultura\nDirección de Educación\n",null,null,null,null,null,null,null,null,null,null,null,null,null,null,null,"Ministerio de Educación y Cultura\nDirección de Educación\n",null,null,null,null,null,null,null,null,null,null,null,null,null,null,null,"Ministerio de Educación y Cultura\nDirección de Educación\n",null,null,null,null,null,null,null,null,null,null,null,null,null,null,null,"Ministerio de Educación y Cultura\nDirección de Educación\n",null,null,null,null,null,null,null,null,null,null,null,null,null,null,null,"Ministerio de Educación y Cultura\nDirección de Educación\n",null,null,null,null,null,null,null,null,null,null,null,null,null,null,null,"Ministerio de Educación y Cultura\nDirección de Educación\n",null,null,null,null,null,null,null,null,null,null,null,null,null,null,null,"Ministerio de Educación y Cultura\nDirección de Educación\n",null,null,null,null,null,null,null,null,null,null,null,null,null,null,null,"Ministerio de Educación y Cultura\nDirección de Educación\n",null,null,null,null,null,null,null,null,null,null,null,null,null,null,null,"Ministerio de Educación y Cultura\nDirección de Educación\n",null,null,null,null,null,null,null,null,null,null,null,null,null,null,null,"Ministerio de Educación y Cultura\nDirección de Educación\n",null,null,null,null,null,null,null,null,null,null,null,null,null,null,null,"Ministerio de Educación y Cultura\nDirección de Educación\n",null,null,null,null,null,null,null,null,null,null,null,null,null,null,null,"Ministerio de Educación y Cultura\nDirección de Educación\n",null,null,null,null,null,null,null,null,null,null,null,null,null,null,null,"Ministerio de Educación y Cultura\nDirección de Educación\n",null,null,null,null,null,null,null,null,null,null,null,null,null,null,null,"Ministerio de Educación y Cultura\nDirección de Educación\n",null,null,null,null,null,null,null,null,null,null,null,null,null,null,null,"Ministerio de Educación y Cultura\nDirección de Educación\n",null,null,null,null,null,null,null,null,null,null,null,null,null,null,null,"Ministerio de Educación y Cultura\nDirección de Educación\n",null,null,null,null,null,null,null,null,null,null,null,null,null,null,null,"Ministerio de Educación y Cultura\nDirección de Educación\n",null,null,null,null,null,null,null,null,null,null,null,null,null,null,null,"Ministerio de Educación y Cultura\nDirección de Educación\n",null,null,null,null,null,null,null,null,null,null,null,null,null,null,null,"Ministerio de Educación y Cultura\nDirección de Educación\n",null,null,null,null,null,null,null,null,null,null,null,null,null,null,null,"Ministerio de Educación y Cultura\nDirección de Educación\n",null,null,null,null,null,null,null,null,null,null,null,null,null,null,null,"Ministerio de Educación y Cultura\nDirección de Educación\n",null,null,null,null,null,null,null,null,null,null,null,null,null,null,null,"Ministerio de Educación y Cultura\nDirección de Educación\n",null,null,null,null,null,null,null,null,null,null,null,null,null,null,null,"Ministerio de Educación y Cultura\nDirección de Educación\n",null,null,null,null,null,null,null,null,null,null,null,null,null,null,null,"Ministerio de Educación y Cultura\nDirección de Educación\n",null,null,null,null,null,null,null,null,null,null,null,null,null,null,null,"Ministerio de Educación y Cultura\nDirección de Educación\n",null,null,null,null,null,null,null,null,null,null,null,null,null,null,null,"Ministerio de Educación y Cultura\nDirección de Educación\n",null,null,null,null,null,null,null,null,null,null,null,null,null,null,null,"Ministerio de Educación y Cultura\nDirección de Educación\n",null,null,null,null,null,null,null,null,null,null,null,null,null,null,null,"Ministerio de Educación y Cultura\nDirección de Educación\n",null,null,null,null,null,null,null,null,null,null,null,null,null,null,null,"Ministerio de Educación y Cultura\nDirección de Educación\n",null,null,null,null,null,null,null,null,null,null,null,null,null,null,null,"Ministerio de Educación y Cultura\nDirección de Educación\n",null,null,null,null,null,null,null,null,null,null,null,null,null,null,null,"Ministerio de Educación y Cultura\nDirección de Educación\n",null,null,null,null,null,null,null,null,null,null,null,null,null,null,null,"Ministerio de Educación y Cultura\nDirección de Educación\n",null,null,null,null,null,null,null,null,null,null,null,null,null,null,null,"Ministerio de Educación y Cultura\nDirección de Educación\n",null,null,null,null,null,null,null,null,null,null,null,null,null,null,null,"Ministerio de Educación y Cultura\nDirección de Educación\n",null,null,null,null,null,null,null,null,null,null,null,null,null,null,null,"Ministerio de Educación y Cultura\nDirección de Educación\n",null,null,null,null,null,null,null,null,null,null,null,null,null,null,null,"Ministerio de Educación y Cultura\nDirección de Educación\n",null,null,null,null,null,null,null,null,null,null,null,null,null,null,null,"Ministerio de Educación y Cultura\nDirección de Educación\n",null,null,null,null,null,null,null,null,null,null,null,null,null,null,null,"Ministerio de Educación y Cultura\nDirección de Educación\n",null,null,null,null,null,null,null,null,null,null,null,null,null,null,null,"Ministerio de Educación y Cultura\nDirección de Educación\n",null,null,null,null,null,null,null,null,null,null,null,null,null,null,null,"Ministerio de Educación y Cultura\nDirección de Educación\n",null,null,null,null,null,null,null,null,null,null,null,null,null,null,null,"Ministerio de Educación y Cultura\nDirección de Educación\n",null,null,null,null,null,null,null,null,null,null,null,null,null,null,null,"Ministerio de Educación y Cultura\nDirección de Educación\n",null,null,null,null,null,null,null,null,null,null,null,null,null,null,null,"Ministerio de Educación y Cultura\nDirección de Educación\n",null,null,null,null,null,null,null,null,null,null,null,null,null,null,null,"Ministerio de Educación y Cultura\nDirección de Educación\n",null,null,null,null,null,null,null,null,null,null,null,null,null,null,null,"Ministerio de Educación y Cultura\nDirección de Educación\n",null,null,null,null,null,null,null,null,null,null,null,null,null,null,null,"Ministerio de Educación y Cultura\nDirección de Educación\n",null,null,null,null,null,null,null,null,null,null,null,null,null,null,null,"Ministerio de Educación y Cultura\nDirección de Educación\n",null,null,null,null,null,null,null,null,null,null,null,null,null,null,null,"Ministerio de Educación y Cultura\nDirección de Educación\n",null,null,null,null,null,null,null,null,null,null,null,null,null,null,null,"Ministerio de Educación y Cultura\nDirección de Educación\n",null,null,null,null,null,null,null,null,null,null,null,null,null,null,null,"Ministerio de Educación y Cultura\nDirección de Educación\n",null,null,null,null,null,null,null,null,null,null,null,null,null,null,null,"Ministerio de Educación y Cultura\nDirección de Educación\n",null,null,null,null,null,null,null,null,null,null,null,null,null,null,null,"Ministerio de Educación y Cultura\nDirección de Educación\n",null,null,null,null,null,null,null,null,null,null,null,null,null,null,null,"Ministerio de Educación y Cultura\nDirección de Educación\n",null,null,null,null,null,null,null,null,null,null,null,null,null,null,null,"Ministerio de Educación y Cultura\nDirección de Educación\n",null,null,null,null,null,null,null,null,null,null,null,null,null,null,null,"Ministerio de Educación y Cultura\nDirección de Educación\n",null,null,null,null,null,null,null,null,null,null,null,null,null,null,null,"Ministerio de Educación y Cultura\nDirección de Educación\n",null,null,null,null,null,null,null,null,null,null,null,null,null,null,null,"Ministerio de Educación y Cultura\nDirección de Educación\n",null,null,null,null,null,null,null,null,null,null,null,null,null,null,null,"Ministerio de Educación y Cultura\nDirección de Educación\n",null,null,null,null,null,null,null,null,null,null,null,null,null,null,null,"Ministerio de Educación y Cultura\nDirección de Educación\n",null,null,null,null,null,null,null,null,null,null,null,null,null,null,null,"Ministerio de Educación y Cultura\nDirección de Educación\n",null,null,null,null,null,null,null,null,null,null,null,null,null,null,null,"Ministerio de Educación y Cultura\nDirección de Educación\n",null,null,null,null,null,null,null,null,null,null,null,null,null,null,null,"Ministerio de Educación y Cultura\nDirección de Educación\n",null,null,null,null,null,null,null,null,null,null,null,null,null,null,null,"Ministerio de Educación y Cultura\nDirección de Educación\n",null,null,null,null,null,null,null,null,null,null,null,null,null,null,null,"Ministerio de Educación y Cultura\nDirección de Educación\n",null,null,null,null,null,null,null,null,null,null,null,null,null,null,null,"Ministerio de Educación y Cultura\nDirección de Educación\n",null,null,null,null,null,null,null,null,null,null,null,null,null,null,null,"Ministerio de Educación y Cultura\nDirección de Educación\n",null,null,null,null,null,null,null,null,null,null,null,null,null,null,null,"Ministerio de Educación y Cultura\nDirección de Educación\n",null,null,null,null,null,null,null,null,null,null,null,null,null,null,null,"Ministerio de Educación y Cultura\nDirección de Educación\n",null,null,null,null,null,null,null,null,null,null,null,null,null,null,null,"Ministerio de Educación y Cultura\nDirección de Educación\n",null,null,null,null,null,null,null,null,null,null,null,null,null,null,null,"Ministerio de Educación y Cultura\nDirección de Educación\n",null,null,null,null,null,null,null,null,null,null,null,null,null,null,null,"Ministerio de Educación y Cultura\nDirección de Educación\n",null,null,null,null,null,null,null,null,null,null,null,null,null,null,null,"Ministerio de Educación y Cultura\nDirección de Educación\n",null,null,null,null,null,null,null,null,null,null,null,null,null,null,null,"Ministerio de Educación y Cultura\nDirección de Educación\n",null,null,null,null,null,null,null,null,null,null,null,null,null,null,null,"Ministerio de Educación y Cultura\nDirección de Educación\n",null,null,null,null,null,null,null,null,null,null,null,null,null,null,null,"Ministerio de Educación y Cultura\nDirección de Educación\n",null,null,null,null,null,null,null,null,null,null,null,null,null,null,null,"Ministerio de Educación y Cultura\nDirección de Educación\n",null,null,null,null,null,null,null,null,null,null,null,null,null,null,null,"Ministerio de Educación y Cultura\nDirección de Educación\n",null,null,null,null,null,null,null,null,null,null,null,null,null,null,null,"Ministerio de Educación y Cultura\nDirección de Educación\n",null,null,null,null,null,null,null,null,null,null,null,null,null,null,null,"Ministerio de Educación y Cultura\nDirección de Educación\n",null,null,null,null,null,null,null,null,null,null,null,null,null,null,null,"Ministerio de Educación y Cultura\nDirección de Educación\n",null,null,null,null,null,null,null,null,null,null,null,null,null,null,null,"Ministerio de Educación y Cultura\nDirección de Educación\n",null,null,null,null,null,null,null,null,null,null,null,null,null,null,null,"Ministerio de Educación y Cultura\nDirección de Educación\n",null,null,null,null,null,null,null,null,null,null,null,null,null,null,null,"Ministerio de Educación y Cultura\nDirección de Educación\n",null,null,null,null,null,null,null,null,null,null,null,null,null,null,null,"Ministerio de Educación y Cultura\nDirección de Educación\n",null,null,null,null,null,null,null,null,null,null,null,null,null,null,null,"Ministerio de Educación y Cultura\nDirección de Educación\n",null,null,null,null,null,null,null,null,null,null,null,null,null,null,null,"Ministerio de Educación y Cultura\nDirección de Educación\n",null,null,null,null,null,null,null,null,null,null,null,null,null,null,null,"Ministerio de Educación y Cultura\nDirección de Educación\n",null,null,null,null,null,null,null,null,null,null,null,null,null,null,null,"Ministerio de Educación y Cultura\nDirección de Educación\n",null,null,null,null,null,null,null,null,null,null,null,null,null,null,null,"Ministerio de Educación y Cultura\nDirección de Educación\n",null,null,null,null,null,null,null,null,null,null,null,null,null,null,null,"Ministerio de Educación y Cultura\nDirección de Educación\n",null,null,null,null,null,null,null,null,null,null,null,null,null,null,null,"Ministerio de Educación y Cultura\nDirección de Educación\n",null,null,null,null,null,null,null,null,null,null,null,null,null,null,null,"Ministerio de Educación y Cultura\nDirección de Educación\n",null,null,null,null,null,null,null,null,null,null,null,null,null,null,null,"Ministerio de Educación y Cultura\nDirección de Educación\n",null,null,null,null,null,null,null,null,null,null,null,null,null,null,null,"Ministerio de Educación y Cultura\nDirección de Educación\n",null,null,null,null,null,null,null,null,null,null,null,null,null,null,null,"Ministerio de Educación y Cultura\nDirección de Educación\n",null,null,null,null,null,null,null,null,null,null,null,null,null,null,null,"Ministerio de Educación y Cultura\nDirección de Educación\n",null,null,null,null,null,null,null,null,null,null,null,null,null,null,null,"Ministerio de Educación y Cultura\nDirección de Educación\n",null,null,null,null,null,null,null,null,null,null,null,null,null,null,null,"Ministerio de Educación y Cultura\nDirección de Educación\n",null,null,null,null,null,null,null,null,null,null,null,null,null,null,null,"Ministerio de Educación y Cultura\nDirección de Educación\n",null,null,null,null,null,null,null,null,null,null,null,null,null,null,null,"Ministerio de Educación y Cultura\nDirección de Educación\n",null,null,null,null,null,null,null,null,null,null,null,null,null,null,null,"Ministerio de Educación y Cultura\nDirección de Educación\n",null,null,null,null,null,null,null,null,null,null,null,null,null,null,null,"Ministerio de Educación y Cultura\nDirección de Educación\n",null,null,null,null,null,null,null,null,null,null,null,null,null,null,null,"Ministerio de Educación y Cultura\nDirección de Educación\n",null,null,null,null,null,null,null,null,null,null,null,null,null,null,null,"Ministerio de Educación y Cultura\nDirección de Educación\n",null,null,null,null,null,null,null,null,null,null,null,null,null,null,null,"Ministerio de Educación y Cultura\nDirección de Educación\n",null,null,null,null,null,null,null,null,null,null,null,null,null,null,null,"Ministerio de Educación y Cultura\nDirección de Educación\n",null,null,null,null,null,null,null,null,null,null,null,null,null,null,null,"Ministerio de Educación y Cultura\nDirección de Educación\n",null,null,null,null,null,null,null,null,null,null,null,null,null,null,null,"Ministerio de Educación y Cultura\nDirección de Educación\n",null,null,null,null,null,null,null,null,null,null,null,null,null,null,null,"Ministerio de Educación y Cultura\nDirección de Educación\n",null,null,null,null,null,null,null,null,null,null,null,null,null,null,null,"Ministerio de Educación y Cultura\nDirección de Educación\n",null,null,null,null,null,null,null,null,null,null,null,null,null,null,null,"Ministerio de Educación y Cultura\nDirección de Educación\n",null,null,null,null,null,null,null,null,null,null,null,null,null,null,null,"Ministerio de Educación y Cultura\nDirección de Educación\n",null,null,null,null,null,null,null,null,null,null,null,null,null,null,null,"Ministerio de Educación y Cultura\nDirección de Educación\n",null,null,null,null,null,null,null,null,null,null,null,null,null,null,null,"Ministerio de Educación y Cultura\nDirección de Educación\n",null,null,null,null,null,null,null,null,null,null,null,null,null,null,null,"Ministerio de Educación y Cultura\nDirección de Educación\n",null,null,null,null,null,null,null,null,null,null,null,null,null,null,null,"Ministerio de Educación y Cultura\nDirección de Educación\n",null,null,null,null,null,null,null,null,null,null,null,null,null,null,null,"Ministerio de Educación y Cultura\nDirección de Educación\n",null,null,null,null,null,null,null,null,null,null,null,null,null,null,null,"Ministerio de Educación y Cultura\nDirección de Educación\n",null,null,null,null,null,null,null,null,null,null,null,null,null,null,null,"Ministerio de Educación y Cultura\nDirección de Educación\n",null,null,null,null,null,null,null,null,null,null,null,null,null,null,null,"Ministerio de Educación y Cultura\nDirección de Educación\n",null,null,null,null,null,null,null,null,null,null,null,null,null,null,null,"Ministerio de Educación y Cultura\nDirección de Educación\n",null,null,null,null,null,null,null,null,null,null,null,null,null,null,null,"Ministerio de Educación y Cultura\nDirección de Educación\n",null,null,null,null,null,null,null,null,null,null,null,null,null,null,null,"Ministerio de Educación y Cultura\nDirección de Educación\n",null,null,null,null,null,null,null,null,null,null,null,null,null,null,null,"Ministerio de Educación y Cultura\nDirección de Educación\n",null,null,null,null,null,null,null,null,null,null,null,null,null,null,null,"Ministerio de Educación y Cultura\nDirección de Educación\n",null,null,null,null,null,null,null,null,null,null,null,null,null,null,null,"Ministerio de Educación y Cultura\nDirección de Educación\n",null,null,null,null,null,null,null,null,null,null,null,null,null,null,null,"Ministerio de Educación y Cultura\nDirección de Educación\n",null,null,null,null,null,null,null,null,null,null,null,null,null,null,null,"Ministerio de Educación y Cultura\nDirección de Educación\n",null,null,null,null,null,null,null,null,null,null,null,null,null,null,null,"Ministerio de Educación y Cultura\nDirección de Educación\n",null,null,null,null,null,null,null,null,null,null,null,null,null,null,null,"Ministerio de Educación y Cultura\nDirección de Educación\n",null,null,null,null,null,null,null,null,null,null,null,null,null,null,null,"Ministerio de Educación y Cultura\nDirección de Educación\n",null,null,null,null,null,null,null,null,null,null,null,null,null,null,null,"Ministerio de Educación y Cultura\nDirección de Educación\n",null,null,null,null,null,null,null,null,null,null,null,null,null,null,null,"Ministerio de Educación y Cultura\nDirección de Educación\n",null,null,null,null,null,null,null,null,null,null,null,null,null,null,null,"Ministerio de Educación y Cultura\nDirección de Educación\n",null,null,null,null,null,null,null,null,null,null,null,null,null,null,null,"Ministerio de Educación y Cultura\nDirección de Educación\n",null,null,null,null,null,null,null,null,null,null,null,null,null,null,null,"Ministerio de Educación y Cultura\nDirección de Educación\n",null,null,null,null,null,null,null,null,null,null,null,null,null,null,null,"Ministerio de Educación y Cultura\nDirección de Educación\n",null,null,null,null,null,null,null,null,null,null,null,null,null,null,null,"Ministerio de Educación y Cultura\nDirección de Educación\n",null,null,null,null,null,null,null,null,null,null,null,null,null,null,null,"Ministerio de Educación y Cultura\nDirección de Educación\n",null,null,null,null,null,null,null,null,null,null,null,null,null,null,null,"Ministerio de Educación y Cultura\nDirección de Educación\n",null,null,null,null,null,null,null,null,null,null,null,null,null,null,null,"Ministerio de Educación y Cultura\nDirección de Educación\n",null,null,null,null,null,null,null,null,null,null,null,null,null,null,null,"Ministerio de Educación y Cultura\nDirección de Educación\n",null,null,null,null,null,null,null,null,null,null,null,null,null,null,null,"Ministerio de Educación y Cultura\nDirección de Educación\n",null,null,null,null,null,null,null,null,null,null,null,null,null,null,null,"Ministerio de Educación y Cultura\nDirección de Educación\n",null,null,null,null,null,null,null,null,null,null,null,null,null,null,null,"Ministerio de Educación y Cultura\nDirección de Educación\n",null,null,null,null,null,null,null,null,null,null,null,null,null,null,null,"Ministerio de Educación y Cultura\nDirección de Educación\n",null,null,null,null,null,null,null,null,null,null,null,null,null,null,null,"Ministerio de Educación y Cultura\nDirección de Educación\n",null,null,null,null,null,null,null,null,null,null,null,null,null,null,null,"Ministerio de Educación y Cultura\nDirección de Educación\n",null,null,null,null,null,null,null,null,null,null,null,null,null,null,null,"Ministerio de Educación y Cultura\nDirección de Educación\n",null,null,null,null,null,null,null,null,null,null,null,null,null,null,null,"Ministerio de Educación y Cultura\nDirección de Educación\n",null,null,null,null,null,null,null,null,null,null,null,null,null,null,null,"Ministerio de Educación y Cultura\nDirección de Educación\n",null,null,null,null,null,null,null,null,null,null,null,null,null,null,null,"Ministerio de Educación y Cultura\nDirección de Educación\n",null,null,null,null,null,null,null,null,null,null,null,null,null,null,null,"Ministerio de Educación y Cultura\nDirección de Educación\n",null,null,null,null,null,null,null,null,null,null,null,null,null,null,null,"Ministerio de Educación y Cultura\nDirección de Educación\n",null,null,null,null,null,null,null,null,null,null,null,null,null,null,null,"Ministerio de Educación y Cultura\nDirección de Educación\n",null,null,null,null,null,null,null,null,null,null,null,null,null,null,null,"Ministerio de Educación y Cultura\nDirección de Educación\n",null,null,null,null,null,null,null,null,null,null,null,null,null,null,null,"Ministerio de Educación y Cultura\nDirección de Educación\n",null,null,null,null,null,null,null,null,null,null,null,null,null,null,null,"Ministerio de Educación y Cultura\nDirección de Educación\n",null,null,null,null,null,null,null,null,null,null,null,null,null,null,null,"Ministerio de Educación y Cultura\nDirección de Educación\n",null,null,null,null,null,null,null,null,null,null,null,null,null,null,null,"Ministerio de Educación y Cultura\nDirección de Educación\n",null,null,null,null,null,null,null,null,null,null,null,null,null,null,null,"Ministerio de Educación y Cultura\nDirección de Educación\n",null,null,null,null,null,null,null,null,null,null,null,null,null,null,null,"Ministerio de Educación y Cultura\nDirección de Educación\n",null,null,null,null,null,null,null,null,null,null,null,null,null,null,null,"Ministerio de Educación y Cultura\nDirección de Educación\n",null,null,null,null,null,null,null,null,null,null,null,null,null,null,null,"Ministerio de Educación y Cultura\nDirección de Educación\n",null,null,null,null,null,null,null,null,null,null,null,null,null,null,null,"Ministerio de Educación y Cultura\nDirección de Educación\n",null,null,null,null,null,null,null,null,null,null,null,null,null,null,null,"Ministerio de Educación y Cultura\nDirección de Educación\n",null,null,null,null,null,null,null,null,null,null,null,null,null,null,null,"Ministerio de Educación y Cultura\nDirección de Educación\n",null,null,null,null,null,null,null,null,null,null,null,null,null,null,null,"Ministerio de Educación y Cultura\nDirección de Educación\n",null,null,null,null,null,null,null,null,null,null,null,null,null,null,null,"Ministerio de Educación y Cultura\nDirección de Educación\n",null,null,null,null,null,null,null,null,null,null,null,null,null,null,null,"Ministerio de Educación y Cultura\nDirección de Educación\n",null,null,null,null,null,null,null,null,null,null,null,null,null,null,null,"Ministerio de Educación y Cultura\nDirección de Educación\n",null,null,null,null,null,null,null,null,null,null,null,null,null,null,null,"Ministerio de Educación y Cultura\nDirección de Educación\n",null,null,null,null,null,null,null,null,null,null,null,null,null,null,null,"Ministerio de Educación y Cultura\nDirección de Educación\n",null,null,null,null,null,null,null,null,null,null,null,null,null,null,null,"Ministerio de Educación y Cultura\nDirección de Educación\n",null,null,null,null,null,null,null,null,null,null,null,null,null,null,null,"Ministerio de Educación y Cultura\nDirección de Educación\n",null,null,null,null,null,null,null,null,null,null,null,null,null,null,null,"Ministerio de Educación y Cultura\nDirección de Educación\n",null,null,null,null,null,null,null,null,null,null,null,null,null,null,null,"Ministerio de Educación y Cultura\nDirección de Educación\n",null,null,null,null,null,null,null,null,null,null,null,null,null,null,null,"Ministerio de Educación y Cultura\nDirección de Educación\n",null,null,null,null,null,null,null,null,null,null,null,null,null,null,null,"Ministerio de Educación y Cultura\nDirección de Educación\n",null,null,null,null,null,null,null,null,null,null,null,null,null,null,null,"Ministerio de Educación y Cultura\nDirección de Educación\n",null,null,null,null,null,null,null,null,null,null,null,null,null,null,null,"Ministerio de Educación y Cultura\nDirección de Educación\n",null,null,null,null,null,null,null,null,null,null,null,null,null,null,null,"Ministerio de Educación y Cultura\nDirección de Educación\n",null,null,null,null,null,null,null,null,null,null,null,null,null,null,null,"Ministerio de Educación y Cultura\nDirección de Educación\n",null,null,null,null,null,null,null,null,null,null,null,null,null,null,null,"Ministerio de Educación y Cultura\nDirección de Educación\n",null,null,null,null,null,null,null,null,null,null,null,null,null,null,null,"Ministerio de Educación y Cultura\nDirección de Educación\n",null,null,null,null,null,null,null,null,null,null,null,null,null,null,null,"Ministerio de Educación y Cultura\nDirección de Educación\n",null,null,null,null,null,null,null,null,null,null,null,null,null,null,null,"Ministerio de Educación y Cultura\nDirección de Educación\n",null,null,null,null,null,null,null,null,null,null,null,null,null,null,null,"Ministerio de Educación y Cultura\nDirección de Educación\n",null,null,null,null,null,null,null,null,null,null,null,null,null,null,null,"Ministerio de Educación y Cultura\nDirección de Educación\n",null,null,null,null,null,null,null,null,null,null,null,null,null,null,null,"Ministerio de Educación y Cultura\nDirección de Educación\n",null,null,null,null,null,null,null,null,null,null,null,null,null,null,null,"Ministerio de Educación y Cultura\nDirección de Educación\n",null,null,null,null,null,null,null,null,null,null,null,null,null,null,null,"Ministerio de Educación y Cultura\nDirección de Educación\n",null,null,null,null,null,null,null,null,null,null,null,null,null,null,null,"Ministerio de Educación y Cultura\nDirección de Educación\n",null,null,null,null,null,null,null,null,null,null,null,null,null,null,null,"Ministerio de Educación y Cultura\nDirección de Educación\n",null,null,null,null,null,null,null,null,null,null,null,null,null,null,null,"Ministerio de Educación y Cultura\nDirección de Educación\n",null,null,null,null,null,null,null,null,null,null,null,null,null,null,null,"Ministerio de Educación y Cultura\nDirección de Educación\n",null,null,null,null,null,null,null,null,null,null,null,null,null,null,null,"Ministerio de Educación y Cultura\nDirección de Educación\n",null,null,null,null,null,null,null,null,null,null,null,null,null,null,null,"Ministerio de Educación y Cultura\nDirección de Educación\n",null,null,null,null,null,null,null,null,null,null,null,null,null,null,null,"Ministerio de Educación y Cultura\nDirección de Educación\n",null,null,null,null,null,null,null,null,null,null,null,null,null,null,null,"Ministerio de Educación y Cultura\nDirección de Educación\n",null,null,null,null,null,null,null,null,null,null,null,null,null,null,null,"Ministerio de Educación y Cultura\nDirección de Educación\n",null,null,null,null,null,null,null,null,null,null,null,null,null,null,null,"Ministerio de Educación y Cultura\nDirección de Educación\n",null,null,null,null,null,null,null,null,null,null,null,null,null,null,null,"Ministerio de Educación y Cultura\nDirección de Educación\n",null,null,null,null,null,null,null,null,null,null,null,null,null,null,null,"Ministerio de Educación y Cultura\nDirección de Educación\n",null,null,null,null,null,null,null,null,null,null,null,null,null,null,null,"Ministerio de Educación y Cultura\nDirección de Educación\n",null,null,null,null,null,null,null,null,null,null,null,null,null,null,null,"Ministerio de Educación y Cultura\nDirección de Educación\n",null,null,null,null,null,null,null,null,null,null,null,null,null,null,null,"Ministerio de Educación y Cultura\nDirección de Educación\n",null,null,null,null,null,null,null,null,null,null,null,null,null,null,null,"Ministerio de Educación y Cultura\nDirección de Educación\n",null,null,null,null,null,null,null,null,null,null,null,null,null,null,null,"Ministerio de Educación y Cultura\nDirección de Educación\n",null,null,null,null,null,null,null,null,null,null,null,null,null,null,null,"Ministerio de Educación y Cultura\nDirección de Educación\n",null,null,null,null,null,null,null,null,null,null,null,null,null,null,null,"Ministerio de Educación y Cultura\nDirección de Educación\n",null,null,null,null,null,null,null,null,null,null,null,null,null,null,null,"Ministerio de Educación y Cultura\nDirección de Educación\n",null,null,null,null,null,null,null,null,null,null,null,null,null,null,null,"Ministerio de Educación y Cultura\nDirección de Educación\n",null,null,null,null,null,null,null,null,null,null,null,null,null,null,null,"Ministerio de Educación y Cultura\nDirección de Educación\n",null,null,null,null,null,null,null,null,null,null,null,null,null,null,null,"Ministerio de Educación y Cultura\nDirección de Educación\n",null,null,null,null,null,null,null,null,null,null,null,null,null,null,null,"Ministerio de Educación y Cultura\nDirección de Educación\n",null,null,null,null,null,null,null,null,null,null,null,null,null,null,null,"Ministerio de Educación y Cultura\nDirección de Educación\n",null,null,null,null,null,null,null,null,null,null,null,null,null,null,null,"Ministerio de Educación y Cultura\nDirección de Educación\n",null,null,null,null,null,null,null,null,null,null,null,null,null,null,null,"Ministerio de Educación y Cultura\nDirección de Educación\n",null,null,null,null,null,null,null,null,null,null,null,null,null,null,null,"Ministerio de Educación y Cultura\nDirección de Educación\n",null,null,null,null,null,null,null,null,null,null,null,null,null,null,null,"Ministerio de Educación y Cultura\nDirección de Educación\n",null,null,null,null,null,null,null,null,null,null,null,null,null,null,null,"Ministerio de Educación y Cultura\nDirección de Educación\n",null,null,null,null,null,null,null,null,null,null,null,null,null,null,null,"Ministerio de Educación y Cultura\nDirección de Educación\n",null,null,null,null,null,null,null,null,null,null,null,null,null,null,null,"Ministerio de Educación y Cultura\nDirección de Educación\n",null,null,null,null,null,null,null,null,null,null,null,null,null,null,null,"Ministerio de Educación y Cultura\nDirección de Educación\n",null,null,null,null,null,null,null,null,null,null,null,null,null,null,null,"Ministerio de Educación y Cultura\nDirección de Educación\n",null,null,null,null,null,null,null,null,null,null,null,null,null,null,null,"Ministerio de Educación y Cultura\nDirección de Educación\n",null,null,null,null,null,null,null,null,null,null,null,null,null,null,null,"Ministerio de Educación y Cultura\nDirección de Educación\n",null,null,null,null,null,null,null,null,null,null,null,null,null,null,null,"Ministerio de Educación y Cultura\nDirección de Educación\n",null,null,null,null,null,null,null,null,null,null,null,null,null,null,null,"Ministerio de Educación y Cultura\nDirección de Educación\n",null,null,null,null,null,null,null,null,null,null,null,null,null,null,null,"Ministerio de Educación y Cultura\nDirección de Educación\n",null,null,null,null,null,null,null,null,null,null,null,null,null,null,null,"Ministerio de Educación y Cultura\nDirección de Educación\n",null,null,null,null,null,null,null,null,null,null,null,null,null,null,null,"Ministerio de Educación y Cultura\nDirección de Educación\n",null,null,null,null,null,null,null,null,null,null,null,null,null,null,null,"Ministerio de Educación y Cultura\nDirección de Educación\n",null,null,null,null,null,null,null,null,null,null,null,null,null,null,null,"Ministerio de Educación y Cultura\nDirección de Educación\n",null,null,null,null,null,null,null,null,null,null,null,null,null,null,null,"Ministerio de Educación y Cultura\nDirección de Educación\n",null,null,null,null,null,null,null,null,null,null,null,null,null,null,null,"Ministerio de Educación y Cultura\nDirección de Educación\n",null,null,null,null,null,null,null,null,null,null,null,null,null,null,null,"Ministerio de Educación y Cultura\nDirección de Educación\n",null,null,null,null,null,null,null,null,null,null,null,null,null,null,null,"Ministerio de Educación y Cultura\nDirección de Educación\n",null,null,null,null,null,null,null,null,null,null,null,null,null,null,null,"Ministerio de Educación y Cultura\nDirección de Educación\n",null,null,null,null,null,null,null,null,null,null,null,null,null,null,null,"Ministerio de Educación y Cultura\nDirección de Educación\n",null,null,null,null,null,null,null,null,null,null,null,null,null,null,null,"Ministerio de Educación y Cultura\nDirección de Educación\n",null,null,null,null,null,null,null,null,null,null,null,null,null,null,null,"Ministerio de Educación y Cultura\nDirección de Educación\n",null,null,null,null,null,null,null,null,null,null,null,null,null,null,null,"Ministerio de Educación y Cultura\nDirección de Educación\n",null,null,null,null,null,null,null,null,null,null,null,null,null,null,null,"Ministerio de Educación y Cultura\nDirección de Educación\n",null,null,null,null,null,null,null,null,null,null,null,null,null,null,null,"Ministerio de Educación y Cultura\nDirección de Educación\n",null,null,null,null,null,null,null,null,null,null,null,null,null,null,null,"Ministerio de Educación y Cultura\nDirección de Educación\n",null,null,null,null,null,null,null,null,null,null,null,null,null,null,null,"Ministerio de Educación y Cultura\nDirección de Educación\n",null,null,null,null,null,null,null,null,null,null,null,null,null,null,null,"Ministerio de Educación y Cultura\nDirección de Educación\n",null,null,null,null,null,null,null,null,null,null,null,null,null,null,null,"Ministerio de Educación y Cultura\nDirección de Educación\n",null,null,null,null,null,null,null,null,null,null,null,null,null,null,null,"Ministerio de Educación y Cultura\nDirección de Educación\n",null,null,null,null,null,null,null,null,null,null,null,null,null,null,null,"Ministerio de Educación y Cultura\nDirección de Educación\n",null,null,null,null,null,null,null,null,null,null,null,null,null,null,null,"Ministerio de Educación y Cultura\nDirección de Educación\n",null,null,null,null,null,null,null,null,null,null,null,null,null,null,null,"Ministerio de Educación y Cultura\nDirección de Educación\n",null,null,null,null,null,null,null,null,null,null,null,null,null,null,null,"Ministerio de Educación y Cultura\nDirección de Educación\n",null,null,null,null,null,null,null,null,null,null,null,null,null,null,null,"Ministerio de Educación y Cultura\nDirección de Educación\n",null,null,null,null,null,null,null,null,null,null,null,null,null,null,null,"Ministerio de Educación y Cultura\nDirección de Educación\n",null,null,null,null,null,null,null,null,null,null,null,null,null,null,null,"Ministerio de Educación y Cultura\nDirección de Educación\n",null,null,null,null,null,null,null,null,null,null,null,null,null,null,null,"Ministerio de Educación y Cultura\nDirección de Educación\n",null,null,null,null,null,null,null,null,null,null,null,null,null,null,null,"Ministerio de Educación y Cultura\nDirección de Educación\n",null,null,null,null,null,null,null,null,null,null,null,null,null,null,null,"Ministerio de Educación y Cultura\nDirección de Educación\n",null,null,null,null,null,null,null,null,null,null,null,null,null,null,null,"Ministerio de Educación y Cultura\nDirección de Educación\n",null,null,null,null,null,null,null,null,null,null,null,null,null,null,null,"Ministerio de Educación y Cultura\nDirección de Educación\n",null,null,null,null,null,null,null,null,null,null,null,null,null,null,null,"Ministerio de Educación y Cultura\nDirección de Educación\n",null,null,null,null,null,null,null,null,null,null,null,null,null,null,null,"Ministerio de Educación y Cultura\nDirección de Educación\n",null,null,null,null,null,null,null,null,null,null,null,null,null,null,null,"Ministerio de Educación y Cultura\nDirección de Educación\n",null,null,null,null,null,null,null,null,null,null,null,null,null,null,null,"Ministerio de Educación y Cultura\nDirección de Educación\n",null,null,null,null,null,null,null,null,null,null,null,null,null,null,null,"Ministerio de Educación y Cultura\nDirección de Educación\n",null,null,null,null,null,null,null,null,null,null,null,null,null,null,null,"Ministerio de Educación y Cultura\nDirección de Educación\n",null,null,null,null,null,null,null,null,null,null,null,null,null,null,null,"Ministerio de Educación y Cultura\nDirección de Educación\n",null,null,null,null,null,null,null,null,null,null,null,null,null,null,null,"Ministerio de Educación y Cultura\nDirección de Educación\n",null,null,null,null,null,null,null,null,null,null,null,null,null,null,null,"Ministerio de Educación y Cultura\nDirección de Educación\n",null,null,null,null,null,null,null,null,null,null,null,null,null,null,null,"Ministerio de Educación y Cultura\nDirección de Educación\n",null,null,null,null,null,null,null,null,null,null,null,null,null,null,null,"Ministerio de Educación y Cultura\nDirección de Educación\n",null,null,null,null,null,null,null,null,null,null,null,null,null,null,null,"Ministerio de Educación y Cultura\nDirección de Educación\n",null,null,null,null,null,null,null,null,null,null,null,null,null,null,null,"Ministerio de Educación y Cultura\nDirección de Educación\n",null,null,null,null,null,null,null,null,null,null,null,null,null,null,null,"Ministerio de Educación y Cultura\nDirección de Educación\n",null,null,null,null,null,null,null,null,null,null,null,null,null,null,null,"Ministerio de Educación y Cultura\nDirección de Educación\n",null,null,null,null,null,null,null,null,null,null,null,null,null,null,null,"Ministerio de Educación y Cultura\nDirección de Educación\n",null,null,null,null,null,null,null,null,null,null,null,null,null,null,null,"Ministerio de Educación y Cultura\nDirección de Educación\n",null,null,null,null,null,null,null,null,null,null,null,null,null,null,null,"Ministerio de Educación y Cultura\nDirección de Educación\n",null,null,null,null,null,null,null,null,null,null,null,null,null,null,null,"Ministerio de Educación y Cultura\nDirección de Educación\n",null,null,null,null,null,null,null,null,null,null,null,null,null,null,null,"Ministerio de Educación y Cultura\nDirección de Educación\n",null,null,null,null,null,null,null,null,null,null,null,null,null,null,null,"Ministerio de Educación y Cultura\nDirección de Educación\n",null,null,null,null,null,null,null,null,null,null,null,null,null,null,null,"Ministerio de Educación y Cultura\nDirección de Educación\n",null,null,null,null,null,null,null,null,null,null,null,null,null,null,null,"Ministerio de Educación y Cultura\nDirección de Educación\n",null,null,null,null,null,null,null,null,null,null,null,null,null,null,null,"Ministerio de Educación y Cultura\nDirección de Educación\n",null,null,null,null,null,null,null,null,null,null,null,null,null,null,null,"Ministerio de Educación y Cultura\nDirección de Educación\n",null,null,null,null,null,null,null,null,null,null,null,null,null,null,null,"Ministerio de Educación y Cultura\nDirección de Educación\n",null,null,null,null,null,null,null,null,null,null,null,null,null,null,null,"Ministerio de Educación y Cultura\nDirección de Educación\n",null,null,null,null,null,null,null,null,null,null,null,null,null,null,null,"Ministerio de Educación y Cultura\nDirección de Educación\n",null,null,null,null,null,null,null,null,null,null,null,null,null,null,null,"Ministerio de Educación y Cultura\nDirección de Educación\n",null,null,null,null,null,null,null,null,null,null,null,null,null,null,null,"Ministerio de Educación y Cultura\nDirección de Educación\n",null,null,null,null,null,null,null,null,null,null,null,null,null,null,null,"Ministerio de Educación y Cultura\nDirección de Educación\n",null,null,null,null,null,null,null,null,null,null,null,null,null,null,null,"Ministerio de Educación y Cultura\nDirección de Educación\n",null,null,null,null,null,null,null,null,null,null,null,null,null,null,null,"Ministerio de Educación y Cultura\nDirección de Educación\n",null,null,null,null,null,null,null,null,null,null,null,null,null,null,null,"Ministerio de Educación y Cultura\nDirección de Educación\n",null,null,null,null,null,null,null,null,null,null,null,null,null,null,null,"Ministerio de Educación y Cultura\nDirección de Educación\n",null,null,null,null,null,null,null,null,null,null,null,null,null,null,null,"Ministerio de Educación y Cultura\nDirección de Educación\n",null,null,null,null,null,null,null,null,null,null,null,null,null,null,null,"Ministerio de Educación y Cultura\nDirección de Educación\n",null,null,null,null,null,null,null,null,null,null,null,null,null,null,null,"Ministerio de Educación y Cultura\nDirección de Educación\n",null,null,null,null,null,null,null,null,null,null,null,null,null,null,null,"Ministerio de Educación y Cultura\nDirección de Educación\n",null,null,null,null,null,null,null,null,null,null,null,null,null,null,null,"Ministerio de Educación y Cultura\nDirección de Educación\n",null,null,null,null,null,null,null,null,null,null,null,null,null,null,null,"Ministerio de Educación y Cultura\nDirección de Educación\n",null,null,null,null,null,null,null,null,null,null,null,null,null,null,null,"Ministerio de Educación y Cultura\nDirección de Educación\n",null,null,null,null,null,null,null,null,null,null,null,null,null,null,null,"Ministerio de Educación y Cultura\nDirección de Educación\n",null,null,null,null,null,null,null,null,null,null,null,null,null,null,null,"Ministerio de Educación y Cultura\nDirección de Educación\n",null,null,null,null,null,null,null,null,null,null,null,null,null,null,null,"Ministerio de Educación y Cultura\nDirección de Educación\n",null,null,null,null,null,null,null,null,null,null,null,null,null,null,null,"Ministerio de Educación y Cultura\nDirección de Educación\n",null,null,null,null,null,null,null,null,null,null,null,null,null,null,null,"Ministerio de Educación y Cultura\nDirección de Educación\n",null,null,null,null,null,null,null,null,null,null,null,null,null,null,null,"Ministerio de Educación y Cultura\nDirección de Educación\n",null,null,null,null,null,null,null,null,null,null,null,null,null,null,null,"Ministerio de Educación y Cultura\nDirección de Educación\n",null,null,null,null,null,null,null,null,null,null,null,null,null,null,null,"Ministerio de Educación y Cultura\nDirección de Educación\n",null,null,null,null,null,null,null,null,null,null,null,null,null,null,null,"Ministerio de Educación y Cultura\nDirección de Educación\n",null,null,null,null,null,null,null,null,null,null,null,null,null,null,null,"Ministerio de Educación y Cultura\nDirección de Educación\n",null,null,null,null,null,null,null,null,null,null,null,null,null,null,null,"Ministerio de Educación y Cultura\nDirección de Educación\n",null,null,null,null,null,null,null,null,null,null,null,null,null,null,null,"Ministerio de Educación y Cultura\nDirección de Educación\n",null,null,null,null,null,null,null,null,null,null,null,null,null,null,null,"Ministerio de Educación y Cultura\nDirección de Educación\n",null,null,null,null,null,null,null,null,null,null,null,null,null,null,null,"Ministerio de Educación y Cultura\nDirección de Educación\n",null,null,null,null,null,null,null,null,null,null,null,null,null,null,null,"Ministerio de Educación y Cultura\nDirección de Educación\n",null,null,null,null,null,null,null,null,null,null,null,null,null,null,null,"Ministerio de Educación y Cultura\nDirección de Educación\n",null,null,null,null,null,null,null,null,null,null,null,null,null,null,null,"Ministerio de Educación y Cultura\nDirección de Educación\n",null,null,null,null,null,null,null,null,null,null,null,null,null,null,null,"Ministerio de Educación y Cultura\nDirección de Educación\n",null,null,null,null,null,null,null,null,null,null,null,null,null,null,null,"Ministerio de Educación y Cultura\nDirección de Educación\n",null,null,null,null,null,null,null,null,null,null,null,null,null,null,null,"Ministerio de Educación y Cultura\nDirección de Educación\n",null,null,null,null,null,null,null,null,null,null,null,null,null,null,null,"Ministerio de Educación y Cultura\nDirección de Educación\n",null,null,null,null,null,null,null,null,null,null,null,null,null,null,null,"Ministerio de Educación y Cultura\nDirección de Educación\n",null,null,null,null,null,null,null,null,null,null,null,null,null,null,null,"Ministerio de Educación y Cultura\nDirección de Educación\n",null,null,null,null,null,null,null,null,null,null,null,null,null,null,null,"Ministerio de Educación y Cultura\nDirección de Educación\n",null,null,null,null,null,null,null,null,null,null,null,null,null,null,null,"Ministerio de Educación y Cultura\nDirección de Educación\n",null,null,null,null,null,null,null,null,null,null,null,null,null,null,null,"Ministerio de Educación y Cultura\nDirección de Educación\n",null,null,null,null,null,null,null,null,null,null,null,null,null,null,null,"Ministerio de Educación y Cultura\nDirección de Educación\n",null,null,null,null,null,null,null,null,null,null,null,null,null,null,null,"Ministerio de Educación y Cultura\nDirección de Educación\n",null,null,null,null,null,null,null,null,null,null,null,null,null,null,null,"Ministerio de Educación y Cultura\nDirección de Educación\n",null,null,null,null,null,null,null,null,null,null,null,null,null,null,null,"Ministerio de Educación y Cultura\nDirección de Educación\n",null,null,null,null,null,null,null,null,null,null,null,null,null,null,null,"Ministerio de Educación y Cultura\nDirección de Educación\n",null,null,null,null,null,null,null,null,null,null,null,null,null,null,null,"Ministerio de Educación y Cultura\nDirección de Educación\n",null,null,null,null,null,null,null,null,null,null,null,null,null,null,null,"Ministerio de Educación y Cultura\nDirección de Educación\n",null,null,null,null,null,null,null,null,null,null,null,null,null,null,null,"Ministerio de Educación y Cultura\nDirección de Educación\n",null,null,null,null,null,null,null,null,null,null,null,null,null,null,null,"Ministerio de Educación y Cultura\nDirección de Educación\n",null,null,null,null,null,null,null,null,null,null,null,null,null,null,null,"Ministerio de Educación y Cultura\nDirección de Educación\n",null,null,null,null,null,null,null,null,null,null,null,null,null,null,null,"Ministerio de Educación y Cultura\nDirección de Educación\n",null,null,null,null,null,null,null,null,null,null,null,null,null,null,null,"Ministerio de Educación y Cultura\nDirección de Educación\n",null,null,null,null,null,null,null,null,null,null,null,null,null,null,null,"Ministerio de Educación y Cultura\nDirección de Educación\n",null,null,null,null,null,null,null,null,null,null,null,null,null,null,null,"Ministerio de Educación y Cultura\nDirección de Educación\n",null,null,null,null,null,null,null,null,null,null,null,null,null,null,null,"Ministerio de Educación y Cultura\nDirección de Educación\n",null,null,null,null,null,null,null,null,null,null,null,null,null,null,null,"Ministerio de Educación y Cultura\nDirección de Educación\n",null,null,null,null,null,null,null,null,null,null,null,null,null,null,null,"Ministerio de Educación y Cultura\nDirección de Educación\n",null,null,null,null,null,null,null,null,null,null,null,null,null,null,null,"Ministerio de Educación y Cultura\nDirección de Educación\n",null,null,null,null,null,null,null,null,null,null,null,null,null,null,null,"Ministerio de Educación y Cultura\nDirección de Educación\n",null,null,null,null,null,null,null,null,null,null,null,null,null,null,null,"Ministerio de Educación y Cultura\nDirección de Educación\n",null,null,null,null,null,null,null,null,null,null,null,null,null,null,null,"Ministerio de Educación y Cultura\nDirección de Educación\n",null,null,null,null,null,null,null,null,null,null,null,null,null,null,null,"Ministerio de Educación y Cultura\nDirección de Educación\n",null,null,null,null,null,null,null,null,null,null,null,null,null,null,null,"Ministerio de Educación y Cultura\nDirección de Educación\n",null,null,null,null,null,null,null,null,null,null,null,null,null,null,null,"Ministerio de Educación y Cultura\nDirección de Educación\n",null,null,null,null,null,null,null,null,null,null,null,null,null,null,null,"Ministerio de Educación y Cultura\nDirección de Educación\n",null,null,null,null,null,null,null,null,null,null,null,null,null,null,null,"Ministerio de Educación y Cultura\nDirección de Educación\n",null,null,null,null,null,null,null,null,null,null,null,null,null,null,null,"Ministerio de Educación y Cultura\nDirección de Educación\n",null,null,null,null,null,null,null,null,null,null,null,null,null,null,null,"Ministerio de Educación y Cultura\nDirección de Educación\n",null,null,null,null,null,null,null,null,null,null,null,null,null,null,null,"Ministerio de Educación y Cultura\nDirección de Educación\n",null,null,null,null,null,null,null,null,null,null,null,null,null,null,null,"Ministerio de Educación y Cultura\nDirección de Educación\n",null,null,null,null,null,null,null,null,null,null,null,null,null,null,null,"Ministerio de Educación y Cultura\nDirección de Educación\n",null,null,null,null,null,null,null,null,null,null,null,null,null,null,null,"Ministerio de Educación y Cultura\nDirección de Educación\n",null,null,null,null,null,null,null,null,null,null,null,null,null,null,null,"Ministerio de Educación y Cultura\nDirección de Educación\n",null,null,null,null,null,null,null,null,null,null,null,null,null,null,null,"Ministerio de Educación y Cultura\nDirección de Educación\n",null,null,null,null,null,null,null,null,null,null,null,null,null,null,null,"Ministerio de Educación y Cultura\nDirección de Educación\n",null,null,null,null,null,null,null,null,null,null,null,null,null,null,null,"Ministerio de Educación y Cultura\nDirección de Educación\n",null,null,null,null,null,null,null,null,null,null,null,null,null,null,null,"Ministerio de Educación y Cultura\nDirección de Educación\n",null,null,null,null,null,null,null,null,null,null,null,null,null,null,null,"Ministerio de Educación y Cultura\nDirección de Educación\n",null,null,null,null,null,null,null,null,null,null,null,null,null,null,null,"Ministerio de Educación y Cultura\nDirección de Educación\n",null,null,null,null,null,null,null,null,null,null,null,null,null,null,null,"Ministerio de Educación y Cultura\nDirección de Educación\n",null,null,null,null,null,null,null,null,null,null,null,null,null,null,null,"Ministerio de Educación y Cultura\nDirección de Educación\n",null,null,null,null,null,null,null,null,null,null,null,null,null,null,null,"Ministerio de Educación y Cultura\nDirección de Educación\n",null,null,null,null,null,null,null,null,null,null,null,null,null,null,null,"Ministerio de Educación y Cultura\nDirección de Educación\n",null,null,null,null,null,null,null,null,null,null,null,null,null,null,null,"Ministerio de Educación y Cultura\nDirección de Educación\n",null,null,null,null,null,null,null,null,null,null,null,null,null,null,null,"Ministerio de Educación y Cultura\nDirección de Educación\n",null,null,null,null,null,null,null,null,null,null,null,null,null,null,null,"Ministerio de Educación y Cultura\nDirección de Educación\n",null,null,null,null,null,null,null,null,null,null,null,null,null,null,null,"Ministerio de Educación y Cultura\nDirección de Educación\n",null,null,null,null,null,null,null,null,null,null,null,null,null,null,null,"Ministerio de Educación y Cultura\nDirección de Educación\n",null,null,null,null,null,null,null,null,null,null,null,null,null,null,null,"Ministerio de Educación y Cultura\nDirección de Educación\n",null,null,null,null,null,null,null,null,null,null,null,null,null,null,null,"Ministerio de Educación y Cultura\nDirección de Educación\n",null,null,null,null,null,null,null,null,null,null,null,null,null,null,null,"Ministerio de Educación y Cultura\nDirección de Educación\n",null,null,null,null,null,null,null,null,null,null,null,null,null,null,null,"Ministerio de Educación y Cultura\nDirección de Educación\n",null,null,null,null,null,null,null,null,null,null,null,null,null,null,null,"Ministerio de Educación y Cultura\nDirección de Educación\n",null,null,null,null,null,null,null,null,null,null,null,null,null,null,null,"Ministerio de Educación y Cultura\nDirección de Educación\n",null,null,null,null,null,null,null,null,null,null,null,null,null,null,null,"Ministerio de Educación y Cultura\nDirección de Educación\n",null,null,null,null,null,null,null,null,null,null,null,null,null,null,null,"Ministerio de Educación y Cultura\nDirección de Educación\n",null,null,null,null,null,null,null,null,null,null,null,null,null,null,null,"Ministerio de Educación y Cultura\nDirección de Educación\n",null,null,null,null,null,null,null,null,null,null,null,null,null,null,null,"Ministerio de Educación y Cultura\nDirección de Educación\n",null,null,null,null,null,null,null,null,null,null,null,null,null,null,null,"Ministerio de Educación y Cultura\nDirección de Educación\n",null,null,null,null,null,null,null,null,null,null,null,null,null,null,null,"Ministerio de Educación y Cultura\nDirección de Educación\n",null,null,null,null,null,null,null,null,null,null,null,null,null,null,null,"Ministerio de Educación y Cultura\nDirección de Educación\n",null,null,null,null,null,null,null,null,null,null,null,null,null,null,null,"Ministerio de Educación y Cultura\nDirección de Educación\n",null,null,null,null,null,null,null,null,null,null,null,null,null,null,null,"Ministerio de Educación y Cultura\nDirección de Educación\n",null,null,null,null,null,null,null,null,null,null,null,null,null,null,null,"Ministerio de Educación y Cultura\nDirección de Educación\n",null,null,null,null,null,null,null,null,null,null,null,null,null,null,null,"Ministerio de Educación y Cultura\nDirección de Educación\n",null,null,null,null,null,null,null,null,null,null,null,null,null,null,null,"Ministerio de Educación y Cultura\nDirección de Educación\n",null,null,null,null,null,null,null,null,null,null,null,null,null,null,null,"Ministerio de Educación y Cultura\nDirección de Educación\n",null,null,null,null,null,null,null,null,null,null,null,null,null,null,null,"Ministerio de Educación y Cultura\nDirección de Educación\n",null,null,null,null,null,null,null,null,null,null,null,null,null,null,null,"Ministerio de Educación y Cultura\nDirección de Educación\n",null,null,null,null,null,null,null,null,null,null,null,null,null,null,null,"Ministerio de Educación y Cultura\nDirección de Educación\n",null,null,null,null,null,null,null,null,null,null,null,null,null,null,null,"Ministerio de Educación y Cultura\nDirección de Educación\n",null,null,null,null,null,null,null,null,null,null,null,null,null,null,null,"Ministerio de Educación y Cultura\nDirección de Educación\n",null,null,null,null,null,null,null,null,null,null,null,null,null,null,null,"Ministerio de Educación y Cultura\nDirección de Educación\n",null,null,null,null,null,null,null,null,null,null,null,null,null,null,null,"Ministerio de Educación y Cultura\nDirección de Educación\n",null,null,null,null,null,null,null,null,null,null,null,null,null,null,null,"Ministerio de Educación y Cultura\nDirección de Educación\n",null,null,null,null,null,null,null,null,null,null,null,null,null,null,null,"Ministerio de Educación y Cultura\nDirección de Educación\n",null,null,null,null,null,null,null,null,null,null,null,null,null,null,null,"Ministerio de Educación y Cultura\nDirección de Educación\n",null,null,null,null,null,null,null,null,null,null,null,null,null,null,null,"Ministerio de Educación y Cultura\nDirección de Educación\n",null,null,null,null,null,null,null,null,null,null,null,null,null,null,null,"Ministerio de Educación y Cultura\nDirección de Educación\n",null,null,null,null,null,null,null,null,null,null,null,null,null,null,null,"Ministerio de Educación y Cultura\nDirección de Educación\n",null,null,null,null,null,null,null,null,null,null,null,null,null,null,null,"Ministerio de Educación y Cultura\nDirección de Educación\n",null,null,null,null,null,null,null,null,null,null,null,null,null,null,null,"Ministerio de Educación y Cultura\nDirección de Educación\n",null,null,null,null,null,null,null,null,null,null,null,null,null,null,null,"Ministerio de Educación y Cultura\nDirección de Educación\n",null,null,null,null,null,null,null,null,null,null,null,null,null,null,null,"Ministerio de Educación y Cultura\nDirección de Educación\n",null,null,null,null,null,null,null,null,null,null,null,null,null,null,null,"Ministerio de Educación y Cultura\nDirección de Educación\n",null,null,null,null,null,null,null,null,null,null,null,null,null,null,null,"Ministerio de Educación y Cultura\nDirección de Educación\n",null,null,null,null,null,null,null,null,null,null,null,null,null,null,null,"Ministerio de Educación y Cultura\nDirección de Educación\n",null,null,null,null,null,null,null,null,null,null,null,null,null,null,null,"Ministerio de Educación y Cultura\nDirección de Educación\n",null,null,null,null,null,null,null,null,null,null,null,null,null,null,null,"Ministerio de Educación y Cultura\nDirección de Educación\n",null,null,null,null,null,null,null,null,null,null,null,null,null,null,null,"Ministerio de Educación y Cultura\nDirección de Educación\n",null,null,null,null,null,null,null,null,null,null,null,null,null,null,null,"Ministerio de Educación y Cultura\nDirección de Educación\n",null,null,null,null,null,null,null,null,null,null,null,null,null,null,null,"Ministerio de Educación y Cultura\nDirección de Educación\n",null,null,null,null,null,null,null,null,null,null,null,null,null,null,null,"Ministerio de Educación y Cultura\nDirección de Educación\n",null,null,null,null,null,null,null,null,null,null,null,null,null,null,null,"Ministerio de Educación y Cultura\nDirección de Educación\n",null,null,null,null,null,null,null,null,null,null,null,null,null,null,null,"Ministerio de Educación y Cultura\nDirección de Educación\n",null,null,null,null,null,null,null,null,null,null,null,null,null,null,null,"Ministerio de Educación y Cultura\nDirección de Educación\n",null,null,null,null,null,null,null,null,null,null,null,null,null,null,null,"Ministerio de Educación y Cultura\nDirección de Educación\n",null,null,null,null,null,null,null,null,null,null,null,null,null,null,null,"Ministerio de Educación y Cultura\nDirección de Educación\n",null,null,null,null,null,null,null,null,null,null,null,null,null,null,null,"Ministerio de Educación y Cultura\nDirección de Educación\n",null,null,null,null,null,null,null,null,null,null,null,null,null,null,null,"Ministerio de Educación y Cultura\nDirección de Educación\n",null,null,null,null,null,null,null,null,null,null,null,null,null,null,null,"Ministerio de Educación y Cultura\nDirección de Educación\n",null,null,null,null,null,null,null,null,null,null,null,null,null,null,null,"Ministerio de Educación y Cultura\nDirección de Educación\n",null,null,null,null,null,null,null,null,null,null,null,null,null,null,null,"Ministerio de Educación y Cultura\nDirección de Educación\n",null,null,null,null,null,null,null,null,null,null,null,null,null,null,null,"Ministerio de Educación y Cultura\nDirección de Educación\n",null,null,null,null,null,null,null,null,null,null,null,null,null,null,null,"Ministerio de Educación y Cultura\nDirección de Educación\n",null,null,null,null,null,null,null,null,null,null,null,null,null,null,null,"Ministerio de Educación y Cultura\nDirección de Educación\n",null,null,null,null,null,null,null,null,null,null,null,null,null,null,null,"Ministerio de Educación y Cultura\nDirección de Educación\n",null,null,null,null,null,null,null,null,null,null,null,null,null,null,null,"Ministerio de Educación y Cultura\nDirección de Educación\n",null,null,null,null,null,null,null,null,null,null,null,null,null,null,null,"Ministerio de Educación y Cultura\nDirección de Educación\n",null,null,null,null,null,null,null,null,null,null,null,null,null,null,null,"Ministerio de Educación y Cultura\nDirección de Educación\n",null,null,null,null,null,null,null,null,null,null,null,null,null,null,null,"Ministerio de Educación y Cultura\nDirección de Educación\n",null,null,null,null,null,null,null,null,null,null,null,null,null,null,null,"Ministerio de Educación y Cultura\nDirección de Educación\n",null,null,null,null,null,null,null,null,null,null,null,null,null,null,null,"Ministerio de Educación y Cultura\nDirección de Educación\n",null,null,null,null,null,null,null,null,null,null,null,null,null,null,null,"Ministerio de Educación y Cultura\nDirección de Educación\n",null,null,null,null,null,null,null,null,null,null,null,null,null,null,null,"Ministerio de Educación y Cultura\nDirección de Educación\n",null,null,null,null,null,null,null,null,null,null,null,null,null,null,null,"Ministerio de Educación y Cultura\nDirección de Educación\n",null,null,null,null,null,null,null,null,null,null,null,null,null,null,null,"Ministerio de Educación y Cultura\nDirección de Educación\n",null,null,null,null,null,null,null,null,null,null,null,null,null,null,null,"Ministerio de Educación y Cultura\nDirección de Educación\n",null,null,null,null,null,null,null,null,null,null,null,null,null,null,null,"Ministerio de Educación y Cultura\nDirección de Educación\n",null,null,null,null,null,null,null,null,null,null,null,null,null,null,null,"Ministerio de Educación y Cultura\nDirección de Educación\n",null,null,null,null,null,null,null,null,null,null,null,null,null,null,null,"Ministerio de Educación y Cultura\nDirección de Educación\n",null,null,null,null,null,null,null,null,null,null,null,null,null,null,null,"Ministerio de Educación y Cultura\nDirección de Educación\n",null,null,null,null,null,null,null,null,null,null,null,null,null,null,null,"Ministerio de Educación y Cultura\nDirección de Educación\n",null,null,null,null,null,null,null,null,null,null,null,null,null,null,null,"Ministerio de Educación y Cultura\nDirección de Educación\n",null,null,null,null,null,null,null,null,null,null,null,null,null,null,null,"Ministerio de Educación y Cultura\nDirección de Educación\n",null,null,null,null,null,null,null,null,null,null,null,null,null,null,null,"Ministerio de Educación y Cultura\nDirección de Educación\n",null,null,null,null,null,null,null,null,null,null,null,null,null,null,null,"Ministerio de Educación y Cultura\nDirección de Educación\n",null,null,null,null,null,null,null,null,null,null,null,null,null,null,null,"Ministerio de Educación y Cultura\nDirección de Educación\n",null,null,null,null,null,null,null,null,null,null,null,null,null,null,null,"Ministerio de Educación y Cultura\nDirección de Educación\n",null,null,null,null,null,null,null,null,null,null,null,null,null,null,null,"Ministerio de Educación y Cultura\nDirección de Educación\n",null,null,null,null,null,null,null,null,null,null,null,null,null,null,null,"Ministerio de Educación y Cultura\nDirección de Educación\n",null,null,null,null,null,null,null,null,null,null,null,null,null,null,null,"Ministerio de Educación y Cultura\nDirección de Educación\n",null,null,null,null,null,null,null,null,null,null,null,null,null,null,null,"Ministerio de Educación y Cultura\nDirección de Educación\n",null,null,null,null,null,null,null,null,null,null,null,null,null,null,null,"Ministerio de Educación y Cultura\nDirección de Educación\n",null,null,null,null,null,null,null,null,null,null,null,null,null,null,null,"Ministerio de Educación y Cultura\nDirección de Educación\n",null,null,null,null,null,null,null,null,null,null,null,null,null,null,null,"Ministerio de Educación y Cultura\nDirección de Educación\n",null,null,null,null,null,null,null,null,null,null,null,null,null,null,null,"Ministerio de Educación y Cultura\nDirección de Educación\n",null,null,null,null,null,null,null,null,null,null,null,null,null,null,null,"Ministerio de Educación y Cultura\nDirección de Educación\n",null,null,null,null,null,null,null,null,null,null,null,null,null,null,null,"Ministerio de Educación y Cultura\nDirección de Educación\n",null,null,null,null,null,null,null,null,null,null,null,null,null,null,null,"Ministerio de Educación y Cultura\nDirección de Educación\n",null,null,null,null,null,null,null,null,null,null,null,null,null,null,null,"Ministerio de Educación y Cultura\nDirección de Educación\n",null,null,null,null,null,null,null,null,null,null,null,null,null,null,null,"Ministerio de Educación y Cultura\nDirección de Educación\n",null,null,null,null,null,null,null,null,null,null,null,null,null,null,null,"Ministerio de Educación y Cultura\nDirección de Educación\n",null,null,null,null,null,null,null,null,null,null,null,null,null,null,null,"Ministerio de Educación y Cultura\nDirección de Educación\n",null,null,null,null,null,null,null,null,null,null,null,null,null,null,null,"Ministerio de Educación y Cultura\nDirección de Educación\n",null,null,null,null,null,null,null,null,null,null,null,null,null,null,null,"Ministerio de Educación y Cultura\nDirección de Educación\n",null,null,null,null,null,null,null,null,null,null,null,null,null,null,null,"Ministerio de Educación y Cultura\nDirección de Educación\n",null,null,null,null,null,null,null,null,null,null,null,null,null,null,null,"Ministerio de Educación y Cultura\nDirección de Educación\n",null,null,null,null,null,null,null,null,null,null,null,null,null,null,null,"Ministerio de Educación y Cultura\nDirección de Educación\n",null,null,null,null,null,null,null,null,null,null,null,null,null,null,null,"Ministerio de Educación y Cultura\nDirección de Educación\n",null,null,null,null,null,null,null,null,null,null,null,null,null,null,null,"Ministerio de Educación y Cultura\nDirección de Educación\n",null,null,null,null,null,null,null,null,null,null,null,null,null,null,null,"Ministerio de Educación y Cultura\nDirección de Educación\n",null,null,null,null,null,null,null,null,null,null,null,null,null,null,null,"Ministerio de Educación y Cultura\nDirección de Educación\n",null,null,null,null,null,null,null,null,null,null,null,null,null,null,null,"Ministerio de Educación y Cultura\nDirección de Educación\n",null,null,null,null,null,null,null,null,null,null,null,null,null,null,null,"Ministerio de Educación y Cultura\nDirección de Educación\n",null,null,null,null,null,null,null,null,null,null,null,null,null,null,null,"Ministerio de Educación y Cultura\nDirección de Educación\n",null,null,null,null,null,null,null,null,null,null,null,null,null,null,null,"Ministerio de Educación y Cultura\nDirección de Educación\n",null,null,null,null,null,null,null,null,null,null,null,null,null,null,null,"Ministerio de Educación y Cultura\nDirección de Educación\n",null,null,null,null,null,null,null,null,null,null,null,null,null,null,null,"Ministerio de Educación y Cultura\nDirección de Educación\n",null,null,null,null,null,null,null,null,null,null,null,null,null,null,null,"Ministerio de Educación y Cultura\nDirección de Educación\n",null,null,null,null,null,null,null,null,null,null,null,null,null,null,null,"Ministerio de Educación y Cultura\nDirección de Educación\n",null,null,null,null,null,null,null,null,null,null,null,null,null,null,null,"Ministerio de Educación y Cultura\nDirección de Educación\n",null,null,null,null,null,null,null,null,null,null,null,null,null,null,null,"Ministerio de Educación y Cultura\nDirección de Educación\n",null,null,null,null,null,null,null,null,null,null,null,null,null,null,null,"Ministerio de Educación y Cultura\nDirección de Educación\n",null,null,null,null,null,null,null,null,null,null,null,null,null,null,null,"Ministerio de Educación y Cultura\nDirección de Educación\n",null,null,null,null,null,null,null,null,null,null,null,null,null,null,null,"Ministerio de Educación y Cultura\nDirección de Educación\n",null,null,null,null,null,null,null,null,null,null,null,null,null,null,null,"Ministerio de Educación y Cultura\nDirección de Educación\n",null,null,null,null,null,null,null,null,null,null,null,null,null,null,null,"Ministerio de Educación y Cultura\nDirección de Educación\n",null,null,null,null,null,null,null,null,null,null,null,null,null,null,null,"Ministerio de Educación y Cultura\nDirección de Educación\n",null,null,null,null,null,null,null,null,null,null,null,null,null,null,null,"Ministerio de Educación y Cultura\nDirección de Educación\n",null,null,null,null,null,null,null,null,null,null,null,null,null,null,null,"Ministerio de Educación y Cultura\nDirección de Educación\n",null,null,null,null,null,null,null,null,null,null,null,null,null,null,null,"Ministerio de Educación y Cultura\nDirección de Educación\n",null,null,null,null,null,null,null,null,null,null,null,null,null,null,null,"Ministerio de Educación y Cultura\nDirección de Educación\n",null,null,null,null,null,null,null,null,null,null,null,null,null,null,null,"Ministerio de Educación y Cultura\nDirección de Educación\n",null,null,null,null,null,null,null,null,null,null,null,null,null,null,null,"Ministerio de Educación y Cultura\nDirección de Educación\n",null,null,null,null,null,null,null,null,null,null,null,null,null,null,null,"Ministerio de Educación y Cultura\nDirección de Educación\n",null,null,null,null,null,null,null,null,null,null,null,null,null,null,null,"Ministerio de Educación y Cultura\nDirección de Educación\n",null,null,null,null,null,null,null,null,null,null,null,null,null,null,null,"Ministerio de Educación y Cultura\nDirección de Educación\n",null,null,null,null,null,null,null,null,null,null,null,null,null,null,null,"Ministerio de Educación y Cultura\nDirección de Educación\n",null,null,null,null,null,null,null,null,null,null,null,null,null,null,null,"Ministerio de Educación y Cultura\nDirección de Educación\n",null,null,null,null,null,null,null,null,null,null,null,null,null,null,null,"Ministerio de Educación y Cultura\nDirección de Educación\n",null,null,null,null,null,null,null,null,null,null,null,null,null,null,null,"Ministerio de Educación y Cultura\nDirección de Educación\n",null,null,null,null,null,null,null,null,null,null,null,null,null,null,null,"Ministerio de Educación y Cultura\nDirección de Educación\n",null,null,null,null,null,null,null,null,null,null,null,null,null,null,null,"Ministerio de Educación y Cultura\nDirección de Educación\n",null,null,null,null,null,null,null,null,null,null,null,null,null,null,null,"Ministerio de Educación y Cultura\nDirección de Educación\n",null,null,null,null,null,null,null,null,null,null,null,null,null,null,null,"Ministerio de Educación y Cultura\nDirección de Educación\n",null,null,null,null,null,null,null,null,null,null,null,null,null,null,null,"Ministerio de Educación y Cultura\nDirección de Educación\n",null,null,null,null,null,null,null,null,null,null,null,null,null,null,null,"Ministerio de Educación y Cultura\nDirección de Educación\n",null,null,null,null,null,null,null,null,null,null,null,null,null,null,null,"Ministerio de Educación y Cultura\nDirección de Educación\n",null,null,null,null,null,null,null,null,null,null,null,null,null,null,null,"Ministerio de Educación y Cultura\nDirección de Educación\n",null,null,null,null,null,null,null,null,null,null,null,null,null,null,null,"Ministerio de Educación y Cultura\nDirección de Educación\n",null,null,null,null,null,null,null,null,null,null,null,null,null,null,null,"Ministerio de Educación y Cultura\nDirección de Educación\n",null,null,null,null,null,null,null,null,null,null,null,null,null,null,null,"Ministerio de Educación y Cultura\nDirección de Educación\n",null,null,null,null,null,null,null,null,null,null,null,null,null,null,null,"Ministerio de Educación y Cultura\nDirección de Educación\n",null,null,null,null,null,null,null,null,null,null,null,null,null,null,null,"Ministerio de Educación y Cultura\nDirección de Educación\n",null,null,null,null,null,null,null,null,null,null,null,null,null,null,null,"Ministerio de Educación y Cultura\nDirección de Educación\n",null,null,null,null,null,null,null,null,null,null,null,null,null,null,null,"Ministerio de Educación y Cultura\nDirección de Educación\n",null,null,null,null,null,null,null,null,null,null,null,null,null,null,null,"Ministerio de Educación y Cultura\nDirección de Educación\n",null,null,null,null,null,null,null,null,null,null,null,null,null,null,null,"Ministerio de Educación y Cultura\nDirección de Educación\n",null,null,null,null,null,null,null,null,null,null,null,null,null,null,null,"Ministerio de Educación y Cultura\nDirección de Educación\n",null,null,null,null,null,null,null,null,null,null,null,null,null,null,null,"Ministerio de Educación y Cultura\nDirección de Educación\n",null,null,null,null,null,null,null,null,null,null,null,null,null,null,null,"Ministerio de Educación y Cultura\nDirección de Educación\n",null,null,null,null,null,null,null,null,null,null,null,null,null,null,null,"Ministerio de Educación y Cultura\nDirección de Educación\n",null,null,null,null,null,null,null,null,null,null,null,null,null,null,null,"Ministerio de Educación y Cultura\nDirección de Educación\n",null,null,null,null,null,null,null,null,null,null,null,null,null,null,null,"Ministerio de Educación y Cultura\nDirección de Educación\n",null,null,null,null,null,null,null,null,null,null,null,null,null,null,null,"Ministerio de Educación y Cultura\nDirección de Educación\n",null,null,null,null,null,null,null,null,null,null,null,null,null,null,null,"Ministerio de Educación y Cultura\nDirección de Educación\n",null,null,null,null,null,null,null,null,null,null,null,null,null,null,null,"Ministerio de Educación y Cultura\nDirección de Educación\n",null,null,null,null,null,null,null,null,null,null,null,null,null,null,null,"Ministerio de Educación y Cultura\nDirección de Educación\n",null,null,null,null,null,null,null,null,null,null,null,null,null,null,null,"Ministerio de Educación y Cultura\nDirección de Educación\n",null,null,null,null,null,null,null,null,null,null,null,null,null,null,null,"Ministerio de Educación y Cultura\nDirección de Educación\n",null,null,null,null,null,null,null,null,null,null,null,null,null,null,null,"Ministerio de Educación y Cultura\nDirección de Educación\n",null,null,null,null,null,null,null,null,null,null,null,null,null,null,null,"Ministerio de Educación y Cultura\nDirección de Educación\n",null,null,null,null,null,null,null,null,null,null,null,null,null,null,null,"Ministerio de Educación y Cultura\nDirección de Educación\n",null,null,null,null,null,null,null,null,null,null,null,null,null,null,null,"Ministerio de Educación y Cultura\nDirección de Educación\n",null,null,null,null,null,null,null,null,null,null,null,null,null,null,null,"Ministerio de Educación y Cultura\nDirección de Educación\n",null,null,null,null,null,null,null,null,null,null,null,null,null,null,null,"Ministerio de Educación y Cultura\nDirección de Educación\n",null,null,null,null,null,null,null,null,null,null,null,null,null,null,null,"Ministerio de Educación y Cultura\nDirección de Educación\n",null,null,null,null,null,null,null,null,null,null,null,null,null,null,null,"Ministerio de Educación y Cultura\nDirección de Educación\n",null,null,null,null,null,null,null,null,null,null,null,null,null,null,null,"Ministerio de Educación y Cultura\nDirección de Educación\n",null,null,null,null,null,null,null,null,null,null,null,null,null,null,null,"Ministerio de Educación y Cultura\nDirección de Educación\n",null,null,null,null,null,null,null,null,null,null,null,null,null,null,null,"Ministerio de Educación y Cultura\nDirección de Educación\n",null,null,null,null,null,null,null,null,null,null,null,null,null,null,null,"Ministerio de Educación y Cultura\nDirección de Educación\n",null,null,null,null,null,null,null,null,null,null,null,null,null,null,null,"Ministerio de Educación y Cultura\nDirección de Educación\n",null,null,null,null,null,null,null,null,null,null,null,null,null,null,null,"Ministerio de Educación y Cultura\nDirección de Educación\n",null,null,null,null,null,null,null,null,null,null,null,null,null,null,null,"Ministerio de Educación y Cultura\nDirección de Educación\n",null,null,null,null,null,null,null,null,null,null,null,null,null,null,null,"Ministerio de Educación y Cultura\nDirección de Educación\n",null,null,null,null,null,null,null,null,null,null,null,null,null,null,null,"Ministerio de Educación y Cultura\nDirección de Educación\n",null,null,null,null,null,null,null,null,null,null,null,null,null,null,null,"Ministerio de Educación y Cultura\nDirección de Educación\n",null,null,null,null,null,null,null,null,null,null,null,null,null,null,null,"Ministerio de Educación y Cultura\nDirección de Educación\n",null,null,null,null,null,null,null,null,null,null,null,null,null,null,null,"Ministerio de Educación y Cultura\nDirección de Educación\n",null,null,null,null,null,null,null,null,null,null,null,null,null,null,null,"Ministerio de Educación y Cultura\nDirección de Educación\n",null,null,null,null,null,null,null,null,null,null,null,null,null,null,null,"Ministerio de Educación y Cultura\nDirección de Educación\n",null,null,null,null,null,null,null,null,null,null,null,null,null,null,null,"Ministerio de Educación y Cultura\nDirección de Educación\n",null,null,null,null,null,null,null,null,null,null,null,null,null,null,null,"Ministerio de Educación y Cultura\nDirección de Educación\n",null,null,null,null,null,null,null,null,null,null,null,null,null,null,null,"Ministerio de Educación y Cultura\nDirección de Educación\n",null,null,null,null,null,null,null,null,null,null,null,null,null,null,null,"Ministerio de Educación y Cultura\nDirección de Educación\n",null,null,null,null,null,null,null,null,null,null,null,null,null,null,null,"Ministerio de Educación y Cultura\nDirección de Educación\n",null,null,null,null,null,null,null,null,null,null,null,null,null,null,null,"Ministerio de Educación y Cultura\nDirección de Educación\n",null,null,null,null,null,null,null,null,null,null,null,null,null,null,null,"Ministerio de Educación y Cultura\nDirección de Educación\n",null,null,null,null,null,null,null,null,null,null,null,null,null,null,null,"Ministerio de Educación y Cultura\nDirección de Educación\n",null,null,null,null,null,null,null,null,null,null,null,null,null,null,null,"Ministerio de Educación y Cultura\nDirección de Educación\n",null,null,null,null,null,null,null,null,null,null,null,null,null,null,null,"Ministerio de Educación y Cultura\nDirección de Educación\n",null,null,null,null,null,null,null,null,null,null,null,null,null,null,null,"Ministerio de Educación y Cultura\nDirección de Educación\n",null,null,null,null,null,null,null,null,null,null,null,null,null,null,null,"Ministerio de Educación y Cultura\nDirección de Educación\n",null,null,null,null,null,null,null,null,null,null,null,null,null,null,null,"Ministerio de Educación y Cultura\nDirección de Educación\n",null,null,null,null,null,null,null,null,null,null,null,null,null,null,null,"Ministerio de Educación y Cultura\nDirección de Educación\n",null,null,null,null,null,null,null,null,null,null,null,null,null,null,null,"Ministerio de Educación y Cultura\nDirección de Educación\n",null,null,null,null,null,null,null,null,null,null,null,null,null,null,null,"Ministerio de Educación y Cultura\nDirección de Educación\n",null,null,null,null,null,null,null,null,null,null,null,null,null,null,null,"Ministerio de Educación y Cultura\nDirección de Educación\n",null,null,null,null,null,null,null,null,null,null,null,null,null,null,null,"Ministerio de Educación y Cultura\nDirección de Educación\n",null,null,null,null,null,null,null,null,null,null,null,null,null,null,null,"Ministerio de Educación y Cultura\nDirección de Educación\n",null,null,null,null,null,null,null,null,null,null,null,null,null,null,null,"Ministerio de Educación y Cultura\nDirección de Educación\n",null,null,null,null,null,null,null,null,null,null,null,null,null,null,null,"Ministerio de Educación y Cultura\nDirección de Educación\n",null,null,null,null,null,null,null,null,null,null,null,null,null,null,null,"Ministerio de Educación y Cultura\nDirección de Educación\n",null,null,null,null,null,null,null,null,null,null,null,null,null,null,null,"Ministerio de Educación y Cultura\nDirección de Educación\n",null,null,null,null,null,null,null,null,null,null,null,null,null,null,null,"Ministerio de Educación y Cultura\nDirección de Educación\n",null,null,null,null,null,null,null,null,null,null,null,null,null,null,null,"Ministerio de Educación y Cultura\nDirección de Educación\n",null,null,null,null,null,null,null,null,null,null,null,null,null,null,null,"Ministerio de Educación y Cultura\nDirección de Educación\n",null,null,null,null,null,null,null,null,null,null,null,null,null,null,null,"Ministerio de Educación y Cultura\nDirección de Educación\n",null,null,null,null,null,null,null,null,null,null,null,null,null,null,null,"Ministerio de Educación y Cultura\nDirección de Educación\n",null,null,null,null,null,null,null,null,null,null,null,null,null,null,null,"Ministerio de Educación y Cultura\nDirección de Educación\n",null,null,null,null,null,null,null,null,null,null,null,null,null,null,null,"Ministerio de Educación y Cultura\nDirección de Educación\n",null,null,null,null,null,null,null,null,null,null,null,null,null,null,null,"Ministerio de Educación y Cultura\nDirección de Educación\n",null,null,null,null,null,null,null,null,null,null,null,null,null,null,null,"Ministerio de Educación y Cultura\nDirección de Educación\n",null,null,null,null,null,null,null,null,null,null,null,null,null,null,null,"Ministerio de Educación y Cultura\nDirección de Educación\n",null,null,null,null,null,null,null,null,null,null,null,null,null,null,null,"Ministerio de Educación y Cultura\nDirección de Educación\n",null,null,null,null,null,null,null,null,null,null,null,null,null,null,null,"Ministerio de Educación y Cultura\nDirección de Educación\n",null,null,null,null,null,null,null,null,null,null,null,null,null,null,null,"Ministerio de Educación y Cultura\nDirección de Educación\n",null,null,null,null,null,null,null,null,null,null,null,null,null,null,null,"Ministerio de Educación y Cultura\nDirección de Educación\n",null,null,null,null,null,null,null,null,null,null,null,null,null,null,null,"Ministerio de Educación y Cultura\nDirección de Educación\n",null,null,null,null,null,null,null,null,null,null,null,null,null,null,null,"Ministerio de Educación y Cultura\nDirección de Educación\n",null,null,null,null,null,null,null,null,null,null,null,null,null,null,null,"Ministerio de Educación y Cultura\nDirección de Educación\n",null,null,null,null,null,null,null,null,null,null,null,null,null,null,null,"Ministerio de Educación y Cultura\nDirección de Educación\n",null,null,null,null,null,null,null,null,null,null,null,null,null,null,null,"Ministerio de Educación y Cultura\nDirección de Educación\n",null,null,null,null,null,null,null,null,null,null,null,null,null,null,null,"Ministerio de Educación y Cultura\nDirección de Educación\n",null,null,null,null,null,null,null,null,null,null,null,null,null,null,null,"Ministerio de Educación y Cultura\nDirección de Educación\n",null,null,null,null,null,null,null,null,null,null,null,null,null,null,null,"Ministerio de Educación y Cultura\nDirección de Educación\n",null,null,null,null,null,null,null,null,null,null,null,null,null,null,null,"Ministerio de Educación y Cultura\nDirección de Educación\n",null,null,null,null,null,null,null,null,null,null,null,null,null,null,null,"Ministerio de Educación y Cultura\nDirección de Educación\n",null,null,null,null,null,null,null,null,null,null,null,null,null,null,null,"Ministerio de Educación y Cultura\nDirección de Educación\n",null,null,null,null,null,null,null,null,null,null,null,null,null,null,null,"Ministerio de Educación y Cultura\nDirección de Educación\n",null,null,null,null,null,null,null,null,null,null,null,null,null,null,null,"Ministerio de Educación y Cultura\nDirección de Educación\n",null,null,null,null,null,null,null,null,null,null,null,null,null,null,null,"Ministerio de Educación y Cultura\nDirección de Educación\n",null,null,null,null,null,null,null,null,null,null,null,null,null,null,null,"Ministerio de Educación y Cultura\nDirección de Educación\n",null,null,null,null,null,null,null,null,null,null,null,null,null,null,null,"Ministerio de Educación y Cultura\nDirección de Educación\n",null,null,null,null,null,null,null,null,null,null,null,null,null,null,null,"Ministerio de Educación y Cultura\nDirección de Educación\n",null,null,null,null,null,null,null,null,null,null,null,null,null,null,null,"Ministerio de Educación y Cultura\nDirección de Educación\n",null,null,null,null,null,null,null,null,null,null,null,null,null,null,null,"Ministerio de Educación y Cultura\nDirección de Educación\n",null,null,null,null,null,null,null,null,null,null,null,null,null,null,null,"Ministerio de Educación y Cultura\nDirección de Educación\n",null,null,null,null,null,null,null,null,null,null,null,null,null,null,null,"Ministerio de Educación y Cultura\nDirección de Educación\n",null,null,null,null,null,null,null,null,null,null,null,null,null,null,null,"Ministerio de Educación y Cultura\nDirección de Educación\n",null,null,null,null,null,null,null,null,null,null,null,null,null,null,null,"Ministerio de Educación y Cultura\nDirección de Educación\n",null,null,null,null,null,null,null,null,null,null,null,null,null,null,null,"Ministerio de Educación y Cultura\nDirección de Educación\n",null,null,null,null,null,null,null,null,null,null,null,null,null,null,null,"Ministerio de Educación y Cultura\nDirección de Educación\n",null,null,null,null,null,null,null,null,null,null,null,null,null,null,null,"Ministerio de Educación y Cultura\nDirección de Educación\n",null,null,null,null,null,null,null,null,null,null,null,null,null,null,null,"Ministerio de Educación y Cultura\nDirección de Educación\n",null,null,null,null,null,null,null,null,null,null,null,null,null,null,null,"Ministerio de Educación y Cultura\nDirección de Educación\n",null,null,null,null,null,null,null,null,null,null,null,null,null,null,null,"Ministerio de Educación y Cultura\nDirección de Educación\n",null,null,null,null,null,null,null,null,null,null,null,null,null,null,null,"Ministerio de Educación y Cultura\nDirección de Educación\n",null,null,null,null,null,null,null,null,null,null,null,null,null,null,null,"Ministerio de Educación y Cultura\nDirección de Educación\n",null,null,null,null,null,null,null,null,null,null,null,null,null,null,null,"Ministerio de Educación y Cultura\nDirección de Educación\n",null,null,null,null,null,null,null,null,null,null,null,null,null,null,null,"Ministerio de Educación y Cultura\nDirección de Educación\n",null,null,null,null,null,null,null,null,null,null,null,null,null,null,null,"Ministerio de Educación y Cultura\nDirección de Educación\n",null,null,null,null,null,null,null,null,null,null,null,null,null,null,null,"Ministerio de Educación y Cultura\nDirección de Educación\n",null,null,null,null,null,null,null,null,null,null,null,null,null,null,null,"Ministerio de Educación y Cultura\nDirección de Educación\n",null,null,null,null,null,null,null,null,null,null,null,null,null,null,null,"Ministerio de Educación y Cultura\nDirección de Educación\n",null,null,null,null,null,null,null,null,null,null,null,null,null,null,null,"Ministerio de Educación y Cultura\nDirección de Educación\n",null,null,null,null,null,null,null,null,null,null,null,null,null,null,null,"Ministerio de Educación y Cultura\nDirección de Educación\n",null,null,null,null,null,null,null,null,null,null,null,null,null,null,null,"Ministerio de Educación y Cultura\nDirección de Educación\n",null,null,null,null,null,null,null,null,null,null,null,null,null,null,null,"Ministerio de Educación y Cultura\nDirección de Educación\n",null,null,null,null,null,null,null,null,null,null,null,null,null,null,null,"Ministerio de Educación y Cultura\nDirección de Educación\n",null,null,null,null,null,null,null,null,null,null,null,null,null,null,null,"Ministerio de Educación y Cultura\nDirección de Educación\n",null,null,null,null,null,null,null,null,null,null,null,null,null,null,null,"Ministerio de Educación y Cultura\nDirección de Educación\n",null,null,null,null,null,null,null,null,null,null,null,null,null,null,null,"Ministerio de Educación y Cultura\nDirección de Educación\n",null,null,null,null,null,null,null,null,null,null,null,null,null,null,null,"Ministerio de Educación y Cultura\nDirección de Educación\n",null,null,null,null,null,null,null,null,null,null,null,null,null,null,null,"Ministerio de Educación y Cultura\nDirección de Educación\n",null,null,null,null,null,null,null,null,null,null,null,null,null,null,null,"Ministerio de Educación y Cultura\nDirección de Educación\n",null,null,null,null,null,null,null,null,null,null,null,null,null,null,null,"Ministerio de Educación y Cultura\nDirección de Educación\n",null,null,null,null,null,null,null,null,null,null,null,null,null,null,null,"Ministerio de Educación y Cultura\nDirección de Educación\n",null,null,null,null,null,null,null,null,null,null,null,null,null,null,null,"Ministerio de Educación y Cultura\nDirección de Educación\n",null,null,null,null,null,null,null,null,null,null,null,null,null,null,null,"Ministerio de Educación y Cultura\nDirección de Educación\n",null,null,null,null,null,null,null,null,null,null,null,null,null,null,null,"Ministerio de Educación y Cultura\nDirección de Educación\n",null,null,null,null,null,null,null,null,null,null,null,null,null,null,null,"Ministerio de Educación y Cultura\nDirección de Educación\n",null,null,null,null,null,null,null,null,null,null,null,null,null,null,null,"Ministerio de Educación y Cultura\nDirección de Educación\n",null,null,null,null,null,null,null,null,null,null,null,null,null,null,null,"Ministerio de Educación y Cultura\nDirección de Educación\n",null,null,null,null,null,null,null,null,null,null,null,null,null,null,null,"Ministerio de Educación y Cultura\nDirección de Educación\n",null,null,null,null,null,null,null,null,null,null,null,null,null,null,null,"Ministerio de Educación y Cultura\nDirección de Educación\n",null,null,null,null,null,null,null,null,null,null,null,null,null,null,null,"Ministerio de Educación y Cultura\nDirección de Educación\n",null,null,null,null,null,null,null,null,null,null,null,null,null,null,null,"Ministerio de Educación y Cultura\nDirección de Educación\n",null,null,null,null,null,null,null,null,null,null,null,null,null,null,null,"Ministerio de Educación y Cultura\nDirección de Educación\n",null,null,null,null,null,null,null,null,null,null,null,null,null,null,null,"Ministerio de Educación y Cultura\nDirección de Educación\n",null,null,null,null,null,null,null,null,null,null,null,null,null,null,null,"Ministerio de Educación y Cultura\nDirección de Educación\n",null,null,null,null,null,null,null,null,null,null,null,null,null,null,null,"Ministerio de Educación y Cultura\nDirección de Educación\n",null,null,null,null,null,null,null,null,null,null,null,null,null,null,null,"Ministerio de Educación y Cultura\nDirección de Educación\n",null,null,null,null,null,null,null,null,null,null,null,null,null,null,null,"Ministerio de Educación y Cultura\nDirección de Educación\n",null,null,null,null,null,null,null,null,null,null,null,null,null,null,null,"Ministerio de Educación y Cultura\nDirección de Educación\n",null,null,null,null,null,null,null,null,null,null,null,null,null,null,null,"Ministerio de Educación y Cultura\nDirección de Educación\n",null,null,null,null,null,null,null,null,null,null,null,null,null,null,null,"Ministerio de Educación y Cultura\nDirección de Educación\n",null,null,null,null,null,null,null,null,null,null,null,null,null,null,null,"Ministerio de Educación y Cultura\nDirección de Educación\n",null,null,null,null,null,null,null,null,null,null,null,null,null,null,null,"Ministerio de Educación y Cultura\nDirección de Educación\n",null,null,null,null,null,null,null,null,null,null,null,null,null,null,null,"Ministerio de Educación y Cultura\nDirección de Educación\n",null,null,null,null,null,null,null,null,null,null,null,null,null,null,null,"Ministerio de Educación y Cultura\nDirección de Educación\n",null,null,null,null,null,null,null,null,null,null,null,null,null,null,null,"Ministerio de Educación y Cultura\nDirección de Educación\n",null,null,null,null,null,null,null,null,null,null,null,null,null,null,null,"Ministerio de Educación y Cultura\nDirección de Educación\n",null,null,null,null,null,null,null,null,null,null,null,null,null,null,null,"Ministerio de Educación y Cultura\nDirección de Educación\n",null,null,null,null,null,null,null,null,null,null,null,null,null,null,null,"Ministerio de Educación y Cultura\nDirección de Educación\n",null,null,null,null,null,null,null,null,null,null,null,null,null,null,null,"Ministerio de Educación y Cultura\nDirección de Educación\n",null,null,null,null,null,null,null,null,null,null,null,null,null,null,null,"Ministerio de Educación y Cultura\nDirección de Educación\n",null,null,null,null,null,null,null,null,null,null,null,null,null,null,null,"Ministerio de Educación y Cultura\nDirección de Educación\n",null,null,null,null,null,null,null,null,null,null,null,null,null,null,null,"Ministerio de Educación y Cultura\nDirección de Educación\n"]
[]
["CANTIDAD DE ASPIRANTES A EDUCACIÓN NO FORMAL DE POBLACIÓN PRIVADA DE LIBERTAD POR UNIDAD PENITENCIARIA SEGÚN TIPO DE PROGRAMA Y SEXO. AÑO 2016"]
["UNIDADES PENITENCIARIAS","TOTAL","SEXO",null,"PROGRAMA URUGUAY ESTUDIA",null,"TOTAL PROGRAMA URUGUAY ESTUDIA","DSEA NO FORMAL",null,"TOTAL DSEA NO FORMAL","MEC PAS",null,"TOTAL MEC PAS","MEC CIUDADANIA CULTURAL",null,"TOTAL MEC CIUDADANIA CULTURAL","CENTRO MEC",null,"TOTAL CENTRO MEC","NO FORMAL OTROS",null,"TOTAL NO FORMAL OTROS","PROYECTOS EDUCATIVOS",null,"TOTAL PROYECTOS EDUCATIVOS"]
[null,null,"MASCULINO","FEMENINO","MASCULINO","FEMENINO","TOTAL","MASCULINO","FEMENINO","TOTAL","MASCULINO","FEMENINO","TOTAL","MASCULINO","FEMENINO",null,"MASCULINO","FEMENINO","TOTAL","MASCULINO","FEMENINO","TOTAL","MASCULINO","FEMENINO","TOTAL"]
["TOTAL",{"$f":"SUM(B7:B29)","v":1847},{"$f":"SUM(C7:C29)","v":1367},{"$f":"SUM(D7:D29)","v":480},{"$f":"0","v":0},0,{"$f":"SUM(G7:G29)","v":0},{"$f":"SUM(H8:H16,H19:H25,H27:H29)","v":308},{"$f":"SUM(I8:I16,I19:I25,I27:I29)","v":142},{"$f":"SUM(J7:J29)","v":450},{"$f":"SUM(K10:K16,K19:K25,K27:K29)","v":212},{"$f":"SUM(L10:L16,L19:L25,L27:L29)","v":37},{"$f":"SUM(M7:M29)","v":249},{"$f":"SUM(N8,N10:N15,N19:N22,N24:N29)","v":30},{"$f":"SUM(O8,O10:O15,O19:O22,O24:O29)","v":0},{"$f":"SUM(P7:P29)","v":30},{"$f":"SUM(Q9:Q15,Q19,Q21:Q29)","v":55},{"$f":"SUM(R9:R15,R19,R21:R29)","v":110},{"$f":"SUM(S7:S29)","v":165},{"$f":"SUM(T8:T16,T19:T29)","v":650},{"$f":"SUM(U8:U16,U19:U29)","v":151},{"$f":"SUM(V7:V29)","v":801},{"$f":"SUM(W9:W16,W19:W28)","v":112},{"$f":"SUM(X9:X16,X19:X28)","v":40},{"$f":"SUM(Y7:Y29)","v":152}]
["UNID. N°3 LIBERTAD",{"$f":"C7+D7","v":0},{"$f":"E7","v":0},{"$f":"F7","v":0},0,0,{"$f":"E7+F7","v":0},"S/D","S/D",0,"S/D","S/D",0,"S/D","S/D",0,"S/D","S/D",0,"S/D","S/D",0,"S/D","S/D",0]
["UNID. N°4 SANTIAGO VÁZQUEZ",{"$f":"C8+D8","v":129},{"$f":"E8+H8+N8+T8","v":129},{"$f":"F8","v":0},0,0,{"$f":"E8+F8","v":0},63,0,{"$f":"H8+I8","v":63},"S/D","S/D",0,30,0,{"$f":"N8+O8","v":30},"S/D","S/D",0,36,0,{"$f":"T8+U8","v":36},"S/D","S/D",0]
["UNID. N°5 FEMENINO",321,{"$f":"E9+H9+Q9+T9+W9","v":0},{"$f":"F9+I9+R9+U9+X9","v":321},0,0,0,0,101,{"$f":"H9+I9","v":101},"S/D","S/D",0,"S/D","S/D",0,0,106,{"$f":"Q9+R9","v":106},0,114,{"$f":"T9+U9","v":114},0,0,{"$f":"W9+X9","v":0}]
["UNID. N°6 PUNTA DE RIELES",431,{"$f":"E10+H10+K10+N10+Q10+T10+W10","v":431},0,0,0,0,47,0,47,24,0,{"$f":"K10+L10","v":24},0,0,{"$f":"N10+O10","v":0},0,0,{"$f":"Q10+R10","v":0},303,0,303,57,0,{"$f":"W10+X10","v":57}]
["UNID. N°7 CANELONES",99,99,0,0,0,0,23,0,23,34,0,{"$f":"K11+L11","v":34},0,0,{"$f":"N11+O11","v":0},0,0,0,37,0,37,5,0,5]
["UNID. N°9 EL MOLINO",0,0,0,0,0,0,0,0,0,0,0,0,0,0,0,0,0,0,0,0,0,0,0,0]
["UNID. N°10 JUAN SOLER",40,40,0,0,0,0,25,0,25,0,0,0,0,0,0,0,0,0,0,0,0,15,0,15]
["UNIDAD N°11 TACUABÉ-SALTO",0,0,0,0,0,0,0,0,0,0,0,0,0,0,0,0,0,0,0,0,0,0,0,0]
["UNIDAD N°12 CERRO CARANCHO",239,217,22,0,0,0,17,3,20,0,5,5,0,0,0,0,0,0,200,9,209,0,5,5]
["UNIDAD N°13 LAS ROSAS-MALDONADO",170,{"$f":"H16++K16+T16+W16","v":120},{"$f":"I16+L16++U16+X16","v":50},"S/D","S/D",0,24,7,31,12,6,18,"S/D","S/D",0,"S/D","S/D",0,55,5,60,29,32,61]
["UNIDAD N°14 PIEDRA DE LOS INDIOS",0,{"$f":"0","v":0},0,"S/D","S/D",0,"S/D","S/D",0,"S/D","S/D",0,"S/D","S/D",0,"S/D","S/D",0,"S/D","S/D",0,"S/D","S/D",0]
["UNIDAD N°15 CONVENTOS-CERRO LARGO",0,{"$f":"E18","v":0},{"$f":"F18","v":0},0,0,0,"S/D","S/D",0,"S/D","S/D",0,"S/D","S/D",0,"S/D","S/D",0,"S/D","S/D",0,"S/D","S/D",0]
["UNIDAD N°16 PAYSANDÚ",35,{"$f":"E19+H19+K19+N19+Q19+T19+W19","v":27},{"$f":"F19+I19+L19+O19+R19+U19+X19","v":8},0,0,0,14,8,22,0,0,0,0,0,{"$f":"N19+O19","v":0},13,0,{"$f":"Q19+R19","v":13},0,0,{"$f":"T19+U19","v":0},0,0,0]
["UNIDAD N°17 CAMPANERO-LAVALLEJA",71,{"$f":"E20+H20+K20+N20+T20+W20","v":60},{"$f":"F20+I20+L20+O20+U20+X20","v":11},0,0,0,20,5,25,40,6,46,0,0,{"$f":"N20+O20","v":0},"S/D","S/D",0,0,0,{"$f":"T20+U20","v":0},0,0,0]
["UNIDAD N°18 DURAZNO",39,{"$f":"E21+H21+K21+N21+Q21+T21+W21","v":39},{"$f":"F21+I21+L21+O21+R21+U21+X21","v":0},0,0,0,0,0,0,18,0,18,0,0,0,16,0,{"$f":"Q21+R21","v":16},5,0,5,0,0,0]
["UNIDAD N°19 LAS CAÑITAS RIO NEGRO",10,{"$f":"E22+H22+K22+N22+Q22+T22+W22","v":10},{"$f":"F22+I22+L22+O22+R22+U22+X22","v":0},0,0,0,0,0,0,0,0,0,0,0,0,0,0,{"$f":"Q22+R22","v":0},10,0,10,0,0,0]
["UNIDAD N°20 SALTO",203,{"$f":"E23+H23+K23+Q23+T23+W23","v":139},{"$f":"F23+I23+L23+R23+U23+X23","v":64},0,0,0,75,18,93,54,20,74,"S/D","S/D",0,0,0,0,4,23,27,6,3,9]
["UNIDAD N° 21 ARTIGAS",0,{"$f":"E24+H24+K24+N24+Q24+T24+W24","v":0},{"$f":"F24+I24+L24+O24+R24+U24+X24","v":0},0,0,0,0,0,0,0,0,0,0,0,{"$f":"N24+O24","v":0},0,0,0,0,0,0,0,0,0]
["UNIDAD N° 22 ROCHA",15,{"$f":"E25+H25+K25+N25+Q25+T25+W25","v":15},{"$f":"F25+I25+L25+O25+R25+U25+X25","v":0},0,0,0,0,0,0,15,0,15,0,0,{"$f":"N25+O25","v":0},0,0,0,0,0,0,0,0,0]
["UNIDAD N° 23 TREINTA Y TRES",30,{"$f":"E26+N26+Q26+T26+W26","v":26},{"$f":"F26+O26+R26+U26+X26","v":4},0,0,0,"S/D","S/D",0,"S/D","S/D",0,0,0,0,26,4,30,0,0,0,0,0,0]
["UNIDAD N° 24 \"PENSE\" MERCEDES/ SORIANO",0,{"$f":"E27+H27+K27+N27+Q27+T27+W27","v":0},0,0,0,0,0,0,0,0,0,0,0,0,0,0,0,0,0,0,0,0,0,0]
["UNIDAD N° 26 TACUAREMBÓ",0,0,0,0,0,0,0,0,0,0,0,0,0,0,0,0,0,0,0,0,0,0,0,0]
["UNIDAD N.º  29 FLORIDA",15,15,0,0,0,0,0,0,0,15,0,15,0,0,0,0,0,0,0,0,0,0,0,0]
["Fuente: INR"]

{"sheet":"Cuadro 3.1.42","index":121,"n_rows":33,"n_cols":16,"rows_kept":33,"cut":false,"hidden":false,"merged":[[0,0,0,3],[5,12,7,12],[5,13,6,14],[5,15,7,15],[3,0,3,15],[4,4,4,15],[5,0,7,0],[5,1,7,1],[5,2,6,3],[5,4,6,5],[5,6,7,6],[5,7,6,8],[5,9,7,9],[5,10,6,11]]}
["Ministerio de Educación y Cultura\nDirección de Educación\n"]
[]
[]
["CANTIDAD DE ASPIRANTES A EDUCACIÓN FORMAL DE POBLACIÓN PRIVADA DE LIBERTAD POR UNIDAD PENITENCIARIA SEGÚN NIVEL Y SEXO. AÑO 2016"]
[null,null,null,null,"NIVEL EDUCATIVO"]
["UNIDADES PENITENCIARIAS","TOTAL","SEXO",null,"PRIMARIA",null,"TOTAL PRIMARIA","SECUNDARIA",null,"TOTAL SECUNDARIA","TERCIARIA",null,"TOTAL TERCIARIA","UTU",null,"TOTAL UTU"]
[]
[null,null,"MASCULINO","FEMENINO","MASCULINO","FEMENINO",null,"MASCULINO","FEMENINO",null,"MASCULINO","FEMENINO",null,"MASCULINO","FEMENINO"]
["TOTAL ",{"$f":"SUM(B10:B32)","v":3586},{"$f":"SUM(C10:C32)","v":3292},{"$f":"SUM(D10:D32)","v":294},{"$f":"SUM(E10+E11+E13+E14+E16+E15+E18+E19+E21+E22+E23+E24+E25+E26+E27+E28+E29+E30+E31+E32)","v":748},{"$f":"SUM(F10:F32)","v":51},{"$f":"SUM(G10:G32)","v":799},{"$f":"SUM(H10+H11+H12+H13+H14+H15+H16+H17+H18++H19+H21+H22+H23+H24+H25++H26+H27+H28+H29+H30+H31+H32)","v":2343},{"$f":"SUM(I10+I11+I12+I13+I14+I15+I16+I17+I18++I19+I21+I22+I23+I24+I25++I26+I27+I28+I29+I30+I31+I32)","v":202},{"$f":"SUM(J10:J32)","v":2545},{"$f":"K10+K11+K12+K13+K14+K15+K16+K17+K18+K19+K22+K23+K24+K25+K26+K27++K28+K29+K30+K31+K32","v":8},{"$f":"L10+L11+L12+L13+L14+L15+L16+L17+L18+L19+L22+L23+L24+L25+L26+L27++L28+L29+L30+L31+L32","v":4},{"$f":"SUM(M10:M32)","v":12},{"$f":"N11+N12+N13+N14+N15+N16+N17+N18+N19+N22+N23+N24+N25+N26+N27+N28+N29+N30+N31+N32","v":193},{"$f":"O11+O12+O13+O14+O15+O16+O17+O18+O19+O22+O23+O24+O25+O26+O27+O28+O29+O30+O31+O32","v":37},{"$f":"P11+P12+P13+P14+P15+P16+P17+P18+P19+P20+P21+P22+P23+P24+P25+P27+P28+P29+P30+P31+P32","v":230}]
["UNID. N°3 LIBERTAD",{"$f":"C10+D10","v":613},{"$f":"E10+H10+K10+N10","v":613},{"$f":"F10+I10+L10+O10","v":0},81,0,{"$f":"E10+F10","v":81},531,0,{"$f":"H10+I10","v":531},1,0,{"$f":"K10+L10","v":1}]
["UNID. N°4 SANTIAGO VÁZQUEZ",{"$f":"C11+D11","v":612},{"$f":"E11+H11+K11+N11","v":612},0,284,0,{"$f":"E11+F11","v":284},325,0,{"$f":"H11+I11","v":325},3,0,{"$f":"K11+L11","v":3},0,0,{"$f":"N11+O11","v":0}]
["UNID. N°5 FEMENINO",160,0,160,0,29,29,0,110,110,0,2,2,0,19,{"$f":"N12+O12","v":19}]
["UNID. N°6 PUNTA DE RIELES",292,290,2,47,0,47,243,0,243,0,2,2,0,0,0]
["UNID. N°7 CANELONES",241,241,0,67,0,67,144,0,144,0,0,0,30,0,30]
["UNID. N°9 EL MOLINO",2,0,2,0,2,2,0,0,0,0,0,0,0,0,0]
["UNID. N°10 JUAN SOLER",103,103,0,13,0,13,90,0,90,0,0,0,0,0,0]
["UNIDAD N°11 TACUABÉ-SALTO",3,{"$f":"H17+K17+N17","v":2},{"$f":"+I17+L17+O17","v":1},"S/D",0,"S/D",2,1,3,0,0,0,0,0,0]
["UNIDAD N°12 CERRO CARANCHO",{"$f":"C18+D18","v":108},{"$f":"E18+H18+K18+N18","v":98},10,33,3,36,65,7,72,0,0,0,0,0,0]
["UNIDAD N°13 LAS ROSAS-MALDONADO",397,374,23,27,2,29,230,11,241,4,0,4,113,10,123]
["UNIDAD N°14 PIEDRA DE LOS INDIOS",0,0,0,"S/D","S/D",0,"S/D","S/D",0,"S/D","S/D",0,"S/D","S/D",0]
["UNIDAD N°15 CONVENTOS-CERRO LARGO",{"$f":"C21+D21","v":49},{"$f":"E21+H21","v":44},{"$f":"F21+I21","v":5},8,0,8,36,5,41,"S/D","S/D",0,"S/D","S/D",0]
["UNIDAD N°16 PAYSANDÚ",98,{"$f":"E22+H22+K22+N22","v":88},{"$f":"F22+I22+L22+O22","v":10},26,4,30,62,6,68,0,0,0,0,0,0]
["UNIDAD N°17 CAMPANERO-LAVALLEJA",167,{"$f":"E23+H23+K23+N23","v":151},{"$f":"F23+I23+L23+O23","v":16},10,0,10,91,8,99,0,0,0,50,8,58]
["UNIDAD N°18 DURAZNO",43,{"$f":"E24+H24+K24+N24","v":43},0,11,0,11,32,0,32,0,0,0,0,0,0]
["UNIDAD N°19 LAS CAÑITAS RIO NEGRO",48,44,4,9,0,9,35,4,39,0,0,0,0,0,0]
["UNIDAD N°20 SALTO",132,119,13,45,3,48,74,10,84,0,0,0,0,0,0]
["UNIDAD N° 21 ARTIGAS",76,74,2,21,0,21,53,2,55,0,0,0,0,0,0]
["UNIDAD N° 22 ROCHA",38,38,0,6,0,6,32,0,32,0,0,0,0,0,0]
["UNIDAD N° 23 TREINTA Y TRES",38,34,4,4,1,5,30,3,33,0,0,0,0,0,0]
["UNIDAD N° 24 \"PENSE\" MERCEDES/ SORIANO",264,233,31,35,4,39,198,27,225,0,0,0,0,0,0]
["UNIDAD N° 26 TACUAREMBÓ",51,{"$f":"E31+H31+K31+N31","v":40},{"$f":"F31+I31+L31+O31","v":11},12,3,15,28,8,36,0,0,0,0,0,0]
["UNIDAD N.º  29 FLORIDA",51,{"$f":"E32+H32+K32+N32","v":51},{"$f":"F32+I32+L32+O32","v":0},9,0,9,42,0,42,0,0,0,0,0,0]
["Fuente: INR"]

{"sheet":"Gráfico 3.1.1","index":122,"n_rows":24,"n_cols":1,"rows_kept":24,"cut":false,"hidden":false,"merged":[[0,0,0,3]]}
["Ministerio de Educación y Cultura\nDirección de Educación\n"]
[]
["Gráfico 3.1.1"]
[]
[]
[]
[]
[]
[]
[]
[]
[]
[]
[]
[]
[]
[]
[]
[]
[]
[]
[]
["Fuente: Área de becas de la Dirección de Educación del Ministerio de Educación y Cultura "]
["Nota: Otras becas incluye becas Formación Docente, Bienestar estudiantil, ANII y Chamangá"]

{"sheet":"Gráfico 3.1.2","index":123,"n_rows":53,"n_cols":1,"rows_kept":53,"cut":false,"hidden":false,"merged":[[0,0,0,8]]}
["Ministerio de Educación y Cultura\nDirección de Educación\n"]
[]
[]
[]
[]
[]
[]
["Gráfico 3.1.2"]
[]
[]
[]
[]
[]
[]
[]
[]
[]
[]
[]
[]
[]
[]
[]
[]
[]
[]
[]
[]
[]
[]
[]
[]
[]
[]
[]
[]
[]
[]
[]
[]
[]
[]
[]
[]
[]
[]
[]
[]
[]
[]
[]
[]
["Fuente : Fondo de Solidaridad"]

{"sheet":"Gráfico 3.1.3","index":124,"n_rows":46,"n_cols":1,"rows_kept":46,"cut":false,"hidden":false,"merged":[[0,0,0,8]]}
["Ministerio de Educación y Cultura\nDirección de Educación\n"]
[]
["Gráfico 3.1.3"]
[]
[]
[]
[]
[]
[]
[]
[]
[]
[]
[]
[]
[]
[]
[]
[]
[]
[]
[]
[]
[]
[]
[]
[]
[]
[]
[]
[]
[]
[]
[]
[]
[]
[]
[]
[]
[]
[]
[]
[]
[]
[]
["Fuente: Fondo de Solidaridad "]

{"sheet":"Gráfico 3.1.4","index":125,"n_rows":39,"n_cols":1,"rows_kept":39,"cut":false,"hidden":false,"merged":[[0,0,0,7]]}
["Ministerio de Educación y Cultura\nDirección de Educación\n"]
[]
["Gráfico 3.1.4"]
[]
[]
[]
[]
[]
[]
[]
[]
[]
[]
[]
[]
[]
[]
[]
[]
[]
[]
[]
[]
[]
[]
[]
[]
[]
[]
[]
[]
[]
[]
[]
[]
[]
[]
["Fuente: Procesamiento propio con base en información proporcionada por el Plan Ceibal."]
["Nota: Todo el país, años 2007 a 2016."]

{"sheet":"Gráfico 3.1.5","index":126,"n_rows":29,"n_cols":1,"rows_kept":29,"cut":false,"hidden":false,"merged":[[0,0,0,3]]}
["Ministerio de Educación y Cultura\nDirección de Educación\n"]
[]
["Gráfico 3.1.5"]
[]
[]
[]
[]
[]
[]
[]
[]
[]
[]
[]
[]
[]
[]
[]
[]
[]
[]
[]
[]
[]
[]
[]
[]
[]
["Fuente: Elaboración propia con base en datos de DEE-CEIP."]

{"sheet":"Gráfico 3.1.6","index":127,"n_rows":31,"n_cols":1,"rows_kept":31,"cut":false,"hidden":false,"merged":[[0,0,0,3]]}
["Ministerio de Educación y Cultura\nDirección de Educación\n"]
[]
["Gráfico 3.1.6"]
[]
[]
[]
[]
[]
[]
[]
[]
[]
[]
[]
[]
[]
[]
[]
[]
[]
[]
[]
[]
[]
[]
[]
[]
[]
["Fuente: Elaboración propia con base en datos de DEE-CEIP."]
["Nota: Los establecimientos que atienden discapacidades intelectuales, además de atender niños con disfunciones clásicamente tipificadas como “intelectuales”,"]
["atienden a niños con discapacidades de orden motriz o de carácter, lo que implica que la matrícula correspondiente los agrupa."]

{"sheet":"Gráfico 3.1.7","index":128,"n_rows":29,"n_cols":1,"rows_kept":29,"cut":false,"hidden":false,"merged":[[0,0,0,3]]}
["Ministerio de Educación y Cultura\nDirección de Educación\n"]
[]
["Gráfico 3.1.7"]
[]
[]
[]
[]
[]
[]
[]
[]
[]
[]
[]
[]
[]
[]
[]
[]
[]
[]
[]
[]
[]
[]
[]
[]
[]
["Fuente: Elaboración propia con base en datos de DEE-CEIP."]

{"sheet":"Gráfico 3.1.8","index":129,"n_rows":30,"n_cols":1,"rows_kept":30,"cut":false,"hidden":false,"merged":[[0,0,0,3]]}
["Ministerio de Educación y Cultura\nDirección de Educación\n"]
[]
["Gráfico 3.1.8"]
[]
[]
[]
[]
[]
[]
[]
[]
[]
[]
[]
[]
[]
[]
[]
[]
[]
[]
[]
[]
[]
[]
[]
[]
[]
[]
["Fuente: Elaboración propia con base en datos de DEE-CEIP."]

{"sheet":"Gráfico 3.1.9","index":130,"n_rows":29,"n_cols":1,"rows_kept":29,"cut":false,"hidden":false,"merged":[[0,0,0,3]]}
["Ministerio de Educación y Cultura\nDirección de Educación\n"]
[]
["Gráfico 3.1.9"]
[]
[]
[]
[]
[]
[]
[]
[]
[]
[]
[]
[]
[]
[]
[]
[]
[]
[]
[]
[]
[]
[]
[]
[]
[]
["Fuente: Elaboración propia con base en datos de DEE-CEIP."]

{"sheet":"Gráfico 3.110","index":131,"n_rows":29,"n_cols":1,"rows_kept":29,"cut":false,"hidden":false,"merged":[[0,0,0,3]]}
["Ministerio de Educación y Cultura\nDirección de Educación\n"]
[]
["Gráfico 3.1.10"]
[]
[]
[]
[]
[]
[]
[]
[]
[]
[]
[]
[]
[]
[]
[]
[]
[]
[]
[]
[]
[]
[]
[]
[]
[]
["Fuente: Elaboración propia con base en datos de DEE-CEIP."]

{"sheet":"Gráfico 3.1.11","index":132,"n_rows":24,"n_cols":1,"rows_kept":24,"cut":false,"hidden":false,"merged":[[0,0,0,3]]}
["Ministerio de Educación y Cultura\nDirección de Educación\n"]
[]
["Gráfico 3.1.11"]
[]
[]
[]
[]
[]
[]
[]
[]
[]
[]
[]
[]
[]
[]
[]
[]
[]
[]
[]
[]
["Fuente: Elaboración propia en base a datos del MEF, BCU e INE."]

{"sheet":"Gráfico 3.1.12","index":133,"n_rows":26,"n_cols":1,"rows_kept":26,"cut":false,"hidden":false,"merged":[[0,0,0,3]]}
["Ministerio de Educación y Cultura\nDirección de Educación\n"]
[]
["Gráfico 3.1.12"]
[]
[]
[]
[]
[]
[]
[]
[]
[]
[]
[]
[]
[]
[]
[]
[]
[]
[]
[]
[]
[]
[]
["Fuente: Elaboración propia en base a datos del MEF y BCU."]

{"sheet":"Gráfico 3.1.13","index":134,"n_rows":34,"n_cols":1,"rows_kept":34,"cut":false,"hidden":false,"merged":[[0,0,0,3]]}
["Ministerio de Educación y Cultura\nDirección de Educación\n"]
[]
["Gráfico 3.1.13"]
[]
[]
[]
[]
[]
[]
[]
[]
[]
[]
[]
[]
[]
[]
[]
[]
[]
[]
[]
[]
[]
[]
[]
[]
[]
["Fuente: Elaboración propia en base a datos del MEF."]
["Notas:"]
["(1) Se incluyen gastos en Dirección de Educación del MEC, ISEF, capacitación laboral, Centro de Diseño Industrial, escuelas de formación artística y otros componentes considerados en MIDES-DINEM (2006): \"Identificación y análisis del gasto público social en Uruguay 2002-2005\". Además, se incluye el subsidio al boleto estudiantil que realiza el MTOP."]
["(2) Incluye subsidios a escuelas para niños con capacidades especiales, rentas afectadas al Fondo de Solidaridad y al Fondo de Reconversión Laboral.\n"]
["(3) Se considera la Dirección Nacional de Ciencia y Tecnología (DINACYT) y el Clemente Estable. La baja de recursos se explica por la finalización del Programa de Desarrollo Tecnológico (PDT) y el traspaso de algunos programas a la ANII."]
["(4) Del presupuesto de la ANII se toma en cuenta solo el componente 2, de fortalecimiento y orientación de la investigación.\n"]

{"sheet":"Gráfico 3.1.14","index":135,"n_rows":33,"n_cols":1,"rows_kept":33,"cut":false,"hidden":false,"merged":[[0,0,0,3]]}
["Ministerio de Educación y Cultura\nDirección de Educación\n"]
[]
["Gráfico 3.1.14"]
[]
[]
[]
[]
[]
[]
[]
[]
[]
[]
[]
[]
[]
[]
[]
[]
[]
[]
[]
[]
[]
[]
[]
["Fuente: Elaboración propia en base a datos del MEF y BCU."]
[]
[]
[]
[]
[]
["Fuente: Elaboración propia en base a datos del MEF y BCU."]

{"sheet":"Gráfico 3.1.15","index":136,"n_rows":27,"n_cols":1,"rows_kept":27,"cut":false,"hidden":false,"merged":[[0,0,0,6]]}
["Ministerio de Educación y Cultura\nDirección de Educación\n"]
[]
["Gráfico 3.1.15"]
[]
[]
[]
[]
[]
[]
[]
[]
[]
[]
[]
[]
[]
[]
[]
[]
[]
[]
[]
[]
[]
[]
[]
["Fuente: Elaboración propia en base a datos del MEF."]

{"sheet":"Gráfico 3.1.16","index":137,"n_rows":38,"n_cols":1,"rows_kept":38,"cut":false,"hidden":false,"merged":[[0,0,0,3]]}
["Ministerio de Educación y Cultura\nDirección de Educación\n"]
[]
["Gráfico 3.1.16"]
[]
[]
[]
[]
[]
[]
[]
[]
[]
[]
[]
[]
[]
[]
[]
[]
[]
[]
[]
[]
[]
["Fuente: Elaboración propia en base a datos del MEF."]
[]
[]
[]
[]
[]
[]
[]
[]
[]
[]
[]
[]
["Fuente: Elaboración propia en base a datos del MEF."]

{"sheet":"Gráfico 3.1.17","index":138,"n_rows":32,"n_cols":1,"rows_kept":32,"cut":false,"hidden":false,"merged":[[0,0,0,3]]}
["Ministerio de Educación y Cultura\nDirección de Educación\n"]
[]
["Gráfico 3.1.17"]
[]
[]
[]
[]
[]
[]
[]
[]
[]
[]
[]
[]
[]
[]
[]
[]
[]
[]
[]
[]
[]
[]
[]
[]
[]
[]
[]
[]
["Fuente: Elaboración propia en base a datos de ANEP."]

{"sheet":"Gráfico 3.1.18","index":139,"n_rows":32,"n_cols":1,"rows_kept":32,"cut":false,"hidden":false,"merged":[[0,0,0,3]]}
["Ministerio de Educación y Cultura\nDirección de Educación\n"]
[]
["Gráfico 3.1.18"]
[]
[]
[]
[]
[]
[]
[]
[]
[]
[]
[]
[]
[]
[]
[]
[]
[]
[]
[]
[]
[]
[]
[]
[]
[]
[]
[]
[]
["Fuente: Elaboración propia en base a datos de ANEP."]

{"sheet":"Gráfico 3.1.19","index":140,"n_rows":33,"n_cols":1,"rows_kept":33,"cut":false,"hidden":false,"merged":[[0,0,0,3]]}
["Ministerio de Educación y Cultura\nDirección de Educación\n"]
[]
["Gráfico 3.1.19"]
[]
[]
[]
[]
[]
[]
[]
[]
[]
[]
[]
[]
[]
[]
[]
[]
[]
[]
[]
[]
[]
[]
[]
[]
[]
[]
[]
[]
[]
["Fuente: Elaboración propia en base a datos de ANEP."]

{"sheet":"Gráfico 3.1.20","index":141,"n_rows":28,"n_cols":1,"rows_kept":28,"cut":false,"hidden":false,"merged":[[0,0,0,3]]}
["Ministerio de Educación y Cultura\nDirección de Educación\n"]
[]
["Gráfico 3.1.20"]
[]
[]
[]
[]
[]
[]
[]
[]
[]
[]
[]
[]
[]
[]
[]
[]
[]
[]
[]
[]
[]
[]
[]
[]
["Fuente: Elaboración propia en base a datos de ANEP."]

{"sheet":"UdelaR","index":143,"n_rows":73,"n_cols":31,"rows_kept":73,"cut":false,"hidden":true,"merged":[[2,2,2,13],[5,0,31,0],[62,2,62,13]]}
["UDLEAR",null,null,null,null,null,null,null,null,null,null,null,null,null,null,"IPC",2004,2005,2006,2007,2008,2009,2010,2011,2012,2013,2014,2015]
[null,null,null,null,null,null,null,null,null,null,null,null,null,null,null,"Nivel General. Total País. Base Dic 2010=100",65.563778241338596,68.644802048497297,73.037316645144188,78.963720848095534,85.182104897188836,91.197587276359513,97.307484299636869,105.18333333333334,113.70083333333334,123.45083333333334,134.41,146.05833333333331]
[]
["A precios corrientes",null,null,null,null,null,null,null,null,null,null,null,null,null,null,"Millones de pesos, a precios constantes dic 2010"]
["Código Inciso","Descripción Unidad Ejecutora",2004,2005,2006,2007,2008,2009,2010,2011,2012,2013,2014,2015,null,"Descripción Unidad Ejecutora",2004,2005,2006,2007,2008,2009,2010,2011,2012,2013,2014,2015,"Crec 04/15","Crec anual","Crec 2014-2015"]
[26,"FACULTAD DE AGRONOMIA",140476092,153740658,180642276,208311940,283885420,338655757,357061978,414572999,446150853,493716021,566626530,588975646,null,"FACULTAD DE AGRONOMIA",{"$f":"(C6/(Q$2/$AB$2))/1000000","v":312.94267080177798},327.12024221710988,361.2442375216167,385.31232372349814,486.76692543437849,542.37723736338796,535.94929289090612,575.67904876192358,573.11849081515072,584.13003152854367,615.73191424931179,588.97564599999998,{"$f":"(AB6/Q6-1)","v":0.88205604716994612},{"$f":"((AB6/Q6)^(1/12))-1","v":5.411027348562758E-2},{"$f":"AB6/AA6-1","v":-4.3454411944738203E-2}]
[null,"FACULTAD DE ARQUITECTURA",67015720,75079843,90019546,101725516,145020684,199208844,212737292,253110097,291452246,336173027,356793762,384857501,null,"FACULTAD DE ARQUITECTURA",149.29286616618097,159.75043132560668,180.01900206799931,188.16057760266597,248.66114108667702,319.04475336314482,319.31823673179287,351.4705015147361,374.39505102146711,397.73625425972546,387.7144722970761,384.85750100000001,1.5778693308199148,8.2110825186516134E-2,-7.3687507204709402E-3]
[null,"FACULTAD DE CIENCIAS",113382942,128060928,151329820,176273153,231391568,301242039,325151143,384971768,424418962,478214737,537360004,608689204,null,"FACULTAD DE CIENCIAS",252.58647352492611,272.48043771159007,302.62586727031442,326.05052880069059,396.75782619198941,482.45695374531596,488.05119534043439,534.57456645032471,545.20203948769051,565.79000380711614,583.92907212434591,608.68920400000002,1.4098250215284489,7.6049192151665945E-2,4.2402635966687363E-2]
[null,"FACULTAD DE CIENCIAS ECONOMICAS Y DE ADMINISTRACION",98990586,111501569,128782774,143021983,179580940,222831586,244832772,280159816,309800729,340090051,394088762,414180790,null,"FACULTAD DE CIENCIAS ECONOMICAS Y DE ADMINISTRACION",220.52420398392834,237.24641700745022,257.53680716217661,264.54620226412686,307.920223695939,356.87797273141348,367.49348604661691,389.0319359080969,397.96522872032597,402.37060124320737,428.24155764538841,414.18079,0.87816476612329231,5.3928480656499911E-2,-3.2833729922661203E-2]
[null,"FACULTAD DE CIENCIAS SOCIALES",59793630,70105381,94814422,116975681,158976276,196607370,200868270,228981883,254607363,288252466,322072427,343816565,null,"FACULTAD DE CIENCIAS SOCIALES",133.20400648057117,149.16606648998973,189.60768398114513,216.36864149625151,272.59023406530417,314.87833879015216,301.50285917790887,317.96588998106472,327.06468373150295,341.04002076278675,349.98409270323384,343.81656500000003,1.5811278060179692,8.2224743236126274E-2,-1.7622308647220475E-2]
[null,"FACULTAD DE DERECHO",76007790,83483552,100016552,114426581,155788322,199636121,214308714,242509696,273931975,299460045,335734716,353663536,null,"FACULTAD DE DERECHO",169.32476171347838,177.63134428229577,200.01078300619469,211.65359902483308,267.12397740793079,319.72906276600821,321.67693791428951,336.75070842909201,351.88878165837241,354.30003906514736,364.83039253850154,353.66353600000002,1.0886699170346339,6.330000921124479E-2,-3.0608350529138129E-2]
[null,"FACULTAD DE HUMANIDADES Y CIENCIAS DE LA EDUCACION",51470360,56426867,72266223,82676657,113881799,144942259,154711813,176728258,201396429,218350751,246221120,256347105,null,"FACULTAD DE HUMANIDADES Y CIENCIAS DE LA EDUCACION",114.66201612107062,120.06173669812603,144.51631813032583,152.92611084300125,195.26854588786517,232.13360584810212,232.22211237293962,245.40613040453172,258.71074025278318,258.3372336339703,267.5593067380899,256.347105,1.2356758905174434,6.9343917841224068E-2,-4.1905482095845659E-2]
[null,"FACULTAD DE INGENIERIA",135081214,149561007,190607331,213631479,265782470,343296411,381963079,479872145,503038653,533287577,609845745,697968837,null,"FACULTAD DE INGENIERIA",300.92434436677325,318.22702902751246,381.17212359041258,395.15181700087714,455.72652430073703,549.80951939035299,573.32579415801956,666.35391264577709,646.19567953408421,630.9483101962993,662.69662305725012,697.96883700000001,1.3194163252850695,7.2625767673969222E-2,5.32252809438305E-2]
[null,"FACULTAD DE MEDICINA",147600974,163049269,200528061,237527051,318733227,415122501,419917003,492529296,573330545,560011010,624273855,675471496,null,"FACULTAD DE MEDICINA",328.81497740201792,346.92655191187424,401.01136955135155,439.35119594200825,546.51906019184719,664.84325338003998,630.2945558395985,683.92972357724591,736.4915576853731,662.56559441815557,678.37511200710514,675.471496,1.0542601232368765,6.1829091219360421E-2,-4.280251376726163E-3]
[null,"FACULTAD DE ODONTOLOGIA",59371663,64272794,79678013,102364796,134724687,162516665,185362494,227130267,214939328,228540902,264635935,284364861,null,"FACULTAD DE ODONTOLOGIA",132.26397833706179,136.75583423904956,159.33824401892758,189.34304684715553,231.00700864137008,260.28005715612625,278.22872136723225,315.39472268333066,276.10773901217374,270.3935027679035,287.56999930219723,284.36486100000002,1.1499796435528653,6.5866621990635199E-2,-1.1145593455418323E-2]
[null,"FACULTAD DE PSICOLOGIA",43890661,49120911,56134805,66799034,89681290,123783807,140149627,161857518,180628050,194888094,231148477,258187867,null,"FACULTAD DE PSICOLOGIA",97.776500478070204,104.51655738487275,112.25708222725027,123.5574447294042,153.77290528794634,198.24709275792054,210.3643012070421,224.75651386357148,232.03200155012053,230.57786997104105,251.18042781904867,258.18786699999998,1.6405922255103373,8.4280827025125182E-2,2.7898030279650099E-2]
[null,"FACULTAD DE QUIMICA",75395485,86324037,105313245,137324962,183190478,225078914,268847675,270611780,317353875,355605881,395371038,422504016,null,"FACULTAD DE QUIMICA",167.96071207829007,183.67515958334687,210.60298692733593,254.00848464788473,314.10935350224804,360.4772015261255,403.53980594263703,375.77346443194415,407.66788334334984,420.72783876759297,429.63495914403688,422.50401599999998,1.5154931220049952,7.990427691830293E-2,-1.659767901160536E-2]
[null,"FACULTAD DE VETERINARIA",89925595,96580445,111757466,133162709,177427155,224016531,226410099,262004240,284192428,308992550,345370429,381633735,null,"FACULTAD DE VETERINARIA",200.3298602066678,205.49813544987077,223.48999075121264,246.30961066420863,304.22721507824849,358.77573227703834,339.8410918521547,363.82097246712084,365.06920101406462,365.57822775936432,375.3011624310567,381.633735,0.90502671247457722,5.5176448350529927E-2,1.6873309232306566E-2]
[null,"HOSPITAL DE CLINICAS",535511911,590707784,691181194,789734567,1007261508,1203764535,1261073893,1495650130,1717805451,1833447097,2052737477,2235774812,null,"HOSPITAL DE CLINICAS",1192.9754400806082,1256.872943666029,1382.2081350204571,1460.7634163242908,1727.1108440777114,1927.9001447163448,1892.8693136756558,2076.8705299088888,2206.6663348756601,2169.2055048311399,2230.6332464957341,2235.7748120000001,0.87411637900016692,5.3738981327719149E-2,2.3049802168704225E-3]
[null,"INSTITUTO DE HIGIENE",16966001,19598307,21353649,24024279,33139916,37200724,43525523,49643180,60085914,56806964,63025800,70958059,null,"INSTITUTO DE HIGIENE",37.795653268640443,41.70011379088335,42.702532442124642,44.437446875448614,56.823682669133085,59.579161121533453,65.331720294667917,68.934876870543476,77.185436538723678,67.209999799380299,68.487785916226457,70.958059000000006,0.87741321721973931,5.3893330026363095E-2,3.6068812135278572E-2]
[null,"INSTITUTO ESCUELA NACIONAL DE BELLAS ARTES",23960877,null,null,null,null,null,null,null,null,null,null,null,null,"INSTITUTO ESCUELA NACIONAL DE BELLAS ARTES",{"$f":"(C21/(Q$2/$AB$2))/1000000","v":53.378341726169971}]
[null,"INSTITUTO NACIONAL DE ENFERMERIA",29447208,null,null,null,null,null,null,null,null,null,null,null,null,"INSTITUTO NACIONAL DE ENFERMERIA",{"$f":"(C22/(Q$2/$AB$2))/1000000","v":65.600400665869046}]
[null,"OFICINAS CENTRALES Y ESCUELAS DEPENDIENTES DE RECTORADO",505073883,471358651,506845924,746885815,740243095,853306719,938902142,1352339233,1611452086,1923428147,2114935091,2347115874,null,"OFICINAS CENTRALES Y ESCUELAS DEPENDIENTES DE RECTORADO",{"$f":"(C23/(Q$2/$AB$2))/1000000","v":1125.1677609186672},{"$f":"(D23/(R$2/$AB$2))/1000000","v":1002.9289460062682},1013.5787336753846,1381.5065470263912,1269.2650979651528,1366.6212113879308,1409.2901795851728,1877.8679873863884,2070.0464458133547,2275.6647472657128,2298.2210735781682,2347.1158740000001,{"$f":"(AB23/Q23-1)","v":1.0860141531993834},{"$f":"((AB23/Q23)^(1/12))-1","v":6.3187277151908416E-2},{"$f":"AB23/AA23-1","v":2.1275063997958199E-2}]
[null,"REGIONAL NORTE",15109279,16859271,20675408,30777058,41213523,45921450,48561202,60456969,73098893,95531116,123783838,137139228,null,"REGIONAL NORTE",{"$f":"(C24/(Q$2/$AB$2))/1000000","v":33.659379733807064},35.872155647492384,41.346201807202284,56.92798855098215,70.667172259248275,73.545919925763869,72.890264092561694,83.950982068055765,93.901708255656274,113.02568972343914,134.51127945750565,137.139228,{"$f":"(AB24/Q24-1)","v":3.0743242770531225},{"$f":"((AB24/Q24)^(1/12))-1","v":0.12418546534314978},{"$f":"AB24/AA24-1","v":1.9537012457937042E-2}]
[null,"FACULTAD DE ENFERMERIA",null,32446518,40589766,54216885,73508417,93340593,101598427,123867944,138903120,149225441,176316657,184413511,null,"FACULTAD DE ENFERMERIA",null,69.037774166816789,81.170473460215049,100.28438093562795,126.04192965118885,149.49048382839209,152.49902948075402,172.00391811820626,178.4328013016615,176.55303423137414,191.59673432278103,184.413511,{"$f":"(AB25/R25-1)","v":1.6711972282652026},{"$f":"((AB25/R25)^(1/11))-1","v":9.3431171264851454E-2},{"$f":"AB25/AA25-1","v":-3.7491366166395812E-2}]
[null,"INSTESCNALDE BELLAS ARTES Y ESCUELA UNIVDE MUSICA",null,36812912,null,null,null,null,null,null,null,null,null,null,null,"INSTESCNALDE BELLAS ARTES Y ESCUELA UNIVDE MUSICA",null,{"$f":"(D26/(R$2/$AB$2))/1000000","v":78.328328022097779}]
[null,"IEMBAYEUMBELLAS ARTES Y MUSICA",null,null,46522563,61982035,79108197,104878046,126872416,14682595,null,null,null,null,null,"IEMBAYEUMBELLAS ARTES Y MUSICA",null,null,{"$f":"(E27/(S$2/$AB$2))/1000000","v":93.034743420119312},114.64749420969913,135.64364746293461,167.96839762434723,190.43523486715486,20.388357040484863]
[null,"IENBAYEUMBELLAS ARTES Y MUSICA",null,null,null,null,null,null,null,126614292,140158662,163866495,185925317,198958041,null,"IENBAYEUMBELLAS ARTES Y MUSICA",null,null,null,null,null,null,null,{"$f":"(J28/(X$2/$AB$2))/1000000","v":175.81751670765325},{"$f":"(K28/(Y$2/$AB$2))/1000000","v":180.04565115134011},{"$f":"(L28/(Z$2/$AB$2))/1000000","v":193.87529838903475},{"$f":"(M28/(AA$2/$AB$2))/1000000","v":202.03810672934802},{"$f":"(N28/(AB$2/$AB$2))/1000000","v":198.95804100000001},{"$f":"(AB28/S27-1)","v":1.1385348493042025},{"$f":"((AB28/S27)^(1/10))-1","v":7.8975623716268206E-2},{"$f":"AB28/AA28-1","v":-1.5244974223966978E-2}]
[null,"FACULTAD DE INFORMACION Y COMUNICACION",null,null,null,null,null,null,null,null,null,null,140505053,159037901,null,"FACULTAD DE INFORMACION Y COMUNICACION",null,null,null,null,null,null,null,null,null,null,{"$f":"(M29/(AA$2/$AB$2))/1000000","v":152.68160007508121},{"$f":"(N29/(AB$2/$AB$2))/1000000","v":159.03790100000001},null,null,{"$f":"AB29/AA29-1","v":4.1631086665276484E-2}]
[null,"CENTRO UNIVERSITARIO REGIONAL ESTE",null,null,null,null,null,null,null,null,null,null,null,null,null,"CENTRO UNIVERSITARIO REGIONAL ESTE"]
[null,"CENTRO UNIVERSITARIO REGIONAL LITORAL NORTE",null,null,null,null,null,null,null,null,null,null,null,null,null,"CENTRO UNIVERSITARIO REGIONAL LITORAL NORTE"]
[null,"FACULTAD DE ARQUITECTURA DISEO Y URBANISMO",null,null,null,null,null,null,null,null,null,null,null,null,null,"FACULTAD DE ARQUITECTURA DISEO Y URBANISMO"]
[]
[null,"Distribución %",null,null,null,null,null,null,null,null,null,null,null,null,null,"Ordenado de mayor a menor"]
[null,"FACULTAD DE AGRONOMIA",{"$f":"C6/SUM(C$6:C$29)","v":6.1491714467251588E-2},6.2621172305167921E-2,6.2526335953678763E-2,5.8814574268011406E-2,6.4336070865642206E-2,6.2306144529614832E-2,6.1006456458321874E-2,5.8404595922500933E-2,5.5652365358180994E-2,5.5737439925371869E-2,5.6175209288582918E-2,5.3523492396055798E-2,null,"Descripción Unidad Ejecutora",2015,1]
[null,"FACULTAD DE ARQUITECTURA",2.9335322903610399E-2,3.0581290898000157E-2,3.1158776894472034E-2,2.8721075305303108E-2,3.2865587118943634E-2,3.6650595093357573E-2,3.634760669325398E-2,3.5657876839176435E-2,3.6355431732984819E-2,3.795182473315549E-2,3.5372442326713584E-2,3.4974141406754422E-2,null,"OFICINAS CENTRALES Y ESCUELAS DEPENDIENTES DE RECTORADO",2347.1158740000001,{"$f":"Q36/SUM(Q$36:Q$55)","v":0.21329547238138405}]
[null,"FACULTAD DE CIENCIAS",4.9632014926219242E-2,5.2161383606460839E-2,5.238031414711436E-2,4.9768776809313173E-2,5.2439552255131902E-2,5.5422740149460588E-2,5.5554274243680715E-2,5.4234406499808673E-2,5.2941553242225749E-2,5.3987442256740147E-2,5.3273733384869487E-2,5.5314973043648151E-2,null,"HOSPITAL DE CLINICAS",2235.7748120000001,0.20317729088135345,null,null,"Facultades por Áreas (sin contar Escuelas despendientes de Rectorado)"]
[null,"FACULTAD DE CIENCIAS ECONOMICAS Y DE ADMINISTRACION",4.3331934727070226E-2,4.5416476392637586E-2,4.4576027109903597E-2,4.0380676408235477E-2,4.069787057735702E-2,4.0996725188047804E-2,4.1831336756299062E-2,3.9468612009635994E-2,3.8644201266468982E-2,3.8394032157261421E-2,3.9069859089775665E-2,3.7638911752485911E-2,null,"FACULTAD DE INGENIERIA",697.96883700000001,6.3428309801205937E-2,null,{"$f":"R38+R40+R41+R42+R44+R45","v":0.28031738609650442},"Área de las Tecnologías y las Ciencias Naturales y el Hábitab - está completa"]
[null,"FACULTAD DE CIENCIAS SOCIALES",2.6173940138657106E-2,2.8555108324828719E-2,3.2818443913017747E-2,3.3026790868184087E-2,3.6028299581894324E-2,3.6171973922201651E-2,3.4319703924379878E-2,3.2258720134806428E-2,3.1759441662569256E-2,3.254189417324032E-2,3.1930178053623512E-2,3.1244523313304406E-2,null,"FACULTAD DE MEDICINA",675.471496,6.1383851311075134E-2,null,{"$f":"R39+R48+R49+R52","v":0.12744731629398171},"Área Ciencias de la Salud - Falta: ISEF y Escuela de Nutrición"]
[null,"FACULTAD DE DERECHO",3.3271493059237586E-2,3.40042638196556E-2,3.4619075167545955E-2,3.2307080652501832E-2,3.5305823470016484E-2,3.6729205841782499E-2,3.661609478139382E-2,3.4164503805923313E-2,3.4169972450972995E-2,3.3807159497132575E-2,3.3284653891414065E-2,3.2139372329595788E-2,null,"FACULTAD DE CIENCIAS",608.68920400000002,5.5314973043648137E-2,null,{"$f":"R43+R46+R47+R50+R51+R53","v":0.15685157659490956},"Área Ciencias Sociales y Artísticas - Falta: Escuela Univ. De Bibliotecología y Ciencias Afines"]
[null,"FACULTAD DE HUMANIDADES Y CIENCIAS DE LA EDUCACION",2.2530529114140271E-2,2.2983618042325495E-2,2.5013757783927986E-2,2.3342840469717699E-2,2.5808678342025531E-2,2.6666587385676323E-2,2.6433560739901957E-2,2.4897285933900129E-2,2.5121968439990761E-2,2.4650429293082088E-2,2.4410298874056054E-2,2.3295687043091109E-2,null,"FACULTAD DE AGRONOMIA",588.97564599999998,5.3523492396055784E-2]
[null,"FACULTAD DE INGENIERIA",5.9130171710483716E-2,6.0918729705719259E-2,6.597557491658293E-2,6.0316487320076898E-2,6.0233455542610899E-2,6.3159935592838765E-2,6.526097815909164E-2,6.7603869018948756E-2,6.2748486790505431E-2,6.0204820223941288E-2,6.0459951211826894E-2,6.3428309801205951E-2,null,"FACULTAD DE QUIMICA",422.50401599999998,3.8395289586692062E-2]
[null,"FACULTAD DE MEDICINA",6.4610545602992897E-2,6.6412727128308979E-2,6.9409471513887419E-2,6.7063138011682066E-2,7.2233521113929777E-2,7.6374554426373378E-2,7.1745663044605987E-2,6.938699476874001E-2,7.1516619875979542E-2,6.3221728078015571E-2,6.1890350347724568E-2,6.1383851311075148E-2,null,"FACULTAD DE CIENCIAS ECONOMICAS Y DE ADMINISTRACION",414.18079,3.7638911752485904E-2]
[null,"FACULTAD DE ODONTOLOGIA",2.5989229175323911E-2,2.6179396914045746E-2,2.7579226298940034E-2,2.8901568948817034E-2,3.053223730258308E-2,2.9899940008877499E-2,3.1670437111668469E-2,3.1997866474426977E-2,2.6811294725234788E-2,2.5800833381737269E-2,2.6235938924188434E-2,2.5841816344710056E-2,null,"FACULTAD DE ARQUITECTURA",384.85750100000001,3.4974141406754415E-2]
[null,"FACULTAD DE PSICOLOGIA",1.9212607323892062E-2,2.0007778498761324E-2,1.943013426228225E-2,1.8859969074381523E-2,2.0324192164438065E-2,2.2773839245165847E-2,2.3945512667343013E-2,2.2802312158802511E-2,2.2531343748289964E-2,2.2001642582903391E-2,2.2916000901355951E-2,2.346296732297886E-2,null,"FACULTAD DE VETERINARIA",381.633735,3.4681179862148102E-2]
[null,"FACULTAD DE QUIMICA",3.3003463932780461E-2,3.5161241439819323E-2,3.645243784042048E-2,3.8772185484907129E-2,4.1515888961535498E-2,4.1410190307949638E-2,4.5934445528693538E-2,3.8123495019917394E-2,3.9586372368393748E-2,4.0145671977994082E-2,3.9196983604516844E-2,3.8395289586692069E-2,null,"FACULTAD DE DERECHO",353.66353600000002,3.2139372329595788E-2]
[null,"FACULTAD DE VETERINARIA",3.9363844283465024E-2,3.933885002401117E-2,3.8682998349997721E-2,3.759701934613105E-2,4.0209764973380045E-2,4.1214732273129322E-2,3.8683698342050425E-2,3.6910874089949974E-2,3.544985004227829E-2,3.488331948015206E-2,3.4239936014225571E-2,3.4681179862148109E-2,null,"FACULTAD DE CIENCIAS SOCIALES",343.81656500000003,3.1244523313304403E-2]
[null,"HOSPITAL DE CLINICAS",0.234413878235054,0.24060527907892726,0.23924093793475465,0.22297282787936845,0.22827254657502888,0.22146951748803312,0.21546301282191116,0.21070557343288532,0.21427715744684875,0.20698466948348218,0.20350786855142958,0.20317729088135347,null,"FACULTAD DE ODONTOLOGIA",284.36486100000002,2.5841816344710052E-2]
[null,"INSTITUTO DE HIGIENE",7.4266622475738066E-3,7.9827221731845234E-3,7.3912124048466747E-3,6.7829896907538132E-3,7.5103962163940293E-3,6.8442175815434641E-3,7.4366302976263329E-3,6.9936775313434721E-3,7.4950506455901409E-3,6.4131496824421713E-3,6.2483616952781389E-3,6.4483534372240898E-3,null,"FACULTAD DE PSICOLOGIA",258.18786699999998,2.3462967322978853E-2]
[null,"INSTITUTO ESCUELA NACIONAL DE BELLAS ARTES",1.0488584825302058E-2,0,0,0,0,0,0,0,0,0,0,0,null,"FACULTAD DE HUMANIDADES Y CIENCIAS DE LA EDUCACION",256.347105,2.3295687043091106E-2]
[null,"INSTITUTO NACIONAL DE ENFERMERIA",{"$f":"C22/SUM(C$6:C$29)","v":1.289016002946442E-2},0,0,0,0,0,0,0,0,0,0,0,null,"IENBAYEUMBELLAS ARTES Y MUSICA",198.95804100000001,1.8080423642164747E-2]
[null,"OFICINAS CENTRALES Y ESCUELAS DEPENDIENTES DE RECTORADO",0.22108999870456272,0.19199235703676062,0.175436333191333,0.21087495626050878,0.16775899310969303,0.15699202113993718,0.16041778787364513,0.19051608919062729,0.20101075599036206,0.21714296525569265,0.20967412409844832,0.2132954723813841,null,"FACULTAD DE ENFERMERIA",184.413511,1.6758681315217658E-2]
[null,"REGIONAL NORTE",6.6139045929184915E-3,6.8670664479042404E-3,7.156450501029879E-3,8.6895622185261898E-3,9.3400926907439442E-3,8.4486634039694797E-3,8.2970101492485793E-3,8.517112435352225E-3,9.1182752944654333E-3,1.0784863388206174E-2,1.2271898045779895E-2,1.2462604314642514E-2,null,"FACULTAD DE INFORMACION Y COMUNICACION",159.03790100000001,1.4452658514267622E-2]
[null,"FACULTAD DE ENFERMERIA",0,1.3216015989607201E-2,1.4049476132581545E-2,1.5307538345678762E-2,1.6658984196276011E-2,1.7172873508652486E-2,1.7358779133323159E-2,1.7450382042538602E-2,1.7326621997137047E-2,1.6846615664259806E-2,1.7479988287943893E-2,1.6758681315217662E-2,null,"REGIONAL NORTE",137.139228,1.2462604314642512E-2]
[null,"INSTESCNALDE BELLAS ARTES Y ESCUELA UNIVDE MUSICA",0,1.4994522173874029E-2,0,0,0,0,0,0,0,0,0,0,null,"INSTITUTO DE HIGIENE",70.958059000000006,6.4483534372240881E-3]
[null,"IEMBAYEUMBELLAS ARTES Y MUSICA",0,0,1.6103015683682959E-2,1.7499942637901517E-2,1.792804494237564E-2,1.9295542913388572E-2,2.1677011273561309E-2,2.0684681108928964E-3,0,0,0,0,null,"INSTITUTO ESCUELA NACIONAL DE BELLAS ARTES",0]
[null,"IENBAYEUMBELLAS ARTES Y MUSICA",0,0,0,0,0,0,0,1.7837284579822678E-2,1.7483236921521247E-2,1.8499498765189453E-2,1.8432588383253293E-2,1.808042364216475E-2,null,"INSTITUTO NACIONAL DE ENFERMERIA",0]
[null,"FACULTAD DE INFORMACION Y COMUNICACION",0,0,0,0,0,0,0,0,0,0,1.3929635024993333E-2,1.4452658514267625E-2,null,"INSTESCNALDE BELLAS ARTES Y ESCUELA UNIVDE MUSICA",0]
[null,null,{"$f":"SUM(C35:C58)","v":1},1,1,1,0.99999999999999989,0.99999999999999989,1,1,1,1,0.99999999999999989,1,null,"IEMBAYEUMBELLAS ARTES Y MUSICA",0]
[null,null,null,null,null,null,null,null,null,null,null,null,null,null,null,"CENTRO UNIVERSITARIO REGIONAL ESTE",0]
[null,null,null,null,null,null,null,null,null,null,null,null,null,null,null,"CENTRO UNIVERSITARIO REGIONAL LITORAL NORTE",0]
[null,null,null,null,null,null,null,null,null,null,null,null,null,null,null,"FACULTAD DE ARQUITECTURA DISEO Y URBANISMO",0]
[]
["Código Inciso","Descripción Funcionamiento O Inversión",2004,2005,2006,2007,2008,2009,2010,2011,2012,2013,2014,2015,null,"Descripción Funcionamiento O Inversión",2004,2005,2006,2007,2008,2009,2010,2011,2012,2013,2014,2015,"Crec 04/15","Crec anual","Crec 2014-2015"]
[null,"Funcionamiento",487265030,518155218,518813318,707313731,705752967,833785489,808347037,980054311,1125239656,1156921280,1294879576,1435246631,null,"Funcionamiento",{"$f":"(C65/(Q$2/$AB$2))/1000000","v":1085.4944617658389},1102.4999022589025,1037.5108508761816,1308.3104947951965,1210.1262610203103,1335.3568062258025,1213.3272361209208,1360.9104665581522,1445.4654723075905,1368.7877950439108,1407.0973345579446,1435.246631,{"$f":"(AB65/Q65-1)","v":0.32220539261453096},{"$f":"((AB65/Q65)^(1/12))-1","v":2.3548069891163648E-2},{"$f":"AB65/AA65-1","v":2.0005223342206779E-2}]
[null,"Remuneraciones",1715483648,1861933954,2265923344,2608350661,3416089756,4207414525,4631199112,5447749252,6187144299,6972429551,7995823438,8719521653,null,"Remuneraciones",3821.6327552869075,3961.7124965390817,4531.3409950930427,4824.6377729266624,5857.4318735213528,6738.4233675144378,6951.4203198454024,7564.7838012837883,7947.9099485178931,8249.2876881063985,8688.7630755292266,8719.5216529999998,{"$f":"(AB66/Q66-1)","v":1.2816220739518402},{"$f":"((AB66/Q66)^(1/12))-1","v":7.1158263399487165E-2},{"$f":"AB66/AA66-1","v":3.5400409935679722E-3}]
[null,"Inversiones",81723193,75001532,104322376,226177789,290696249,394150858,413309413,670490543,704361607,728537541,796069019,849290301,null,"Inversiones",182.05713100183027,159.58380583029842,208.62147006254179,418.35858978718682,498.44518031618713,631.25592595920045,620.376576871216,931.04799137703992,904.812034937372,861.95431927062714,865.05850854431696,849.290301,{"$f":"(AB67/Q67-1)","v":3.6649658616858121},{"$f":"((AB67/Q67)^(1/12))-1","v":0.13693954533557151},{"$f":"AB67/AA67-1","v":-1.8227908735157117E-2}]
[]
[null,"Distribución %"]
[null,"Funcionamiento",{"$f":"C65/SUM(C$65:C$67)","v":0.21329438816276849},0.21105339088115418,0.17957864867972975,0.1997022156420018,0.15994260254207224,0.15340049035200537,0.13811156425048987,0.1380689918401079,0.14036115369979107,0.13060915100906625,0.12837403004287765,0.13042884313215422]
[null,"Remuneraciones",0.75093227006952279,0.75839721561668216,0.7843118863948948,0.73643898505482275,0.7741778095733497,0.77408333409979724,0.79127172419362701,0.76747302529986205,0.77177755626017963,0.78714353333239317,0.7927038909812546,0.79239142409563967]
[null,"Inversiones",3.5773341767708723E-2,3.0549393502163659E-2,3.6109464925375472E-2,6.3858799303175395E-2,6.5879587884578122E-2,7.2516175548197434E-2,7.0616711555883088E-2,9.4457982860030001E-2,8.7861290040029336E-2,8.2247315658540571E-2,7.892207897586774E-2,7.7179732772206064E-2]
[null,null,{"$f":"SUM(C70:C72)","v":1},1,1,1,1,1,1,1,1,1,1,0.99999999999999989]

{"sheet":"Gráfico 3.1.21","index":144,"n_rows":27,"n_cols":1,"rows_kept":27,"cut":false,"hidden":false,"merged":[[0,0,0,3]]}
["Ministerio de Educación y Cultura\nDirección de Educación\n"]
[]
["Gráfico 3.1.21"]
[]
[]
[]
[]
[]
[]
[]
[]
[]
[]
[]
[]
[]
[]
[]
[]
[]
[]
[]
[]
[]
[]
[]
["Fuente: Elaboración propia en base a datos del MEF."]

{"sheet":"ORGANIGRAMA 3.1","index":145,"n_rows":39,"n_cols":2,"rows_kept":39,"cut":false,"hidden":false,"merged":[[0,0,0,3]]}
["Ministerio de Educación y Cultura\nDirección de Educación\n"]
[]
["Organigrama 3.1","OFERTAS EDUCATIVAS PARA EGRESADOS DE LA ESCUELA ESPECIAL"]
[]
[]
[]
[]
[]
[]
[]
[]
[]
[]
[]
[]
[]
[]
[]
[]
[]
[]
[]
[]
[]
[]
[]
[]
[]
[]
[]
[]
[]
[]
[]
[]
[]
[]
[]
["Fuente: Elaboración propia en base al informe de la Comisión de Continuidad Educativa del MEC"]

{"sheet":"CONTEXTO INTERNACIONAL","index":146,"n_rows":15,"n_cols":3,"rows_kept":15,"cut":false,"hidden":false,"merged":[[4,2,5,8]]}
[]
[]
[]
[]
[null,null,"CONTEXTO INTERNACIONAL"]
[]
[]
[]
["Gráfico 4.1.1 TASA DE ANALFABETISMO DE PAÍSES DE LA REGIÓN SEGÚN AÑO LECTIVO  (2000-2016)"]
[]
[]
[]
[]
["Gráfico 4.1.2 PORCENTAJE DE LA POBLACIÓN DE 25 AÑOS Y MÁS SEGÚN MÁXIMO NIVEL EDUCATIVO CULMINADO EN AMÉRICA LATINA Y EL CARIBE (Último dato disponible entre 2013 y 2015)"]
["Gráfico 4.1.3 PORCENTAJE DE LA POBLACIÓN DE 25 AÑOS Y MÁS SEGÚN MÁXIMO NIVEL EDUCATIVO CULMINADO EN EUROPA OCCIDENTAL, EE.UU Y URUGUAY (Último dato disponible entre 2013 y 2015)"]

{"sheet":"Gráfico 4.1.1 ","index":147,"n_rows":42,"n_cols":1,"rows_kept":42,"cut":false,"hidden":false,"merged":[[0,0,0,3],[29,0,29,6],[34,0,38,6],[41,0,50,5]]}
["Ministerio de Educación y Cultura\nDirección de Educación"]
[]
[]
[]
["Gráfico 4.1.1"]
[]
[]
[]
[]
[]
[]
[]
[]
[]
[]
[]
[]
[]
[]
[]
[]
[]
[]
[]
[]
[]
[]
[]
[]
[]
[]
[]
[]
["Fuentes: "]
["Indicadores Educativos del Mercosur 2000 - 2012 (SEM) y Unidades Productoras de Estadísticas Oficiales de los países. Paraguay DGEEC, Encuesta Permanente de Hogares para años 2013 y 2015.Argentina Encuesta Anual de Hogares Urbanos (EAHU). Instituto Nacional de Estadísticas y Censo (INDEC) para años 2011 a 2015.Chile Encuesta Nacional de Caracterización Socioeconómica, CASEN para el año 2013."]
[]
[]
[]
[]
[]
["Notas:"]
["La Tasa de Analfabetismo se mide con base en personas con 15 y más años de edad, con excepción de Argentina, en que refiere a personas con 10 y más años de edad. \nPara 2015 y 2016 el dato de Brasil y Argentina corresponde a 2014. Para Chile en 2014 se replica el valor de 2013 y para el 2016 se replica el 2015, por ser los último datos disponibles. \nPara el caso de Paraguay la serie historica ha sido rectificada dado que la Encuestas Permanente de Hogares (fuente de información) ha utilizado una nueva metodología para el calculo del factor de expansión, por lo tanto para que los datos sean comparables se volvieron a calcular las tasas utilizando los nuevos factores de expansión.  "]

{"sheet":"Gráfico 4.1.2","index":148,"n_rows":31,"n_cols":1,"rows_kept":31,"cut":false,"hidden":false,"merged":[[0,0,0,3],[30,0,31,6]]}
["Ministerio de Educación y Cultura\nDirección de Educación"]
[]
[]
[]
["Gráfico 4.1.2"]
[]
[]
[]
[]
[]
[]
[]
[]
[]
[]
[]
[]
[]
[]
[]
[]
[]
[]
[]
[]
[]
[]
[]
[]
["Fuente: UNESCO UIS (consulta realizada al 27 de octubre de 2017)."]
["Nota: Para los países que no presentaban dato al 2015 se tomó el dato 2014 o 2013, aquellos sin dato en el período 2013-2015 no fueron incluidos. No se presenta información para algunos niveles en el caso de los países que incluían otras categorías en el nivel y tampoco se presenta el porcentaje de nivel desconocido (por esto no todos los países suman 100%). El nivel de postsecundaria se corresponde a terciaria completa de nivel de grado y completa e incompleta en los niveles de posgrado."]

{"sheet":"Gráfico 4.1.3","index":149,"n_rows":31,"n_cols":1,"rows_kept":31,"cut":false,"hidden":false,"merged":[[0,0,0,3],[30,0,31,6]]}
["Ministerio de Educación y Cultura\nDirección de Educación"]
[]
[]
[]
["Gráfico 4.1.3"]
[]
[]
[]
[]
[]
[]
[]
[]
[]
[]
[]
[]
[]
[]
[]
[]
[]
[]
[]
[]
[]
[]
[]
[]
["Fuente: UNESCO UIS (consulta realizada al 27 de octubre de 2017)."]
["Nota: Para los países que no presentaban dato al 2015 se tomó el dato 2014 o 2013, aquellos sin dato en el período 2013-2015 no fueron incluidos. No se presenta información para algunos niveles en el caso de los países que incluían otras categorías en el nivel y tampoco se presenta el porcentaje de nivel desconocido (por esto no todos los países suman 100%). El nivel de postsecundaria se corresponde a terciaria completa de nivel de grado y completa e incompleta en los niveles de posgrado."]

{"sheet":"CONTROL","index":150,"n_rows":10,"n_cols":4,"rows_kept":10,"cut":false,"hidden":true,"merged":[]}
[null,"PRIMER CUADRO","SEGUNDO CUADRO"]
["MATRÍCULA","II-1.2.1","II-1.2.2",{"$f":"IF(#REF!, \"OK\", \"INCONSISTENCIA\")","v":{"$error":"#REF!"}}]
["MATRÍCULA","II-1.2.1","II-1.2.3",{"$f":"IF(#REF!=#REF!, \"OK\", \"INCONSISTENCIA\")","v":{"$error":"#REF!"}}]
["MATRÍCULA","II-1.2.1","II-1.2.5",{"$f":"IF(#REF!=#REF!, \"OK\", \"INCONSISTENCIA\")","v":{"$error":"#REF!"}}]
["MATRÍCULA","II-1.2.1","II-1.2.6",{"$f":"IF(#REF!=#REF!,\"OK\",\"INCONSISTENCIA\")","v":{"$error":"#REF!"}}]
["MATRÍCULA","II-1.2.4","II-1.2.5",{"$f":"IF(#REF!, \"OK\", \"INCONSISTENCIA\")","v":{"$error":"#REF!"}}]
["MATRÍCULA","II-1.2.4","II-1.2.6",{"$f":"IF(#REF!=#REF!, \"OK\", \"INCONSISTENCIA\")","v":{"$error":"#REF!"}}]
["MATRÍCULA","II-1.2.5","II-1.2.6",{"$f":"IF(#REF!=#REF!,\"OK\",\"INCONSISTENCIA\")","v":{"$error":"#REF!"}}]
["MATRÍCULA","II-1.2.5","II-1.2.7",{"$f":"IF(#REF! =#REF!, \"OK\", \"INCONSISTENCIA\")","v":{"$error":"#REF!"}}]
["PERSONAL","II-1.3.3","II-1.3.4",{"$f":"IF(#REF! =#REF!, \"OK\", \"INCONSISTENCIA\")","v":{"$error":"#REF!"}}]

{"sheet":"CONTROL ","index":151,"n_rows":23,"n_cols":11,"rows_kept":23,"cut":false,"hidden":true,"merged":[[0,0,0,5],[0,6,0,9]]}
["DENTRO DE PRIMARIA",null,null,null,null,null,"EN SINOPSIS"]
[null,"PRIMER CUADRO","SEGUNDO CUADRO","TERCER CUADRO",null,"Aclaración. ","PRIMER CUADRO","SEGUNDO CUADRO","TERCER CUADRO"]
["ESTABLEC.","II-2.1.1"," II-2.1.2 ",null,{"$f":"IF(SUM(#REF!+#REF!+#REF!+#REF!+#REF! +#REF! =#REF!),\"OK\",\"INCONSISTENCIA\")","v":{"$error":"#REF!"}}]
["ESTABLEC.","II-2.1.1","II-2.1.4",null,{"$f":"IF(#REF!=#REF!,\"OK\",\"INCONSISTENCIA\")","v":{"$error":"#REF!"}}]
["ESTABLEC.","II-2.1.1","II-2.1.4",null,{"$f":"IF(#REF!=#REF!,\"OK\",\"INCONSISTENCIA\")","v":{"$error":"#REF!"}},{"$f":"IF(E5=\"INCONSISTENCIA\",\"Número de establecimiento de especial\",\"\")","v":{"$error":"#REF!"}}]
["MATRÍCULA","II-2.2.1","II-2.2.2",null,{"$f":"IF(#REF!=#REF!,\"OK\",\"INCONSISTENCIA\")","v":{"$error":"#REF!"}},{"$f":"IF(E6=\"INCONSISTENCIA\",\"Matrícula de Primaria Pública\",\"\")","v":{"$error":"#REF!"}},null,null,null,{"$f":"IF((#REF!+#REF!)=#REF!,\"OK\",\"INCONSISTENCIA\")","v":{"$error":"#REF!"}},{"$f":"IF(J6=\"INCONSISTENCIA\",\"Matrícula de Primaria Pública\",\"\")","v":{"$error":"#REF!"}}]
["MATRÍCULA","II-2.2.2","II-2.2.3",null,{"$f":"IF(#REF!=SUM(#REF!-#REF!),\"OK\",\"INCONSISTENCIA\")","v":{"$error":"#REF!"}},null,null,null,null,{"$f":"IF((#REF!+#REF!)=#REF!,\"OK\",\"INCONSISTENCIA\")","v":{"$error":"#REF!"}}]
["MATRÍCULA","II-2.2.2","II-2.2.8",null,{"$f":"IF(#REF!=#REF!,\"OK\",\"INCONSISTENCIA\")","v":{"$error":"#REF!"}}]
["MATRÍCULA","II-2.2.1","II-2.2.6",null,{"$f":"IF(#REF!=#REF!,\"OK\",\"INCONSISTENCIA\")","v":{"$error":"#REF!"}}]
["MATRÍCULA","II-2.2.2","II-2.2.8",null,{"$f":"IF(#REF!=#REF!,\"OK\",\"INCONSISTENCIA\")","v":{"$error":"#REF!"}}]
["MATRÍCULA","II-2.2.1","II-2.2.8",null,{"$f":"IF(#REF!=#REF!,\"OK\",\"INCONSISTENCIA\")","v":{"$error":"#REF!"}}]
["MATRÍCULA","II-2.2.2","II-2.2.9",null,{"$f":"IF(#REF!=#REF!,\"OK\",\"INCONSISTENCIA\")","v":{"$error":"#REF!"}}]
["MATRÍCULA","II-2.2.1","II-2.2.10",null,{"$f":"IF(#REF!=#REF!,\"OK\",\"INCONSISTENCIA\")","v":{"$error":"#REF!"}}]
["MATRÍCULA","II-2.2.2","II-2.2.11",null,{"$f":"IF(#REF!=#REF!,\"OK\",\"INCONSISTENCIA\")","v":{"$error":"#REF!"}}]
["MATRÍCULA","II-2.2.1","II-2.2.11",null,{"$f":"IF(#REF!=#REF!,\"OK\",\"INCONSISTENCIA\")","v":{"$error":"#REF!"}}]
["MATRÍCULA","II-2.2.12","II-2.2.13",null,{"$f":"IF(#REF!=#REF!,\"OK\",\"INCONSISTENCIA\")","v":{"$error":"#REF!"}}]
["MATRÍCULA","II-2.2.10","II-2.2.12",null,{"$f":"IF(#REF!=#REF!,\"OK\",\"INCONSISTENCIA\")","v":{"$error":"#REF!"}}]
["MATRÍCULA","II-2.2.12","II-2.2.13",null,{"$f":"IF(#REF!=#REF!,\"OK\",\"INCONSISTENCIA\")","v":{"$error":"#REF!"}}]
["MATRÍCULA","II-2.2.13","II-2.2.14",null,{"$f":"IF(#REF!=#REF!,\"OK\",\"INCONSISTENCIA\")","v":{"$error":"#REF!"}}]
["MATRÍCULA","II-2.2.13","II-2.2.14",null,{"$f":"IF(#REF!=#REF!,\"OK\",\"INCONSISTENCIA\")","v":{"$error":"#REF!"}}]
["MATRÍCULA","II-2.2.1","II-2.2.15",null,{"$f":"IF(#REF!=#REF!+#REF!,\"OK\",\"INCONSISTENCIA\")","v":{"$error":"#REF!"}}]
["MATRÍCULA","II-2.2.16","II-2.2.17",null,{"$f":"IF(#REF!=#REF!,\"OK\",\"INCONSISTENCIA\")","v":{"$error":"#REF!"}}]
["MATRÍCULA","II-2.2.1","II-2.2.18",null,{"$f":"IF(#REF!=#REF!,\"OK\",\"INCONSISTENCIA\")","v":{"$error":"#REF!"}}]

{"sheet":"CONTROL Media Básica","index":152,"n_rows":15,"n_cols":4,"rows_kept":15,"cut":false,"hidden":true,"merged":[]}
[null,"PRIMER CUADRO","SEGUNDO CUADRO"]
["MATRÍCULA","II-3.2.1","II-3.2.4",{"$f":"IF(#REF! =#REF!, \"OK\", \"INCONSISTENCIA\")","v":{"$error":"#REF!"}}]
["MATRÍCULA","II-3.2.1","II-3.2.4",{"$f":"IF(#REF! =#REF!, \"OK\", \"INCONSISTENCIA\")","v":{"$error":"#REF!"}}]
["MATRÍCULA","II-3.2.1","II-3.2.4",{"$f":"IF(#REF! =#REF!, \"OK\", \"INCONSISTENCIA\")","v":{"$error":"#REF!"}}]
["MATRÍCULA","II-3.2.1","II-3.2.4",{"$f":"IF(#REF! =#REF!, \"OK\", \"INCONSISTENCIA\")","v":{"$error":"#REF!"}}]
["MATRÍCULA","II-3.2.1","II-3.2.4",{"$f":"IF(#REF! =#REF!, \"OK\", \"INCONSISTENCIA\")","v":{"$error":"#REF!"}}]
["MATRÍCULA","II-3.2.1","II-3.2.4",{"$f":"IF(#REF! =#REF!, \"OK\", \"INCONSISTENCIA\")","v":{"$error":"#REF!"}}]
["MATRÍCULA","II-3.2.2","II-3.2.5",{"$f":"IF('[2]II-3.2.2'!C14=#REF!, \"OK\", \"INCONSISTENCIA\")","v":{"$error":"#REF!"}}]
["MATRÍCULA","II-3.2.2","II-3.2.5",{"$f":"IF('[2]II-3.2.2'!F14=#REF!, \"OK\", \"INCONSISTENCIA\")","v":{"$error":"#REF!"}}]
["MATRÍCULA","II-3.2.2","II-3.2.5",{"$f":"IF('[2]II-3.2.2'!I14=#REF!, \"OK\", \"INCONSISTENCIA\")","v":{"$error":"#REF!"}}]
["MATRÍCULA","II-3.2.2","II-3.2.5",{"$f":"IF('[2]II-3.2.2'!L14=#REF!, \"OK\", \"INCONSISTENCIA\")","v":{"$error":"#REF!"}}]
["MATRÍCULA","II-3.2.5","II-3.2.6",{"$f":"IF(#REF!=#REF!, \"OK\", \"INCONSISTENCIA\")","v":{"$error":"#REF!"}}]
["MATRÍCULA","II-3.2.5","II-3.2.6",{"$f":"IF(#REF!=#REF!, \"OK\", \"INCONSISTENCIA\")","v":{"$error":"#REF!"}}]
["MATRÍCULA","II-3.2.5","II-3.2.6",{"$f":"IF(#REF!=#REF!, \"OK\", \"INCONSISTENCIA\")","v":{"$error":"#REF!"}}]
["MATRÍCULA","II-3.2.5","II-3.2.6",{"$f":"IF(#REF!=#REF!, \"OK\", \"INCONSISTENCIA\")","v":{"$error":"#REF!"}}]

{"sheet":"CONTROL Media Superior","index":153,"n_rows":21,"n_cols":4,"rows_kept":21,"cut":false,"hidden":true,"merged":[]}
[null,"PRIMER CUADRO","SEGUNDO CUADRO"]
["MATRÍCULA","II-4.2.1","II-4.2.5",{"$f":"IF(#REF!=#REF!, \"OK\", \"INCONSISTENCIA\")","v":{"$error":"#REF!"}}]
["MATRÍCULA","II-4.2.1","II-4.2.5",{"$f":"IF(#REF!=#REF!,\"OK\",\"INCONSISTENCIA\")","v":{"$error":"#REF!"}}]
["MATRÍCULA","II-4.2.1","II-4.2.5",{"$f":"IF(#REF!=#REF!, \"OK\", \"INCONSISTENCIA\")","v":{"$error":"#REF!"}}]
["MATRÍCULA","II-4.2.1","II-4.2.5",{"$f":"IF(#REF!=#REF!, \"OK\", \"INCONSISTENCIA\")","v":{"$error":"#REF!"}}]
["MATRÍCULA","II-4.2.1","II-4.2.5",{"$f":"IF(#REF!=#REF!, \"OK\", \"INCONSISTENCIA\")","v":{"$error":"#REF!"}}]
["MATRÍCULA","II-4.2.1","II-4.2.5",{"$f":"IF(#REF!=#REF!, \"OK\", \"INCONSISTENCIA\")","v":{"$error":"#REF!"}}]
["MATRÍCULA","II-4.2.3","II-4.2.4",{"$f":"IF(#REF!=#REF!, \"OK\", \"INCONSISTENCIA\")","v":{"$error":"#REF!"}}]
["MATRÍCULA","II-4.2.3","II-4.2.4",{"$f":"IF(#REF!=#REF!, \"OK\", \"INCONSISTENCIA\")","v":{"$error":"#REF!"}}]
["MATRÍCULA","II-4.2.3","II-4.2.4",{"$f":"IF(#REF!=#REF!, \"OK\", \"INCONSISTENCIA\")","v":{"$error":"#REF!"}}]
["MATRÍCULA","II-4.2.3","II-4.2.4",{"$f":"IF(#REF!=#REF!, \"OK\", \"INCONSISTENCIA\")","v":{"$error":"#REF!"}}]
["MATRÍCULA","II-4.2.3","II-4.2.4",{"$f":"IF(#REF!=#REF!, \"OK\", \"INCONSISTENCIA\")","v":{"$error":"#REF!"}}]
["MATRÍCULA","II-4.2.1","II-4.2.6",{"$f":"IF(#REF!=#REF!, \"OK\", \"INCONSISTENCIA\")","v":{"$error":"#REF!"}}]
["MATRÍCULA","II-4.2.5","II-4.2.9",{"$f":"IF(#REF!=#REF!, \"OK\", \"INCONSISTENCIA\")","v":{"$error":"#REF!"}}]
["MATRÍCULA","II-4.2.5","II-4.2.9",{"$f":"IF(#REF!=#REF!, \"OK\", \"INCONSISTENCIA\")","v":{"$error":"#REF!"}}]
["MATRÍCULA","II-4.2.6","II-4.2.7",{"$f":"IF(#REF!=#REF!, \"OK\", \"INCONSISTENCIA\")","v":{"$error":"#REF!"}}]
["MATRÍCULA","II-4.2.6","II-4.2.8",{"$f":"IF(#REF!=#REF!, \"OK\", \"INCONSISTENCIA\")","v":{"$error":"#REF!"}}]
["MATRÍCULA","II-4.2.9","II-4.2.10",{"$f":"IF(#REF!=#REF!, \"OK\", \"INCONSISTENCIA\")","v":{"$error":"#REF!"}}]
["MATRÍCULA","II-4.2.9","II-4.2.10",{"$f":"IF(#REF!=#REF!,\"OK\",\"INCONSISTENCIA\")","v":{"$error":"#REF!"}}]
["MATRÍCULA","II-4.2.9","II-4.2.10",{"$f":"IF(#REF!=#REF!,\"OK\",\"INCONSISTENCIA\")","v":{"$error":"#REF!"}}]
["MATRÍCULA","II-4.2.9","II-4.2.11",{"$f":"IF(#REF!=#REF!, \"OK\", \"INCONSISTENCIA\")","v":{"$error":"#REF!"}}]